Workbook

Sheet Regional Impact-Highways
J4: Projects in blue are fully funded for construction and not eligible for local input point assignment | L4: *Projects over $200M may be subject to the corridor cap | EH4: *Projects over $200M may be subject to the corridor cap
A6: DRAFT | G6: Division One Regional Impact Point Assignment-Highways | BT6: DRAFT
U7: Regional Criteria | AE7: Division Needs
A8: SPOT ID | B8: County | C8: RPO | D8: MODE | E8: Project Category | F8: TIP | G8: Route | H8: From / Cross Street | I8: To | J8: Description | K8: Specific Improvement Type | L8: Cost to NCDOT | M8: Statewide Mobility Quantiative Score (Out of 100) | O8: Regional Impact Quantiative Score (Out of 70) | P8: Regional Impact RPO Score (Out of 15) | Q8: Division Needs Quantiative Score (Out of 50) | R8: Division Needs RPO Score (Out of 25) | S8: Total Division Needs (Out of 100) | U8: Safety Score (15pts) | V8: Cost Effectiveness Score (15pts) | W8: Cost Effectiveness | X8: Freight Volume Score (10pts) | Y8: Transportation Plan Consistency Score (20pts) | Z8: Transportation Plan Consistency (Yes/No) | AA8: Corridor Continuity Score (20pts) | AB8: Corridor Continuity (Yes/No) | AC8: Public Support Score (20pts) | AD8: Public Support | AE8: Safety Score (20pts) | AF8: Cost Effectiveness (20pts) | AG8: Transportation Plan Consistency (15pts) | AH8: Multimodal Accomodations (10pts) | AI8: Multimodal (Yes/No) | AJ8: Project Feasibility (15pts) | AK8: Project Feasibility (Significant/Minimal) | AL8: Public Support (10pts) | AM8: Public Support (Yes/No) | AN8: Airport Safety (5pts) | AO8: Airport Safety (Yes/No) | AP8: Transit Expansion (5pts) | AQ8: Transit (Yes/No) | AR8: Congestion | AS8: [Travel Time] Benefit/Cost | AT8: Safety | AU8: Multimodal + [Freight & Military] | AV8: Economic Competitiveness | AW8: Accessibility / Connectivity | AX8: Lane Width | AY8: [Paved] Shoulder Width | BC8: MPO/RPO | BD8: First MPO/RPO % | BE8: Second MPO/RPO | BF8: Second MPO/RPO % | BG8: Third MPO/RPO | BH8: Third MPO/RPO % | BI8: First Division | BJ8: First Division % | BK8: Second Division | BL8: Second Division % | BM8: Third Division | BN8: Third Division % | BO8: Divisin Methodology Preliminary Ranking | BP8: Division Methodology Preliminary Ranking | BQ8: Preliminary Ranking | BR8: Preliminary Ranking | BS8: Division Engineer Local Points REGIONAL | BT8: Division Engineer Local Points DIVISION NEEDS | BU8: SPOT + Division Points | BV8: Comments | BW8: SPOT + Division Points | BX8: SPOT + RPO + Division | BY8: Comments | BZ8: County | CA8: First County % | CB8: Second County | CC8: Second County % | CD8: Third County | CE8: Third County % | CF8: Fourth County | CG8: Fourth County % | CH8: Highest Division | CI8: Funding Region | CJ8: All Divisions | CK8: All MPOs/RPOs | CL8: All Counties | CM8: Existing Length (Miles) | CN8: Project Length (Miles) | CO8: Existing Facility Type | CP8: Project Facility Type | CQ8: Existing Lanes Per Direction | CR8: Project Lanes Per Direction | CS8: Existing Median Type | CT8: Project Median Type | CU8: Existing Speed Limit | CV8: Project Speed Limit | CW8: Truck % | CX8: Auto % | CY8: Existing Volume | CZ8: Existing Capacity | DA8: Existing Volume / Capacity Ratio | DB8: Auto Volume | DC8: Truck Volume | DD8: Travel Time Savings Over 30 Years Autos (Hrs) | DE8: Travel Time Savings Over 30 Years Trucks (Hrs) | DF8: Travel Time Savings Over 30 Years Total (Hrs) | DG8: Travel Time Savings Over 30 Years Total ($) | DH8: Crash Density Points Segment | DI8: Crash Severity Points Segment | DJ8: Critical Crash Rate Points Segment | DK8: Crash Frequency Points Intersection | DL8: Severity Index Points Intersection | DM8: Long Term Employment | DN8: Percent Change In Value Added | DO8: Non-Interstate STRAHNet Route | DP8: Direct Connection to Transportation Terminal | DQ8: Existing Lane Width | DR8: DOT Design Standard Lane Width | DS8: Existing Roadway Has Curb & Gutter | DT8: Existing Paved Shoulder Width | DU8: DOT Design Paved Shoulder Width | DV8: Existing Cross Section | DW8: Project Cross Section | DX8: Existing Access Control | DY8: Project Access Control | DZ8: County Tier | EA8: Upgrade Roadway Eligible | EB8: Census Average Commute Time | EC8: Construction Cost | ED8: Right-Of-Way Cost | EE8: Utilities Cost | EF8: Actual Project Cost | EG8: Other Funds | EH8: Cost to NCDOT | EI8: Cost Used in Benefit/Cost Analysis | EJ8: Other Funds Source
A9: T130121 | B9: Dare | C9: Albemarle RPO | D9: Transit | E9: Division Needs | J9: Expansion Vehicle-Due to expected increased demand for public transportation within the community we would like to have a 13-passenger LTV as part of our fleet in FY 2018. For the period FY2011-FY2014, we have seen an approximate increase of 15% each year for demand, riders, and trips. This trend is expected to continue as the elderly population in the region increases. | L9: 6655 | Q9: 4.03 | R9: 9.75 | S9: =Q9+#REF!+R9 ->  | U9: =IF(AT9<30,0,IF(AT9<50,5,IF(AT9<65,10,IF(AT9>66,15)))) -> 5 | V9: 0 | W9: =(EH9/CY9)/CN9 -> 1.499948599e-06 | X9: 0 | Z9: Yes | AA9: =IF(AB9="Yes",10,0) -> 0 | AB9: No | AC9: =IF(AD9="Yes",10,0) -> 0 | AD9: No | AE9: =IF(AT9<30,0,IF(AT9<50,5,IF(AT9<65,10,IF(AT9<79,15,IF(AT9>80,20))))) -> 5 | AF9: =IF(W9<999,20,IF(W9<1499,15,IF(W9<1999,10,IF(W9<3999,5,IF(W9>4000,0))))) -> 20 | AG9: =IF(Z9="Yes",15,0) -> 15 | AH9: =IF(AI9="Yes",10,0) -> 10 | AI9: Yes | AJ9: =IF(AK9="Minimal",15,0) -> 15 | AK9: Minimal | AL9: =IF(AM9="Yes",10,0) -> 10 | AM9: Yes | AN9: =IF(AO9="Yes",5,0) -> 0 | AO9: No | AP9: =IF(AQ9="Yes",5,0) -> 5 | AQ9: Yes | AT9: 31.2 | BC9: Albemarle RPO | BP9: =SUM(AE9+AF9+AG9+AH9+AJ9+AL9+AN9+AP9) -> 80 | BT9: 100 | BU9: =Q9+BT9*0.25 -> 29.03 | BZ9: Dare | CN9: 248868 | CY9: 17828 | EF9: 66550 | EH9: 6655 | EJ9: Fed:$53,240 Local:$6,655
A10: T130109 | B10: Martin | C10: Mid-East RPO | D10: Transit | E10: Division Needs | J10: Expansion Vehicle-Martin County Transit provides curb to curb public transportation service in a demand-response system. Many of the riders are elderly and/or disabled that depend on Martin County Transit as his/her's only means of transportation to services and resources. Martin County Transit works closely with Social Services to provide transportation for these vulnerable adults. | L10: 6010 | Q10: 3.19 | S10: =Q10+#REF!+R10 ->  | U10: 5 | V10: 0 | W10: 0 | X10: 0 | Z10: Yes | AA10: =IF(AB10="Yes",10,0) -> 0 | AB10: No | AC10: =IF(AD10="Yes",10,0) -> 0 | AD10: No | AE10: 5 | AF10: 20 | AG10: 15 | AH10: 10 | AI10: Yes | AJ10: 15 | AK10: Minimal | AL10: 10 | AM10: Yes | AN10: 0 | AO10: No | AP10: 5 | AQ10: Yes | AT10: 31.2 | BC10: Mid-East RPO | BP10: 80 | BZ10: Martin | CN10: 33392 | CY10: 2280 | EF10: 60100 | EH10: 6010 | EJ10: Fed:$48,080 Local:$6,010
A11: T130017 | B11: Pasquotank | C11: Albemarle RPO | D11: Transit | E11: Regional Impact | J11: Expansion Vehicle-ARHS-ICPTA’s covers a little over 1000 square miles across five counties. Our agency wants to purchase an expansion vehicle to meet client demand. | L11: 8205 | O11: 5.35 | P11: 3.15 | Q11: 5.01 | R11: 9.75 | S11: =Q11+#REF!+R11 ->  | U11: 5 | V11: =IF(W11<499,15,IF(W11<999,10,IF(W11<1499,5,IF(W11>1500,0)))) -> 15 | W11: =(EH11/CY11)/CN11 -> 2.033795104e-05 | X11: 0 | Y11: =IF(Z11="Yes",20,0) -> 20 | Z11: Yes | AA11: =IF(AB11="Yes",20,0) -> 0 | AB11: No | AC11: =IF(AD11="Yes",20,0) -> 20 | AD11: Yes | AE11: 5 | AF11: 20 | AG11: 15 | AH11: 10 | AI11: Yes | AJ11: 15 | AK11: Minimal | AL11: 10 | AM11: Yes | AN11: 0 | AO11: No | AP11: 5 | AQ11: Yes | AT11: 31.2 | BC11: Albemarle RPO | BO11: =SUM(U11+V11+X11+Y11+AA11+AC11) -> 60 | BP11: 80 | BW11: =O11+BS11*0.25 -> 5.35 | BZ11: Pasquotank | CN11: 870586 | CY11: 98611 | EF11: 82050 | EH11: 1746000 | EJ11: Fed:$65,640 Local:$8,205
A12: T130018 | B12: Pasquotank | C12: Albemarle RPO | D12: Transit | E12: Regional Impact | J12: Expansion Vehicle-ARHS-ICPTA’s covers a little over 1000 square miles across five counties. Our agency wants to purchase an expansion vehicle to meet client demand. | L12: 8205 | O12: 4.8 | P12: 3.15 | Q12: 4.46 | R12: 9.75 | S12: =Q12+#REF!+R12 ->  | U12: 5 | V12: 15 | W12: 9.557439191e-08 | X12: 0 | Y12: 20 | Z12: Yes | AA12: 0 | AB12: No | AC12: 20 | AD12: Yes | AE12: 5 | AF12: 20 | AG12: 15 | AH12: 10 | AI12: Yes | AJ12: 15 | AK12: Minimal | AL12: 10 | AM12: Yes | AN12: 0 | AO12: No | AP12: 5 | AQ12: Yes | AT12: 31.2 | BC12: Albemarle RPO | BO12: 60 | BP12: 80 | BW12: 4.8 | BZ12: Pasquotank | CN12: 870586 | CY12: 98611 | EF12: 82050 | EH12: 8205 | EJ12: Fed:$65,640 Local:$8,205
A13: T130019 | B13: Pasquotank | C13: Albemarle RPO | D13: Transit | E13: Regional Impact | J13: Expansion Vehicle-ARHS-ICPTA’s covers a little over 1000 square miles across five counties. Our agency wants to purchase an expansion vehicle to meet client demand. | L13: 8205 | O13: 4.8 | P13: 3.15 | Q13: 4.46 | R13: 9.75 | S13: =Q13+#REF!+R13 ->  | U13: 5 | V13: 15 | W13: 9.557439191e-08 | X13: 0 | Y13: 20 | Z13: Yes | AA13: 0 | AB13: No | AC13: 20 | AD13: Yes | AE13: 5 | AF13: 20 | AG13: 15 | AH13: 10 | AI13: Yes | AJ13: 15 | AK13: Minimal | AL13: 10 | AM13: Yes | AN13: 0 | AO13: No | AP13: 5 | AQ13: Yes | AT13: 31.2 | AY13: Fed:$65,640 Local:$8,205 | BC13: Albemarle RPO | BO13: 60 | BP13: 80 | BW13: 4.8 | BZ13: Pasquotank | CN13: 870586 | CY13: 98611 | EF13: 82050 | EH13: 8205 | EJ13: Fed:$65,640 Local:$8,205
A14: T130020 | B14: Pasquotank | C14: Albemarle RPO | D14: Transit | E14: Regional Impact | J14: Expansion Vehicle-ARHS-ICPTA’s covers a little over 1000 square miles across five counties. Our agency wants to purchase an expansion vehicle to meet client demand. | L14: 8205 | O14: 4.8 | P14: 3.15 | Q14: 4.46 | R14: 9.75 | S14: =Q14+#REF!+R14 ->  | U14: 5 | V14: 15 | W14: 9.557439191e-08 | X14: 0 | Y14: 20 | Z14: Yes | AA14: 0 | AB14: No | AC14: 20 | AD14: Yes | AE14: 5 | AF14: 20 | AG14: 15 | AH14: 10 | AI14: Yes | AJ14: 15 | AK14: Minimal | AL14: 10 | AM14: Yes | AN14: 0 | AO14: No | AP14: 5 | AQ14: Yes | AT14: 31.2 | AY14: Fed:$65,640 Local:$8,205 | BC14: Albemarle RPO | BO14: 60 | BP14: 80 | BW14: 4.8 | BZ14: Pasquotank | CN14: 870586 | CY14: 98611 | EF14: 82050 | EH14: 8205 | EJ14: Fed:$65,640 Local:$8,205
A15: T130021 | B15: Pasquotank | C15: Albemarle RPO | D15: Transit | E15: Regional Impact | J15: Expansion Vehicle-ARHS-ICPTA’s covers a little over 1000 square miles across five counties. Our agency wants to purchase an expansion vehicle to meet client demand. | L15: 8205 | O15: 4.8 | P15: 3.15 | Q15: 4.46 | R15: 9.75 | S15: =Q15+#REF!+R15 ->  | U15: 5 | V15: 15 | W15: 9.557439191e-08 | X15: 0 | Y15: 20 | Z15: Yes | AA15: 0 | AB15: No | AC15: 20 | AD15: Yes | AE15: 5 | AF15: 20 | AG15: 15 | AH15: 10 | AI15: Yes | AJ15: 15 | AK15: Minimal | AL15: 10 | AM15: Yes | AN15: 0 | AO15: No | AP15: 5 | AQ15: Yes | AT15: 31.2 | AY15: Fed:$65,640 Local:$8,205 | BC15: Albemarle RPO | BO15: 60 | BP15: 80 | BW15: 4.8 | BZ15: Pasquotank | CN15: 870586 | CY15: 98611 | EF15: 82050 | EH15: 8205 | EJ15: Fed:$65,640 Local:$8,205
A16: T130072 | B16: Bertie | C16: Peanut Belt RPO | D16: Transit | E16: Regional Impact | J16: Expansion Vehicle-Purpose of expanding routes for employment, education, and/or medical purposes. Etc. | L16: 6783 | O16: 2.97 | P16: 3.15 | Q16: 2.85 | S16: =Q16+#REF!+R16 ->  | U16: 5 | V16: 15 | W16: 1.195601038e-07 | X16: 0 | Y16: 20 | Z16: Yes | AA16: 0 | AB16: No | AC16: 20 | AD16: Yes | AE16: 5 | AF16: 20 | AG16: 15 | AH16: 10 | AI16: Yes | AJ16: 15 | AK16: Minimal | AL16: 10 | AM16: Yes | AN16: 0 | AO16: No | AP16: 5 | AQ16: Yes | AT16: 31.2 | BC16: Peanut Belt RPO | BO16: 60 | BP16: 80 | BW16: 2.97 | BZ16: Bertie | CN16: 1238603 | CY16: 45804 | EF16: 67830 | EH16: 6783 | EJ16: Fed:$54,264 Local:$6,783
A17: H090230 | B17: Dare | C17: Albemarle RPO | D17: Highway | E17: Statewide Mobility | F17: R-3419 | G17: US-158 | H17: US 64-NC 12 | I17: Eastern End of Currituck Sound Bridge | J17: Add Additional Lanes. | K17: 1 - Widen Existing Roadway | L17: 85428000 | M17: 33.82659557 | O17: 22.42 | P17: 12.3 | Q17: 15.67 | R17: 6.75 | S17: =Q17+#REF!+R17 ->  | U17: =IF(AT17<30,0,IF(AT17<50,5,IF(AT17<65,10,IF(AT17>66,15)))) -> 15 | V17: =IF(W17<499,15,IF(W17<999,10,IF(W17<1499,5,IF(W17>1500,0)))) -> 15 | W17: =(EH17/CY17)/CN17 -> 183.5913006 | X17: =IF(DC17<500,0,IF(DC17<1000,5,IF(DC17>1000,10))) -> 10 | Y17: =IF(Z17="Yes",20,0) -> 20 | Z17: Yes | AA17: =IF(AB17="Yes",20,0) -> 20 | AB17: Yes | AC17: =IF(AD17="Yes",20,0) -> 20 | AD17: Yes | AE17: =IF(AT17<30,0,IF(AT17<50,5,IF(AT17<65,10,IF(AT17<79,15,IF(AT17>80,20))))) -> 15 | AF17: =IF(BL15<999,20,IF(BL15<1499,15,IF(BL15<1999,10,IF(BL15<3999,5,IF(BL15>4000,0))))) -> 20 | AG17: =IF(Z17="Yes",15,0) -> 15 | AH17: 10 | AI17: No | AJ17: =IF(AK17="Minimal",15,0) -> 15 | AK17: Minimal | AL17: =IF(AM17="Yes",10,0) -> 10 | AM17: Yes | AN17: =IF(AO17="Yes",10,0) -> 0 | AO17: No | AP17: =IF(AQ17="Yes",10,0) -> 0 | AQ17: No | AR17: 61.66320611 | AS17: 3.198423854 | AT17: 66.84883402 | AU17: 12.296077 | AV17: 52.24007775 | AW17: 17.92998658 | AX17: 0 | AY17: 25 | BC17: Albemarle RPO | BD17: 100 | BI17: 01 | BJ17: 100 | BO17: =SUM(U17+V17+X17+Y17+AA17+AC17) -> 100 | BP17: =SUM(AE17+AF17+AG17+AH17+AJ17+AL17+AN17+AP17) -> 85 | BS17: 100 | BU17: =Q17+BT17*0.25 -> 15.67 | BV17: Exceeds cap of $15 million for Statewide & Regional Projects cascading to Division Needs | BW17: 47.42 | BX17: =BW17+P17 -> 59.72 | BZ17: Dare | CA17: 100 | CH17: 1 | CI17: A | CJ17: 01, , | CK17: Albemarle RPO, , | CL17: Dare, , , | CM17: 17.3012275 | CN17: 17.3012275 | CO17: Arterial | CP17: Arterial | CQ17: 2 | CR17: 3 | CS17: TWLTL | CT17: Divided | CU17: 50 | CV17: 45 | CW17: 9.143771111 | CX17: 90.85622889 | CY17: 26894.97987 | CZ17: 31700.06882 | DA17: 0.848420236 | DB17: 24435.76447 | DC17: 2459.2154 | DD17: 10869853.54 | DE17: 1093942.088 | DF17: 11963795.63 | DG17: 273234953 | DH17: 66.84588328 | DI17: 76.03663042 | DJ17: 57.68404502 | DM17: 200 | DN17: 0.0008448015549 | DO17: No | DP17: No | DQ17: 12 | DR17: 12 | DS17: No | DT17: 3 | DU17: 4 | DV17: 4 Lane with TWLTL (Five Lane) | DW17: 6E - 6 Lane Divided (23' Raised Median) with Curb & Gutter, Wide Outside Lanes, and Sidewalks | DX17: None | DY17: Partial | DZ17: 2 | EA17: No | EB17: 18 | EC17: 56202000 | ED17: 26095000 | EE17: 3131000 | EF17: 85428000 | EH17: 85428000 | EI17: 85428000
A18: H129043 | B18: Dare | C18: Albemarle RPO | D18: Highway | E18: Division Needs | F18: R-5014 | G18: SR-1217 Collington Road | H18: US 158 | I18: Dead End | J18: Operational-Safety Improvements | K18: 16 - Modernize Roadway | L18: 4850000 | Q18: 23.32 | R18: 9 | S18: =Q18+#REF!+R18 ->  | U18: N/A | W18: 57.99149135 | Z18: Yes | AE18: 15 | AF18: =IF(BL16<999,20,IF(BL16<1499,15,IF(BL16<1999,10,IF(BL16<3999,5,IF(BL16>4000,0))))) -> 20 | AG18: 15 | AH18: 10 | AI18: No | AJ18: =IF(AK18="Minimal",15,0) -> 15 | AK18: Minimal | AL18: 10 | AM18: Yes | AN18: =IF(AO18="Yes",10,0) -> 0 | AO18: No | AP18: =IF(AQ18="Yes",10,0) -> 0 | AQ18: No | AR18: 41.97468354 | AS18: 0 | AT18: 66.21829771 | AU18: 0 | AV18: N/A | AW18: N/A | AX18: 25 | AY18: 100 | BC18: Albemarle RPO | BD18: 100 | BI18: 01 | BJ18: 100 | BP18: =SUM(AE18+AF18+AG18+AH18+AJ18+AL18+AN18+AP18) -> 85 | BT18: 100 | BU18: =Q18+BT18*0.25 -> 48.32 | BZ18: Dare | CA18: 100 | CH18: 1 | CI18: A | CJ18: 01, , | CK18: Albemarle RPO, , | CL18: Dare, , , | CM18: 4.34546507 | CN18: 4.34546507 | CO18: Arterial | CP18: Arterial | CQ18: 1 | CR18: 1 | CS18: Undivided | CT18: Undivided | CU18: 33 | CV18: 33 | CW18: 0 | CX18: 100 | CY18: 10000 | CZ18: 15800 | DA18: 0.6329113924 | DB18: 10000 | DC18: 0 | DD18: 0 | DE18: 0 | DF18: 0 | DG18: 0 | DH18: 95.97508743 | DI18: 64.44747503 | DJ18: 38.25219814 | DO18: No | DP18: No | DQ18: 11 | DR18: 12 | DS18: No | DT18: 0 | DU18: 4 | DV18: 2 Lane Undivided | DX18: None | DY18: None | DZ18: 2 | EA18: No | EB18: 25 | EC18: 4350000 | ED18: 500000 | EE18: 0 | EF18: 4850000 | EH18: 2520000 | EI18: 4850000
A19: H141222 | B19: Perquimans | C19: Albemarle RPO | D19: Highway | E19: Division Needs | G19: SR-1301 | H19: SR 1302 | I19: SR 1303 | J19: Widen and repave New Hope Road (Phase 2) | K19: 16 - Modernize Roadway | L19: 1114000 | Q19: 14.9 | R19: 5.25 | S19: =Q19+#REF!+R19 ->  | U19: N/A | W19: 469.5467426 | Z19: Yes | AE19: 15 | AF19: =IF(W19<999,20,IF(W19<1499,15,IF(W19<1999,10,IF(W19<3999,5,IF(W19>4000,0))))) -> 20 | AG19: 15 | AH19: 10 | AI19: No | AJ19: =IF(AK19="Minimal",15,0) -> 15 | AK19: Minimal | AL19: 10 | AM19: Yes | AN19: =IF(AO19="Yes",10,0) -> 0 | AO19: No | AP19: =IF(AQ19="Yes",10,0) -> 0 | AQ19: No | AR19: 4.698064516 | AS19: 0 | AT19: 69.32520767 | AU19: 0 | AV19: N/A | AW19: N/A | AX19: 75 | AY19: 0 | BC19: Albemarle RPO | BD19: 100 | BI19: 01 | BJ19: 100 | BP19: =SUM(AE19+AF19+AG19+AH19+AJ19+AL19+AN19+AP19) -> 85 | BT19: 100 | BU19: =Q19+BT19*0.25 -> 39.9 | BZ19: Perquimans | CA19: 100 | CH19: 1 | CI19: A | CJ19: 01, , | CK19: Albemarle RPO, , | CL19: Perquimans, , , | CM19: 1.3068696 | CN19: 1.3068696 | CO19: Two Lane Highway | CP19: Two Lane Highway | CQ19: 1 | CR19: 1 | CS19: Undivided | CT19: Undivided | CU19: 55 | CV19: 55 | CW19: 0 | CX19: 100 | CY19: 1100 | CZ19: 15500 | DA19: 0.07096774194 | DB19: 1100 | DC19: 0 | DD19: 0 | DE19: 0 | DF19: 0 | DG19: 0 | DH19: 75.59407717 | DI19: 94.34797491 | DJ19: 38.05437057 | DO19: No | DP19: No | DQ19: 9 | DR19: 12 | DS19: No | DT19: 0 | DU19: 0 | DV19: 2 Lane Undivided | DW19: 3A - 2 Lane with Two Way Left Turn Lane, and Paved Shoulders | DX19: None | DY19: None | DZ19: 2 | EA19: No | EB19: 30 | EC19: 1114000 | ED19: 0 | EE19: 0 | EF19: 1114000 | EH19: 675000 | EI19: 1114000
A20: H090289 | B20: Martin | C20: Mid-East RPO | D20: Highway | E20: Division Needs | F20: R-4705 | G20: SR-1142 | H20: NC 903 | I20: SR 1182 | J20: NC 903 to SR 1182. Upgrade Facility. | K20: 16 - Modernize Roadway | L20: 11200000 | Q20: 10.09 | S20: =Q20+#REF!+R20 ->  | U20: N/A | W20: 298.9624374 | Z20: Yes | AE20: 10 | AF20: 20 | AG20: 15 | AH20: =IF(AI20="Yes",10,0) -> 10 | AI20: Yes | AJ20: 15 | AK20: Minimal | AL20: 10 | AM20: Yes | AN20: =IF(AO20="Yes",10,0) -> 0 | AO20: No | AP20: =IF(AQ20="Yes",10,0) -> 0 | AQ20: No | AR20: 16.67266682 | AS20: 0 | AT20: 59.26886197 | AU20: 0.7807385132 | AV20: N/A | AW20: N/A | AX20: 25 | AY20: 0 | BC20: Mid-East RPO | BD20: 100 | BI20: 01 | BJ20: 100 | BP20: =SUM(AE20+AF20+AG20+AH20+AJ20+AL20+AN20+AP20) -> 80 | BT20: 100 | BU20: =Q20+BT20*0.25 -> 35.09 | BZ20: Martin | CA20: 100 | CH20: 1 | CI20: A | CJ20: 01, , | CK20: Mid-East RPO, , | CL20: Martin, , , | CM20: 9.59671543 | CN20: 9.59671543 | CO20: Two Lane Highway | CP20: Two Lane Highway | CQ20: 1 | CR20: 1 | CS20: Undivided | CT20: Undivided | CU20: 55 | CV20: 55 | CW20: 3.99997078 | CX20: 96.00002922 | CY20: 3903.721083 | CZ20: 15500 | DA20: 0.2518529731 | DB20: 3747.57338 | DC20: 156.1477026 | DD20: 0 | DE20: 0 | DF20: 0 | DG20: 0 | DH20: 87.04048717 | DI20: 47.05679026 | DJ20: 43.72709093 | DO20: No | DP20: No | DQ20: 11 | DR20: 12 | DS20: No | DT20: 0 | DU20: 0 | DV20: 2 Lane Undivided | DX20: None | DY20: None | DZ20: 1 | EA20: No | EB20: 21 | EC20: 7200000 | ED20: 4000000 | EE20: 0 | EF20: 11200000 | EH20: 11200000 | EI20: 11200000
A21: F130003 | B21: Dare | C21: Albemarle RPO | D21: Ferry | E21: Division Needs | G21: Hatteras - South Dock (NC 12) | J21: Replacement Vessel – River Class Ferry (Baum-H) | L21: 12000000 | Q21: 36.7 | R21: 6.75 | S21: =Q21+#REF!+R21 ->  | W21: 89.22395905 | Z21: Yes | AE21: 5 | AF21: 20 | AG21: 15 | AH21: 10 | AI21: Yes | AJ21: =IF(AK21="Minimal",15,0) -> 15 | AK21: Minimal | AL21: 10 | AM21: Yes | AN21: =IF(AO21="Yes",5,0) -> 0 | AO21: No | AP21: =IF(AQ21="Yes",5,0) -> 0 | AQ21: No | AT21: 47 | BC21: Albemarle RPO | BP21: =SUM(AE21+AF21+AG21+AH21++AJ21+AL21+AN21+AP21) -> 75 | BT21: 100 | BU21: =Q21+BT21*0.25 -> 61.7 | BZ21: Dare | CN21: =5*2 -> 10 | CY21: 21687 | EF21: 12000000 | EH21: 19350000
A22: T130063 | B22: Hyde | C22: Albemarle RPO | D22: Transit | E22: Division Needs | J22: Facilities-Bus Shelter-This funding request is for 2 shelters and 20 benches to support the Ocracoke Park and Ride Project. | L22: 7600 | Q22: 31.19 | R22: 12 | S22: =Q22+#REF!+R22 ->  | U22: 0 | V22: 0 | W22: 2.852415996e-07 | X22: 0 | Z22: Yes | AA22: =IF(AB22="Yes",10,0) -> 0 | AB22: No | AC22: =IF(AD22="Yes",10,0) -> 0 | AD22: No | AE22: 0 | AF22: 20 | AG22: 15 | AH22: 10 | AI22: Yes | AJ22: 15 | AK22: Minimal | AL22: 10 | AM22: Yes | AN22: 0 | AO22: No | AP22: =IF(AQ22="Yes",5,0) -> 5 | AQ22: Yes | AT22: 0 | BC22: Albemarle RPO | BP22: =SUM(AE22+AF22+AG22+AH22+AJ22+AL22+AN22+AP22) -> 75 | BZ22: Hyde | CN22: 175290 | CY22: 152000 | EF22: 76000 | EH22: 7600 | EJ22: Fed:$60,800 Local:$7,600
A23: F130007 | B23: Dare | C23: Albemarle RPO | D23: Ferry | E23: Division Needs | G23: Hatteras-South Dock | J23: Replacement Vessel-River Class Ferry( Chico) | L23: 12000000 | Q23: 29.6 | R23: 7.5 | S23: =Q23+#REF!+R23 ->  | W23: 4.668695532 | Z23: Yes | AE23: 5 | AF23: 20 | AG23: 15 | AH23: 10 | AI23: Yes | AJ23: 15 | AK23: Minimal | AL23: 10 | AM23: Yes | AN23: 0 | AO23: No | AP23: =IF(AQ23="Yes",5,0) -> 0 | AQ23: No | AT23: 47 | BC23: Albemarle RPO | BP23: =SUM(AE23+AF23+AG23+AH23++AJ23+AL23+AN23+AP23) -> 75 | CN23: =5*2 -> 10 | CY23: 21687 | EF23: 12000000 | EH23: 1012500
A24: F130008 | B24: Dare | C24: Albemarle RPO | D24: Ferry | E24: Division Needs | G24: Hatteras-South Dock | J24: Replacement Vessel-River Class Ferry (Frisco) | L24: 12000000 | Q24: 28.3 | R24: 7.5 | S24: =Q24+#REF!+R24 ->  | W24: 1.867478213 | Z24: Yes | AE24: 5 | AF24: 20 | AG24: 15 | AH24: 10 | AI24: Yes | AJ24: 15 | AK24: Minimal | AL24: 10 | AM24: Yes | AN24: 0 | AO24: No | AP24: =IF(AQ24="Yes",5,0) -> 0 | AQ24: No | AT24: 47 | BC24: Albemarle RPO | BP24: =SUM(AE24+AF24+AG24+AH24++AJ24+AL24+AN24+AP24) -> 75 | CN24: =5*2 -> 10 | CY24: 21687 | EF24: 12000000 | EH24: 405000
A25: A130412 | B25: Hertford | C25: Peanut Belt RPO | D25: Aviation | E25: Division Needs | G25: Tri-County | J25: Design | L25: 1602288 | Q25: 25.95 | S25: =Q25+#REF!+R25 ->  | U25: N/A | W25: 52522.83939 | Z25: Yes | AA25: =IF(AB25="Yes",10,0) -> 0 | AC25: =IF(AD25="Yes",10,0) -> 0 | AE25: 0 | AF25: =IF(BL23<999,20,IF(BL23<1499,15,IF(BL23<1999,10,IF(BL23<3999,5,IF(BL23>4000,0))))) -> 20 | AG25: 15 | AH25: 10 | AI25: Yes | AJ25: 15 | AK25: Minimal | AL25: 10 | AM25: Yes | AN25: 5 | AO25: Yes | AP25: =IF(AQ25="Yes",10,0) -> 0 | AQ25: No | BC25: Peanut Belt RPO | BP25: =SUM(AE25+AF25+AG25+AH25+AJ25+AL25+AN25+AP25) -> 75 | BZ25: Hertford | CN25: 0.85 | CY25: 35.89 | EF25: 1780320 | EH25: 1602288
A26: F130011 | B26: Hyde | C26: Albemarle RPO | D26: Ferry | E26: Division Needs | G26: Swan Quarter-Ocracoke | J26: Replacement Vessel-Sound Class Ferry (Pamlico) | L26: 16000000 | Q26: 14.4 | R26: 7.5 | S26: =Q26+#REF!+R26 ->  | W26: 185.5717931 | Z26: Yes | AE26: 5 | AF26: =IF(W26<999,20,IF(W26<1499,15,IF(W26<1999,10,IF(W26<3999,5,IF(W26>4000,0))))) -> 20 | AG26: 15 | AH26: 10 | AI26: Yes | AJ26: 15 | AK26: Minimal | AL26: 10 | AM26: Yes | AN26: 0 | AO26: No | AP26: =IF(AQ26="Yes",5,0) -> 0 | AQ26: No | AT26: 34 | BC26: Albemarle RPO | BP26: =SUM(AE26+AF26+AG26+AH26++AJ26+AL26+AN26+AP26) -> 75 | BZ26: Hyde | CN26: =30*2 -> 60 | CY26: 1437 | EF26: 16000000 | EH26: 16000000
A27: B141355 | B27: Perquimans | C27: Albemarle RPO | D27: Bike & Ped | E27: Division Needs | G27: Harvey Point Road | H27: US-17 | I27: N. Commerce Drive | J27: Construct 5' wide multi-use path along eastern side of Harvey Point Road | K27: 2. Construct multi-use trail / greenway / sidepath or on-road bike lane on local roadway | L27: 400000 | Q27: 13.46302137 | R27: 9.75 | S27: =Q27+#REF!+R27 ->  | U27: N/A | W27: 1441.311853 | Z27: Yes | AE27: 10 | AF27: 15 | AG27: 15 | AH27: 10 | AI27: Yes | AJ27: 15 | AK27: Minimal | AL27: 10 | AM27: Yes | AN27: =IF(AO27="Yes",10,0) -> 0 | AO27: No | AP27: =IF(AQ27="Yes",10,0) -> 0 | AQ27: No | AT27: 50 | BC27: Albemarle RPO | BP27: =SUM(AE27+AF27+AG27+AH27+AJ27+AL27+AN27) -> 75 | BZ27: Perquimans County | CN27: 0.66 | CY27: 158 | EC27: 380000 | ED27: 0 | EF27: 400000 | EG27: 0 | EH27: 150300
A28: F130012 | B28: Currituck | C28: Albemarle RPO | D28: Ferry | E28: Division Needs | G28: Currituck - Knotts Island | J28: Replacement Vessel-River Class Ferry (Hunt) | L28: 12000000 | Q28: 12.3 | R28: 7.5 | S28: =Q28+#REF!+R28 ->  | W28: 660.429279 | Z28: Yes | AE28: 5 | AF28: 20 | AG28: 15 | AH28: 10 | AI28: Yes | AJ28: 15 | AK28: Minimal | AL28: 10 | AM28: Yes | AN28: =IF(AO28="Yes",5,0) -> 0 | AO28: No | AP28: =IF(AQ28="Yes",5,0) -> 0 | AQ28: No | AT28: 46 | BC28: Albemarle RPO | BP28: =SUM(AE28+AF28+AG28+AH28++AJ28+AL28+AN28+AP28) -> 75 | CN28: =5*2 -> 10 | CY28: 1817 | EF28: 12000000 | EH28: 12000000
A29: T130067 | B29: Hyde | C29: Albemarle RPO | D29: Transit | E29: Division Needs | J29: Expansion Vehicle-This funding request is for 6 LTV and 3 Trams to support the Ocracoke Park and Ride Project. | L29: 85500 | Q29: 11.36 | R29: 12 | S29: =Q29+#REF!+R29 ->  | U29: =IF(AT29<30,0,IF(AT29<50,5,IF(AT29<65,10,IF(AT29>66,15)))) -> 0 | V29: 0 | W29: 3.208967996e-06 | X29: 0 | Z29: Yes | AA29: =IF(AB29="Yes",10,0) -> 0 | AB29: No | AC29: =IF(AD29="Yes",10,0) -> 0 | AD29: No | AE29: 0 | AF29: 20 | AG29: 15 | AH29: 10 | AI29: Yes | AJ29: 15 | AK29: Minimal | AL29: 10 | AM29: Yes | AN29: =IF(AO29="Yes",5,0) -> 0 | AO29: No | AP29: =IF(AQ29="Yes",5,0) -> 5 | AQ29: Yes | AT29: 20.6 | BC29: Albemarle RPO | BP29: =SUM(AE29+AF29+AG29+AH29+AJ29+AL29+AN29+AP29) -> 75 | BZ29: Hyde | CN29: 175290 | CY29: 152000 | EF29: 855000 | EH29: 85500 | EJ29: Fed:$684,000 Local:$85,500
A30: F130013 | B30: Hyde | C30: Albemarle RPO | D30: Ferry | E30: Division Needs | G30: Cedar Island-Ocracoke | J30: Replacement Vessel-Sound Class Ferry (Silver Lake) | L30: 16000000 | Q30: 16.3 | R30: 7.5 | S30: =Q30+#REF!+R30 ->  | W30: 263.209844 | Z30: Yes | AE30: 5 | AF30: 20 | AG30: 15 | AH30: 10 | AI30: Yes | AJ30: 15 | AK30: Minimal | AL30: 10 | AM30: Yes | AN30: =IF(AO30="Yes",5,0) -> 0 | AO30: No | AP30: =IF(AQ30="Yes",5,0) -> 0 | AQ30: No | AT30: 38.5 | BC30: Albemarle RPO | BP30: =SUM(AE30+AF30+AG30+AH30++AJ30+AL30+AN30+AP30) -> 75 | CN30: =13*2 -> 26 | CY30: 2338 | EF30: 16000000 | EH30: 16000000
A31: F130014 | B31: Hyde | C31: Albemarle RPO | D31: Ferry | E31: Division Needs | G31: Cedar Island-Ocracoke | J31: Replacement Vessel-Sound Class Ferry (Carteret) | L31: 16000000 | Q31: 15.3 | R31: 7.5 | S31: =Q31+#REF!+R31 ->  | W31: 263.209844 | Z31: Yes | AE31: 5 | AF31: 20 | AG31: 15 | AH31: 10 | AI31: Yes | AJ31: 15 | AK31: Minimal | AL31: 10 | AM31: Yes | AN31: =IF(AO31="Yes",5,0) -> 0 | AO31: No | AP31: =IF(AQ31="Yes",5,0) -> 0 | AQ31: No | AT31: 38.5 | BC31: Albemarle RPO | BP31: =SUM(AE31+AF31+AG31+AH31++AJ31+AL31+AN31+AP31) -> 75 | BZ31: Currituck | CN31: =13*2 -> 26 | CY31: 2338 | EF31: 16000000 | EH31: 16000000
A32: A130413 | B32: Hertford | C32: Peanut Belt RPO | D32: Aviation | E32: Division Needs | G32: Tri-County | J32: Corporate & T-hanger Taxiways | L32: 230400 | Q32: 7.47 | S32: =Q32+#REF!+R32 ->  | U32: N/A | W32: 7552.488814 | Z32: Yes | AA32: =IF(AB32="Yes",10,0) -> 0 | AC32: =IF(AD32="Yes",10,0) -> 0 | AE32: 0 | AF32: =IF(BL30<999,20,IF(BL30<1499,15,IF(BL30<1999,10,IF(BL30<3999,5,IF(BL30>4000,0))))) -> 20 | AG32: 15 | AH32: 10 | AI32: Yes | AJ32: 15 | AK32: Minimal | AL32: 10 | AM32: Yes | AN32: =IF(AO32="Yes",5,0) -> 5 | AO32: Yes | AP32: =IF(AQ32="Yes",10,0) -> 0 | AQ32: No | BC32: Peanut Belt RPO | BP32: =SUM(AE32+AF32+AG32+AH32+AJ32+AL32+AN32+AP32) -> 75 | BZ32: Hertford | CN32: 0.85 | CY32: 35.89 | EF32: 256000 | EH32: 230400
A33: H129515 | B33: Currituck | C33: Albemarle RPO | D33: Highway | E33: Statewide Mobility | F33: R-2576 | G33: - New Location Mid-Currituck Bridge | H33: Coinjock | I33: Corolla | J33: Construct New Bridge Over Currituck Sound | K33: 5 - Construct Roadway on New Location | L33: 173304000 | M33: 23.34283056 | O33: 15.72662928 | P33: 12.3 | Q33: 11.85356329 | R33: 9 | S33: =Q33+#REF!+R33 ->  | U33: =IF(AT33<30,0,IF(AT33<50,5,IF(AT33<65,10,IF(AT33>66,15)))) -> 5 | V33: =IF(W33<499,15,IF(W33<999,10,IF(W33<1499,5,IF(W33>1500,0)))) -> 0 | W33: 2285.853929 | X33: =IF(DC33<500,0,IF(DC33<1000,5,IF(DC33>1000,10))) -> 5 | Y33: =IF(Z33="Yes",20,0) -> 20 | Z33: Yes | AA33: =IF(AB33="Yes",20,0) -> 20 | AB33: Yes | AC33: =IF(AD33="Yes",20,0) -> 20 | AD33: Yes | AE33: 5 | AF33: =IF(BL31<999,20,IF(BL31<1499,15,IF(BL31<1999,10,IF(BL31<3999,5,IF(BL31>4000,0))))) -> 20 | AG33: 15 | AH33: 0 | AI33: No | AJ33: 15 | AK33: Minimal | AL33: 10 | AM33: Yes | AN33: =IF(AO33="Yes",10,0) -> 0 | AO33: No | AP33: 0 | AQ33: No | AR33: 18.7937954 | AS33: 8.925687041 | AT33: 40.81615043 | AU33: 4.726853947 | AV33: 100 | AW33: 15.36023521 | AX33: 25 | AY33: 25 | BC33: Albemarle RPO | BD33: 100 | BI33: 01 | BJ33: 100 | BO33: =SUM(U33+V33+X33+Y33+AA33+AC33) -> 70 | BP33: =SUM(AE33+AF33+AG33+AH33+AJ33+AL33+AN33+AP33) -> 65 | BS33: 100 | BU33: =Q33+BT33*0.25 -> 11.85356329 | BV33: Exceeds cap of $15 million for Statewide & Regional Projects cascading to Division Needs | BW33: =O33+BS33*0.25 -> 40.72662928 | BX33: =BW33+P33 -> 53.02662928 | BZ33: Currituck | CA33: 100 | CH33: 1 | CI33: A | CJ33: 01, , | CK33: Albemarle RPO, , | CL33: Currituck, , , | CM33: 43.4 | CN33: 6.8671599 | CO33: Multi-Lane Highway | CP33: Two Lane Highway | CQ33: 2 | CR33: 1 | CS33: Undivided | CT33: Undivided | CU33: 48 | CV33: 55 | CW33: 8.562867561 | CX33: 91.43713244 | CY33: 11040.35281 | CZ33: 46072.96545 | DA33: 0.2396275712 | DB33: 10094.98202 | DC33: 945.3707894 | DD33: 62075426.13 | DE33: 5813214.376 | DF33: 67888640.51 | DG33: 1546857267 | DH33: 39.09304416 | DI33: 53.5934293 | DJ33: 29.7742239 | DM33: 2016 | DN33: 0.005738917278 | DO33: No | DP33: No | DQ33: 11 | DR33: 12 | DS33: No | DT33: 3 | DU33: 4 | DV33: New Roadway | DW33: 2A - 2 Lane Undivided with Paved Shoulders, 55 mph | DX33: None | DY33: None | DZ33: 2 | EA33: No | EB33: 24 | EC33: 383281000 | ED33: 25592000 | EE33: 1947000 | EF33: 410820000 | EG33: 237516000 | EH33: 173304000 | EI33: 173304000 | EJ33: Toll Revenue less Roadway Maintenance and Financing
A34: H111228 | B34: Camden | C34: Albemarle RPO | D34: Highway | E34: Division Needs | G34: SR-1227 | H34: NC 168 | I34: NC 343 in Camden County | J34: Widen to 24 Feet with Paved Shoulders and Turn Lanes Where Necessary from the Camden County Line to the Location of the Proposed NC 168 Bypass. | K34: 16 - Modernize Roadway | L34: 12540000 | Q34: 10.43 | R34: 9.75 | S34: =Q34+#REF!+R34 ->  | U34: N/A | W34: 7.985846839 | Z34: Yes | AE34: 5 | AF34: =IF(W34<999,20,IF(W34<1499,15,IF(W34<1999,10,IF(W34<3999,5,IF(W34>4000,0))))) -> 20 | AG34: 15 | AH34: 10 | AI34: No | AJ34: 15 | AK34: Minimal | AL34: 10 | AM34: Yes | AN34: =IF(AO34="Yes",10,0) -> 0 | AO34: No | AP34: 0 | AQ34: No | AR34: 9.399806739 | AS34: 0 | AT34: 44.93631759 | AU34: 0 | AV34: N/A | AW34: N/A | AX34: 50 | AY34: 0 | BC34: Albemarle RPO | BD34: 100 | BI34: 01 | BJ34: 100 | BP34: =SUM(AE34+AF34+AG34+AH34+AJ34+AL34+AN34+AP34) -> 75 | BT34: 100 | BU34: =Q34+BT34*0.25 -> 35.43 | BZ34: Camden | CA34: 55.7 | CB34: Currituck | CC34: 44.3 | CH34: 1 | CI34: A | CJ34: 01, , | CK34: Albemarle RPO, , | CL34: Camden, Currituck, , | CM34: 11.00427744 | CN34: 11.00427744 | CO34: Two Lane Highway | CP34: Two Lane Highway | CQ34: 1 | CR34: 1 | CS34: Undivided | CT34: Undivided | CU34: 54 | CV34: 54 | CW34: 0 | CX34: 100 | CY34: 2201.904411 | CZ34: 15508.10743 | DA34: 0.1419840829 | DB34: 2201.904411 | DC34: 0 | DD34: 0 | DE34: 0 | DF34: 0 | DG34: 0 | DH34: 69.44397248 | DI34: 39.26778525 | DJ34: 26.11067729 | DO34: No | DP34: No | DQ34: 10 | DR34: 12 | DS34: No | DT34: 0 | DU34: 0 | DV34: 2 Lane Undivided | DX34: None | DY34: None | DZ34: 1 | EA34: No | EB34: 34 | EC34: 12540000 | ED34: 0 | EE34: 0 | EF34: 12540000 | EH34: 193500 | EI34: 12540000
A35: H090139 | B35: Currituck | C35: Albemarle RPO | D35: Highway | E35: Statewide Mobility | F35: R-2574 | G35: US-158 | H35: East of NC 34 at Belcross in Camden County | I35: NC 168 in Currituck County | J35: Widen to Multi-Lanes. | K35: 1 - Widen Existing Roadway | L35: 124500000 | M35: 12.91780651 | O35: 15.32 | P35: 11.85 | Q35: 11.88 | R35: 9 | S35: =Q35+#REF!+R35 ->  | U35: =IF(AT35<30,0,IF(AT35<50,5,IF(AT35<65,10,IF(AT35>66,15)))) -> 5 | V35: =IF(W35<499,15,IF(W35<999,10,IF(W35<1499,5,IF(W35>1500,0)))) -> 0 | W35: 1995.990821 | X35: =IF(DC35<500,0,IF(DC35<1000,5,IF(DC35>1000,10))) -> 5 | Y35: =IF(Z35="Yes",20,0) -> 20 | Z35: Yes | AA35: =IF(AB35="Yes",20,0) -> 20 | AB35: Yes | AC35: =IF(AD35="Yes",20,0) -> 20 | AD35: Yes | AE35: 5 | AF35: =IF(BL33<999,20,IF(BL33<1499,15,IF(BL33<1999,10,IF(BL33<3999,5,IF(BL33>4000,0))))) -> 0 | AG35: 15 | AH35: 10 | AI35: No | AJ35: 15 | AK35: Minimal | AL35: 10 | AM35: Yes | AN35: =IF(AO35="Yes",10,0) -> 0 | AO35: No | AP35: 0 | AQ35: No | AR35: 25.89919279 | AS35: 0.04931162249 | AT35: 42.81774225 | AU35: 3.751324639 | AV35: 1.012160306 | AW35: 40.17555194 | AX35: 0 | AY35: 50 | BC35: Albemarle RPO | BD35: 100 | BI35: 01 | BJ35: 100 | BO35: =SUM(U35+V35+X35+Y35+AA35+AC35) -> 70 | BP35: =SUM(AE35+AF35+AG35+AH35+AJ35+AL35+AN35+AP35) -> 55 | BS35: 100 | BU35: =Q35+BT35*0.25 -> 11.88 | BV35: Exceeds cap of $15 million for Statewide & Regional Projects cascading to Division Needs | BW35: =O35+BS35*0.25 -> 40.32 | BX35: =BW35+P35 -> 52.17 | BZ35: Currituck | CA35: 81.82 | CB35: Camden | CC35: 18.18 | CH35: 1 | CI35: A | CJ35: 01, , | CK35: Albemarle RPO, , | CL35: Currituck, Camden, , | CM35: 10.2830142 | CN35: 10.2830142 | CO35: Two Lane Highway | CP35: Multi-Lane Highway | CQ35: 1 | CR35: 2 | CS35: Undivided | CT35: Divided | CU35: 55 | CV35: 55 | CW35: 12.36870607 | CX35: 87.63129393 | CY35: 6065.831976 | CZ35: 15505.13736 | DA35: 0.3912143334 | DB35: 5315.567048 | DC35: 750.2649278 | DD35: 232553.6734 | DE35: 32823.75396 | DF35: 265377.4274 | DG35: 6139297 | DH35: 47.38744748 | DI35: 46.64002148 | DJ35: 34.43860439 | DM35: 4 | DN35: 1.624320611e-05 | DO35: No | DP35: No | DQ35: 12 | DR35: 12 | DS35: No | DT35: 0 | DU35: 2 | DV35: 2 Lane Undivided | DW35: 4A - 4 Lane Divided (46' Depressed Median) with Paved Shoulders | DX35: None | DY35: Partial | DZ35: 2 | EA35: Yes | EB35: 32 | EC35: 82500000 | ED35: 40600000 | EE35: 1400000 | EF35: 124500000 | EH35: 124500000 | EI35: 124500000
A36: B141365 | B36: Dare | C36: Albemarle RPO | D36: Bike & Ped | E36: Division Needs | G36: Us 158 sidewalk | H36: Bennett Street | I36: Worthington Lane | J36: Construct 6000' of sidewalk on west side of US 158 | K36: 5. Construct Sidewalk | L36: 282000 | Q36: 15.29568045 | R36: 9.75 | S36: =Q36+#REF!+R36 ->  | U36: N/A | W36: 3163.95561 | Z36: Yes | AE36: 15 | AF36: =IF(W36<999,20,IF(W36<1499,15,IF(W36<1999,10,IF(W36<3999,5,IF(W36>4000,0))))) -> 5 | AG36: 15 | AH36: =IF(AI36="Yes",10,0) -> 10 | AI36: Yes | AJ36: 15 | AK36: Minimal | AL36: 10 | AM36: Yes | AN36: =IF(AO36="Yes",10,0) -> 0 | AO36: No | AP36: 0 | AQ36: No | AT36: 65 | BC36: Albemarle RPO | BP36: =SUM(AE36+AF36+AG36+AH36+AJ36+AL36+AN36) -> 70 | BZ36: Dare County | CN36: 1.56 | CY36: =1012*0.1 -> 101.2 | EC36: 272000 | ED36: 0 | EF36: 282000 | EG36: 0 | EH36: 499500
A37: A130011 | B37: Pasquotank | C37: Albemarle RPO | D37: Aviation | E37: Division Needs | G37: Elizabeth City Coast Guard Air Station/Regional | J37: Hangers and Economic Development | L37: 150300 | Q37: 5.76 | R37: 13.5 | S37: =Q37+#REF!+R37 ->  | U37: N/A | W37: 1061.061513 | Z37: Yes | AA37: =IF(AB37="Yes",10,0) -> 0 | AC37: =IF(AD37="Yes",10,0) -> 0 | AE37: 0 | AF37: =IF(W37<999,20,IF(W37<1499,15,IF(W37<1999,10,IF(W37<3999,5,IF(W37>4000,0))))) -> 15 | AG37: 15 | AH37: =IF(AI37="Yes",10,0) -> 10 | AI37: Yes | AJ37: 15 | AK37: Minimal | AL37: 10 | AM37: Yes | AN37: =IF(AO37="Yes",5,0) -> 5 | AO37: Yes | AP37: 0 | AQ37: No | BC37: Albemarle RPO | BP37: =SUM(AE37+AF37+AG37+AH37+AJ37+AL37+AN37+AP37) -> 70 | BZ37: Pasquotank | CN37: 0.86 | CY37: 164.71 | EF37: 167000 | EH37: 150300
A38: H129108 | B38: Martin | C38: Mid-East RPO | D38: Highway | E38: Regional Impact | F38: R-3826 | G38: NC-125 NC 125 | H38: SR 1182 (East of College Road) | I38: NC 125 Northwest of Williamston | J38: Construct Two Lanes, Part on New Location | K38: 5 - Construct Roadway on New Location | L38: 13455000 | O38: 16.96 | P38: 10 | Q38: 13.65 | S38: =Q38+#REF!+R38 ->  | U38: =IF(AT38<30,0,IF(AT38<50,5,IF(AT38<65,10,IF(AT38>66,15)))) -> 5 | V38: =IF(W38<499,15,IF(W38<999,10,IF(W38<1499,5,IF(W38>1500,0)))) -> 10 | W38: 807.0509275 | X38: =IF(DC38<500,0,IF(DC38<1000,5,IF(DC38>1000,10))) -> 0 | Y38: =IF(Z38="Yes",20,0) -> 20 | Z38: Yes | AA38: =IF(AB38="Yes",20,0) -> 20 | AB38: Yes | AC38: =IF(AD38="Yes",10,0) -> 10 | AD38: Yes | AE38: 5 | AF38: =IF(BL36<999,20,IF(BL36<1499,15,IF(BL36<1999,10,IF(BL36<3999,5,IF(BL36>4000,0))))) -> 20 | AG38: 15 | AH38: =IF(AI38="Yes",10,0) -> 10 | AI38: Yes | AJ38: 15 | AK38: Minimal | AL38: 10 | AM38: Yes | AN38: =IF(AO38="Yes",10,0) -> 0 | AO38: No | AP38: 0 | AQ38: No | AR38: 22.75797227 | AS38: 4.669211 | AT38: 34.09281678 | AU38: 2.033297525 | AV38: N/A | AW38: 11.22215996 | AX38: 25 | AY38: 50 | BC38: Mid-East RPO | BD38: 100 | BI38: 01 | BJ38: 100 | BO38: =SUM(U38+V38+X38+Y38+AA38+AC38) -> 65 | BP38: 75 | BS38: 100 | BT38: 100 | BU38: =Q38+BT38*0.25 -> 38.65 | BW38: =O38+BS38*0.25 -> 41.96 | BX38: =BW38+P38 -> 51.96 | BZ38: Martin | CA38: 100 | CH38: 1 | CI38: A | CJ38: 01, , | CK38: Mid-East RPO, , | CL38: Martin, , , | CM38: 3.6 | CN38: 2.30842441 | CO38: Arterial | CP38: Arterial | CQ38: 1 | CR38: 1 | CS38: Undivided | CT38: Undivided | CU38: 42 | CV38: 40 | CW38: 5.630718611 | CX38: 94.36928139 | CY38: 7222.159959 | CZ38: 21809.21213 | DA38: 0.3311518048 | DB38: 6815.500454 | DC38: 406.6595049 | DD38: 2633056.113 | DE38: 157106.1879 | DF38: 2790162.301 | DG38: 62824234 | DH38: 27.04617527 | DI38: 38.23423495 | DJ38: 37.00826899 | DO38: No | DP38: No | DQ38: 11 | DR38: 12 | DS38: No | DT38: 0 | DU38: 2 | DV38: New Roadway | DW38: 2B - 2 Lane Undivided with Paved Shoulders, 25-45 mph | DX38: None | DY38: None | DZ38: 1 | EA38: No | EB38: 22 | EC38: 10800000 | ED38: 2400000 | EE38: 255000 | EF38: 13455000 | EH38: 13455000 | EI38: 13455000
A39: H090869 | B39: Camden | C39: Albemarle RPO | D39: Highway | E39: Regional Impact | G39: NC-343 | H39: US 158 | I39: SR 1119 in Shiloh | J39: Upgrade Roadway with Wider Shoulders and New Culvert(S). | K39: 16 - Modernize Roadway | L39: 17898000 | O39: 14.28 | P39: 10.95 | Q39: 11.19 | R39: 6.75 | S39: =Q39+#REF!+R39 ->  | U39: =IF(AT39<30,0,IF(AT39<50,5,IF(AT39<65,10,IF(AT39>66,15)))) -> 5 | V39: =IF(W39<499,15,IF(W39<999,10,IF(W39<1499,5,IF(W39>1500,0)))) -> 10 | W39: 902.0686676 | X39: =IF(DC39<500,0,IF(DC39<1000,5,IF(DC39>1000,10))) -> 0 | Y39: =IF(Z39="Yes",20,0) -> 20 | Z39: Yes | AA39: =IF(AB39="Yes",20,0) -> 0 | AB39: No | AC39: =IF(AD39="Yes",20,0) -> 0 | AD39: No | AE39: 5 | AF39: =IF(BL37<999,20,IF(BL37<1499,15,IF(BL37<1999,10,IF(BL37<3999,5,IF(BL37>4000,0))))) -> 20 | AG39: 15 | AH39: 10 | AI39: No | AJ39: =IF(AK39="Minimal",15,0) -> 15 | AK39: Minimal | AL39: 10 | AM39: Yes | AN39: 0 | AO39: No | AP39: 0 | AQ39: No | AR39: 12.43412168 | AS39: 0 | AT39: 49.45259612 | AU39: 0.6398882462 | AV39: N/A | AW39: 26.91131248 | AX39: 50 | AY39: 0 | BC39: Albemarle RPO | BD39: 100 | BI39: 01 | BJ39: 100 | BO39: =SUM(U39+V39+X39+Y39+AA39+AC39) -> 35 | BP39: 75 | BS39: 100 | BU39: 11.19 | BV39: Exceeds cap of $15 million for Statewide & Regional Projects cascading to Division Needs | BW39: =O39+BS39*0.25 -> 39.28 | BX39: =BW39+P39 -> 50.23 | BZ39: Camden | CA39: 100 | CH39: 1 | CI39: A | CJ39: 01, , | CK39: Albemarle RPO, , | CL39: Camden, , , | CM39: 6.81516043 | CN39: 6.81516043 | CO39: Two Lane Highway | CP39: Two Lane Highway | CQ39: 1 | CR39: 1 | CS39: Undivided | CT39: Undivided | CU39: 55 | CV39: 55 | CW39: 4.39587472 | CX39: 95.60412528 | CY39: 2911.312478 | CZ39: 15500 | DA39: 0.1878266115 | DB39: 2783.334829 | DC39: 127.9776492 | DD39: 0 | DE39: 0 | DF39: 0 | DG39: 0 | DH39: 55.74045063 | DI39: 49.08106023 | DJ39: 43.55111475 | DO39: No | DP39: No | DQ39: 10 | DR39: 12 | DS39: No | DT39: 0 | DU39: 0 | DV39: 2 Lane Undivided | DX39: None | DY39: None | DZ39: 1 | EA39: No | EB39: 32 | EC39: 17898000 | ED39: 0 | EE39: 0 | EF39: 17898000 | EH39: 17898000 | EI39: 17898000
A40: H090400 | B40: Pasquotank | C40: Albemarle RPO | D40: Highway | E40: Division Needs | F40: U-3420 | G40: SR-1309 New Route - Main Street Extension | H40: Proposed US 17 Bypass | I40: US 17 | J40: Proposed US 17 Bypass to US 17 Bypass (Hughes Boulevard). Upgrade Roadway, Some New Location with interchange at the Proposed US 17 Bypass. | K40: 6 - Widen Existing Roadway and Construct Part on New Location | L40: 37604000 | Q40: 7.492621801 | R40: 9.75 | S40: =Q40+#REF!+R40 ->  | U40: N/A | W40: 570.5904249 | Z40: Yes | AE40: 10 | AF40: =IF(W40<999,20,IF(W40<1499,15,IF(W40<1999,10,IF(W40<3999,5,IF(W40>4000,0))))) -> 20 | AG40: 15 | AH40: =IF(AI40="Yes",10,0) -> 0 | AI40: No | AJ40: =IF(AK40="Minimal",15,0) -> 15 | AK40: Minimal | AL40: 10 | AM40: Yes | AN40: 0 | AO40: No | AP40: 0 | AQ40: No | AR40: 21.23955153 | AS40: 0 | AT40: 53.68666648 | AU40: 2.212577648 | AV40: N/A | AW40: N/A | AX40: 0 | AY40: 0 | BC40: Albemarle RPO | BD40: 100 | BI40: 01 | BJ40: 100 | BP40: 70 | BU40: 7.492621801 | BV40: Exceeds cap of $15 million for Statewide & Regional Projects cascading to Division Needs | BZ40: Pasquotank | CA40: 100 | CH40: 1 | CI40: A | CJ40: 01, , | CK40: Albemarle RPO, , | CL40: Pasquotank, , , | CM40: 8.1 | CN40: 4.49653625 | CO40: Multi-Lane Highway | CP40: Arterial | CQ40: 2 | CR40: 2 | CS40: Divided | CT40: Divided | CU40: 53 | CV40: 45 | CW40: 3.019235928 | CX40: 96.98076407 | CY40: 14656.54027 | CZ40: 57189.0557 | DA40: 0.256282257 | DB40: 14214.02474 | DC40: 442.5155297 | DD40: 0 | DE40: 0 | DF40: 0 | DG40: 0 | DH40: 45.39256322 | DI40: 70.29098062 | DJ40: 45.39256322 | DO40: No | DP40: No | DQ40: 12 | DR40: 12 | DS40: No | DT40: 4 | DU40: 4 | DV40: New Roadway | DW40: 4B - 4 Lane Divided (23' Raised Median) with Paved Shoulders and Sidewalks | DX40: None | DY40: Partial | DZ40: 2 | EA40: No | EB40: 23 | EC40: 32490000 | ED40: 4566000 | EE40: 548000 | EF40: 37604000 | EH40: 37604000 | EI40: 37604000
A41: H090102 | B41: Martin | C41: Mid-East RPO | D41: Highway | E41: Statewide Mobility | F41: R-2511 | G41: US-17 | H41: Washington Bypass North of NC 171 | I41: Multi-Lanes South of Williamston | J41: Widen to Multi-Lanes. | K41: 1 - Widen Existing Roadway | L41: 72100000 | M41: 13.73627156 | O41: 13.18 | P41: 12 | Q41: 9.62 | S41: =Q41+#REF!+R41 ->  | U41: =IF(AT41<30,0,IF(AT41<50,5,IF(AT41<65,10,IF(AT41>66,15)))) -> 5 | V41: =IF(W41<499,15,IF(W41<999,10,IF(W41<1499,5,IF(W41>1500,0)))) -> 5 | W41: 1431.10077 | X41: =IF(DC41<500,0,IF(DC41<1000,5,IF(DC41>1000,10))) -> 5 | Y41: =IF(Z41="Yes",20,0) -> 20 | Z41: Yes | AA41: =IF(AB41="Yes",20,0) -> 20 | AB41: Yes | AC41: =IF(AD41="Yes",10,0) -> 10 | AD41: Yes | AE41: 5 | AF41: =IF(BL39<999,20,IF(BL39<1499,15,IF(BL39<1999,10,IF(BL39<3999,5,IF(BL39>4000,0))))) -> 0 | AG41: 15 | AH41: =IF(AI41="Yes",10,0) -> 10 | AI41: Yes | AJ41: 15 | AK41: Minimal | AL41: 10 | AM41: Yes | AN41: 0 | AO41: No | AP41: 0 | AQ41: No | AR41: 21.52565599 | AS41: 0.04584929265 | AT41: 49.62298633 | AU41: 11.24392757 | AV41: 0.5373583145 | AW41: 17.11998495 | AX41: 0 | AY41: 25 | BC41: Mid-East RPO | BD41: 100 | BI41: 01 | BJ41: 61.75 | BK41: 02 | BL41: 38.25 | BO41: =SUM(U41+V41+X41+Y41+AA41+AC41) -> 65 | BP41: 55 | BS41: 100 | BU41: 9.62 | BV41: Exceeds cap of $15 million for Statewide & Regional Projects cascading to Division Needs | BW41: =O41+BS41*0.25 -> 38.18 | BX41: =BW41+P41 -> 50.18 | BZ41: Martin | CA41: 61.75 | CB41: Beaufort | CC41: 38.25 | CH41: 1 | CI41: A | CJ41: 01, 02, | CK41: Mid-East RPO, , | CL41: Martin, Beaufort, , | CM41: 9.9962002 | CN41: 9.9962002 | CO41: Two Lane Highway | CP41: Multi-Lane Highway | CQ41: 1 | CR41: 2 | CS41: Undivided | CT41: Divided | CU41: 55 | CV41: 55 | CW41: 12.36074012 | CX41: 87.63925988 | CY41: 5039.994982 | CZ41: 15500 | DA41: 0.3251609666 | DB41: 4417.0143 | DC41: 622.9806817 | DD41: 125234.9826 | DE41: 17663.28327 | DF41: 142898.2658 | DG41: 3305734 | DH41: 70.89539905 | DI41: 20.98594673 | DJ41: 57.00250158 | DM41: 2 | DN41: 8.747166291e-06 | DO41: Yes | DP41: No | DQ41: 12 | DR41: 12 | DS41: No | DT41: 1 | DU41: 2 | DV41: 2 Lane Undivided | DW41: 4A - 4 Lane Divided (46' Depressed Median) with Paved Shoulders | DX41: None | DY41: Partial | DZ41: 1 | EA41: Yes | EB41: 21 | EC41: 51700000 | ED41: 16000000 | EE41: 4400000 | EF41: 72100000 | EH41: 72100000 | EI41: 72100000
A42: H111225 | B42: Currituck | C42: Albemarle RPO | D42: Highway | E42: Statewide Mobility | G42: US-158 | H42: Proposed Mid Currituck Bridge | I42: Dare County Line | J42: Upgrade the Existing 5-Lane Boulevard to a 4-Lane Divided Boulevard fromtheproposed Mid-Currituck Bridge to the Dare County Line. | K42: 11 - Access Management | L42: 130843000 | M42: 11.16234915 | O42: 12.45 | P42: 12.3 | Q42: 9.13 | R42: 9 | S42: =Q42+#REF!+R42 ->  | U42: =IF(AT42<30,0,IF(AT42<50,5,IF(AT42<65,10,IF(AT42>66,15)))) -> 5 | V42: =IF(W42<499,15,IF(W42<999,10,IF(W42<1499,5,IF(W42>1500,0)))) -> 15 | W42: 484.1280272 | X42: =IF(DC42<500,0,IF(DC42<1000,5,IF(DC42>1000,10))) -> 10 | Y42: =IF(Z42="Yes",20,0) -> 20 | Z42: Yes | AA42: =IF(AB42="Yes",20,0) -> 20 | AB42: Yes | AC42: =IF(AD42="Yes",20,0) -> 20 | AD42: Yes | AE42: 5 | AF42: =IF(W42<999,20,IF(W42<1499,15,IF(W42<1999,10,IF(W42<3999,5,IF(W42>4000,0))))) -> 20 | AG42: 15 | AH42: =IF(AI42="Yes",10,0) -> 0 | AI42: No | AJ42: =IF(AK42="Minimal",15,0) -> 15 | AK42: Minimal | AL42: 10 | AM42: Yes | AN42: 0 | AO42: No | AP42: 0 | AQ42: No | AR42: 16.86901992 | AS42: 0 | AT42: 49.44605465 | AU42: 5.78518856 | AV42: 0 | AW42: 19.31171855 | AX42: 0 | AY42: 25 | BC42: Albemarle RPO | BD42: 100 | BI42: 01 | BJ42: 100 | BO42: =SUM(U42+V42+X42+Y42+AA42+AC42) -> 90 | BP42: 65 | BS42: 100 | BU42: 9.13 | BV42: Exceeds cap of $15 million for Statewide & Regional Projects cascading to Division Needs | BW42: =O42+BS42*0.25 -> 37.45 | BX42: =BW42+P42 -> 49.75 | BZ42: Currituck | CA42: 100 | CH42: 1 | CI42: A | CJ42: 01, , | CK42: Albemarle RPO, , | CL42: Currituck, , , | CM42: 19.34947418 | CN42: 19.34947418 | CO42: Multi-Lane Highway | CP42: Multi-Lane Highway | CQ42: 2 | CR42: 2 | CS42: TWLTL | CT42: Divided | CU42: 55 | CV42: 55 | CW42: 8.283739142 | CX42: 91.71626086 | CY42: 13967.57783 | CZ42: 74282.5299 | DA42: 0.1880331465 | DB42: 12810.54012 | DC42: 1157.037712 | DD42: 0 | DE42: 0 | DF42: 0 | DG42: 0 | DH42: 46.77518175 | DI42: 60.6893937 | DJ42: 40.88842381 | DM42: 0 | DN42: 0 | DO42: No | DP42: No | DQ42: 12 | DR42: 12 | DS42: No | DT42: 3 | DU42: 4 | DV42: 4 Lane with TWLTL (Five Lane) | DW42: 4E - 4 Lane Divided (17'-6"' Raised Median) with Paved Shoulders and Sidewalks | DX42: None | DY42: None | DZ42: 2 | EA42: No | EB42: 25 | EC42: 125286000 | ED42: 4962000 | EE42: 595000 | EF42: 130843000 | EH42: 130843000 | EI42: 130843000
A43: H111227 | B43: Currituck | C43: Albemarle RPO | D43: Highway | E43: Statewide Mobility | G43: NC-168 | H43: Virginia Line | I43: US 158 | J43: Upgrade the Existing 5-Lane Major Thoroughfare to a 4-Lane Divided Boulevardfrom the Virginia Line to US 158 | K43: 11 - Access Management | L43: 122633000 | M43: 9.259530085 | O43: 10.46 | P43: 12.3 | Q43: 7.81 | R43: 9 | S43: =Q43+#REF!+R43 ->  | U43: =IF(AT43<30,0,IF(AT43<50,5,IF(AT43<65,10,IF(AT43>66,15)))) -> 5 | V43: =IF(W43<499,15,IF(W43<999,10,IF(W43<1499,5,IF(W43>1500,0)))) -> 10 | W43: 512.6215297 | X43: =IF(DC43<500,0,IF(DC43<1000,5,IF(DC43>1000,10))) -> 5 | Y43: =IF(Z43="Yes",20,0) -> 20 | Z43: Yes | AA43: =IF(AB43="Yes",20,0) -> 20 | AB43: Yes | AC43: =IF(AD43="Yes",20,0) -> 20 | AD43: Yes | AE43: 5 | AF43: 20 | AG43: 15 | AH43: =IF(AI43="Yes",10,0) -> 0 | AI43: No | AJ43: 15 | AK43: Minimal | AL43: 10 | AM43: Yes | AN43: 0 | AO43: No | AP43: 0 | AQ43: No | AR43: 15.5646293 | AS43: 0 | AT43: 37.49420247 | AU43: 4.203605242 | AV43: 0 | AW43: 36.70770635 | AX43: 0 | AY43: 25 | BC43: Albemarle RPO | BD43: 100 | BI43: 01 | BJ43: 100 | BO43: =SUM(U43+V43+X43+Y43+AA43+AC43) -> 80 | BP43: 65 | BS43: 100 | BU43: 7.81 | BV43: Exceeds cap of $15 million for Statewide & Regional Projects cascading to Division Needs | BW43: =O43+BS43*0.25 -> 35.46 | BX43: =BW43+P43 -> 47.76 | BZ43: Currituck | CA43: 100 | CH43: 1 | CI43: A | CJ43: 01, , | CK43: Albemarle RPO, , | CL43: Currituck, , , | CM43: 18.31536071 | CN43: 18.31536071 | CO43: Multi-Lane Highway | CP43: Multi-Lane Highway | CQ43: 2 | CR43: 2 | CS43: TWLTL | CT43: Divided | CU43: 55 | CV43: 55 | CW43: 6.436605418 | CX43: 93.56339458 | CY43: 13061.55953 | CZ43: 75792.37487 | DA43: 0.1723334247 | DB43: 12220.83848 | DC43: 840.7210483 | DD43: 0 | DE43: 0 | DF43: 0 | DG43: 0 | DH43: 39.91537916 | DI43: 42.33952295 | DJ43: 30.2389547 | DM43: 0 | DN43: 0 | DO43: No | DP43: No | DQ43: 12 | DR43: 12 | DS43: No | DT43: 3 | DU43: 4 | DV43: 4 Lane with TWLTL (Five Lane) | DW43: 4E - 4 Lane Divided (17'-6"' Raised Median) with Paved Shoulders and Sidewalks | DX43: None | DY43: None | DZ43: 2 | EA43: No | EB43: 34 | EC43: 120156000 | ED43: 2212000 | EE43: 265000 | EF43: 122633000 | EH43: 122633000 | EI43: 122633000
A44: H090099-B | B44: Gates | C44: Albemarle RPO | D44: Highway | E44: Statewide Mobility | F44: R-2507B | G44: US-13 | H44: US 158 Bypass in Tarheel | I44: SR 1202 (Eure Road/Gates School Road) | J44: Widen to Multi-Lanes. | K44: 1 - Widen Existing Roadway | L44: 26200000 | M44: 11.66271653 | O44: 12.49 | P44: 3.6 | Q44: 9.16 | R44: 5.25 | S44: =Q44+#REF!+R44 ->  | U44: =IF(AT44<30,0,IF(AT44<50,5,IF(AT44<65,10,IF(AT44>66,15)))) -> 10 | V44: =IF(W44<499,15,IF(W44<999,10,IF(W44<1499,5,IF(W44>1500,0)))) -> 0 | W44: 1700.812772 | X44: =IF(DC44<500,0,IF(DC44<1000,5,IF(DC44>1000,10))) -> 5 | Y44: =IF(Z44="Yes",20,0) -> 20 | Z44: Yes | AA44: =IF(AB44="Yes",20,0) -> 20 | AB44: Yes | AC44: =IF(AD44="Yes",20,0) -> 20 | AD44: Yes | AE44: 10 | AF44: 10 | AG44: 15 | AH44: 10 | AI44: No | AJ44: 15 | AK44: Minimal | AL44: 10 | AM44: Yes | AN44: 0 | AO44: No | AP44: 0 | AQ44: No | AR44: 15.80258065 | AS44: 0.01966675573 | AT44: 50.766884 | AU44: 9.16774188 | AV44: 0.05805529549 | AW44: 45.1 | AX44: 25 | AY44: 0 | BC44: Albemarle RPO | BD44: 100 | BI44: 01 | BJ44: 100 | BO44: =SUM(U44+V44+X44+Y44+AA44+AC44) -> 75 | BP44: 70 | BS44: 100 | BU44: 9.16 | BV44: Exceeds cap of $15 million for Statewide & Regional Projects cascading to Division Needs | BW44: =O44+BS44*0.25 -> 37.49 | BX44: =BW44+P44 -> 41.09 | BZ44: Gates | CA44: 100 | CH44: 1 | CI44: A | CJ44: 01, , | CK44: Albemarle RPO, , | CL44: Gates, , , | CM44: 4.16335131 | CN44: 4.16335131 | CO44: Two Lane Highway | CP44: Multi-Lane Highway | CQ44: 1 | CR44: 2 | CS44: Undivided | CT44: Divided | CU44: 55 | CV44: 55 | CW44: 17.297297 | CX44: 82.702703 | CY44: 3700 | CZ44: 15500 | DA44: 0.2387096774 | DB44: 3060.000011 | DC44: 639.999989 | DD44: 18067.4308 | DE44: 3778.808979 | DF44: 21846.23978 | DG44: 515269 | DH44: 59.82194323 | DI44: 36.67115474 | DJ44: 55.82278562 | DM44: 0 | DN44: 1.16110591e-06 | DO44: Yes | DP44: No | DQ44: 11 | DR44: 12 | DS44: No | DT44: 2 | DU44: 0 | DV44: 2 Lane Undivided | DW44: 4A - 4 Lane Divided (46' Depressed Median) with Paved Shoulders | DX44: None | DY44: Partial | DZ44: 1 | EA44: Yes | EB44: 37 | EC44: 23200000 | ED44: 1800000 | EE44: 1200000 | EF44: 26200000 | EH44: 26200000 | EI44: 26200000
A45: H141218 | B45: Perquimans | C45: Albemarle RPO | D45: Highway | E45: Division Needs | G45: SR-1329 | H45: SR 1331 | I45: SR 1300 | J45: Widen and repave Woodville Road Phase 2 | K45: 16 - Modernize Roadway | L45: 734000 | Q45: 8.27 | R45: 5.25 | S45: =Q45+#REF!+R45 ->  | U45: N/A | W45: 548.0186344 | Z45: Yes | AE45: 0 | AF45: 20 | AG45: 15 | AH45: 10 | AI45: No | AJ45: 15 | AK45: Minimal | AL45: 10 | AM45: Yes | AN45: 0 | AO45: No | AP45: 0 | AQ45: No | AR45: 7.687741935 | AS45: 0 | AT45: 0 | AU45: 0 | AV45: N/A | AW45: N/A | AX45: 75 | AY45: 0 | BC45: Albemarle RPO | BD45: 100 | BI45: 01 | BJ45: 100 | BP45: 70 | BT45: 100 | BU45: 33.27 | BZ45: Perquimans | CA45: 100 | CH45: 1 | CI45: A | CJ45: 01, , | CK45: Albemarle RPO, , | CL45: Perquimans, , , | CM45: 0.74409473 | CN45: 0.74409473 | CO45: Two Lane Highway | CP45: Two Lane Highway | CQ45: 1 | CR45: 1 | CS45: Undivided | CT45: Undivided | CU45: 55 | CV45: 55 | CW45: 0 | CX45: 100 | CY45: 1800 | CZ45: 15500 | DA45: 0.1161290323 | DB45: 1800 | DC45: 0 | DD45: 0 | DE45: 0 | DF45: 0 | DG45: 0 | DH45: 0 | DI45: 0 | DJ45: 0 | DO45: No | DP45: No | DQ45: 9 | DR45: 12 | DS45: No | DT45: 0 | DU45: 0 | DV45: 2 Lane Undivided | DW45: 3A - 2 Lane with Two Way Left Turn Lane, and Paved Shoulders | DX45: None | DY45: None | DZ45: 2 | EA45: No | EB45: 30 | EC45: 734000 | ED45: 0 | EE45: 0 | EF45: 734000 | EH45: 734000 | EI45: 734000
A46: H090099-C | B46: Gates | C46: Albemarle RPO | D46: Highway | E46: Statewide Mobility | F46: R-2507C | G46: US-13 | H46: SR 1202 (Eure Road/Gates School Road) | I46: Virginia State Line | J46: Widen to Multi-Lanes. | K46: 1 - Widen Existing Roadway | L46: 31000000 | M46: 12.46752281 | O46: 10.9777764 | P46: 3.15 | Q46: 7.317870804 | R46: 5.25 | S46: =Q46+#REF!+R46 ->  | U46: =IF(AT46<30,0,IF(AT46<50,5,IF(AT46<65,10,IF(AT46>66,15)))) -> 10 | V46: =IF(W46<499,15,IF(W46<999,10,IF(W46<1499,5,IF(W46>1500,0)))) -> 0 | W46: 1720.138102 | X46: =IF(DC46<500,0,IF(DC46<1000,5,IF(DC46>1000,10))) -> 5 | Y46: =IF(Z46="Yes",20,0) -> 20 | Z46: Yes | AA46: =IF(AB46="Yes",20,0) -> 20 | AB46: Yes | AC46: =IF(AD46="Yes",20,0) -> 20 | AD46: Yes | AE46: 10 | AF46: 10 | AG46: 15 | AH46: 10 | AI46: No | AJ46: 15 | AK46: Minimal | AL46: 10 | AM46: Yes | AN46: 0 | AO46: No | AP46: 0 | AQ46: No | AR46: 16.32787773 | AS46: 0.01940380645 | AT46: 56.8314265 | AU46: 9.366327976 | AV46: 0.06930105611 | AW46: 45.46897756 | AX46: 0 | AY46: 0 | BC46: Albemarle RPO | BD46: 100 | BI46: 01 | BJ46: 100 | BO46: =SUM(U46+V46+X46+Y46+AA46+AC46) -> 75 | BP46: 70 | BS46: 100 | BU46: 7.317870804 | BV46: Exceeds cap of $15 million for Statewide & Regional Projects cascading to Division Needs | BW46: =O46+BS46*0.25 -> 35.9777764 | BX46: =BW46+P46 -> 39.1277764 | BZ46: Gates | CA46: 100 | CH46: 1 | CI46: A | CJ46: 01, , | CK46: Albemarle RPO, , | CL46: Gates, , , | CM46: 4.71405809 | CN46: 4.71405809 | CO46: Two Lane Highway | CP46: Multi-Lane Highway | CQ46: 1 | CR46: 2 | CS46: Undivided | CT46: Divided | CU46: 55 | CV46: 55 | CW46: 16.74191615 | CX46: 83.25808385 | CY46: 3822.992519 | CZ46: 15500 | DA46: 0.2466446786 | DB46: 3182.950317 | DC46: 640.042202 | DD46: 21279.26891 | DE46: 4278.932679 | DF46: 25558.20159 | DG46: 601518 | DH46: 71.45279455 | DI46: 31.79863036 | DJ46: 67.25990573 | DM46: 0 | DN46: 1.386021122e-06 | DO46: Yes | DP46: No | DQ46: 12 | DR46: 12 | DS46: No | DT46: 0 | DU46: 0 | DV46: 2 Lane Undivided | DW46: 4A - 4 Lane Divided (46' Depressed Median) with Paved Shoulders | DX46: None | DY46: Partial | DZ46: 1 | EA46: Yes | EB46: 37 | EC46: 23800000 | ED46: 6000000 | EE46: 1200000 | EF46: 31000000 | EH46: 31000000 | EI46: 31000000
A47: F130002 | B47: Hyde | C47: Albemarle RPO | D47: Ferry | E47: Division Needs | G47: Statewide: Support Vessel | J47: Replacement Vessel-Tug (Dare) | L47: 1725000 | Q47: 25.9 | R47: 6 | S47: =Q47+#REF!+R47 ->  | W47: 0.4157119961 | Z47: Yes | AE47: 5 | AF47: 20 | AG47: 15 | AH47: =IF(AI47="Yes",10,0) -> 0 | AI47: No | AJ47: 15 | AK47: Minimal | AL47: 10 | AM47: Yes | AN47: =IF(AO47="Yes",5,0) -> 0 | AO47: No | AP47: =IF(AQ47="Yes",5,0) -> 0 | AQ47: No | AT47: 39.43 | BC47: Albemarle RPO | BP47: =SUM(AE47+AF47+AG47+AH47++AJ47+AL47+AN47+AP47) -> 65 | BZ47: Hyde | CN47: =9.5*2 -> 19 | CY47: 60391 | EF47: 1725000 | EH47: 477000
A48: F130004 | C48: Albemarle RPO | D48: Ferry | E48: Division Needs | G48: Statewide: Support Vessel | J48: Replacement Vessel-Tug (Buxton Jr.) | L48: 1725000 | Q48: 23.4 | R48: 6 | S48: =Q48+#REF!+R48 ->  | W48: 0.2007967378 | Z48: Yes | AE48: 5 | AF48: 20 | AG48: 15 | AH48: 0 | AI48: No | AJ48: 15 | AK48: Minimal | AL48: 10 | AM48: Yes | AN48: =IF(AO48="Yes",5,0) -> 0 | AO48: No | AP48: =IF(AQ48="Yes",5,0) -> 0 | AQ48: No | AT48: 39.43 | BC48: Albemarle RPO | BP48: =SUM(AE48+AF48+AG48+AH48++AJ48+AL48+AN48+AP48) -> 65 | CN48: =9.5*2 -> 19 | CY48: 60391 | EF48: 1725000 | EH48: 230400
A49: F130001 | B49: Hyde | C49: Albemarle RPO | D49: Ferry | E49: Division Needs | G49: Statewide: Support Vessel | J49: Replacement Vessel-Tug(Albemarle) | L49: 5000000 | Q49: 19.3 | R49: 6 | S49: =Q49+#REF!+R49 ->  | W49: =(EH49/CY49)/CN49 -> 1.003983689 | Z49: Yes | AE49: =IF(AT49<30,0,IF(AT49<50,5,IF(AT49<65,10,IF(AT49<79,15,IF(AT49>80,20))))) -> 5 | AF49: 20 | AG49: =IF(Z49="Yes",15,0) -> 15 | AH49: 0 | AI49: No | AJ49: 15 | AK49: Minimal | AL49: 10 | AM49: Yes | AN49: =IF(AO49="Yes",5,0) -> 0 | AO49: No | AP49: =IF(AQ49="Yes",5,0) -> 0 | AQ49: No | AT49: 39.43 | BC49: Albemarle RPO | BP49: =SUM(AE49+AF49+AG49+AH49++AJ49+AL49+AN49+AP49) -> 65 | BZ49: Hyde | CN49: =9.5*2 -> 19 | CY49: 60391 | EF49: 5000000 | EH49: 1152000
A50: B141476 | B50: Dare | C50: Albemarle RPO | D50: Bike & Ped | E50: Division Needs | G50: Kill Devil Hills Multi Use Path | H50: Ocean Acres | I50: Atlantic | J50: Construct Multi-Use Path | K50: 2. Construct multi-use trail / greenway / sidepath or on-road bike lane on local roadway | L50: 356500 | Q50: 18.50454824 | R50: 9.75 | S50: =Q50+#REF!+R50 ->  | U50: N/A | W50: 7756.71017 | Z50: Yes | AE50: 15 | AF50: 0 | AG50: 15 | AH50: 10 | AI50: Yes | AJ50: 15 | AK50: Minimal | AL50: 10 | AM50: Yes | AN50: =IF(AO50="Yes",10,0) -> 0 | AO50: No | AP50: =IF(AQ50="Yes",10,0) -> 0 | AQ50: No | AT50: 75 | BC50: Albemarle RPO | BP50: =SUM(AE50+AF50+AG50+AH50+AJ50+AL50+AN50) -> 65 | BZ50: Dare County | CN50: 0.31 | CY50: =786*0.1 -> 78.6 | EC50: 310000 | ED50: 0 | EF50: 356500 | EG50: 0 | EH50: 189000
A51: F130005 | C51: Albemarle RPO | D51: Ferry | E51: Division Needs | G51: Statewide: Support Vessel | J51: Replacement Vessel-Barge (NC-2 Fuel Barge) | L51: 200000 | Q51: 18.2 | R51: 3 | S51: =Q51+#REF!+R51 ->  | W51: 0.2860961332 | Z51: Yes | AE51: 5 | AF51: 20 | AG51: 15 | AH51: 0 | AI51: No | AJ51: 15 | AK51: Minimal | AL51: 10 | AM51: Yes | AN51: =IF(AO51="Yes",5,0) -> 0 | AO51: No | AP51: =IF(AQ51="Yes",5,0) -> 0 | AQ51: No | AT51: 39.43 | BC51: Albemarle RPO | BP51: =SUM(AE51+AF51+AG51+AH51++AJ51+AL51+AN51+AP51) -> 65 | CN51: =9.5*2 -> 19 | CY51: 60391 | EF51: 200000 | EH51: 328275
A52: B141349 | B52: Dare | C52: Albemarle RPO | D52: Bike & Ped | E52: Division Needs | G52: NC 12 | H52: Gull Street | I52: Jennettes Pier | J52: Construct sidewalk on west side of NC 12 from Gull Street south to Jennets Pier | K52: 5. Construct Sidewalk | L52: 100000 | Q52: 15.6425 | R52: 6.75 | S52: =Q52+#REF!+R52 ->  | U52: N/A | W52: 1461.038961 | Z52: Yes | AE52: 0 | AF52: 15 | AG52: 15 | AH52: 10 | AI52: Yes | AJ52: 15 | AK52: Minimal | AL52: 10 | AM52: Yes | AN52: =IF(AO52="Yes",10,0) -> 0 | AO52: No | AP52: =IF(AQ52="Yes",10,0) -> 0 | AQ52: No | AT52: 12.5 | BC52: Albemarle RPO | BP52: =SUM(AE52+AF52+AG52+AH52+AJ52+AL52+AN52) -> 65 | BZ52: Dare County | CN52: 0.3 | CY52: 308 | EC52: 90000 | ED52: 0 | EF52: 100000 | EG52: 0 | EH52: 135000
A53: F130009 | B53: Hyde | C53: Albemarle RPO | D53: Ferry | E53: Division Needs | G53: Statewide: Support Vessel | J53: Replacement Vessel-Barge (NC-1 Pipeline Barge) | L53: 185000 | Q53: 13.7 | R53: 3 | S53: =Q53+#REF!+R53 ->  | W53: 1.725596965 | Z53: Yes | AE53: 5 | AF53: 20 | AG53: 15 | AH53: 0 | AI53: No | AJ53: 15 | AK53: Minimal | AL53: 10 | AM53: Yes | AN53: =IF(AO53="Yes",5,0) -> 0 | AO53: No | AP53: =IF(AQ53="Yes",5,0) -> 0 | AQ53: No | AT53: 39.43 | BC53: Albemarle RPO | BP53: =SUM(AE53+AF53+AG53+AH53++AJ53+AL53+AN53+AP53) -> 65 | BZ53: Hyde | CN53: =9.5*2 -> 19 | CY53: 60391 | EF53: 185000 | EH53: 1980000
A54: F130010 | B54: Hyde | C54: Albemarle RPO | D54: Ferry | E54: Division Needs | G54: Statewide: Support Vessel | J54: Replacement Vessel-Barge (NC-3 Equipment Barge) | L54: 185000 | Q54: 13.7 | R54: 3 | S54: =Q54+#REF!+R54 ->  | W54: 0.5804280701 | Z54: Yes | AE54: 5 | AF54: 20 | AG54: 15 | AH54: 0 | AI54: No | AJ54: 15 | AK54: Minimal | AL54: 10 | AM54: Yes | AN54: =IF(AO54="Yes",5,0) -> 0 | AO54: No | AP54: =IF(AQ54="Yes",5,0) -> 0 | AQ54: No | AT54: 39.43 | BC54: Albemarle RPO | BP54: =SUM(AE54+AF54+AG54+AH54++AJ54+AL54+AN54+AP54) -> 65 | BZ54: Hyde | CN54: =9.5*2 -> 19 | CY54: 60391 | EF54: 185000 | EH54: 666000
A55: H129676-A | B55: Hertford | C55: Peanut Belt RPO | D55: Highway | E55: Statewide Mobility | F55: R-5311A | G55: NC-11 | H55: SR 1213 (Old NC 11 Road) | J55: Upgrade At-Grade Intersecton to Interchange. | K55: 7 - Upgrade At-grade Intersection to Interchange or Grade Separation | L55: 9460000 | M55: 15.19466803 | O55: 13.57447154 | Q55: 8.941022694 | S55: =Q55+#REF!+R55 ->  | U55: =IF(AT55<30,0,IF(AT55<50,5,IF(AT55<65,10,IF(AT55>66,15)))) -> 15 | V55: =IF(W55<499,15,IF(W55<999,10,IF(W55<1499,5,IF(W55>1500,0)))) -> 10 | W55: 566.4616421 | X55: =IF(DC55<500,0,IF(DC55<1000,5,IF(DC55>1000,10))) -> 10 | Y55: =IF(Z55="Yes",20,0) -> 20 | Z55: Yes | AA55: =IF(AB55="Yes",20,0) -> 20 | AB55: Yes | AC55: =IF(AD55="Yes",20,0) -> 20 | AD55: Yes | AE55: 15 | AF55: =IF(BL53<999,20,IF(BL53<1499,15,IF(BL53<1999,10,IF(BL53<3999,5,IF(BL53>4000,0))))) -> 20 | AG55: 15 | AH55: 10 | AI55: Yes | AJ55: 15 | AK55: Minimal | AL55: 10 | AM55: Yes | AN55: =IF(AO55="Yes",10,0) -> 0 | AO55: No | AP55: =IF(AQ55="Yes",10,0) -> 0 | AQ55: No | AR55: 19.50147704 | AS55: 3.258749894 | AT55: 66.65 | AU55: 6.246989464 | AV55: 4.522020597 | AW55: 25.05023985 | AX55: 0 | AY55: 0 | BC55: Peanut Belt RPO | BD55: 100 | BI55: 01 | BJ55: 100 | BO55: =SUM(U55+V55+X55+Y55+AA55+AC55) -> 95 | BP55: =SUM(AE55+AF55+AG55+AH55+AJ55+AL55+AN55+AP55) -> 85 | BS55: 100 | BT55: 100 | BU55: =Q55+BT55*0.25 -> 33.94102269 | BW55: =O55+BS55*0.25 -> 38.57447154 | BX55: =BW55+P55 -> 38.57447154 | BZ55: Hertford | CA55: 100 | CH55: 1 | CI55: A | CJ55: 01, , | CK55: Peanut Belt RPO, , | CL55: Hertford, , , | CM55: 2 | CN55: 2 | CO55: Two Lane Highway | CP55: Multi-Lane Highway | CQ55: 1 | CR55: 1 | CS55: Undivided | CT55: Divided | CU55: 49.99989223 | CV55: 55 | CW55: 14.96270575 | CX55: 85.03729425 | CY55: 8350.07995 | CZ55: 31000 | DA55: 0.2693574177 | DB55: 7100.682057 | DC55: 1249.397893 | DD55: 1121641.911 | DE55: 197358.0888 | DF55: 1319000 | DG55: 30827774 | DK55: 33.3 | DL55: 100 | DM55: 21 | DN55: 6.944041194e-05 | DO55: No | DP55: No | DQ55: 12 | DR55: 12 | DS55: No | DT55: 2 | DU55: 2 | DV55: 2 Lane Undivided | DX55: None | DY55: Full | DZ55: 1 | EA55: Yes | EB55: 19.56521906 | EC55: 8900000 | ED55: 500000 | EE55: 60000 | EF55: 9460000 | EH55: 9460000 | EI55: 9460000
A56: H141680 | B56: Northampton | C56: Peanut Belt RPO | D56: Highway | E56: Regional Impact | G56: NC-46 | H56: Virginia State Line | I56: NC 48 in Gaston | J56: Currently a 2-lane major thoroughfare from the Virginia State Line to NC 48 (TIP#U-2419), this project recommends to upgrade the existing facility to 24 feet w/ paved shoulders; while modifying sharp horizontal curves. This would provide safer maneuvering in a 12-foot lane; while tying in bike lane recommendations. | K56: 16 - Modernize Roadway | L56: 8587000 | O56: 12.09 | Q56: 8.89 | S56: =Q56+#REF!+R56 ->  | U56: =IF(AT56<30,0,IF(AT56<50,5,IF(AT56<65,10,IF(AT56>66,15)))) -> 5 | V56: =IF(W56<499,15,IF(W56<999,10,IF(W56<1499,5,IF(W56>1500,0)))) -> 15 | W56: 226.1703616 | X56: =IF(DC56<500,0,IF(DC56<1000,5,IF(DC56>1000,10))) -> 0 | Y56: =IF(Z56="Yes",20,0) -> 20 | Z56: Yes | AA56: =IF(AB56="Yes",20,0) -> 20 | AB56: Yes | AC56: =IF(AD56="Yes",10,0) -> 10 | AD56: Yes | AE56: 5 | AF56: =IF(BL54<999,20,IF(BL54<1499,15,IF(BL54<1999,10,IF(BL54<3999,5,IF(BL54>4000,0))))) -> 20 | AG56: 15 | AH56: 10 | AI56: Yes | AJ56: 15 | AK56: Minimal | AL56: 10 | AM56: Yes | AN56: =IF(AO56="Yes",10,0) -> 0 | AO56: No | AP56: 0 | AQ56: No | AR56: 15.58293049 | AS56: 0 | AT56: 48.35922895 | AU56: 1.108343946 | AV56: N/A | AW56: 17.64857134 | AX56: 25 | AY56: 0 | BC56: Peanut Belt RPO | BD56: 100 | BI56: 01 | BJ56: 100 | BO56: =SUM(U56+V56+X56+Y56+AA56+AC56) -> 70 | BP56: 75 | BS56: 100 | BT56: 100 | BU56: =Q56+BT56*0.25 -> 33.89 | BW56: =O56+BS56*0.25 -> 37.09 | BX56: =BW56+P56 -> 37.09 | BZ56: Northampton | CA56: 100 | CH56: 1 | CI56: A | CJ56: 01, , | CK56: Peanut Belt RPO, , | CL56: Northampton, , , | CM56: 10.4059786 | CN56: 10.4059786 | CO56: Two Lane Highway | CP56: Two Lane Highway | CQ56: 1 | CR56: 1 | CS56: Undivided | CT56: Undivided | CU56: 55 | CV56: 55 | CW56: 6.075495549 | CX56: 93.92450445 | CY56: 3648.571337 | CZ56: 15500 | DA56: 0.2353916992 | DB56: 3426.902548 | DC56: 221.6687892 | DD56: 0 | DE56: 0 | DF56: 0 | DG56: 0 | DH56: 52.5547593 | DI56: 46.36386067 | DJ56: 46.1735761 | DO56: No | DP56: No | DQ56: 11 | DR56: 12 | DS56: No | DT56: 2 | DU56: 0 | DV56: 2 Lane Undivided | DW56: 3A - 2 Lane with Two Way Left Turn Lane, and Paved Shoulders | DX56: None | DY56: None | DZ56: 1 | EA56: No | EB56: 27 | EC56: 8587000 | ED56: 0 | EE56: 0 | EF56: 8587000 | EH56: 8587000 | EI56: 8587000
A57: H129113-A | B57: Northampton | C57: Peanut Belt RPO | D57: Highway | E57: Statewide Mobility | F57: R-2582A | G57: US-158 , NC-46 | H57: I-95/NC 46 in Roanoke Rapids | I57: SR 1312 (St. John Church Road) | J57: Widen to Multi-Lanes. | K57: 1 - Widen Existing Roadway | L57: 61600000 | M57: 10.75557238 | O57: 10.87 | Q57: 8.04 | S57: =Q57+#REF!+R57 ->  | U57: =IF(AT57<30,0,IF(AT57<50,5,IF(AT57<65,10,IF(AT57>66,15)))) -> 5 | V57: =IF(W57<499,15,IF(W57<999,10,IF(W57<1499,5,IF(W57>1500,0)))) -> 0 | W57: 2091.147406 | X57: =IF(DC57<500,0,IF(DC57<1000,5,IF(DC57>1000,10))) -> 5 | Y57: =IF(Z57="Yes",20,0) -> 20 | Z57: Yes | AA57: =IF(AB57="Yes",20,0) -> 20 | AB57: Yes | AC57: 10 | AD57: Yes | AE57: 5 | AF57: =IF(BL55<999,20,IF(BL55<1499,15,IF(BL55<1999,10,IF(BL55<3999,5,IF(BL55>4000,0))))) -> 0 | AG57: 15 | AH57: 10 | AI57: Yes | AJ57: 15 | AK57: Minimal | AL57: 10 | AM57: Yes | AN57: =IF(AO57="Yes",10,0) -> 0 | AO57: No | AP57: 0 | AQ57: No | AR57: 16.65333771 | AS57: 1.187308961 | AT57: 37.55308851 | AU57: 2.77256799 | AV57: 10.93555935 | AW57: 15.81466709 | AX57: 25 | AY57: 0 | BC57: Peanut Belt RPO | BD57: 100 | BI57: 01 | BJ57: 100 | BO57: =SUM(U57+V57+X57+Y57+AA57+AC57) -> 60 | BP57: 55 | BS57: 100 | BU57: =Q57+BT57*0.25 -> 8.04 | BV57: Exceeds cap of $15 million for Statewide & Regional Projects cascading to Division Needs | BW57: =O57+BS57*0.25 -> 35.87 | BX57: =BW57+P57 -> 35.87 | BZ57: Northampton | CA57: 100 | CH57: 1 | CI57: A | CJ57: 01, , | CK57: Peanut Belt RPO, , | CL57: Northampton, , , | CM57: 7.47990067 | CN57: 7.47990067 | CO57: Arterial | CP57: Multi-Lane Highway | CQ57: 1 | CR57: 2 | CS57: Undivided | CT57: Divided | CU57: 50 | CV57: 50 | CW57: 14.08030189 | CX57: 85.91969811 | CY57: 3938.222363 | CZ57: 15671.3475 | DA57: 0.2513008127 | DB57: 3383.708765 | DC57: 554.513598 | DD57: 2698025.262 | DE57: 442145.5271 | DF57: 3140170.789 | DG57: 73138232 | DH57: 40.93715717 | DI57: 38.61638139 | DJ57: 33.11699402 | DM57: 50 | DN57: 0.0001687111871 | DO57: No | DP57: No | DQ57: 11 | DR57: 12 | DS57: No | DT57: 1 | DU57: 0 | DV57: 2 Lane Undivided | DW57: 4A - 4 Lane Divided (46' Depressed Median) with Paved Shoulders | DX57: None | DY57: Partial | DZ57: 1 | EA57: Yes | EB57: 22 | EC57: 54000000 | ED57: 7600000 | EE57: 0 | EF57: 61600000 | EH57: 61600000 | EI57: 61600000
A58: A130008 | B58: Pasquotank | C58: Albemarle RPO | D58: Aviation | E58: Division Needs | G58: Elizabeth City Coast Guard Air Station/Regional | J58: Land Acquisition-Apron Construction | L58: 1800000 | Q58: 8.59 | R58: 13.5 | S58: =Q58+#REF!+R58 ->  | U58: N/A | W58: 1588.415439 | Z58: Yes | AA58: =IF(AB58="Yes",10,0) -> 0 | AC58: 0 | AE58: 0 | AF58: =IF(W58<999,20,IF(W58<1499,15,IF(W58<1999,10,IF(W58<3999,5,IF(W58>4000,0))))) -> 10 | AG58: 15 | AH58: 10 | AI58: Yes | AJ58: =IF(AK58="Minimal",15,0) -> 15 | AK58: Minimal | AL58: 10 | AM58: Yes | AN58: =IF(AO58="Yes",5,0) -> 5 | AO58: Yes | AP58: 0 | AQ58: No | BC58: Albemarle RPO | BP58: 65 | BZ58: Pasquotank | CN58: 0.86 | CY58: 164.71 | EF58: 2000000 | EH58: 225000
A59: A130007 | B59: Pasquotank | C59: Albemarle RPO | D59: Aviation | E59: Division Needs | G59: Elizabeth City Coast Guard Air Station/Regional | J59: Permitting/mitigation/preliminary | L59: 247500 | Q59: 7.89 | R59: 13.5 | S59: =Q59+#REF!+R59 ->  | U59: N/A | W59: 1747.256983 | Z59: Yes | AA59: =IF(AB59="Yes",10,0) -> 0 | AC59: 0 | AE59: 0 | AF59: =IF(W59<999,20,IF(W59<1499,15,IF(W59<1999,10,IF(W59<3999,5,IF(W59>4000,0))))) -> 10 | AG59: 15 | AH59: 10 | AI59: Yes | AJ59: =IF(AK59="Minimal",15,0) -> 15 | AK59: Minimal | AL59: 10 | AM59: Yes | AN59: =IF(AO59="Yes",5,0) -> 5 | AO59: Yes | AP59: 0 | AQ59: No | BC59: Albemarle RPO | BP59: 65 | BZ59: Pasquotank | CN59: 0.86 | CY59: 164.71 | EF59: 275000 | EH59: 247500
A60: A130036 | B60: Currituck | C60: Albemarle RPO | D60: Aviation | E60: Division Needs | G60: Currituck County Regional | J60: Acquire Equipment Shelter | L60: 135000 | Q60: 5.56 | R60: 15 | S60: =Q60+#REF!+R60 ->  | U60: N/A | W60: 1895.279491 | Z60: Yes | AA60: =IF(AB60="Yes",10,0) -> 0 | AC60: 0 | AE60: 0 | AF60: =IF(W60<999,20,IF(W60<1499,15,IF(W60<1999,10,IF(W60<3999,5,IF(W60>4000,0))))) -> 10 | AG60: 15 | AH60: 10 | AI60: Yes | AJ60: =IF(AK60="Minimal",15,0) -> 15 | AK60: Minimal | AL60: 10 | AM60: Yes | AN60: =IF(AO60="Yes",5,0) -> 5 | AO60: Yes | AP60: 0 | AQ60: No | BC60: Albemarle RPO | BP60: 65 | BZ60: Currituck | CN60: 1.04 | CY60: 68.49 | EF60: 150000 | EH60: 135000
A61: H129676-B | B61: Hertford | C61: Peanut Belt RPO | D61: Highway | E61: Statewide Mobility | F61: R-5311B | G61: US-13 , NC-11 | H61: NC 11/NC 561 Near Ahoskie | I61: US 158/NC 45 Near Winton | J61: Widen to Multi-Lanes. | K61: 1 - Widen Existing Roadway | L61: 78190000 | M61: 14.2940784 | O61: 10.37108722 | Q61: 6.912738678 | S61: =Q61+#REF!+R61 ->  | U61: =IF(AT61<30,0,IF(AT61<50,5,IF(AT61<65,10,IF(AT61>66,15)))) -> 5 | V61: =IF(W61<499,15,IF(W61<999,10,IF(W61<1499,5,IF(W61>1500,0)))) -> 0 | W61: 1789.733308 | X61: =IF(DC61<500,0,IF(DC61<1000,5,IF(DC61>1000,10))) -> 5 | Y61: =IF(Z61="Yes",20,0) -> 20 | Z61: Yes | AA61: =IF(AB61="Yes",20,0) -> 20 | AB61: Yes | AC61: 10 | AD61: Yes | AE61: 5 | AF61: =IF(BL59<999,20,IF(BL59<1499,15,IF(BL59<1999,10,IF(BL59<3999,5,IF(BL59>4000,0))))) -> 20 | AG61: 15 | AH61: 10 | AI61: Yes | AJ61: 15 | AK61: Minimal | AL61: 10 | AM61: Yes | AN61: =IF(AO61="Yes",10,0) -> 0 | AO61: No | AP61: 0 | AQ61: No | AR61: 24.00183237 | AS61: 0.0395840133 | AT61: 45.08597039 | AU61: 12.62287903 | AV61: 0.4848063717 | AW61: 24.87069191 | AX61: 0 | AY61: 0 | BC61: Peanut Belt RPO | BD61: 100 | BI61: 01 | BJ61: 100 | BO61: =SUM(U61+V61+X61+Y61+AA61+AC61) -> 60 | BP61: 75 | BS61: 100 | BU61: =Q61+BT61*0.25 -> 6.912738678 | BV61: Exceeds cap of $15 million for Statewide & Regional Projects cascading to Division Needs | BW61: =O61+BS61*0.25 -> 35.37108722 | BX61: =BW61+P61 -> 35.37108722 | BZ61: Hertford | CA61: 100 | CH61: 1 | CI61: A | CJ61: 01, , | CK61: Peanut Belt RPO, , | CL61: Hertford, , , | CM61: 7.76875191 | CN61: 7.76875191 | CO61: Two Lane Highway | CP61: Multi-Lane Highway | CQ61: 1 | CR61: 2 | CS61: Undivided | CT61: Divided | CU61: 51 | CV61: 51 | CW61: 12.65879155 | CX61: 87.34120845 | CY61: 5623.563971 | CZ61: 15511.56346 | DA61: 0.3625401131 | DB61: 4911.68873 | DC61: 711.8752405 | DD61: 116717.6437 | DE61: 16916.463 | DF61: 133634.1067 | DG61: 3095074 | DH61: 59.75771344 | DI61: 36.96576865 | DJ61: 38.54795622 | DM61: 2.108477579 | DN61: 7.587649855e-06 | DO61: Yes | DP61: No | DQ61: 12 | DR61: 12 | DS61: No | DT61: 4 | DU61: 2 | DV61: 2 Lane Undivided | DW61: 4A - 4 Lane Divided (46' Depressed Median) with Paved Shoulders | DX61: None | DY61: Partial | DZ61: 1 | EA61: Yes | EB61: 24 | EC61: 73100000 | ED61: 4425000 | EE61: 665000 | EF61: 78190000 | EH61: 78190000 | EI61: 78190000
A62: H090284 | B62: Dare | C62: Albemarle RPO | D62: Highway | E62: Statewide Mobility | F62: R-4457 | G62: US-158 | H62: NC 12 | J62: Improve intersection | K62: 7 - Upgrade At-grade Intersection to Interchange or Grade Separation | L62: 23870000 | M62: 25.08857243 | O62: 23.24 | P62: 12.3 | Q62: 17.98 | R62: 9 | S62: =Q62+#REF!+R62 ->  | U62: 10 | V62: 5 | W62: 1254.603377 | X62: 10 | Y62: 20 | Z62: Yes | AA62: 20 | AB62: Yes | AC62: =IF(AD62="Yes",20,0) -> 0 | AD62: No | AE62: 10 | AF62: =IF(BL60<999,20,IF(BL60<1499,15,IF(BL60<1999,10,IF(BL60<3999,5,IF(BL60>4000,0))))) -> 20 | AG62: 15 | AH62: 0 | AI62: No | AJ62: =IF(AK62="Minimal",15,0) -> 15 | AK62: Minimal | AL62: 10 | AM62: Yes | AN62: 0 | AO62: No | AP62: 0 | AQ62: No | AR62: 54.50533414 | AS62: 0.3082017176 | AT62: 50 | AU62: 17.57623895 | AV62: 1.292638797 | AW62: 100 | AX62: 0 | AY62: 75 | BC62: Albemarle RPO | BD62: 100 | BI62: 01 | BJ62: 100 | BO62: 65 | BP62: 70 | BS62: 0 | BU62: 17.98 | BW62: 23.24 | BX62: 35.54 | BY62: Minimal Local Support | BZ62: Dare | CA62: 100 | CH62: 1 | CI62: A | CJ62: 01, , | CK62: Albemarle RPO, , | CL62: Dare, , , | CM62: 0.5 | CN62: 0.5 | CO62: Arterial | CP62: Arterial | CQ62: 2 | CR62: 2 | CS62: TWLTL | CT62: Divided | CU62: 50 | CV62: 50 | CW62: 9.238043043 | CX62: 90.76195696 | CY62: 38051.86633 | CZ62: 58117.24442 | DA62: 0.6547431268 | DB62: 34536.61854 | DC62: 3515.24779 | DD62: 292253.5014 | DE62: 29746.4986 | DF62: 322000 | DG62: 7356775 | DK62: 66.7 | DL62: 33.3 | DM62: 5 | DN62: 2.085277595e-05 | DO62: No | DP62: No | DQ62: 12 | DR62: 12 | DS62: No | DT62: 1 | DU62: 4 | DV62: 4 Lane with TWLTL (Five Lane) | DX62: None | DY62: Partial | DZ62: 2 | EA62: Yes | EB62: 18.89999999 | EC62: 19250000 | ED62: 4620000 | EE62: 0 | EF62: 23870000 | EH62: 23870000 | EI62: 23870000
A63: H090442 | B63: Dare | C63: Albemarle RPO | D63: Highway | E63: Statewide Mobility | F63: U-3815 | G63: US-64 | H63: US 64 Business/NC 345 | J63: US 64-US 64 Bypass-NC 345. Improve intersection. | K63: 10 - Improve Intersection | L63: 1550000 | M63: 26.82316961 | O63: 21.93856175 | P63: 11.85 | Q63: 13.65417344 | R63: 9 | S63: =Q63+#REF!+R63 ->  | U63: 15 | V63: 15 | W63: 139.0264115 | X63: 10 | Y63: 20 | Z63: Yes | AA63: 0 | AB63: No | AC63: =IF(AD63="Yes",20,0) -> 0 | AD63: No | AE63: 20 | AF63: =IF(BL61<999,20,IF(BL61<1499,15,IF(BL61<1999,10,IF(BL61<3999,5,IF(BL61>4000,0))))) -> 0 | AG63: 15 | AH63: 0 | AI63: No | AJ63: 0 | AK63: Significant | AL63: =AP63 -> 0 | AM63: No | AN63: 0 | AO63: No | AP63: 0 | AQ63: No | AR63: 24.04570282 | AS63: 29.14603161 | AT63: 83.35 | AU63: 8.254001304 | AV63: 8.798490229 | AW63: 14.86528095 | AX63: 0 | AY63: 0 | BC63: Albemarle RPO | BD63: 100 | BI63: 01 | BJ63: 100 | BO63: 60 | BP63: 35 | BS63: 0 | BU63: 13.65417344 | BV63: Minimal Local Support | BW63: 21.93856175 | BX63: 33.78856175 | BY63: Minimal Local Support | BZ63: Dare | CA63: 100 | CH63: 1 | CI63: A | CJ63: 01, , | CK63: Albemarle RPO, , | CL63: Dare, , , | CM63: 0.5 | CN63: 0.5 | CO63: Multi-Lane Highway | CP63: Multi-Lane Highway | CQ63: 2 | CR63: 2 | CS63: Undivided | CT63: Undivided | CU63: 52.50704546 | CV63: 55 | CW63: 7.403381821 | CX63: 92.59661818 | CY63: 22297.92142 | CZ63: 88445.59255 | DA63: 0.2521089042 | DB63: 20647.12116 | DC63: 1650.800261 | DD63: 1844524.634 | DE63: 147475.3659 | DF63: 1992000 | DG63: 45176349 | DK63: 66.7 | DL63: 100 | DM63: 33 | DN63: 0.0001429698046 | DO63: No | DP63: No | DQ63: 12 | DR63: 12 | DS63: No | DT63: 4 | DU63: 4 | DV63: 2 Lane Undivided | DX63: Limited | DY63: Partial | DZ63: 2 | EA63: No | EB63: 14.75301958 | EC63: 1250000 | ED63: 300000 | EE63: 0 | EF63: 1550000 | EH63: 1550000 | EI63: 1550000
A64: H090376 | B64: Dare | C64: Albemarle RPO | D64: Highway | E64: Regional Impact | F64: U-2917 | G64: NC-12 | H64: Vicinity of SR 1206 in Kitty Hawk | J64: Roadway Improvements. | K64: 16 - Modernize Roadway | L64: 21318000 | O64: 15.32 | P64: 10.95 | Q64: 11.87 | R64: 7.5 | S64: =Q64+#REF!+R64 ->  | U64: 10 | V64: 5 | W64: 1416.543409 | X64: 0 | Y64: 20 | Z64: Yes | AA64: 0 | AB64: No | AC64: =IF(AD64="Yes",20,0) -> 0 | AD64: No | AE64: 10 | AF64: =IF(BL62<999,20,IF(BL62<1499,15,IF(BL62<1999,10,IF(BL62<3999,5,IF(BL62>4000,0))))) -> 0 | AG64: 15 | AH64: 10 | AI64: No | AJ64: 15 | AK64: Minimal | AL64: =IF(AM64="Yes",10,0) -> 10 | AM64: Yes | AN64: 0 | AO64: No | AP64: 0 | AQ64: No | AR64: 15.60700082 | AS64: 0 | AT64: 53.13997169 | AU64: 0.8888605875 | AV64: N/A | AW64: 2.478795895 | AX64: 50 | AY64: 0 | BC64: Albemarle RPO | BD64: 100 | BI64: 01 | BJ64: 100 | BO64: 35 | BP64: 60 | BS64: 0 | BU64: 11.87 | BV64: Exceeds cap of $15 million for Statewide & Regional Projects cascading to Division Needs | BW64: 15.32 | BX64: 26.27 | BY64: Minimal Local Support | BZ64: Dare | CA64: 100 | CH64: 1 | CI64: A | CJ64: 01, , | CK64: Albemarle RPO, , | CL64: Dare, , , | CM64: 4.04747843 | CN64: 4.04747843 | CO64: Arterial | CP64: Arterial | CQ64: 1 | CR64: 1 | CS64: Undivided | CT64: Undivided | CU64: 35 | CV64: 35 | CW64: 4.781141733 | CX64: 95.21885827 | CY64: 3718.193842 | CZ64: 15800.00019 | DA64: 0.2353287213 | DB64: 3540.421724 | DC64: 177.7721175 | DD64: 0 | DE64: 0 | DF64: 0 | DG64: 0 | DH64: 47.45822342 | DI64: 43.97659191 | DJ64: 68.00104334 | DO64: No | DP64: No | DQ64: 10 | DR64: 12 | DS64: No | DT64: 4 | DU64: 0 | DV64: 2 Lane Undivided | DX64: None | DY64: None | DZ64: 2 | EA64: No | EB64: 19 | EC64: 21318000 | ED64: 0 | EE64: 0 | EF64: 21318000 | EH64: 21318000 | EI64: 21318000
A65: H141869 | B65: Chowan | C65: Albemarle RPO | D65: Highway | E65: Statewide Mobility | G65: US-17-BYP-Edenton Bypass | H65: South end of Chowan River Bridge | I65: US 17 Business (North) in Edenton (Broad Street) | J65: Upgrade freeway to interstate standards | K65: 17 - Upgrade Freeway to Interstate Standards | L65: 39943000 | M65: 8.748476042 | O65: 13.19957813 | P65: 10.95 | Q65: 10.46638542 | R65: 7.5 | S65: =Q65+#REF!+R65 ->  | U65: 5 | V65: 10 | W65: 527.4814841 | X65: 10 | Y65: 20 | Z65: Yes | AA65: 20 | AB65: Yes | AC65: =IF(AD65="Yes",20,0) -> 20 | AD65: Yes | AE65: 5 | AF65: =IF(W65<999,20,IF(W65<1499,15,IF(W65<1999,10,IF(W65<3999,5,IF(W65>4000,0))))) -> 20 | AG65: 15 | AH65: =IF(AI65="Yes",10,0) -> 0 | AI65: No | AJ65: 15 | AK65: Minimal | AL65: 10 | AM65: Yes | AN65: 0 | AO65: No | AP65: 0 | AQ65: No | AR65: 10.14337207 | AS65: 0 | AT65: 44.52048215 | AU65: 5.874292941 | AV65: 0.7855761892 | AW65: 18.24194062 | AX65: 25 | AY65: 25 | BC65: Albemarle RPO | BD65: 90.31 | BE65: Peanut Belt RPO | BF65: 9.69 | BI65: 01 | BJ65: 100 | BO65: 85 | BP65: 65 | BS65: 0 | BU65: 10.46638542 | BV65: Delay Prioritization pending outcome of Future Interstate Designation; Exceeds cap of $15 million for Statewide & Regional Projects cascading to Division Needs | BW65: 13.19957813 | BX65: 24.14957813 | BY65: Delay Division Local Input Scoring pending outcome of Future Interstate Designation | BZ65: Chowan | CA65: 90.31 | CB65: Bertie | CC65: 9.69 | CH65: 1 | CI65: A | CJ65: 01, , | CK65: Albemarle RPO, Peanut Belt RPO, | CL65: Chowan, Bertie, , | CM65: 9.18764021 | CN65: 9.18764021 | CO65: Freeway | CP65: Freeway | CQ65: 2 | CR65: 2 | CS65: Divided | CT65: Divided | CU65: 58.65785795 | CV65: 58.65785795 | CW65: 14.25463544 | CX65: 85.74536456 | CY65: 8241.940617 | CZ65: 72228.0751 | DA65: 0.1141099303 | DB65: 7067.082029 | DC65: 1174.858588 | DD65: 0 | DE65: 0 | DF65: 0 | DG65: 0 | DH65: 49.23914745 | DI65: 33.66004321 | DJ65: 50.67561326 | DM65: 3.52977296 | DN65: 1.218175082e-05 | DO65: No | DP65: No | DQ65: 11 | DR65: 12 | DS65: No | DT65: 3 | DU65: 4 | DV65: 4 Lane with Median - Full Control | DX65: Full | DY65: Full | DZ65: 1 | EA65: No | EB65: 25 | EC65: 39943000 | ED65: 0 | EE65: 0 | EF65: 39943000 | EH65: 39943000 | EI65: 39943000
A66: H090285 | B66: Perquimans | C66: Albemarle RPO | D66: Highway | E66: Statewide Mobility | F66: R-4458 | G66: US-17 | H66: SR 1300 (New Hope Road) | J66: Convert at-Grade intersection to An interchange | K66: 7 - Upgrade At-grade Intersection to Interchange or Grade Separation | L66: 12906000 | M66: 11.90833589 | O66: 12.64 | P66: 10.95 | Q66: 9.24 | R66: 7.5 | S66: =Q66+#REF!+R66 ->  | U66: 10 | V66: 15 | W66: 407.6876046 | X66: 10 | Y66: 20 | Z66: Yes | AA66: 20 | AB66: Yes | AC66: =IF(AD66="Yes",20,0) -> 0 | AD66: no | AE66: 10 | AF66: =IF(BL64<999,20,IF(BL64<1499,15,IF(BL64<1999,10,IF(BL64<3999,5,IF(BL64>4000,0))))) -> 0 | AG66: 15 | AH66: 0 | AI66: No | AJ66: 15 | AK66: Minimal | AL66: 10 | AM66: Yes | AN66: 0 | AO66: No | AP66: 0 | AQ66: No | AR66: 16.72725633 | AS66: 0.6740467999 | AT66: 50 | AU66: 7.704919603 | AV66: 1.469610328 | AW66: 63.4087888 | AX66: 0 | AY66: 25 | BC66: Albemarle RPO | BD66: 100 | BI66: 01 | BJ66: 100 | BO66: 75 | BP66: 50 | BS66: 0 | BU66: 9.24 | BV66: Delay Prioritization pending outcome of Future Interstate Designation; Need to coordinate this project with SPOT ID#H141929 | BW66: 12.64 | BX66: 23.59 | BY66: Delay Division Local Input Scoring pending outcome of Future Interstate Designation; Need to coordinate this project with SPOT ID#H090286 & TIP#R-4459 | BZ66: Perquimans | CA66: 100 | CH66: 1 | CI66: A | CJ66: 01, , | CK66: Albemarle RPO, , | CL66: Perquimans, , , | CM66: 2 | CN66: 2 | CO66: Multi-Lane Highway | CP66: Freeway | CQ66: 2 | CR66: 2 | CS66: Divided | CT66: Divided | CU66: 55 | CV66: 55 | CW66: 9.735627512 | CX66: 90.26437249 | CY66: 15828.2958 | CZ66: 91352.77137 | DA66: 0.1732656335 | DB66: 14287.31188 | DC66: 1540.983921 | DD66: 343004.6155 | DE66: 36995.38455 | DF66: 380000 | DG66: 8699248 | DK66: 0 | DL66: 100 | DM66: 6 | DN66: 2.339220656e-05 | DO66: no | DP66: No | DQ66: 12 | DR66: 12 | DS66: No | DT66: 3 | DU66: 4 | DV66: 2 Lane Undivided | DX66: None | DY66: Full | DZ66: 2 | EA66: Yes | EB66: 30.6 | EC66: 10716000 | ED66: 2190000 | EE66: 0 | EF66: 12906000 | EH66: 12906000 | EI66: 12906000
A67: B141773 | B67: Dare | C67: Albemarle RPO | D67: Bike & Ped | E67: Division Needs | G67: NC 12 Duck | H67: 1174 Duck Road | I67: Cook Drive | J67: Construct Sidewalk on West side of NC 12 | K67: 2. Construct multi-use trail / greenway / sidepath or on-road bike lane on local roadway | L67: 303600 | Q67: 20.72 | R67: 13.5 | S67: =Q67+#REF!+R67 ->  | U67: N/A | W67: 14426.22951 | Z67: Yes | AE67: 10 | AF67: =IF(W67<999,20,IF(W67<1499,15,IF(W67<1999,10,IF(W67<3999,5,IF(W67>4000,0))))) -> 0 | AG67: 15 | AH67: 10 | AI67: Yes | AJ67: 15 | AK67: Minimal | AL67: 10 | AM67: Yes | AN67: 0 | AO67: No | AP67: 0 | AQ67: No | AT67: 62.5 | BC67: Albemarle RPO | BP67: =SUM(AE67+AF67+AG67+AH67+AJ67+AL67+AN67) -> 60 | BZ67: Dare County | CN67: 0.69 | CY67: =305*0.1 -> 30.5 | EC67: 385000 | ED67: 0 | EF67: 442000 | EG67: 138400 | EH67: 303600
A68: B141770 | B68: Dare | C68: Albemarle RPO | D68: Bike & Ped | E68: Division Needs | G68: NC 12 Duck | H68: Four Seasons Lane | I68: Cook Drive | J68: Connect share path and construct sidewalk | K68: 5. Construct Sidewalk | L68: 286000 | Q68: 19.84 | R68: 13.5 | S68: =Q68+#REF!+R68 ->  | U68: N/A | W68: 9712.767724 | Z68: Yes | AE68: 10 | AF68: 0 | AG68: 15 | AH68: 10 | AI68: Yes | AJ68: 15 | AK68: Minimal | AL68: 10 | AM68: Yes | AN68: 0 | AO68: No | AP68: 0 | AQ68: No | AT68: 62.5 | BC68: Albemarle RPO | BP68: 60 | BZ68: Dare County | CN68: 2.47 | CY68: =317*0.1 -> 31.7 | EC68: 365000 | ED68: 0 | EF68: 420000 | EG68: 134000 | EH68: 760500
A69: B141788 | B69: Camden | C69: Albemarle RPO | D69: Bike & Ped | E69: Division Needs | G69: SR 1216 | H69: US 17 | I69: End Pavement | J69: Construct Sidewalks | K69: 5. Construct Sidewalk | L69: 200000 | Q69: 19.22349269 | R69: 8.25 | S69: =Q69+#REF!+R69 ->  | U69: N/A | W69: 18705.57426 | Z69: Yes | AE69: 10 | AF69: 0 | AG69: 15 | AH69: 10 | AI69: Yes | AJ69: 15 | AK69: Minimal | AL69: 10 | AM69: Yes | AN69: 0 | AO69: No | AP69: 0 | AQ69: No | AT69: 50 | BC69: Albemarle RPO | BP69: 60 | BZ69: Camden County | CN69: 0.33 | CY69: =324*0.1 -> 32.4 | EC69: 170000 | ED69: 0 | EF69: 200000 | EG69: 0 | EH69: 200000
A70: B141479 | B70: Dare | C70: Albemarle RPO | D70: Bike & Ped | E70: Division Needs | G70: Kill Devil Hills Multi Use Path | H70: Eighth Street | I70: Ocean Acres | J70: Construct Multi use path | K70: 2. Construct multi-use trail / greenway / sidepath or on-road bike lane on local roadway | L70: 414000 | Q70: 15.23398889 | R70: 9.75 | S70: =Q70+#REF!+R70 ->  | U70: N/A | W70: 16290.72682 | Z70: Yes | AE70: 10 | AF70: 0 | AG70: 15 | AH70: 10 | AI70: Yes | AJ70: 15 | AK70: Minimal | AL70: 10 | AM70: Yes | AN70: 0 | AO70: No | AP70: 0 | AQ70: No | AT70: 55 | BC70: Albemarle RPO | BP70: 60 | BZ70: Dare County | CN70: 0.36 | CY70: =798*0.1 -> 79.8 | EC70: 360000 | ED70: 0 | EF70: 414000 | EG70: 0 | EH70: 468000
A71: B141368 | B71: Dare | C71: Albemarle RPO | D71: Bike & Ped | E71: Division Needs | G71: US 158 | H71: Worthington Lane | I71: Jejac Street | J71: Construct approximately 8200' of sidewalk on the west side of US 158 | K71: 5. Construct Sidewalk | L71: 405375 | Q71: 14.98026209 | R71: 9.75 | S71: =Q71+#REF!+R71 ->  | U71: N/A | W71: 2732.793522 | Z71: Yes | AE71: 5 | AF71: 5 | AG71: 15 | AH71: 10 | AI71: Yes | AJ71: 15 | AK71: Minimal | AL71: 10 | AM71: Yes | AN71: 0 | AO71: No | AP71: 0 | AQ71: No | AT71: 42.5 | BC71: Albemarle RPO | BP71: 60 | BZ71: Dare County | CN71: 3.12 | CY71: =950*0.1 -> 95 | EC71: 385375 | ED71: 0 | EF71: 405375 | EG71: 0 | EH71: 810000
A72: B141956 | B72: Camden | C72: Albemarle RPO | D72: Bike & Ped | E72: Division Needs | G72: Dismal Swamp Trail | H72: McPherson Road | J72: Construct a 10' wide trail running between US 17 and the historic Dismal Swamp. (Phase 1) | K72: 2. Construct multi-use trail / greenway / sidepath or on-road bike lane on local roadway | L72: 400000 | Q72: 14.58044131 | R72: 7.5 | S72: =Q72+#REF!+R72 ->  | U72: N/A | W72: 94562.64775 | Z72: Yes | AE72: 10 | AF72: 0 | AG72: 15 | AH72: 10 | AI72: Yes | AJ72: 15 | AK72: Minimal | AL72: 10 | AM72: Yes | AN72: 0 | AO72: No | AP72: 0 | AQ72: No | AT72: 50 | BC72: Albemarle RPO | BP72: 60 | BZ72: Camden County | CN72: 0.47 | CY72: =90*0.1 -> 9 | EC72: 380000 | ED72: 0 | EF72: 400000 | EG72: 0 | EH72: 400000
A73: B141965 | B73: Camden | C73: Albemarle RPO | D73: Bike & Ped | E73: Division Needs | G73: Dismal Swamp Trail | J73: Construct a 10' wide trail running between US 17 and the historic Dismal Swamp (Phase 2) | K73: 2. Construct multi-use trail / greenway / sidepath or on-road bike lane on local roadway | L73: 400000 | Q73: 14.55158737 | R73: 7.5 | S73: =Q73+#REF!+R73 ->  | U73: N/A | W73: 120809.4231 | Z73: Yes | AE73: 10 | AF73: 0 | AG73: 15 | AH73: 10 | AI73: Yes | AJ73: 15 | AK73: Minimal | AL73: 10 | AM73: Yes | AN73: 0 | AO73: No | AP73: 0 | AQ73: No | AT73: 50 | BC73: Albemarle RPO | BP73: 60 | BZ73: Camden County | CN73: 0.43 | CY73: =77*0.1 -> 7.7 | EC73: 380000 | ED73: 0 | EF73: 400000 | EG73: 0 | EH73: 400000
A74: H141929 | B74: Perquimans | C74: Albemarle RPO | D74: Highway | E74: Statewide Mobility | G74: US-17 | H74: US 17 Business (North) in Edenton (Broad Street) | I74: SR 1100 / 1140 (Okisko Road) | J74: Upgrade roadway to Interstate | K74: 2 - Upgrade Arterial to Freeway/Expressway | L74: 362296000 | M74: 12.2315914 | O74: 9.98 | P74: 10.95 | Q74: 7.47 | R74: 7.5 | S74: =Q74+#REF!+R74 ->  | U74: =IF(AT74<30,0,IF(AT74<50,5,IF(AT74<65,10,IF(AT74>66,15)))) -> 5 | V74: =IF(W74<499,15,IF(W74<999,10,IF(W74<1499,5,IF(W74>1500,0)))) -> 5 | W74: 1471.217406 | X74: =IF(DC74<500,0,IF(DC74<1000,5,IF(DC74>1000,10))) -> 10 | Y74: =IF(Z74="Yes",20,0) -> 20 | Z74: Yes | AA74: =IF(AB74="Yes",20,0) -> 20 | AB74: Yes | AC74: =IF(AD74="Yes",20,0) -> 20 | AD74: Yes | AE74: 5 | AF74: 15 | AG74: 15 | AH74: 0 | AI74: No | AJ74: 15 | AK74: Minimal | AL74: 10 | AM74: Yes | AN74: 0 | AO74: No | AP74: 0 | AQ74: No | AR74: 15.31018413 | AS74: 0.4626025184 | AT74: 33.90939469 | AU74: 6.372212582 | AV74: 28.34373418 | AW74: 50.15549361 | AX74: 0 | AY74: 25 | BC74: Albemarle RPO | BD74: 100 | BI74: 01 | BJ74: 100 | BO74: =SUM(U74+V74+X74+Y74+AA74+AC74) -> 80 | BP74: =SUM(AE74+AF74+AG74+AH74+AJ74+AL74+AN74+AP74) -> 60 | BS74: 0 | BU74: =Q74+BT74*0.25 -> 7.47 | BV74: Delay Prioritization pending outcome of Future Interstate Designation; Exceeds cap of $15 million for Statewide & Regional Projects cascading to Division Needs | BW74: =O74+BS74*0.25 -> 9.98 | BX74: =BW74+P74 -> 20.93 | BY74: Delay Division Local Input Scoring pending outcome of Future Interstate Designation/Under Threshold of SPOT Score of "10" | BZ74: Perquimans | CA74: 89.76 | CB74: Chowan | CC74: 8.6 | CD74: Pasquotank | CE74: 1.63 | CH74: 1 | CI74: A | CJ74: 01, , | CK74: Albemarle RPO, , | CL74: Perquimans, Chowan, Pasquotank, | CM74: 19.22626177 | CN74: 19.22626177 | CO74: Multi-Lane Highway | CP74: Freeway | CQ74: 2 | CR74: 2 | CS74: Divided | CT74: Divided | CU74: 55.26721677 | CV74: 70 | CW74: 9.950122274 | CX74: 90.04987773 | CY74: 12808.3101 | CZ74: 75440.18465 | DA74: 0.1697810015 | DB74: 11533.86759 | DC74: 1274.442516 | DD74: 6586938.059 | DE74: 727828.1854 | DF74: 7314766.245 | DG74: 167599042 | DH74: 27.89512178 | DI74: 40.9431569 | DJ74: 32.90007922 | DM74: 116.7909975 | DN74: 0.0004500836861 | DO74: No | DP74: No | DQ74: 12 | DR74: 12 | DS74: No | DT74: 3 | DU74: 4 | DV74: 4 Lane with Median - Partial Control | DW74: 4A - 4 Lane Divided (46' Depressed Median) with Paved Shoulders | DX74: None | DY74: None | DZ74: 2 | EA74: Yes | EB74: 28 | EC74: 248047000 | ED74: 102008000 | EE74: 12241000 | EF74: 362296000 | EH74: 362296000 | EI74: 362296000
A75: B141867 | B75: Chowan | C75: Albemarle RPO | D75: Bike & Ped | E75: Division Needs | G75: ;; | H75: ;; | I75: ;; | J75: Connect path where existing sidewalk stops near Twiddy Ave. and extend towards Pembroke to the west side of town, connecting residential subdivisions and over the US 17 bypass overpass, terminating at the new Chowan River fishing pier. (Phase 1) | K75: 2. Construct multi-use trail / greenway / sidepath or on-road bike lane on local roadway | L75: 400000 | Q75: 9.259427109 | R75: 3.75 | S75: =Q75+#REF!+R75 ->  | U75: N/A | W75: 1871.305108 | Z75: Yes | AE75: 0 | AF75: 10 | AG75: 15 | AH75: 10 | AI75: Yes | AJ75: 15 | AK75: Minimal | AL75: 10 | AM75: Yes | AN75: 0 | AO75: No | AP75: 0 | AQ75: No | AT75: 12.5 | BC75: Albemarle RPO | BP75: =SUM(AE75+AF75+AG75+AH75+AJ75+AL75+AN75) -> 60 | BZ75: Chowan County | CN75: 0.96 | CY75: =2226.61*0.1 -> 222.661 | EC75: 380000 | ED75: 0 | EF75: 400000 | EG75: 0 | EH75: 400000
A76: H090329 | B76: Northampton | C76: Peanut Belt RPO | D76: Highway | E76: Regional Impact | F76: U-2419 | G76: NC-48 | H76: Roanoke Avenue in Halifax County | I76: NC 46 in Gaston in Northampton County | J76: Roanoke Avenue in Halifax County to NC 46 in Gaston in Northampton County. Widen to Multi-Lanes. | K76: 1 - Widen Existing Roadway | L76: 30987000 | O76: 20.72 | Q76: 17.12 | S76: =Q76+#REF!+R76 ->  | U76: =IF(AT76<30,0,IF(AT76<50,5,IF(AT76<65,10,IF(AT76>66,15)))) -> 0 | V76: =IF(W76<499,15,IF(W76<999,10,IF(W76<1499,5,IF(W76>1500,0)))) -> 0 | W76: 1638.892535 | X76: =IF(DC76<500,0,IF(DC76<1000,5,IF(DC76>1000,10))) -> 5 | Y76: =IF(Z76="Yes",20,0) -> 20 | Z76: Yes | AA76: =IF(AB76="Yes",20,0) -> 20 | AB76: Yes | AC76: =IF(AD76="Yes",10,0) -> 10 | AD76: Yes | AE76: 0 | AF76: =IF(BL74<999,20,IF(BL74<1499,15,IF(BL74<1999,10,IF(BL74<3999,5,IF(BL74>4000,0))))) -> 0 | AG76: 15 | AH76: 10 | AI76: Yes | AJ76: 15 | AK76: Minimal | AL76: 10 | AM76: Yes | AN76: 0 | AO76: No | AP76: 0 | AQ76: No | AR76: 46.28028275 | AS76: 0.8176696034 | AT76: 24.09381346 | AU76: 4.161602398 | AV76: N/A | AW76: 19.02587058 | AX76: 0 | AY76: 100 | BC76: Peanut Belt RPO | BD76: 100 | BI76: 01 | BJ76: 79.88 | BK76: 04 | BL76: 20.12 | BO76: =SUM(U76+V76+X76+Y76+AA76+AC76) -> 55 | BP76: =SUM(AE76+AF76+AG76+AH76+AJ76+AL76+AN76+AP76) -> 50 | BS76: 0 | BU76: =Q76+BT76*0.25 -> 17.12 | BV76: Exceeds cap of $15 million for Statewide & Regional Projects cascading to Division Needs | BW76: =O76+BS76*0.25 -> 20.72 | BX76: =BW76+P76 -> 20.72 | BY76: Portion of this project is in Div. 4;therefore, it is not beneficial to assign points if Div. 4 does not | BZ76: Northampton | CA76: 79.88 | CB76: Halifax | CC76: 20.12 | CH76: 1 | CI76: A | CJ76: 01, 04, | CK76: Peanut Belt RPO, , | CL76: Northampton, Halifax, , | CM76: 1.71481062 | CN76: 1.71481062 | CO76: Arterial | CP76: Arterial | CQ76: 1 | CR76: 2 | CS76: Undivided | CT76: Divided | CU76: 43 | CV76: 45 | CW76: 7.548796021 | CX76: 92.45120398 | CY76: 11025.87058 | CZ76: 15800.17362 | DA76: 0.6978322419 | DB76: 10193.5501 | DC76: 832.3204796 | DD76: 1032268.998 | DE76: 84286.49673 | DF76: 1116555.494 | DG76: 25337128 | DH76: 16.88552645 | DI76: 55.40314279 | DJ76: 0 | DO76: No | DP76: No | DQ76: 12 | DR76: 12 | DS76: No | DT76: 0 | DU76: 4 | DV76: 2 Lane Undivided | DW76: 4C - 4 Lane Divided (23' Raised Median) with Curb & Gutter, Wide Outside Lanes, and Sidewalks | DX76: None | DY76: Partial | DZ76: 1 | EA76: No | EB76: 24 | EC76: 29754000 | ED76: 1101000 | EE76: 132000 | EF76: 30987000 | EH76: 30987000 | EI76: 30987000
A77: H141724 | B77: Bertie | C77: Peanut Belt RPO | D77: Highway | E77: Statewide Mobility | G77: US-17 , US-13 | H77: US 64 at Williamston | I77: US 13 North at Windsor | J77: Upgrade roadway to Interstate | K77: 2 - Upgrade Arterial to Freeway/Expressway | L77: 296415000 | M77: 13.9631772 | O77: 18.19 | Q77: 14.61 | S77: =Q77+#REF!+R77 ->  | U77: =IF(AT77<30,0,IF(AT77<50,5,IF(AT77<65,10,IF(AT77>66,15)))) -> 10 | V77: =IF(W77<499,15,IF(W77<999,10,IF(W77<1499,5,IF(W77>1500,0)))) -> 0 | W77: 1821.199535 | X77: =IF(DC77<500,0,IF(DC77<1000,5,IF(DC77>1000,10))) -> 10 | Y77: =IF(Z77="Yes",20,0) -> 20 | Z77: Yes | AA77: =IF(AB77="Yes",20,0) -> 20 | AB77: Yes | AC77: =IF(AD77="Yes",10,0) -> 10 | AD77: Yes | AE77: 10 | AF77: =IF(BL75<999,20,IF(BL75<1499,15,IF(BL75<1999,10,IF(BL75<3999,5,IF(BL75>4000,0))))) -> 20 | AG77: 15 | AH77: 10 | AI77: Yes | AJ77: 15 | AK77: Minimal | AL77: 10 | AM77: Yes | AN77: 0 | AO77: No | AP77: 0 | AQ77: No | AR77: 13.83216704 | AS77: 0.3940360306 | AT77: 56.90349398 | AU77: 10.7706272 | AV77: 18.50841444 | AW77: 35.75543081 | AX77: 0 | AY77: 75 | BC77: Peanut Belt RPO | BD77: 89.61 | BE77: Mid-East RPO | BF77: 10.39 | BI77: 01 | BJ77: 100 | BO77: =SUM(U77+V77+X77+Y77+AA77+AC77) -> 70 | BP77: 80 | BS77: 0 | BU77: =Q77+BT77*0.25 -> 14.61 | BV77: Delay Prioritization pending outcome of Future Interstate Designation; Exceeds cap of $15 million for Statewide & Regional Projects cascading to Division Needs | BW77: =O77+BS77*0.25 -> 18.19 | BX77: =BW77+P77 -> 18.19 | BY77: Delay Division Local Input Scoring pending outcome of Future Interstate Designation | BZ77: Bertie | CA77: 89.61 | CB77: Martin | CC77: 10.39 | CH77: 1 | CI77: A | CJ77: 01, , | CK77: Peanut Belt RPO, Mid-East RPO, | CL77: Bertie, Martin, , | CM77: 14.46506022 | CN77: 14.46506022 | CO77: Multi-Lane Highway | CP77: Freeway | CQ77: 2 | CR77: 2 | CS77: Divided | CT77: Divided | CU77: 54.75029964 | CV77: 70 | CW77: 12.23363319 | CX77: 87.76636681 | CY77: 11251.81027 | CZ77: 72347.71957 | DA77: 0.1555240488 | DB77: 9875.305074 | DC77: 1376.505196 | DD77: 4433453.314 | DE77: 617972.9617 | DF77: 5051426.276 | DG77: 116798190 | DH77: 56.16796598 | DI77: 51.05968743 | DJ77: 63.49990129 | DM77: 79.84063395 | DN77: 0.0002903276549 | DO77: Yes | DP77: No | DQ77: 12 | DR77: 12 | DS77: No | DT77: 1 | DU77: 4 | DV77: 4 Lane with Median - Partial Control | DW77: 4A - 4 Lane Divided (46' Depressed Median) with Paved Shoulders | DX77: None | DY77: Full | DZ77: 1 | EA77: Yes | EB77: 21 | EC77: 226794000 | ED77: 62162000 | EE77: 7459000 | EF77: 296415000 | EH77: 296415000 | EI77: 296415000
A78: H090182 | B78: Martin | C78: Mid-East RPO | D78: Highway | E78: Regional Impact | F78: R-2700 | G78: NC-11 | H78: US 64 Relocation North of Bethel | I78: NC 903 | J78: Widen to Four Lanes with a Bypass of Oak City on New Location. | K78: 6 - Widen Existing Roadway and Construct Part on New Location | L78: 120488000 | O78: 7.506621432 | P78: 10 | Q78: 5.002954883 | S78: =Q78+#REF!+R78 ->  | U78: =IF(AT78<30,0,IF(AT78<50,5,IF(AT78<65,10,IF(AT78>66,15)))) -> 5 | V78: =IF(W78<499,15,IF(W78<999,10,IF(W78<1499,5,IF(W78>1500,0)))) -> 0 | W78: 2117.091748 | X78: =IF(DC78<500,0,IF(DC78<1000,5,IF(DC78>1000,10))) -> 5 | Y78: =IF(Z78="Yes",20,0) -> 20 | Z78: Yes | AA78: =IF(AB78="Yes",20,0) -> 20 | AB78: Yes | AC78: =IF(AD78="Yes",10,0) -> 10 | AD78: Yes | AE78: 5 | AF78: =IF(W78<999,20,IF(W78<1499,15,IF(W78<1999,10,IF(W78<3999,5,IF(W78>4000,0))))) -> 5 | AG78: 15 | AH78: 10 | AI78: Yes | AJ78: 15 | AK78: Minimal | AL78: 10 | AM78: Yes | AN78: 0 | AO78: No | AP78: 0 | AQ78: No | AR78: 16.49867048 | AS78: 0.04378212768 | AT78: 33.48709623 | AU78: 3.434686197 | AV78: N/A | AW78: 23.60292614 | AX78: 0 | AY78: 0 | BC78: Mid-East RPO | BD78: 86.92 | BE78: Upper Coastal Plain RPO | BF78: 13.08 | BI78: 01 | BJ78: 86.92 | BK78: 04 | BL78: 13.08 | BO78: =SUM(U78+V78+X78+Y78+AA78+AC78) -> 60 | BP78: 60 | BS78: 0 | BU78: =Q78+BT78*0.25 -> 5.002954883 | BV78: Exceeds cap of $15 million for Statewide & Regional Projects cascading to Division Needs | BW78: =O78+BS78*0.25 -> 7.506621432 | BX78: =BW78+P78 -> 17.50662143 | BY78: Under Threshold of SPOT Score of "10" | BZ78: Martin | CA78: 86.92 | CB78: Edgecombe | CC78: 13.08 | CH78: 1 | CI78: A | CJ78: 01, 04, | CK78: Mid-East RPO, Upper Coastal Plain RPO, | CL78: Martin, Edgecombe, , | CM78: 14.7 | CN78: 14.71491789 | CO78: Two Lane Highway | CP78: Multi-Lane Highway | CQ78: 1 | CR78: 2 | CS78: Undivided | CT78: Divided | CU78: 54 | CV78: 55 | CW78: 17.76113795 | CX78: 82.23886205 | CY78: 3867.642047 | CZ78: 15520.63397 | DA78: 0.2491935609 | DB78: 3180.704808 | DC78: 686.9372394 | DD78: 183602.2597 | DE78: 39652.6044 | DF78: 223254.8641 | DG78: 5275221 | DH78: 43.67947517 | DI78: 30.0944172 | DJ78: 26.69744346 | DO78: No | DP78: No | DQ78: 12 | DR78: 12 | DS78: No | DT78: 3 | DU78: 0 | DV78: New Roadway | DW78: 4A - 4 Lane Divided (46' Depressed Median) with Paved Shoulders | DX78: None | DY78: Partial | DZ78: 1 | EA78: Yes | EB78: 26 | EC78: 113088000 | ED78: 6607000 | EE78: 793000 | EF78: 120488000 | EH78: 120488000 | EI78: 120488000
A79: A130009 | B79: Pasquotank | C79: Albemarle RPO | D79: Aviation | E79: Division Needs | G79: Elizabeth City Coast Guard Air Station/Regional | J79: Install MALS/MALSF/MALSR | L79: 900000 | Q79: 12.05 | R79: 13.5 | S79: =Q79+#REF!+R79 ->  | U79: N/A | W79: 3176.830878 | Z79: Yes | AA79: =IF(AB79="Yes",10,0) -> 0 | AC79: =IF(AD79="Yes",10,0) -> 0 | AE79: 0 | AF79: =IF(W79<999,20,IF(W79<1499,15,IF(W79<1999,10,IF(W79<3999,5,IF(W79>4000,0))))) -> 5 | AG79: 15 | AH79: 10 | AI79: Yes | AJ79: =IF(AK79="Minimal",15,0) -> 15 | AK79: Minimal | AL79: 10 | AM79: Yes | AN79: =IF(AO79="Yes",5,0) -> 5 | AO79: Yes | AP79: 0 | AQ79: No | BC79: Albemarle RPO | BP79: 60 | BZ79: Pasquotank | CN79: 0.86 | CY79: 164.71 | EF79: 1000000 | EH79: 450000
A80: A130010 | B80: Pasquotank | C80: Albemarle RPO | D80: Aviation | E80: Division Needs | G80: Elizabeth City Coast Guard Air Station/Regional | J80: Acquire Equipment Shelter | L80: 490500 | Q80: 7.11 | R80: 13.5 | S80: =Q80+#REF!+R80 ->  | U80: N/A | W80: 3462.745657 | Z80: Yes | AA80: =IF(AB80="Yes",10,0) -> 0 | AC80: =IF(AD80="Yes",10,0) -> 0 | AE80: 0 | AF80: =IF(W80<999,20,IF(W80<1499,15,IF(W80<1999,10,IF(W80<3999,5,IF(W80>4000,0))))) -> 5 | AG80: 15 | AH80: 10 | AI80: Yes | AJ80: =IF(AK80="Minimal",15,0) -> 15 | AK80: Minimal | AL80: 10 | AM80: Yes | AN80: =IF(AO80="Yes",5,0) -> 5 | AO80: Yes | AP80: 0 | AQ80: No | BC80: Albemarle RPO | BP80: 60 | BZ80: Pasquotank | CN80: 0.86 | CY80: 164.71 | EF80: 545000 | EH80: 490500
A81: H129070-B | B81: Dare | C81: Albemarle RPO | D81: Highway | E81: Statewide Mobility | F81: R-2545B | G81: US-64 | H81: West of Alligator River | I81: East of SR 1153 (Old Ferry Landing Road) | J81: Widen to Multi-Lanes and construct new multi-lane bridge | K81: 1 - Widen Existing Roadway | L81: 209520000 | M81: 8.794093885 | O81: 10.91 | P81: 6.3 | Q81: 8.11 | R81: 9 | S81: =Q81+#REF!+R81 ->  | U81: =IF(AT81<30,0,IF(AT81<50,5,IF(AT81<65,10,IF(AT81>66,15)))) -> 5 | V81: =IF(W81<499,15,IF(W81<999,10,IF(W81<1499,5,IF(W81>1500,0)))) -> 0 | W81: =(EH81/CY81)/CN81 -> 29096.89547 | X81: =IF(DC81<500,0,IF(DC81<1000,5,IF(DC81>1000,10))) -> 0 | Y81: =IF(Z81="Yes",20,0) -> 20 | Z81: Yes | AA81: =IF(AB81="Yes",20,0) -> 20 | AB81: Yes | AC81: =IF(AD81="Yes",20,0) -> 20 | AD81: Yes | AE81: =IF(AT81<30,0,IF(AT81<50,5,IF(AT81<65,10,IF(AT81<79,15,IF(AT81>80,20))))) -> 5 | AF81: =IF(W81<999,20,IF(W81<1499,15,IF(W81<1999,10,IF(W81<3999,5,IF(W81>4000,0))))) -> 0 | AG81: =IF(Z81="Yes",15,0) -> 15 | AH81: 10 | AI81: No | AJ81: =IF(AK81="Minimal",15,0) -> 15 | AK81: Minimal | AL81: 10 | AM81: Yes | AN81: =IF(AO81="Yes",10,0) -> 0 | AO81: No | AP81: 0 | AQ81: No | AR81: 14.27058573 | AS81: 0.001116399389 | AT81: 41.7942935 | AU81: 1.649092871 | AV81: 0.03335321963 | AW81: 16.91013409 | AX81: 25 | AY81: 0 | BC81: Albemarle RPO | BD81: 100 | BI81: 01 | BJ81: 100 | BO81: =SUM(U81+V81+X81+Y81+AA81+AC81) -> 65 | BP81: 55 | BS81: 0 | BU81: =Q81+BT81*0.25 -> 8.11 | BV81: Exceeds cap of $15 million for Statewide & Regional Projects cascading to Division Needs | BW81: =O81+BS81*0.25 -> 10.91 | BX81: =BW81+P81 -> 17.21 | BY81: All Phases of US 64 should be programmed together; not beneficial to do just one phase; | BZ81: Dare | CA81: 100 | CH81: 1 | CI81: A | CJ81: 01, , | CK81: Albemarle RPO, , | CL81: Dare, , , | CM81: 2.15507964 | CN81: 2.15507964 | CO81: Two Lane Highway | CP81: Multi-Lane Highway | CQ81: 1 | CR81: 2 | CS81: Undivided | CT81: Divided | CU81: 55 | CV81: 55 | CW81: 9.870964778 | CX81: 90.12903522 | CY81: 3341.300284 | CZ81: 15500 | DA81: 0.2155677603 | DB81: 3011.48171 | DC81: 329.8185742 | DD81: 9203.975776 | DE81: 1008.022781 | DF81: 10211.99856 | DG81: 233908 | DH81: 51.10855655 | DI81: 38.59963754 | DJ81: 35.68722595 | DM81: 0 | DN81: 6.670643926e-07 | DO81: No | DP81: No | DQ81: 12 | DR81: 12 | DS81: No | DT81: 0 | DU81: 0 | DV81: 2 Lane Undivided | DW81: 4A - 4 Lane Divided (46' Depressed Median) with Paved Shoulders | DX81: None | DY81: Partial | DZ81: 2 | EA81: Yes | EB81: 24 | EC81: 208200000 | ED81: 1220000 | EE81: 100000 | EF81: 209520000 | EH81: 209520000 | EI81: 209520000
A82: H129208 | B82: Northampton | C82: Peanut Belt RPO | D82: Highway | E82: Statewide Mobility | G82: I-95 | H82: Halifax/Northampton County Line | I82: Virginia State Line | J82: Widen Roadway to 6 Lanes. | K82: 1 - Widen Existing Roadway | L82: 301845000 | M82: 28.41615029 | O82: 16.18064221 | Q82: 10.78388143 | S82: =Q82+#REF!+R82 ->  | U82: 10 | V82: 5 | W82: 1106.394656 | X82: 10 | Y82: 20 | Z82: Yes | AA82: 20 | AB82: Yes | AC82: =IF(AD82="Yes",10,0) -> 10 | AD82: Yes | AE82: 10 | AF82: =IF(BL80<999,20,IF(BL80<1499,15,IF(BL80<1999,10,IF(BL80<3999,5,IF(BL80>4000,0))))) -> 20 | AG82: 15 | AH82: 0 | AI82: Yes | AJ82: 15 | AK82: Minimal | AL82: 10 | AM82: Yes | AN82: 0 | AO82: No | AP82: 0 | AQ82: No | AR82: 47.90087775 | AS82: 0.09640135831 | AT82: 59.84153519 | AU82: 38.25935209 | AV82: 3.809426184 | AW82: 40.36255669 | AX82: 0 | AY82: 0 | BC82: Peanut Belt RPO | BD82: 100 | BI82: 01 | BJ82: 100 | BM82: 04 | BO82: 75 | BP82: 70 | BS82: 0 | BU82: 10.78388143 | BV82: Exceeds cap of $15 million for Statewide & Regional Projects cascading to Division Needs | BW82: 16.18064221 | BX82: 16.18064221 | BY82: Project to costly for Regional Impact | BZ82: Northampton | CA82: 100 | CD82: Halifax | CH82: 1 | CI82: A | CJ82: 01, , 04 | CK82: Peanut Belt RPO, , | CL82: Northampton, , Halifax, | CM82: 7.50273324 | CN82: 7.50273324 | CO82: Freeway | CP82: Freeway | CQ82: 2 | CR82: 3 | CS82: Divided | CT82: Divided | CU82: 70 | CV82: 70 | CW82: 21.04326845 | CX82: 78.95673155 | CY82: 36362.55669 | CZ82: 65408.40871 | DA82: 0.5559309179 | DB82: 28710.68627 | DC82: 7651.870419 | DD82: 960106.993 | DE82: 255884.3153 | DF82: 1215991.308 | DG82: 29098268 | DH82: 57.64005343 | DI82: 53.20047093 | DJ82: 68.70203548 | DM82: 19 | DN82: 5.718852368e-05 | DO82: No | DP82: No | DQ82: 12 | DR82: 12 | DS82: No | DT82: 11 | DU82: 10 | DV82: 4 Lane with Median - Full Control | DW82: 6A - 6 Lane Divided (46' Depressed Median) with Paved Shoulders | DX82: Full | DY82: Full | DZ82: 1 | EA82: No | EB82: 22 | EC82: 300960000 | ED82: 790000 | EE82: 95000 | EF82: 301845000 | EH82: 301845000 | EI82: 301845000
A83: H090399 | B83: Chowan | C83: Albemarle RPO | D83: Highway | E83: Regional Impact | F83: U-3419 | G83: NC-94 Soundside Road | H83: NC 32 | I83: US 17 Bypass | J83: NC 32 to US 17 Bypass. Two Lanes on New Location. | K83: 5 - Construct Roadway on New Location | L83: 24738000 | O83: 12.13 | P83: 3.6 | Q83: 9.75 | R83: 5.25 | S83: =Q83+#REF!+R83 ->  | U83: 0 | V83: 0 | W83: 1818.184499 | X83: 0 | Y83: 20 | Z83: Yes | AA83: 20 | AB83: Yes | AC83: =IF(AD83="Yes",20,0) -> 0 | AD83: no | AE83: 0 | AF83: =IF(W83<999,20,IF(W83<1499,15,IF(W83<1999,10,IF(W83<3999,5,IF(W83>4000,0))))) -> 10 | AG83: 15 | AH83: 10 | AI83: No | AJ83: =IF(AK83="Minimal",15,0) -> 15 | AK83: Minimal | AL83: 10 | AM83: Yes | AN83: 0 | AO83: No | AP83: 0 | AQ83: No | AR83: 20.80206923 | AS83: 0 | AT83: 26.71307441 | AU83: 1.056200318 | AV83: N/A | AW83: 24.90687022 | AX83: 0 | AY83: 50 | BC83: Albemarle RPO | BD83: 100 | BI83: 01 | BJ83: 100 | BO83: 40 | BP83: 60 | BS83: 0 | BU83: 9.75 | BV83: Exceeds cap of $15 million for Statewide & Regional Projects cascading to Division Needs | BW83: 12.13 | BX83: 15.73 | BY83: Minimal Local Support; Not competitve | BZ83: Chowan | CA83: 100 | CH83: 1 | CI83: A | CJ83: 01, , | CK83: Albemarle RPO, , | CL83: Chowan, , , | CM83: 3.7 | CN83: 2.77282246 | CO83: Two Lane Highway | CP83: Arterial | CQ83: 1 | CR83: 1 | CS83: Undivided | CT83: Undivided | CU83: 46 | CV83: 45 | CW83: 4.304985753 | CX83: 95.69501425 | CY83: 4906.870215 | CZ83: 15627.53831 | DA83: 0.3139886857 | DB83: 4695.630151 | DC83: 211.2400637 | DD83: 0 | DE83: 0 | DF83: 0 | DG83: 0 | DH83: 29.14122888 | DI83: 21.86478019 | DJ83: 29.14122888 | DO83: No | DP83: No | DQ83: 12 | DR83: 12 | DS83: No | DT83: 0 | DU83: 2 | DV83: New Roadway | DW83: 2B - 2 Lane Undivided with Paved Shoulders, 25-45 mph | DX83: None | DY83: None | DZ83: 1 | EA83: No | EB83: 30 | EC83: 24510000 | ED83: 204000 | EE83: 24000 | EF83: 24738000 | EH83: 24738000 | EI83: 24738000
A84: H090286 | B84: Perquimans | C84: Albemarle RPO | D84: Highway | E84: Statewide Mobility | F84: R-4459 | G84: US-17 | H84: SR 1336 (Harvey Point Road) and SR 1338 (Wayne Fork Road) | J84: Convert at-Grade intersection to An interchange | K84: 7 - Upgrade At-grade Intersection to Interchange or Grade Separation | L84: 17124000 | M84: 11.32662191 | O84: 10.49 | P84: 4.95 | Q84: 7.79 | R84: 7.5 | S84: =Q84+#REF!+R84 ->  | U84: 5 | V84: 15 | W84: 485.1575714 | X84: 10 | Y84: 20 | Z84: Yes | AA84: 20 | AB84: Yes | AC84: =IF(AD84="Yes",20,0) -> 0 | AD84: no | AE84: 5 | AF84: =IF(W84<999,20,IF(W84<1499,15,IF(W84<1999,10,IF(W84<3999,5,IF(W84>4000,0))))) -> 20 | AG84: 15 | AH84: =IF(AI84="Yes",10,0) -> 0 | AI84: No | AJ84: =IF(AK84="Minimal",15,0) -> 15 | AK84: Minimal | AL84: 10 | AM84: Yes | AN84: 0 | AO84: No | AP84: 0 | AQ84: No | AR84: 18.63761334 | AS84: 0.9876909017 | AT84: 33.3 | AU84: 9.129328284 | AV84: 2.831649752 | AW84: 58.66099904 | AX84: 0 | AY84: 25 | BC84: Albemarle RPO | BD84: 100 | BI84: 01 | BJ84: 100 | BO84: 70 | BP84: 65 | BS84: 0 | BU84: 7.79 | BV84: Exceeds cap of $15 million for Statewide & Regional Projects cascading to Division Needs | BW84: 10.49 | BX84: 15.44 | BY84: Delay Division Local Input Scoring pending outcome of Future Interstate Designation; Need to coordinate this project with SPOT ID#H090285 & TIP#R-4458 | BZ84: Perquimans | CA84: 100 | CH84: 1 | CI84: A | CJ84: 01, , | CK84: Albemarle RPO, , | CL84: Perquimans, , , | CM84: 2 | CN84: 2 | CO84: Multi-Lane Highway | CP84: Freeway | CQ84: 2 | CR84: 2 | CS84: Divided | CT84: Divided | CU84: 55 | CV84: 55 | CW84: 10.34609376 | CX84: 89.65390624 | CY84: 17647.87464 | CZ84: 91451.89942 | DA84: 0.1929743915 | DB84: 15822.00898 | DC84: 1825.865657 | DD84: 660749.289 | DE84: 76250.71101 | DF84: 737000 | DG84: 16913219 | DK84: 33.3 | DL84: 33.3 | DM84: 12 | DN84: 4.463299505e-05 | DO84: No | DP84: No | DQ84: 12 | DR84: 12 | DS84: No | DT84: 3 | DU84: 4 | DV84: 2 Lane Undivided | DX84: Limited | DY84: Full | DZ84: 2 | EA84: Yes | EB84: 25.8 | EC84: 14934000 | ED84: 2190000 | EE84: 0 | EF84: 17124000 | EH84: 17124000 | EI84: 17124000
A85: H090055 | B85: Bertie | C85: Peanut Belt RPO | D85: Highway | E85: Statewide Mobility | F85: R-2205 | G85: US-13 | H85: NC 42 at Powellsville. in Bertie County | I85: US 13 Bypass North of Ahoskie in Hertford County | J85: Construct Multi-Lanes with Bypass of Ahoskie on New Location. | K85: 1 - Widen Existing Roadway | L85: 49575000 | M85: 16.45159597 | O85: 15.16 | Q85: 10.94 | S85: =Q85+#REF!+R85 ->  | U85: 10 | V85: 0 | W85: 4708.377499 | X85: 0 | Y85: 20 | Z85: Yes | AA85: 20 | AB85: Yes | AC85: =IF(AD85="Yes",10,0) -> 10 | AD85: Yes | AE85: 10 | AF85: =IF(BL83<999,20,IF(BL83<1499,15,IF(BL83<1999,10,IF(BL83<3999,5,IF(BL83>4000,0))))) -> 0 | AG85: 15 | AH85: =IF(AI85="Yes",10,0) -> 10 | AI85: Yes | AJ85: 15 | AK85: Minimal | AL85: 10 | AM85: Yes | AN85: 0 | AO85: No | AP85: 0 | AQ85: No | AR85: 27.53327811 | AS85: 0.02989666162 | AT85: 56.82012627 | AU85: 12.36075507 | AV85: 0.2847990317 | AW85: 27.33984036 | AX85: 25 | AY85: 0 | BC85: Peanut Belt RPO | BD85: 100 | BI85: 01 | BJ85: 100 | BO85: 60 | BP85: 60 | BS85: 0 | BU85: 10.94 | BV85: Exceeds cap of $15 million for Statewide & Regional Projects cascading to Division Needs | BW85: 15.16 | BX85: 15.16 | BY85: R-2205 & R-2506 beneficial to program together; Portion of R-2205 is incorporated in R-5311B, which Division Local Points are assigned. | BZ85: Bertie | CA85: 51.94 | CB85: Hertford | CC85: 48.06 | CH85: 1 | CI85: A | CJ85: 01, , | CK85: Peanut Belt RPO, , | CL85: Bertie, Hertford, , | CM85: 1.63327689 | CN85: 1.63327689 | CO85: Two Lane Highway | CP85: Multi-Lane Highway | CQ85: 1 | CR85: 2 | CS85: Undivided | CT85: Divided | CU85: 50 | CV85: 50 | CW85: 6.089992656 | CX85: 93.91000734 | CY85: 6446.613454 | CZ85: 15500 | DA85: 0.4159105454 | DB85: 6054.015168 | DC85: 392.5982859 | DD85: 61700.39033 | DE85: 4001.223454 | DF85: 65701.61378 | DG85: 1482127 | DH85: 71.63213918 | DI85: 31.62865496 | DJ85: 67.21663242 | DM85: 1 | DN85: 4.695980633e-06 | DO85: Yes | DP85: No | DQ85: 11 | DR85: 12 | DS85: No | DT85: 3 | DU85: 2 | DV85: 2 Lane Undivided | DW85: 4A - 4 Lane Divided (46' Depressed Median) with Paved Shoulders | DX85: None | DY85: Limited | DZ85: 1 | EA85: Yes | EB85: 24 | EC85: 46000000 | ED85: 3575000 | EE85: 0 | EF85: 49575000 | EH85: 49575000 | EI85: 49575000
A86: H141931 | B86: Camden | C86: Albemarle RPO | D86: Highway | E86: Statewide Mobility | G86: US-17 | H86: US 17/158 north of Elizabeth City (North Road Street) | I86: Virginia State LIne | J86: Upgrade roadway to Interstate | K86: 2 - Upgrade Arterial to Freeway/Expressway | L86: 66692000 | M86: 11.44481756 | O86: 9.1 | P86: 4.95 | Q86: 6.84 | R86: 7.5 | S86: =Q86+#REF!+R86 ->  | U86: 0 | V86: 15 | W86: 380.9465735 | X86: 10 | Y86: 20 | Z86: Yes | AA86: 20 | AB86: Yes | AC86: =IF(AD86="Yes",20,0) -> 20 | AD86: Yes | AE86: 0 | AF86: =IF(W86<999,20,IF(W86<1499,15,IF(W86<1999,10,IF(W86<3999,5,IF(W86>4000,0))))) -> 20 | AG86: 15 | AH86: =IF(AI86="Yes",10,0) -> 0 | AI86: No | AJ86: =IF(AK86="Minimal",15,0) -> 15 | AK86: Minimal | AL86: 10 | AM86: Yes | AN86: 0 | AO86: No | AP86: 0 | AQ86: No | AR86: 16.05865444 | AS86: 1.824639312 | AT86: 25.53604913 | AU86: 6.398055144 | AV86: 22.46613496 | AW86: 64.34057064 | AX86: 0 | AY86: 25 | BC86: Albemarle RPO | BD86: 100 | BI86: 01 | BJ86: 100 | BO86: 85 | BP86: 60 | BS86: 0 | BU86: 6.84 | BV86: Delay Prioritization pending outcome of Future Interstate Designation; Exceeds cap of $15 million for Statewide & Regional Projects cascading to Division Needs | BW86: 9.1 | BX86: 14.05 | BY86: Delay Division Local Input Scoring pending outcome of Future Interstate Designation/Under Threshold of SPOT Score of "10" | BZ86: Camden | CA86: 73.67 | CB86: Pasquotank | CC86: 26.33 | CH86: 1 | CI86: A | CJ86: 01, , | CK86: Albemarle RPO, , | CL86: Camden, Pasquotank, , | CM86: 13.01933756 | CN86: 13.01933756 | CO86: Multi-Lane Highway | CP86: Freeway | CQ86: 2 | CR86: 2 | CS86: Divided | CT86: Divided | CU86: 55 | CV86: 70 | CW86: 9.516060446 | CX86: 90.48393955 | CY86: 13446.85688 | CZ86: 75544.76446 | DA86: 0.1779985281 | DB86: 12167.24585 | DC86: 1279.611029 | DD86: 4814002.407 | DE86: 506281.4254 | DF86: 5320283.832 | DG86: 121688845 | DH86: 16.54598577 | DI86: 37.38404383 | DJ86: 22.68577938 | DM86: 86.35841473 | DN86: 0.0003629642845 | DO86: No | DP86: No | DQ86: 12 | DR86: 12 | DS86: No | DT86: 3 | DU86: 4 | DV86: 4 Lane with Median - Limited Control | DW86: 4A - 4 Lane Divided (46' Depressed Median) with Paved Shoulders | DX86: Limited | DY86: Limited | DZ86: 1 | EA86: Yes | EB86: 32 | EC86: 54160000 | ED86: 11189000 | EE86: 1343000 | EF86: 66692000 | EH86: 66692000 | EI86: 66692000
A87: H090124-B | B87: Dare | C87: Peanut Belt RPO | D87: Highway | E87: Statewide Mobility | F87: R-2544B | G87: US-64 | H87: West of SR 1102 (East Lake Road) | I87: East of Dare County Landfill | J87: Widen to Multi-Lanes. | K87: 1 - Widen Existing Roadway | L87: 26450000 | M87: 7.776296453 | O87: 7.435427953 | P87: 6.3 | Q87: 4.956951969 | R87: 9 | S87: =Q87+#REF!+R87 ->  | U87: 5 | V87: 5 | W87: 1021.276956 | X87: 0 | Y87: 20 | Z87: Yes | AA87: 20 | AB87: Yes | AC87: =IF(AD87="Yes",20,0) -> 20 | AD87: Yes | AE87: 5 | AF87: 15 | AG87: 15 | AH87: =IF(AI87="Yes",10,0) -> 0 | AI87: No | AJ87: 15 | AK87: Minimal | AL87: 10 | AM87: Yes | AN87: 0 | AO87: No | AP87: =IF(AQ87="Yes",10,0) -> 0 | AQ87: No | AR87: 12.64632607 | AS87: 0 | AT87: 36.92319362 | AU87: 1.450396356 | AV87: 0 | AW87: 15.89599389 | AX87: 0 | AY87: 0 | BC87: Albemarle RPO | BD87: 100 | BI87: 01 | BJ87: 100 | BO87: 70 | BP87: 60 | BS87: 0 | BU87: 4.956951969 | BV87: Exceeds cap of $15 million for Statewide & Regional Projects cascading to Division Needs | BW87: 7.435427953 | BX87: 13.73542795 | BY87: All Phases of US 64 should be programmed together; not beneficial to do just one phase; Under Threshold of SPOT Score of "10" | BZ87: Dare | CA87: 100 | CH87: 1 | CI87: A | CJ87: 01, , | CK87: Albemarle RPO, , | CL87: Dare, , , | CM87: 8.7466968 | CN87: 8.7466968 | CO87: Two Lane Highway | CP87: Multi-Lane Highway | CQ87: 1 | CR87: 2 | CS87: Undivided | CT87: Divided | CU87: 55 | CV87: 55 | CW87: 9.79667327 | CX87: 90.20332673 | CY87: 2960.99771 | CZ87: 15499.99951 | DA87: 0.1910321164 | DB87: 2670.918439 | DC87: 290.0792712 | DD87: 0 | DE87: 0 | DF87: 0 | DG87: 0 | DH87: 44.27067174 | DI87: 26.61731527 | DJ87: 39.89267192 | DM87: 0 | DN87: 0 | DO87: No | DP87: No | DQ87: 12 | DR87: 12 | DS87: No | DT87: 0 | DU87: 0 | DV87: 2 Lane Undivided | DW87: 4A - 4 Lane Divided (46' Depressed Median) with Paved Shoulders | DX87: None | DY87: Partial | DZ87: 2 | EA87: Yes | EB87: 24 | EC87: 23300000 | ED87: 2100000 | EE87: 1050000 | EF87: 26450000 | EH87: 26450000 | EI87: 26450000
A88: H090146 | B88: Pasquotank | C88: Albemarle RPO | D88: Highway | E88: Statewide Mobility | F88: R-2579 | G88: US-158 | H88: NC 32 in Sunbury in Gates County | I88: US 17 at Morgan's County in Pasquotank County | J88: Widen to Multi-Lanes. | K88: 1 - Widen Existing Roadway | L88: 116900000 | M88: 10.16918507 | O88: 9.845751064 | P88: 3.6 | Q88: 6.563292824 | R88: 5.25 | S88: =Q88+#REF!+R88 ->  | U88: 5 | V88: 0 | W88: 1998.963651 | X88: 0 | Y88: 20 | Z88: Yes | AA88: 20 | AB88: Yes | AC88: =IF(AD88="Yes",20,0) -> 20 | AD88: Yes | AE88: 5 | AF88: 10 | AG88: 15 | AH88: 10 | AI88: No | AJ88: 15 | AK88: Minimal | AL88: 10 | AM88: Yes | AN88: 0 | AO88: No | AP88: 0 | AQ88: No | AR88: 16.03748703 | AS88: 0.01623656116 | AT88: 49.57920465 | AU88: 1.814722566 | AV88: 0.3220301766 | AW88: 44.01887997 | AX88: 0 | AY88: 0 | BC88: Albemarle RPO | BD88: 100 | BI88: 01 | BJ88: 100 | BO88: 65 | BP88: 65 | BS88: 0 | BU88: 6.563292824 | BV88: Exceeds cap of $15 million for Statewide & Regional Projects cascading to Division Needs | BW88: 9.845751064 | BX88: 13.44575106 | BY88: Under Threshold of SPOT Score of "10" | BZ88: Pasquotank | CA88: 50.79 | CB88: Gates | CC88: 49.21 | CH88: 1 | CI88: A | CJ88: 01, , | CK88: Albemarle RPO, , | CL88: Pasquotank, Gates, , | CM88: 15.56536012 | CN88: 15.56536012 | CO88: Two Lane Highway | CP88: Multi-Lane Highway | CQ88: 1 | CR88: 2 | CS88: Undivided | CT88: Divided | CU88: 55 | CV88: 55 | CW88: 9.660281772 | CX88: 90.33971823 | CY88: 3757.079988 | CZ88: 15509.47021 | DA88: 0.2422442506 | DB88: 3394.135475 | DC88: 362.9445132 | DD88: 74923.87991 | DE88: 8011.822547 | DF88: 82935.70245 | DG88: 1898054 | DH88: 55.62165342 | DI88: 44.95899577 | DJ88: 48.17184001 | DM88: 1 | DN88: 5.440603532e-06 | DO88: No | DP88: No | DQ88: 12 | DR88: 12 | DS88: No | DT88: 1 | DU88: 0 | DV88: 2 Lane Undivided | DW88: 4A - 4 Lane Divided (46' Depressed Median) with Paved Shoulders | DX88: None | DY88: Partial | DZ88: 2 | EA88: Yes | EB88: 37 | EC88: 91500000 | ED88: 20000000 | EE88: 5400000 | EF88: 116900000 | EH88: 116900000 | EI88: 116900000
A89: H112082 | B89: Dare | C89: Albemarle RPO | D89: Highway | E89: Division Needs | G89: SR-1208 W. Kitty Hawk Road | H89: SR 1210 (Bob Perry Road) | I89: Ivy Lane | J89: Modernize Roadway with Wide Shoulders For Bicyclists | K89: 16 - Modernize Roadway | L89: 2736000 | Q89: 9.57 | R89: 6.75 | S89: =Q89+#REF!+R89 ->  | U89: N/A | W89: 2827.949676 | Z89: Yes | AE89: 5 | AF89: 5 | AG89: 15 | AH89: 10 | AI89: No | AJ89: 15 | AK89: Minimal | AL89: 10 | AM89: Yes | AN89: 0 | AO89: No | AP89: 0 | AQ89: No | AR89: 3.819696203 | AS89: 0 | AT89: 41.86387485 | AU89: 0 | AV89: N/A | AW89: N/A | AX89: 50 | AY89: 0 | BC89: Albemarle RPO | BD89: 100 | BI89: 01 | BJ89: 100 | BP89: 60 | BT89: 100 | BU89: 34.57 | BZ89: Dare | CA89: 100 | CH89: 1 | CI89: A | CJ89: 01, , | CK89: Albemarle RPO, , | CL89: Dare, , , | CM89: 1.06317076 | CN89: 1.06317076 | CO89: Arterial | CP89: Arterial | CQ89: 1 | CR89: 1 | CS89: Undivided | CT89: Undivided | CU89: 35 | CV89: 35 | CW89: 0 | CX89: 100 | CY89: 910 | CZ89: 15800 | DA89: 0.05759493671 | DB89: 910 | DC89: 0 | DD89: 0 | DE89: 0 | DF89: 0 | DG89: 0 | DH89: 31.41282016 | DI89: 47.0956824 | DJ89: 47.0956824 | DO89: No | DP89: No | DQ89: 9 | DR89: 11 | DS89: No | DT89: 0 | DU89: 0 | DV89: 2 Lane Undivided | DX89: None | DY89: None | DZ89: 2 | EA89: No | EB89: 18 | EC89: 2736000 | ED89: 0 | EE89: 0 | EF89: 2736000 | EH89: 2736000 | EI89: 2736000
A90: H090145 | B90: Gates | C90: Albemarle RPO | D90: Highway | E90: Statewide Mobility | F90: R-2578 | G90: US-158 | H90: US 13 | I90: NC 32 in Sunbury | J90: Widen to Multi-Lanes. | K90: 1 - Widen Existing Roadway | L90: 110400000 | M90: 8.215454447 | O90: 8.187322071 | P90: 4.95 | Q90: 5.458214714 | R90: 7.5 | S90: =Q90+#REF!+R90 ->  | U90: =IF(AT90<30,0,IF(AT90<50,5,IF(AT90<65,10,IF(AT90>66,15)))) -> 5 | V90: =IF(W90<499,15,IF(W90<999,10,IF(W90<1499,5,IF(W90>1500,0)))) -> 0 | W90: 2636.408006 | X90: =IF(DC90<500,0,IF(DC90<1000,5,IF(DC90>1000,10))) -> 0 | Y90: =IF(Z90="Yes",20,0) -> 20 | Z90: Yes | AA90: =IF(AB90="Yes",20,0) -> 20 | AB90: Yes | AC90: =IF(AD90="Yes",20,0) -> 20 | AD90: Yes | AE90: 5 | AF90: 5 | AG90: 15 | AH90: 10 | AI90: No | AJ90: 15 | AK90: Minimal | AL90: 10 | AM90: Yes | AN90: 0 | AO90: No | AP90: 0 | AQ90: No | AR90: 11.95054564 | AS90: 0 | AT90: 42.6316015 | AU90: 1.835653025 | AV90: 0 | AW90: 48.39426551 | AX90: 0 | AY90: 0 | BC90: Albemarle RPO | BD90: 100 | BI90: 01 | BJ90: 100 | BO90: =SUM(U90+V90+X90+Y90+AA90+AC90) -> 65 | BP90: 60 | BS90: 0 | BU90: 5.458214714 | BV90: Exceeds cap of $15 million for Statewide & Regional Projects cascading to Division Needs | BW90: =O90+BS90*0.25 -> 8.187322071 | BX90: =BW90+P90 -> 13.13732207 | BY90: Under Threshold of SPOT Score of "10" | BZ90: Gates | CA90: 100 | CH90: 1 | CI90: A | CJ90: 01, , | CK90: Albemarle RPO, , | CL90: Gates, , , | CM90: 14.96563003 | CN90: 14.96563003 | CO90: Two Lane Highway | CP90: Multi-Lane Highway | CQ90: 1 | CR90: 2 | CS90: Undivided | CT90: Divided | CU90: 55 | CV90: 55 | CW90: 13.12076458 | CX90: 86.87923542 | CY90: 2798.088502 | CZ90: 15500.00013 | DA90: 0.1805218373 | DB90: 2430.957897 | DC90: 367.130605 | DD90: 0 | DE90: 0 | DF90: 0 | DG90: 0 | DH90: 42.38486731 | DI90: 36.44974531 | DJ90: 49.07298264 | DM90: 0 | DN90: 0 | DO90: No | DP90: No | DQ90: 12 | DR90: 12 | DS90: No | DT90: 0 | DU90: 0 | DV90: 2 Lane Undivided | DW90: 4A - 4 Lane Divided (46' Depressed Median) with Paved Shoulders | DX90: None | DY90: Partial | DZ90: 1 | EA90: Yes | EB90: 40 | EC90: 65000000 | ED90: 35500000 | EE90: 9900000 | EF90: 110400000 | EH90: 110400000 | EI90: 110400000
A91: H090124-A | B91: Dare | C91: Albemarle RPO | D91: Highway | E91: Statewide Mobility | F91: R-2544A | G91: US-64 | H91: East of SR 1153 (Old Ferry Landing Road) | I91: West of SR 1102 (East Lake Road) | J91: Widen to Multi-Lanes. | K91: 1 - Widen Existing Roadway | L91: 15800000 | M91: 6.906776828 | O91: 6.20942343 | P91: 6.3 | Q91: 4.13961562 | R91: 9 | S91: =Q91+#REF!+R91 ->  | U91: =IF(AT91<30,0,IF(AT91<50,5,IF(AT91<65,10,IF(AT91>66,15)))) -> 0 | V91: =IF(W91<499,15,IF(W91<999,10,IF(W91<1499,5,IF(W91>1500,0)))) -> 0 | W91: 2473.135775 | X91: =IF(DC91<500,0,IF(DC91<1000,5,IF(DC91>1000,10))) -> 0 | Y91: =IF(Z91="Yes",20,0) -> 20 | Z91: Yes | AA91: =IF(AB91="Yes",20,0) -> 20 | AB91: Yes | AC91: =IF(AD91="Yes",20,0) -> 20 | AD91: Yes | AE91: 0 | AF91: 5 | AG91: 15 | AH91: 10 | AI91: No | AJ91: 15 | AK91: Minimal | AL91: 10 | AM91: Yes | AN91: 0 | AO91: No | AP91: 0 | AQ91: No | AR91: 12.38580633 | AS91: 0 | AT91: 29.01034987 | AU91: 1.449999706 | AV91: 0 | AW91: 15.73333255 | AX91: 0 | AY91: 0 | BC91: Albemarle RPO | BD91: 100 | BI91: 01 | BJ91: 100 | BO91: =SUM(U91+V91+X91+Y91+AA91+AC91) -> 60 | BP91: 55 | BS91: 0 | BU91: 4.13961562 | BV91: Exceeds cap of $15 million for Statewide & Regional Projects cascading to Division Needs | BW91: =O91+BS91*0.25 -> 6.20942343 | BX91: =BW91+P91 -> 12.50942343 | BY91: All Phases of US 64 should be programmed together; not beneficial to do just one phase; Under Threshold of SPOT Score of "10" | BZ91: Dare | CA91: 100 | CH91: 1 | CI91: A | CJ91: 01, , | CK91: Albemarle RPO, , | CL91: Dare, , , | CM91: 2.20298314 | CN91: 2.20298314 | CO91: Two Lane Highway | CP91: Multi-Lane Highway | CQ91: 1 | CR91: 2 | CS91: Undivided | CT91: Divided | CU91: 55 | CV91: 55 | CW91: 9.999998985 | CX91: 90.00000102 | CY91: 2899.999706 | CZ91: 15499.99843 | DA91: 0.1870967742 | DB91: 2609.999765 | DC91: 289.9999412 | DD91: 0 | DE91: 0 | DF91: 0 | DG91: 0 | DH91: 46.14889249 | DI91: 0 | DJ91: 40.89086109 | DM91: 0 | DN91: 0 | DO91: No | DP91: No | DQ91: 12 | DR91: 12 | DS91: No | DT91: 0 | DU91: 0 | DV91: 2 Lane Undivided | DW91: 4A - 4 Lane Divided (46' Depressed Median) with Paved Shoulders | DX91: None | DY91: Partial | DZ91: 2 | EA91: Yes | EB91: 24 | EC91: 14700000 | ED91: 1030000 | EE91: 70000 | EF91: 15800000 | EH91: 15800000 | EI91: 15800000
A92: A130016 | B92: Dare | C92: Albemarle RPO | D92: Aviation | E92: Division Needs | G92: Dare County Regional | J92: Land Acquisition-Runway Approach | L92: 428000 | Q92: 38.05 | R92: 9.75 | S92: =Q92+#REF!+R92 ->  | U92: N/A | W92: 11239.25968 | Y92: =IF(Z92="Yes",15,0) -> 15 | Z92: Yes | AA92: =IF(AB92="Yes",10,0) -> 0 | AC92: =IF(AD92="Yes",10,0) -> 0 | AE92: 0 | AF92: 0 | AG92: 15 | AH92: =IF(AI92="Yes",10,0) -> 10 | AI92: Yes | AJ92: 15 | AK92: Minimal | AL92: 10 | AM92: Yes | AN92: =IF(AO92="Yes",5,0) -> 5 | AO92: Yes | AP92: 0 | AQ92: No | BC92: Albemarle RPO | BP92: 55 | BZ92: Dare | CN92: 0.82 | CY92: 46.44 | EF92: 475555 | EH92: 428000
A93: A130018 | B93: Dare | C93: Albemarle RPO | D93: Aviation | E93: Division Needs | G93: Dare County Regional | J93: Land Acquisition-Runway Approach | L93: 454815 | Q93: 38.05 | R93: 9.75 | S93: =Q93+#REF!+R93 ->  | U93: N/A | W93: 11943.42031 | Y93: =IF(Z93="Yes",15,0) -> 15 | Z93: Yes | AA93: =IF(AB93="Yes",10,0) -> 0 | AC93: =IF(AD93="Yes",10,0) -> 0 | AE93: 0 | AF93: 0 | AG93: 15 | AH93: 10 | AI93: Yes | AJ93: 15 | AK93: Minimal | AL93: 10 | AM93: Yes | AN93: =IF(AO93="Yes",5,0) -> 5 | AO93: Yes | AP93: 0 | AQ93: No | BC93: Albemarle RPO | BP93: 55 | BZ93: Dare | CN93: 0.82 | CY93: 46.44 | EF93: 505350 | EH93: 454815
A94: A130019 | B94: Dare | C94: Albemarle RPO | D94: Aviation | E94: Division Needs | G94: Dare County Regional | J94: Land Acquisition-Runway Approach | L94: 3325500 | Q94: 38.05 | R94: 9.75 | S94: =Q94+#REF!+R94 ->  | U94: N/A | W94: 87327.47211 | Y94: =IF(Z94="Yes",15,0) -> 15 | Z94: Yes | AA94: =IF(AB94="Yes",10,0) -> 0 | AC94: =IF(AD94="Yes",10,0) -> 0 | AE94: 0 | AF94: 0 | AG94: 15 | AH94: 10 | AI94: Yes | AJ94: 15 | AK94: Minimal | AL94: 10 | AM94: Yes | AN94: =IF(AO94="Yes",5,0) -> 5 | AO94: Yes | AP94: 0 | AQ94: No | BC94: Albemarle RPO | BP94: 55 | BZ94: Dare | CN94: 0.82 | CY94: 46.44 | EF94: 3695000 | EH94: 3325500
A95: A130028 | B95: Dare | C95: Albemarle RPO | D95: Aviation | E95: Division Needs | G95: Dare County Regional | J95: Land Acquisition-Obstruction Removal | L95: 1152000 | Q95: 36.85 | R95: 9.75 | S95: =Q95+#REF!+R95 ->  | U95: N/A | W95: 30251.46531 | Y95: =IF(Z95="Yes",15,0) -> 15 | Z95: Yes | AA95: =IF(AB95="Yes",10,0) -> 0 | AC95: =IF(AD95="Yes",10,0) -> 0 | AE95: 0 | AF95: 0 | AG95: 15 | AH95: 10 | AI95: Yes | AJ95: 15 | AK95: Minimal | AL95: 10 | AM95: Yes | AN95: =IF(AO95="Yes",5,0) -> 5 | AO95: Yes | AP95: 0 | AQ95: No | BC95: Albemarle RPO | BP95: 55 | BZ95: Dare | CN95: 0.82 | CY95: 46.44 | EF95: 1280000 | EH95: 1152000
A96: A130415 | B96: Hertford | C96: Peanut Belt RPO | D96: Aviation | E96: Division Needs | G96: Tri-County | J96: Land Acquisition-Runway Approach | L96: 450000 | Q96: 35.35 | S96: =Q96+#REF!+R96 ->  | U96: N/A | W96: 14750.95471 | Y96: =IF(Z96="Yes",15,0) -> 15 | Z96: Yes | AA96: =IF(AB96="Yes",10,0) -> 0 | AC96: =IF(AD96="Yes",10,0) -> 0 | AE96: 0 | AF96: 0 | AG96: 15 | AH96: 10 | AI96: Yes | AJ96: 15 | AK96: Minimal | AL96: =IF(AM96="Yes",10,0) -> 10 | AM96: Yes | AN96: =IF(AO96="Yes",5,0) -> 5 | AO96: Yes | AP96: 0 | AQ96: No | BC96: Peanut Belt RPO | BP96: 55 | BZ96: Hertford | CN96: 0.85 | CY96: 35.89 | EF96: 500000 | EH96: 450000
A97: B142220 | B97: Chowan | C97: Albemarle RPO | D97: Bike & Ped | E97: Division Needs | G97: North Broad Street | H97: Church Street | I97: Water Street | J97: North Broad Street Bike Path | K97: 2. Construct multi-use trail / greenway / sidepath or on-road bike lane on local roadway | L97: 400000 | Q97: 21.14525 | R97: 9.75 | S97: =Q97+#REF!+R97 ->  | U97: N/A | W97: 4205.391312 | Z97: Yes | AE97: 5 | AF97: 0 | AG97: 15 | AH97: 10 | AI97: Yes | AJ97: 15 | AK97: Minimal | AL97: 10 | AM97: Yes | AN97: =IF(AO97="Yes",10,0) -> 0 | AO97: No | AP97: 0 | AQ97: No | AT97: 32.5 | BC97: Albemarle RPO | BP97: =SUM(AE97+AF97+AG97+AH97+AJ97+AL97+AN97) -> 55 | BZ97: Chowan County | CN97: 0.28 | CY97: =3397*0.1 -> 339.7 | EC97: 380000 | ED97: 0 | EF97: 400000 | EG97: 0 | EH97: 400000
A98: B141529 | B98: Dare | C98: Albemarle RPO | D98: Bike & Ped | E98: Division Needs | G98: US 158 | H98: Atlantic | I98: Baum | J98: Construct Sidewalk | K98: 5. Construct Sidewalk | L98: 345000 | Q98: 21.05867391 | R98: 9.75 | S98: =Q98+#REF!+R98 ->  | U98: N/A | W98: 5058.855003 | Z98: Yes | AE98: 5 | AF98: 0 | AG98: 15 | AH98: 10 | AI98: Yes | AJ98: 15 | AK98: Minimal | AL98: 10 | AM98: Yes | AN98: =IF(AO98="Yes",10,0) -> 0 | AO98: No | AP98: 0 | AQ98: No | AT98: 45 | BC98: Albemarle RPO | BP98: =SUM(AE98+AF98+AG98+AH98+AJ98+AL98+AN98) -> 55 | BZ98: Dare County | CN98: 0.89 | CY98: =1512*0.1 -> 151.2 | EC98: 300000 | ED98: 0 | EF98: 345000 | EG98: 0 | EH98: 680760
A99: B141937 | B99: Currituck | C99: Albemarle RPO | D99: Bike & Ped | E99: Division Needs | G99: Currituck Multiuse | H99: Albacore St | I99: Driftwood Way | J99: Construct Mult-use Path | K99: 2. Construct multi-use trail / greenway / sidepath or on-road bike lane on local roadway | L99: 460000 | Q99: 16.10631929 | R99: 13.5 | S99: =Q99+#REF!+R99 ->  | U99: N/A | W99: 158402.2039 | Z99: Yes | AE99: 5 | AF99: 0 | AG99: 15 | AH99: 10 | AI99: Yes | AJ99: 15 | AK99: Minimal | AL99: 10 | AM99: Yes | AN99: =IF(AO99="Yes",10,0) -> 0 | AO99: No | AP99: 0 | AQ99: No | AT99: 45 | BC99: Albemarle RPO | BP99: =SUM(AE99+AF99+AG99+AH99+AJ99+AL99+AN99) -> 55 | BZ99: Currituck County | CN99: 0.66 | CY99: =44*0.1 -> 4.4 | EC99: 400000 | ED99: 0 | EF99: 460000 | EG99: 0 | EH99: 460000
A100: A130029 | B100: Dare | C100: Albemarle RPO | D100: Aviation | E100: Division Needs | G100: Dare County Regional | J100: Design | L100: 1620000 | Q100: 35.23 | R100: 9.75 | S100: =Q100+#REF!+R100 ->  | U100: N/A | W100: 42541.12309 | Y100: =IF(Z100="Yes",15,0) -> 15 | Z100: Yes | AA100: =IF(AB100="Yes",10,0) -> 0 | AC100: =IF(AD100="Yes",10,0) -> 0 | AE100: 0 | AF100: 0 | AG100: 15 | AH100: 10 | AI100: Yes | AJ100: 15 | AK100: Minimal | AL100: 10 | AM100: Yes | AN100: =IF(AO100="Yes",5,0) -> 5 | AO100: Yes | AP100: 0 | AQ100: No | BC100: Albemarle RPO | BP100: =SUM(AE100+AF100+AG100+AH100+AJ100+AL100+AN100+AP100) -> 55 | BZ100: Dare | CN100: 0.82 | CY100: 46.44 | EF100: 1800000 | EH100: 1620000
A101: A130006 | B101: Pasquotank | C101: Albemarle RPO | D101: Aviation | E101: Division Needs | G101: Elizabeth City Coast Guard Air Station/Regional | J101: Permitting/mitigation/preliminary | L101: 3659719 | Q101: 27.7 | R101: 13.5 | S101: =Q101+#REF!+R101 ->  | U101: N/A | W101: 25836.24072 | Z101: Yes | AA101: =IF(AB101="Yes",10,0) -> 0 | AC101: =IF(AD101="Yes",10,0) -> 0 | AE101: 0 | AF101: 0 | AG101: 15 | AH101: 10 | AI101: Yes | AJ101: 15 | AK101: Minimal | AL101: 10 | AM101: Yes | AN101: =IF(AO101="Yes",5,0) -> 5 | AO101: Yes | AP101: 0 | AQ101: No | BC101: Albemarle RPO | BP101: =SUM(AE101+AF101+AG101+AH101+AJ101+AL101+AN101+AP101) -> 55 | BT101: 100 | BU101: =Q101+BT101*0.25 -> 52.7 | BZ101: Pasquotank | CN101: 0.86 | CY101: 164.71 | EF101: 4066354 | EH101: 3659719
A102: A130042 | B102: Washington | C102: Albemarle RPO | D102: Aviation | E102: Division Needs | G102: Plymouth Municipal Airport | J102: Design | L102: 477000 | Q102: 26.37 | R102: 6 | S102: =Q102+#REF!+R102 ->  | U102: N/A | W102: 12610.77388 | Z102: Yes | AA102: =IF(AB102="Yes",10,0) -> 0 | AC102: =IF(AD102="Yes",10,0) -> 0 | AE102: 0 | AF102: 0 | AG102: 15 | AH102: 10 | AI102: Yes | AJ102: 15 | AK102: Minimal | AL102: 10 | AM102: Yes | AN102: =IF(AO102="Yes",5,0) -> 5 | AO102: Yes | AP102: 0 | AQ102: No | BC102: Albemarle RPO | BP102: =SUM(AE102+AF102+AG102+AH102+AJ102+AL102+AN102+AP102) -> 55 | BT102: 100 | BU102: =Q102+BT102*0.25 -> 51.37 | BZ102: Washington | CN102: 1.04 | CY102: 36.37 | EF102: 530000 | EH102: 477000
A103: B141941 | B103: Currituck | C103: Albemarle RPO | D103: Bike & Ped | E103: Division Needs | G103: Currituck Multi use | H103: Comrmonrant Ct. | I103: Harris Teeter | J103: Construct Multi use path | K103: 2. Construct multi-use trail / greenway / sidepath or on-road bike lane on local roadway | L103: 460000 | Q103: 14.62143147 | R103: 13.5 | S103: =Q103+#REF!+R103 ->  | U103: N/A | W103: 130718.9542 | Z103: Yes | AE103: 5 | AF103: 0 | AG103: 15 | AH103: 10 | AI103: Yes | AJ103: 15 | AK103: Minimal | AL103: 10 | AM103: Yes | AN103: =IF(AO103="Yes",10,0) -> 0 | AO103: No | AP103: 0 | AQ103: No | AT103: 35 | BC103: Albemarle RPO | BP103: =SUM(AE103+AF103+AG103+AH103+AJ103+AL103+AN103) -> 55 | BZ103: Currituck County | CN103: 0.69 | CY103: =51*0.1 -> 5.1 | EC103: 400000 | ED103: 0 | EF103: 460000 | EG103: 0 | EH103: 460000
A104: A130032 | B104: Currituck | C104: Albemarle RPO | D104: Aviation | E104: Division Needs | G104: Currituck County Regional | J104: Clearing/grading/Drainage/paving/marking/lighting/signage | L104: 2520000 | Q104: 26.33 | R104: 0 | S104: =Q104+#REF!+R104 ->  | U104: N/A | W104: 35378.55049 | Z104: Yes | AA104: =IF(AB104="Yes",10,0) -> 0 | AC104: =IF(AD104="Yes",10,0) -> 0 | AE104: 0 | AF104: 0 | AG104: 15 | AH104: 10 | AI104: Yes | AJ104: 15 | AK104: Minimal | AL104: 10 | AM104: Yes | AN104: =IF(AO104="Yes",5,0) -> 5 | AO104: Yes | AP104: 0 | AQ104: No | BC104: Albemarle RPO | BP104: =SUM(AE104+AF104+AG104+AH104+AJ104+AL104+AN104+AP104) -> 55 | BZ104: Currituck | CN104: 1.04 | CY104: 68.49 | EF104: 2800000 | EH104: 2520000
A105: B141958 | B105: Currituck | C105: Albemarle RPO | D105: Bike & Ped | E105: Division Needs | G105: Currituck Multi use | H105: Harris Teeter | I105: Sandbucket | J105: Construct Multi use trail | K105: 2. Construct multi-use trail / greenway / sidepath or on-road bike lane on local roadway | L105: 460000 | Q105: 14.37800224 | R105: 13.5 | S105: =Q105+#REF!+R105 ->  | U105: N/A | W105: 161857.8466 | Z105: Yes | AE105: 5 | AF105: 0 | AG105: 15 | AH105: 10 | AI105: Yes | AJ105: 15 | AK105: Minimal | AL105: 10 | AM105: Yes | AN105: =IF(AO105="Yes",10,0) -> 0 | AO105: No | AP105: 0 | AQ105: No | AT105: 35 | BC105: Albemarle RPO | BP105: =SUM(AE105+AF105+AG105+AH105+AJ105+AL105+AN105) -> 55 | BZ105: Currituck County | CN105: 0.58 | CY105: =49*0.1 -> 4.9 | EC105: 400000 | ED105: 0 | EF105: 460000 | EG105: 0 | EH105: 460000
A106: A130033 | B106: Currituck | C106: Albemarle RPO | D106: Aviation | E106: Division Needs | G106: Currituck County Regional | J106: Design | L106: 1746000 | Q106: 25 | R106: 13.5 | S106: =Q106+#REF!+R106 ->  | U106: N/A | W106: 24512.28141 | Z106: Yes | AA106: =IF(AB106="Yes",10,0) -> 0 | AC106: =IF(AD106="Yes",10,0) -> 0 | AE106: 0 | AF106: 0 | AG106: 15 | AH106: 10 | AI106: Yes | AJ106: 15 | AK106: Minimal | AL106: 10 | AM106: Yes | AN106: =IF(AO106="Yes",5,0) -> 5 | AO106: Yes | AP106: 0 | AQ106: No | BC106: Albemarle RPO | BP106: =SUM(AE106+AF106+AG106+AH106+AJ106+AL106+AN106+AP106) -> 55 | BZ106: Currituck | CN106: 1.04 | CY106: 68.49 | EF106: 1940000 | EH106: 1746000
A107: B141764 | B107: Dare | C107: Albemarle RPO | D107: Bike & Ped | E107: Division Needs | G107: Nags Head Multi Use Path | H107: Grouse Street | I107: Forbes Street | J107: Construct Multi use path | K107: 2. Construct multi-use trail / greenway / sidepath or on-road bike lane on local roadway | L107: 335000 | Q107: 13.57823591 | R107: 6.75 | S107: =Q107+#REF!+R107 ->  | U107: N/A | W107: 41823.81466 | Z107: Yes | AE107: 5 | AF107: 0 | AG107: 15 | AH107: 10 | AI107: Yes | AJ107: 15 | AK107: Minimal | AL107: 10 | AM107: Yes | AN107: =IF(AO107="Yes",10,0) -> 0 | AO107: No | AP107: 0 | AQ107: No | AT107: 35 | BC107: Albemarle RPO | BP107: =SUM(AE107+AF107+AG107+AH107+AJ107+AL107+AN107) -> 55 | BZ107: Dare County | CN107: 0.32 | CY107: =232*0.1 -> 23.2 | EC107: 290000 | ED107: 0 | EF107: 335000 | EG107: 0 | EH107: 310500
A108: B141531 | B108: Camden | C108: Albemarle RPO | D108: Bike & Ped | E108: Division Needs | G108: US 158 | H108: Atlantic | I108: Eighth | J108: Construct Sidewalk | K108: 5. Construct Sidewalk | L108: 410100 | Q108: 13.56022616 | R108: 9.75 | S108: =Q108+#REF!+R108 ->  | U108: N/A | W108: 5436.183236 | Z108: Yes | AE108: 5 | AF108: 0 | AG108: 15 | AH108: 10 | AI108: Yes | AJ108: 15 | AK108: Minimal | AL108: 10 | AM108: Yes | AN108: =IF(AO108="Yes",10,0) -> 0 | AO108: No | AP108: 0 | AQ108: No | AT108: 45 | BC108: Albemarle RPO | BP108: =SUM(AE108+AF108+AG108+AH108+AJ108+AL108+AN108) -> 55 | BZ108: Dare County | CN108: 0.68 | CY108: =1826*0.1 -> 182.6 | EC108: 355100 | ED108: 0 | EF108: 410100 | EG108: 0 | EH108: 675000
A109: B141346 | B109: Tyrrell | C109: Albemarle RPO | D109: Bike & Ped | E109: Division Needs | G109: US 64 | H109: Etheridge Road | I109: Ludington Drive | J109: Apply brick pavers or brick stamping on the north side of the Scuppernong River bridge, paint the existing guardrail and erect an entry sign to the existing pedestrian promenade leading to Veterans Park | K109: 7. Construct Streetscape Improvements | L109: 160000 | Q109: 12.59057158 | R109: 9.75 | S109: =Q109+#REF!+R109 ->  | U109: N/A | W109: 3803.504963 | Z109: Yes | AE109: 0 | AF109: 5 | AG109: 15 | AH109: 10 | AI109: Yes | AJ109: 15 | AK109: Minimal | AL109: 10 | AM109: Yes | AN109: =IF(AO109="Yes",10,0) -> 0 | AO109: No | AP109: 0 | AQ109: No | AT109: 12.5 | BC109: Albemarle RPO | BP109: =SUM(AE109+AF109+AG109+AH109+AJ109+AL109+AN109) -> 55 | BT109: 100 | BZ109: Tyrrell County | CN109: 0.32 | CY109: 403 | EC109: 155000 | ED109: 0 | EF109: 160000 | EG109: 0 | EH109: 490500
A110: A130030 | B110: Dare | C110: Albemarle RPO | D110: Aviation | E110: Division Needs | G110: Dare County Regional | J110: Runway Overlay | L110: 3060000 | Q110: 15.85 | R110: 9.75 | S110: =Q110+#REF!+R110 ->  | U110: N/A | W110: 80355.45472 | Z110: Yes | AA110: =IF(AB110="Yes",10,0) -> 0 | AC110: =IF(AD110="Yes",10,0) -> 0 | AE110: 0 | AF110: 0 | AG110: 15 | AH110: 10 | AI110: Yes | AJ110: 15 | AK110: Minimal | AL110: 10 | AM110: Yes | AN110: =IF(AO110="Yes",5,0) -> 5 | AO110: Yes | AP110: 0 | AQ110: No | BC110: Albemarle RPO | BP110: =SUM(AE110+AF110+AG110+AH110+AJ110+AL110+AN110+AP110) -> 55 | BZ110: Dare | CN110: 0.82 | CY110: 46.44 | EF110: 3400000 | EH110: 3060000
A111: A130031 | B111: Currituck | C111: Albemarle RPO | D111: Aviation | E111: Division Needs | G111: Currituck County Regional | J111: Land Acquisition-Runway Approach | L111: 19350000 | Q111: 15.64 | R111: 15 | S111: =Q111+#REF!+R111 ->  | U111: N/A | W111: 271656.727 | Z111: Yes | AA111: =IF(AB111="Yes",10,0) -> 0 | AC111: =IF(AD111="Yes",10,0) -> 0 | AE111: 0 | AF111: 0 | AG111: 15 | AH111: 10 | AI111: Yes | AJ111: 15 | AK111: Minimal | AL111: 10 | AM111: Yes | AN111: =IF(AO111="Yes",5,0) -> 5 | AO111: Yes | AP111: 0 | AQ111: No | BC111: Albemarle RPO | BP111: =SUM(AE111+AF111+AG111+AH111+AJ111+AL111+AN111+AP111) -> 55 | BZ111: Currituck | CN111: 1.04 | CY111: 68.49 | EF111: 21500000 | EH111: 19350000
A112: B141363 | B112: Dare | C112: Albemarle RPO | D112: Bike & Ped | E112: Division Needs | G112: US 158 | H112: Cypress Knee Lane | I112: Bennett Street | J112: Construct 6000' of sidewalk on west side of US 158 | K112: 5. Construct Sidewalk | L112: 282000 | Q112: 10.24410411 | R112: 9.75 | S112: =Q112+#REF!+R112 ->  | U112: N/A | W112: 9170.206311 | Z112: Yes | AE112: 5 | AF112: 0 | AG112: 15 | AH112: 10 | AI112: Yes | AJ112: 15 | AK112: Minimal | AL112: 10 | AM112: Yes | AN112: =IF(AO112="Yes",10,0) -> 0 | AO112: No | AP112: 0 | AQ112: No | AT112: 35 | BC112: Albemarle RPO | BP112: =SUM(AE112+AF112+AG112+AH112+AJ112+AL112+AN112) -> 55 | BZ112: Dare County | CN112: 2.06 | CY112: =960*0.1 -> 96 | EC112: 272000 | ED112: 0 | EF112: 282000 | EG112: 0 | EH112: 1813500
A113: A130046 | B113: Washington | C113: Albemarle RPO | D113: Aviation | E113: Division Needs | G113: Plymouth Municipal Airport | J113: Land Acquisition-Obstruction Removal | L113: 315000 | Q113: 14.65 | R113: 6 | S113: =Q113+#REF!+R113 ->  | U113: N/A | W113: =(EH113/CY113)/CN113 -> 9755.504325 | Z113: Yes | AA113: =IF(AB113="Yes",10,0) -> 0 | AC113: =IF(AD113="Yes",10,0) -> 0 | AE113: =IF(AT113<30,0,IF(AT113<50,5,IF(AT113<65,10,IF(AT113<79,15,IF(AT113>80,20))))) -> 0 | AF113: 0 | AG113: =IF(Z113="Yes",15,0) -> 15 | AH113: 10 | AI113: Yes | AJ113: 15 | AK113: Minimal | AL113: 10 | AM113: Yes | AN113: =IF(AO113="Yes",5,0) -> 5 | AO113: Yes | AP113: 0 | AQ113: No | BC113: Albemarle RPO | BP113: =SUM(AE113+AF113+AG113+AH113+AJ113+AL113+AN113+AP113) -> 55 | BZ113: Washington | CN113: 1.04 | CY113: 36.37 | EF113: 350000 | EH113: 369000
A114: A130416 | B114: Hertford | C114: Peanut Belt RPO | D114: Aviation | E114: Division Needs | G114: Tri-County | J114: Design | L114: 559913 | Q114: 14.48 | S114: =Q114+#REF!+R114 ->  | U114: N/A | W114: 18353.89179 | Z114: Yes | AA114: =IF(AB114="Yes",10,0) -> 0 | AC114: =IF(AD114="Yes",10,0) -> 0 | AE114: 0 | AF114: 0 | AG114: 15 | AH114: 10 | AI114: Yes | AJ114: 15 | AK114: Minimal | AL114: 10 | AM114: Yes | AN114: =IF(AO114="Yes",5,0) -> 5 | AO114: Yes | AP114: 0 | AQ114: No | BC114: Peanut Belt RPO | BP114: =SUM(AE114+AF114+AG114+AH114+AJ114+AL114+AN114+AP114) -> 55 | BZ114: Hertford | CN114: 0.85 | CY114: 35.89 | EF114: 622125 | EH114: 559913
A115: A130005 | B115: Hyde | C115: Albemarle RPO | D115: Aviation | E115: Division Needs | G115: Hyde County | J115: Design | L115: 328275 | Q115: 14.08 | R115: 6.75 | S115: =Q115+#REF!+R115 ->  | U115: N/A | W115: 33229.57789 | Z115: Yes | AA115: =IF(AB115="Yes",10,0) -> 0 | AC115: =IF(AD115="Yes",10,0) -> 0 | AE115: 0 | AF115: 0 | AG115: 15 | AH115: 10 | AI115: Yes | AJ115: 15 | AK115: Minimal | AL115: 10 | AM115: Yes | AN115: =IF(AO115="Yes",5,0) -> 5 | AO115: Yes | AP115: 0 | AQ115: No | BC115: Albemarle RPO | BP115: =SUM(AE115+AF115+AG115+AH115+AJ115+AL115+AN115+AP115) -> 55 | BZ115: Hyde | CN115: 0.89 | CY115: 11.1 | EF115: 364750 | EH115: 328275
A116: A130043 | B116: Washington | C116: Albemarle RPO | D116: Aviation | E116: Division Needs | G116: Plymouth Municipal Airport | J116: Design | L116: 666000 | Q116: 11.07 | R116: 6 | S116: =Q116+#REF!+R116 ->  | U116: N/A | W116: 17607.49561 | Z116: Yes | AA116: =IF(AB116="Yes",10,0) -> 0 | AC116: =IF(AD116="Yes",10,0) -> 0 | AE116: 0 | AF116: 0 | AG116: 15 | AH116: 10 | AI116: Yes | AJ116: 15 | AK116: Minimal | AL116: 10 | AM116: Yes | AN116: =IF(AO116="Yes",5,0) -> 5 | AO116: Yes | AP116: 0 | AQ116: No | BC116: Albemarle RPO | BP116: =SUM(AE116+AF116+AG116+AH116+AJ116+AL116+AN116+AP116) -> 55 | BZ116: Washington | CN116: 1.04 | CY116: 36.37 | EF116: 740000 | EH116: 666000
A117: A130035 | B117: Currituck | C117: Albemarle RPO | D117: Aviation | E117: Division Needs | G117: Currituck County Regional | J117: Install MALS/MALSF/MALSR | L117: 450000 | Q117: 10.42 | R117: 13.5 | S117: =Q117+#REF!+R117 ->  | U117: N/A | W117: 6317.598302 | Z117: Yes | AA117: =IF(AB117="Yes",10,0) -> 0 | AC117: =IF(AD117="Yes",10,0) -> 0 | AE117: 0 | AF117: 0 | AG117: 15 | AH117: 10 | AI117: Yes | AJ117: 15 | AK117: Minimal | AL117: 10 | AM117: Yes | AN117: =IF(AO117="Yes",5,0) -> 5 | AO117: Yes | AP117: 0 | AQ117: No | BC117: Albemarle RPO | BP117: =SUM(AE117+AF117+AG117+AH117+AJ117+AL117+AN117+AP117) -> 55 | BZ117: Currituck | CN117: 1.04 | CY117: 68.49 | EF117: 500000 | EH117: 450000
A118: B141353 | B118: Pasquotank | C118: Albemarle RPO | D118: Bike & Ped | E118: Division Needs | G118: River Road | H118: Weeksville Road - NC-344 | I118: Ehringhaus Street | J118: Construct multi-use path and pedestrian crosswalks to connect Middle School and subdivisions | K118: 2. Construct multi-use trail / greenway / sidepath or on-road bike lane on local roadway | L118: 420000 | Q118: 8.454245986 | R118: 8.25 | S118: =Q118+#REF!+R118 ->  | U118: N/A | W118: 2004.752005 | Z118: Yes | AE118: 0 | AF118: =IF(W118<999,20,IF(W118<1499,15,IF(W118<1999,10,IF(W118<3999,5,IF(W118>4000,0))))) -> 5 | AG118: 15 | AH118: 10 | AI118: Yes | AJ118: =IF(AK118="Minimal",15,0) -> 15 | AK118: Minimal | AL118: 10 | AM118: Yes | AN118: =IF(AO118="Yes",10,0) -> 0 | AO118: No | AP118: 0 | AQ118: No | AT118: 12.5 | BC118: Albemarle RPO | BP118: =SUM(AE118+AF118+AG118+AH118+AJ118+AL118+AN118) -> 55 | BZ118: Pasquotank County | CN118: 1.12 | CY118: 481 | EC118: 400000 | ED118: 300000 | EF118: 720000 | EG118: 0 | EH118: 1080000
A119: A130376 | B119: Martin | C119: Mid-East RPO | D119: Aviation | E119: Division Needs | G119: Martin County | J119: Land Acquisition | L119: 459000 | Q119: 10.2 | S119: =Q119+#REF!+R119 ->  | U119: N/A | W119: 39185.55513 | Z119: Yes | AA119: =IF(AB119="Yes",10,0) -> 0 | AC119: =IF(AD119="Yes",10,0) -> 0 | AE119: 0 | AF119: 0 | AG119: 15 | AH119: 10 | AI119: Yes | AJ119: 15 | AK119: Minimal | AL119: 10 | AM119: Yes | AN119: =IF(AO119="Yes",5,0) -> 5 | AO119: Yes | AP119: =IF(AQ119="Yes",10,0) -> 0 | AQ119: No | BC119: Mid-East RPO | BP119: =SUM(AE119+AF119+AG119+AH119+AJ119+AL119+AN119+AP119) -> 55 | BZ119: Martin | CN119: 0.95 | CY119: 12.33 | EF119: 510000 | EH119: 459000
A120: A130024 | B120: Dare | C120: Albemarle RPO | D120: Aviation | E120: Division Needs | G120: Dare County Regional | J120: Construct/expand or repair | L120: 499500 | Q120: 9.13 | R120: 9.75 | S120: =Q120+#REF!+R120 ->  | U120: N/A | W120: 13116.84628 | Z120: Yes | AA120: 0 | AC120: 0 | AE120: 0 | AF120: 0 | AG120: 15 | AH120: 10 | AI120: Yes | AJ120: 15 | AK120: Minimal | AL120: 10 | AM120: Yes | AN120: 5 | AO120: Yes | AP120: 0 | AQ120: No | BC120: Albemarle RPO | BP120: 55 | BZ120: Dare | CN120: 0.82 | CY120: 46.44 | EF120: 555000 | EH120: 499500
A121: A130015 | B121: Chowan | C121: Albemarle RPO | D121: Aviation | E121: Division Needs | G121: Northeastern Regional | J121: Reconstruct/Rehabilitate/Overlay | L121: 801000 | Q121: 9.06 | R121: 8.25 | S121: =Q121+#REF!+R121 ->  | U121: N/A | W121: 18316.77734 | Z121: Yes | AA121: 0 | AC121: 0 | AE121: 0 | AF121: 0 | AG121: 15 | AH121: 10 | AI121: Yes | AJ121: 15 | AK121: Minimal | AL121: 10 | AM121: Yes | AN121: 5 | AO121: Yes | AP121: 0 | AQ121: No | BC121: Albemarle RPO | BP121: 55 | BZ121: Chowan | CN121: 1.14 | CY121: 38.36 | EF121: 890000 | EH121: 801000
A122: A130020 | B122: Dare | C122: Albemarle RPO | D122: Aviation | E122: Division Needs | G122: Dare County Regional | J122: Design | L122: 810000 | Q122: 8.78 | R122: 9.75 | S122: =Q122+#REF!+R122 ->  | U122: N/A | W122: 21270.56154 | Z122: Yes | AA122: 0 | AC122: 0 | AE122: 0 | AF122: 0 | AG122: 15 | AH122: 10 | AI122: Yes | AJ122: 15 | AK122: Minimal | AL122: 10 | AM122: Yes | AN122: 5 | AO122: Yes | AP122: 0 | AQ122: No | BC122: Albemarle RPO | BP122: 55 | BZ122: Dare | CN122: 0.82 | CY122: 46.44 | EF122: 900000 | EH122: 810000
A123: A130021 | B123: Dare | C123: Albemarle RPO | D123: Aviation | E123: Division Needs | G123: Dare County Regional | J123: Clearing/grading/Drainage/paving/marking/lighting/signage | L123: 189000 | Q123: 8.74 | R123: 9.75 | S123: =Q123+#REF!+R123 ->  | U123: N/A | W123: 4963.131027 | Z123: Yes | AA123: 0 | AC123: 0 | AE123: 0 | AF123: 0 | AG123: 15 | AH123: 10 | AI123: Yes | AJ123: 15 | AK123: Minimal | AL123: 10 | AM123: Yes | AN123: 5 | AO123: Yes | AP123: 0 | AQ123: No | BC123: Albemarle RPO | BP123: 55 | BZ123: Dare | CN123: 0.82 | CY123: 46.44 | EF123: 210000 | EH123: 189000
A124: A130023 | B124: Dare | C124: Albemarle RPO | D124: Aviation | E124: Division Needs | G124: Dare County Regional | J124: Install Taxiway edge lighting | L124: 405000 | Q124: 8.2 | R124: 9.75 | S124: =Q124+#REF!+R124 ->  | U124: N/A | W124: 10635.28077 | Z124: Yes | AA124: 0 | AC124: 0 | AE124: 0 | AF124: 0 | AG124: 15 | AH124: =IF(AI124="Yes",10,0) -> 10 | AI124: Yes | AJ124: 15 | AK124: Minimal | AL124: 10 | AM124: Yes | AN124: 5 | AO124: Yes | AP124: 0 | AQ124: No | BC124: Albemarle RPO | BP124: 55 | BZ124: Dare | CN124: 0.82 | CY124: 46.44 | EF124: 450000 | EH124: 405000
A125: A130041 | B125: Currituck | C125: Albemarle RPO | D125: Aviation | E125: Division Needs | G125: Currituck County Regional | J125: Runway Overlay | L125: 3105000 | Q125: 8.17 | R125: 13.5 | S125: =Q125+#REF!+R125 ->  | U125: N/A | W125: 43591.42828 | Z125: Yes | AA125: 0 | AC125: 0 | AE125: 0 | AF125: 0 | AG125: 15 | AH125: 10 | AI125: Yes | AJ125: 15 | AK125: Minimal | AL125: 10 | AM125: Yes | AN125: 5 | AO125: Yes | AP125: 0 | AQ125: No | BC125: Albemarle RPO | BP125: 55 | BZ125: Currituck | CN125: 1.04 | CY125: 68.49 | EF125: 3450000 | EH125: 3105000
A126: A130017 | B126: Dare | C126: Albemarle RPO | D126: Aviation | E126: Division Needs | G126: Dare County Regional | J126: Land Acquisition - Runway Approach | L126: 1980000 | Q126: 8.05 | R126: 9.75 | S126: =Q126+#REF!+R126 ->  | U126: N/A | W126: 51994.70599 | Z126: Yes | AA126: 0 | AC126: 0 | AE126: 0 | AF126: 0 | AG126: 15 | AH126: 10 | AI126: Yes | AJ126: 15 | AK126: Minimal | AL126: 10 | AM126: Yes | AN126: 5 | AO126: Yes | AP126: 0 | AQ126: No | BC126: Albemarle RPO | BP126: 55 | BZ126: Dare | CN126: 0.82 | CY126: 46.44 | EF126: 2200000 | EH126: 1980000
A127: A130012 | B127: Chowan | C127: Albemarle RPO | D127: Aviation | E127: Division Needs | G127: Northeastern Regional | J127: Design | L127: 420368 | Q127: 8.04 | R127: 8.25 | S127: =Q127+#REF!+R127 ->  | U127: N/A | W127: 9612.717926 | Z127: Yes | AA127: 0 | AC127: 0 | AE127: 0 | AF127: 0 | AG127: 15 | AH127: 10 | AI127: Yes | AJ127: 15 | AK127: Minimal | AL127: 10 | AM127: Yes | AN127: 5 | AO127: Yes | AP127: 0 | AQ127: No | BC127: Albemarle RPO | BP127: 55 | BZ127: Chowan | CN127: 1.14 | CY127: 38.36 | EF127: 467075 | EH127: 420368
A128: A130022 | B128: Dare | C128: Albemarle RPO | D128: Aviation | E128: Division Needs | G128: Dare County Regional | J128: Upgrade Existing Terminal Bldg. | L128: 675000 | Q128: 7.97 | R128: 9.75 | S128: =Q128+#REF!+R128 ->  | U128: N/A | W128: 17725.46795 | Z128: Yes | AA128: 0 | AC128: 0 | AE128: 0 | AF128: 0 | AG128: 15 | AH128: 10 | AI128: Yes | AJ128: 15 | AK128: Minimal | AL128: =IF(AM128="Yes",10,0) -> 10 | AM128: Yes | AN128: 5 | AO128: Yes | AP128: 0 | AQ128: No | BC128: Albemarle RPO | BP128: 55 | BZ128: Dare | CN128: 0.82 | CY128: 46.44 | EF128: 750000 | EH128: 675000
A129: A130002 | B129: Hyde | C129: Albemarle RPO | D129: Aviation | E129: Division Needs | G129: Hyde County | J129: Upgrade Existing Terminal Bldg. | L129: 675000 | Q129: 7.95 | R129: 6.75 | S129: =Q129+#REF!+R129 ->  | U129: N/A | W129: 68326.75372 | Z129: Yes | AA129: 0 | AC129: 0 | AE129: 0 | AF129: 0 | AG129: 15 | AH129: 10 | AI129: Yes | AJ129: 15 | AK129: Minimal | AL129: 10 | AM129: Yes | AN129: 5 | AO129: Yes | AP129: 0 | AQ129: No | BC129: Albemarle RPO | BP129: 55 | BZ129: Hyde | CN129: 0.89 | CY129: 11.1 | EF129: 750000 | EH129: 675000
A130: A130027 | B130: Dare | C130: Albemarle RPO | D130: Aviation | E130: Division Needs | G130: Dare County Regional | J130: Relocate TVOR | L130: 382500 | Q130: 7.87 | R130: 9.75 | S130: =Q130+#REF!+R130 ->  | U130: N/A | W130: 10044.43184 | Z130: Yes | AA130: 0 | AC130: 0 | AE130: 0 | AF130: 0 | AG130: 15 | AH130: 10 | AI130: Yes | AJ130: 15 | AK130: Minimal | AL130: 10 | AM130: Yes | AN130: 5 | AO130: Yes | AP130: 0 | AQ130: No | BC130: Albemarle RPO | BP130: 55 | BZ130: Dare | CN130: 0.82 | CY130: 46.44 | EF130: 425000 | EH130: 382500
A131: A130040 | B131: Currituck | C131: Albemarle RPO | D131: Aviation | E131: Division Needs | G131: Currituck County Regional | J131: Environmental Assessment | L131: 2475000 | Q131: 7.86 | R131: 13.5 | S131: =Q131+#REF!+R131 ->  | U131: N/A | W131: 34746.79066 | Z131: Yes | AA131: 0 | AC131: 0 | AE131: 0 | AF131: 0 | AG131: 15 | AH131: 10 | AI131: Yes | AJ131: 15 | AK131: Minimal | AL131: 10 | AM131: Yes | AN131: 5 | AO131: Yes | AP131: 0 | AQ131: No | BC131: Albemarle RPO | BP131: 55 | BZ131: Currituck | CN131: 1.04 | CY131: 68.49 | EF131: 2750000 | EH131: 2475000
A132: A130026 | B132: Dare | C132: Albemarle RPO | D132: Aviation | E132: Division Needs | G132: Dare County Regional | J132: Hangers and Economic Development | L132: 270000 | Q132: 6.97 | R132: 9.75 | S132: =Q132+#REF!+R132 ->  | U132: N/A | W132: 7090.187181 | Z132: Yes | AA132: 0 | AC132: 0 | AE132: 0 | AF132: 0 | AG132: 15 | AH132: 10 | AI132: Yes | AJ132: 15 | AK132: Minimal | AL132: 10 | AM132: Yes | AN132: 5 | AO132: Yes | AP132: 0 | AQ132: No | BC132: Albemarle RPO | BP132: 55 | BZ132: Dare | CN132: 0.82 | CY132: 46.44 | EF132: 300000 | EH132: 270000
A133: A130013 | B133: Chowan | C133: Albemarle RPO | D133: Aviation | E133: Division Needs | G133: Northeastern Regional | J133: Design | L133: 680760 | Q133: 6.68 | R133: 8.25 | S133: =Q133+#REF!+R133 ->  | U133: N/A | W133: 15567.20268 | Z133: Yes | AA133: 0 | AC133: 0 | AE133: 0 | AF133: 0 | AG133: 15 | AH133: 10 | AI133: Yes | AJ133: 15 | AK133: Minimal | AL133: 10 | AM133: Yes | AN133: 5 | AO133: Yes | AP133: 0 | AQ133: No | BC133: Albemarle RPO | BP133: 55 | BZ133: Chowan | CN133: 1.14 | CY133: 38.36 | EF133: 756400 | EH133: 680760
A134: A130414 | B134: Hertford | C134: Peanut Belt RPO | D134: Aviation | E134: Division Needs | G134: Tri-County | J134: Upgrade Existing Terminal Bldg. | L134: 225000 | Q134: 6.66 | S134: =Q134+#REF!+R134 ->  | U134: N/A | W134: 7375.477357 | Z134: Yes | AA134: 0 | AC134: 0 | AE134: 0 | AF134: 0 | AG134: 15 | AH134: 10 | AI134: Yes | AJ134: 15 | AK134: Minimal | AL134: 10 | AM134: Yes | AN134: 5 | AO134: Yes | AP134: 0 | AQ134: No | BC134: Peanut Belt RPO | BP134: 55 | BZ134: Hertford | CN134: 0.85 | CY134: 35.89 | EF134: 250000 | EH134: 225000
A135: A130373 | B135: Martin | C135: Mid-East RPO | D135: Aviation | E135: Division Needs | G135: Martin County | J135: Design | L135: 369000 | Q135: 6.54 | S135: =Q135+#REF!+R135 ->  | U135: N/A | W135: 31502.11295 | Z135: Yes | AA135: 0 | AC135: 0 | AE135: 0 | AF135: 0 | AG135: 15 | AH135: 10 | AI135: Yes | AJ135: 15 | AK135: Minimal | AL135: 10 | AM135: Yes | AN135: 5 | AO135: Yes | AP135: 0 | AQ135: No | BC135: Mid-East RPO | BP135: 55 | BZ135: Martin | CN135: 0.95 | CY135: 12.33 | EF135: 410000 | EH135: 369000
A136: A130047 | B136: Washington | C136: Albemarle RPO | D136: Aviation | E136: Division Needs | G136: Plymouth Municipal Airport | J136: AWOS Installation | L136: 193500 | Q136: 6.1 | R136: 6 | S136: =Q136+#REF!+R136 ->  | U136: N/A | W136: 5102.472452 | Z136: Yes | AA136: 0 | AC136: 0 | AE136: 0 | AF136: 0 | AG136: 15 | AH136: 10 | AI136: Yes | AJ136: 15 | AK136: Minimal | AL136: 10 | AM136: Yes | AN136: 5 | AO136: Yes | AP136: 0 | AQ136: No | BC136: Albemarle RPO | BP136: 55 | BZ136: Washington | CN136: 1.04 | CY136: 36.37 | EF136: 215000 | EH136: 193000
A137: A130025 | B137: Dare | C137: Albemarle RPO | D137: Aviation | E137: Division Needs | G137: Dare County Regional | J137: Hangers and Economic Development | L137: 468000 | Q137: 5.56 | R137: 9.75 | S137: =Q137+#REF!+R137 ->  | U137: N/A | W137: 12289.65778 | Z137: Yes | AA137: 0 | AC137: 0 | AE137: 0 | AF137: 0 | AG137: 15 | AH137: 10 | AI137: Yes | AJ137: 15 | AK137: Minimal | AL137: 10 | AM137: Yes | AN137: 5 | AO137: Yes | AP137: 0 | AQ137: No | BC137: Albemarle RPO | BP137: 55 | BZ137: Dare | CN137: 0.82 | CY137: 46.44 | EF137: 520000 | EH137: 468000
A138: A130037 | B138: Currituck | C138: Albemarle RPO | D138: Aviation | E138: Division Needs | G138: Currituck County Regional | J138: Hangers and Economic Development | L138: 1080000 | Q138: 5.56 | R138: 15 | S138: =Q138+#REF!+R138 ->  | U138: N/A | W138: 15162.23592 | Z138: Yes | AA138: 0 | AC138: 0 | AE138: 0 | AF138: 0 | AG138: 15 | AH138: 10 | AI138: Yes | AJ138: 15 | AK138: Minimal | AL138: 10 | AM138: Yes | AN138: 5 | AO138: Yes | AP138: 0 | AQ138: No | BC138: Albemarle RPO | BP138: 55 | BZ138: Currituck | CN138: 1.04 | CY138: 68.49 | EF138: 1125000 | EH138: 1080000
A139: A130038 | B139: Currituck | C139: Albemarle RPO | D139: Aviation | E139: Division Needs | G139: Currituck County Regional | J139: Hangers and Economic Development | L139: 1012500 | Q139: 5.56 | R139: 13.5 | S139: =Q139+#REF!+R139 ->  | U139: N/A | W139: 14214.59618 | Z139: Yes | AA139: 0 | AC139: 0 | AE139: 0 | AF139: 0 | AG139: 15 | AH139: 10 | AI139: Yes | AJ139: 15 | AK139: Minimal | AL139: 10 | AM139: Yes | AN139: 5 | AO139: Yes | AP139: 0 | AQ139: No | BC139: Albemarle RPO | BP139: 55 | BZ139: Currituck | CN139: 1.04 | CY139: 68.49 | EF139: 1125000 | EH139: 1012500
A140: A130039 | B140: Currituck | C140: Albemarle RPO | D140: Aviation | E140: Division Needs | G140: Currituck County Regional | J140: Hangers and Economic Development | L140: 1813500 | Q140: 5.56 | R140: 13.5 | S140: =Q140+#REF!+R140 ->  | U140: N/A | W140: 25459.92116 | Z140: Yes | AA140: 0 | AC140: 0 | AE140: 0 | AF140: 0 | AG140: 15 | AH140: 10 | AI140: Yes | AJ140: 15 | AK140: Minimal | AL140: 10 | AM140: Yes | AN140: 5 | AO140: Yes | AP140: 0 | AQ140: No | BC140: Albemarle RPO | BP140: 55 | BZ140: Currituck | CN140: 1.04 | CY140: 68.49 | EF140: 2015000 | EH140: 1813500
A141: A130034 | B141: Currituck | C141: Albemarle RPO | D141: Aviation | E141: Division Needs | G141: Currituck County Regional | J141: Corporate & T-hanger Taxiways | L141: 2547000 | Q141: 4.26 | R141: 15 | S141: =Q141+#REF!+R141 ->  | U141: N/A | W141: 35757.60639 | Z141: Yes | AA141: 0 | AC141: 0 | AE141: 0 | AF141: 0 | AG141: 15 | AH141: 10 | AI141: Yes | AJ141: 15 | AK141: Minimal | AL141: 10 | AM141: Yes | AN141: 5 | AO141: Yes | AP141: 0 | AQ141: No | BC141: Albemarle RPO | BP141: 55 | BZ141: Currituck | CN141: 1.04 | CY141: 68.49 | EF141: 2830000 | EH141: 2547000
A142: A130014 | B142: Chowan | C142: Albemarle RPO | D142: Aviation | E142: Division Needs | G142: Northeastern Regional | J142: Hangers and Economic Development | L142: 1048500 | Q142: 4.06 | R142: 8.25 | S142: =Q142+#REF!+R142 ->  | U142: N/A | W142: 23976.45574 | Z142: Yes | AA142: 0 | AC142: 0 | AE142: 0 | AF142: 0 | AG142: 15 | AH142: 10 | AI142: Yes | AJ142: 15 | AK142: Minimal | AL142: 10 | AM142: Yes | AN142: 5 | AO142: Yes | AP142: 0 | AQ142: No | BC142: Albemarle RPO | BP142: 55 | BZ142: Chowan | CN142: 1.14 | CY142: 38.36 | EF142: 1165000 | EH142: 1048500
A143: A130044 | B143: Washington | C143: Albemarle RPO | D143: Aviation | E143: Division Needs | G143: Plymouth Municipal Airport | J143: Hangers and Economic Development | L143: 310500 | Q143: 3.56 | R143: 6 | S143: =Q143+#REF!+R143 ->  | U143: N/A | W143: 8208.899981 | Z143: Yes | AA143: 0 | AC143: 0 | AE143: 0 | AF143: 0 | AG143: 15 | AH143: 10 | AI143: Yes | AJ143: 15 | AK143: Minimal | AL143: 10 | AM143: Yes | AN143: 5 | AO143: Yes | AP143: 0 | AQ143: No | BC143: Albemarle RPO | BP143: 55 | BZ143: Washington | CN143: 1.04 | CY143: 36.37 | EF143: 345000 | EH143: 310500
A144: A130045 | B144: Washington | C144: Albemarle RPO | D144: Aviation | E144: Division Needs | G144: Plymouth Municipal Airport | J144: Hangers and Economic Development | L144: 760500 | Q144: 3.56 | R144: 6 | S144: =Q144+#REF!+R144 ->  | U144: N/A | W144: 5115.691292 | Z144: Yes | AA144: 0 | AC144: 0 | AE144: 0 | AF144: 0 | AG144: 15 | AH144: 10 | AI144: Yes | AJ144: 15 | AK144: Minimal | AL144: 10 | AM144: Yes | AN144: 5 | AO144: Yes | AP144: 0 | AQ144: No | BC144: Albemarle RPO | BP144: 55 | BZ144: Washington | CN144: 1.04 | CY144: 36.37 | EF144: 845000 | EH144: 193500
A145: A130375 | B145: Martin | C145: Mid-East RPO | D145: Aviation | E145: Division Needs | G145: Martin County | J145: Hangers and Economic Development | L145: 535500 | Q145: 3.5 | S145: =Q145+#REF!+R145 ->  | U145: N/A | W145: =(EH145/CY145)/CN145 -> 45716.48098 | Z145: Yes | AA145: 0 | AC145: 0 | AE145: =IF(AT145<30,0,IF(AT145<50,5,IF(AT145<65,10,IF(AT145<79,15,IF(AT145>80,20))))) -> 0 | AF145: 0 | AG145: =IF(Z145="Yes",15,0) -> 15 | AH145: 10 | AI145: Yes | AJ145: 15 | AK145: Minimal | AL145: 10 | AM145: Yes | AN145: 5 | AO145: Yes | AP145: 0 | AQ145: No | BC145: Mid-East RPO | BP145: 55 | BZ145: Martin | CN145: 0.95 | CY145: 12.33 | EF145: 595000 | EH145: 535500
A146: A130003 | B146: Hyde | C146: Albemarle RPO | D146: Aviation | E146: Division Needs | G146: Hyde County | J146: Hangers and Economic Development | L146: 990000 | Q146: 3.16 | R146: 6.75 | S146: =Q146+#REF!+R146 ->  | U146: N/A | W146: 100212.5721 | Z146: Yes | AA146: 0 | AC146: 0 | AE146: 0 | AF146: 0 | AG146: 15 | AH146: 10 | AI146: Yes | AJ146: 15 | AK146: Minimal | AL146: 10 | AM146: Yes | AN146: 5 | AO146: Yes | AP146: 0 | AQ146: No | BC146: Albemarle RPO | BP146: 55 | BZ146: Hyde | CN146: 0.89 | CY146: 11.1 | EF146: 1100000 | EH146: 990000
A147: A130004 | B147: Hyde | C147: Albemarle RPO | D147: Aviation | E147: Division Needs | G147: Hyde County | J147: other | L147: 2070000 | Q147: 3.16 | R147: 6.75 | S147: =Q147+#REF!+R147 ->  | U147: N/A | W147: 209535.3781 | Z147: Yes | AA147: 0 | AC147: 0 | AE147: 0 | AF147: 0 | AG147: 15 | AH147: 10 | AI147: Yes | AJ147: 15 | AK147: Minimal | AL147: 10 | AM147: Yes | AN147: 5 | AO147: Yes | AP147: 0 | AQ147: No | BC147: Albemarle RPO | BP147: 55 | BZ147: Hyde | CN147: 0.89 | CY147: 11.1 | EF147: 2300000 | EH147: 2070000
A148: A130374 | B148: Martin | C148: Mid-East RPO | D148: Aviation | E148: Division Needs | G148: Martin County | J148: Hangers and Economic Development | L148: 211500 | Q148: 3.16 | S148: =Q148+#REF!+R148 ->  | U148: N/A | W148: 18056.08913 | Z148: Yes | AA148: 0 | AC148: 0 | AE148: 0 | AF148: 0 | AG148: 15 | AH148: 10 | AI148: Yes | AJ148: 15 | AK148: Minimal | AL148: 10 | AM148: Yes | AN148: 5 | AO148: Yes | AP148: 0 | AQ148: No | BC148: Mid-East RPO | BP148: 55 | BZ148: Martin | CN148: 0.95 | CY148: 12.33 | EF148: 235000 | EH148: 211500
A149: A130001 | D149: Aviation | E149: Division Needs | G149: Hyde County | J149: Design | L149: 622440 | Q149: 25.97 | R149: 6.75 | S149: =Q149+#REF!+R149 ->  | U149: N/A | W149: 63006.37716 | Z149: Yes | AA149: 0 | AC149: 0 | AE149: 0 | AF149: 0 | AG149: 15 | AH149: 10 | AI149: Yes | AJ149: 15 | AK149: Minimal | AL149: 10 | AM149: Yes | AN149: 5 | AO149: Yes | AP149: 0 | AQ149: No | BC149: Albemarle RPO | BP149: 55 | BZ149: Hyde | CN149: 0.89 | CY149: 11.1 | EF149: 691600 | EH149: 622440
A150: H090098 | B150: Bertie | C150: Peanut Belt RPO | D150: Highway | E150: Statewide Mobility | F150: R-2506 | G150: US-13 | H150: US 13 Business North of Windsor | I150: NC 42 | J150: Widen to Multi-Lanes. | K150: 1 - Widen Existing Roadway | L150: 99400000 | M150: 11.13652388 | O150: 12.4 | Q150: 9.1 | S150: =Q150+#REF!+R150 ->  | U150: =IF(AT150<30,0,IF(AT150<50,5,IF(AT150<65,10,IF(AT150>66,15)))) -> 10 | V150: =IF(W150<499,15,IF(W150<999,10,IF(W150<1499,5,IF(W150>1500,0)))) -> 0 | W150: 1765.707331 | X150: =IF(DC150<500,0,IF(DC150<1000,5,IF(DC150>1000,10))) -> 0 | Y150: =IF(Z150="Yes",20,0) -> 20 | Z150: Yes | AA150: =IF(AB150="Yes",20,0) -> 20 | AB150: Yes | AC150: 10 | AD150: Yes | AE150: 10 | AF150: =IF(BL148<999,20,IF(BL148<1499,15,IF(BL148<1999,10,IF(BL148<3999,5,IF(BL148>4000,0))))) -> 20 | AG150: 15 | AH150: 10 | AI150: Yes | AJ150: 15 | AK150: Minimal | AL150: 10 | AM150: Yes | AN150: =IF(AO150="Yes",10,0) -> 0 | AO150: No | AP150: 0 | AQ150: No | AR150: 14.9140476 | AS150: 0.06168653924 | AT150: 50.99417814 | AU150: 7.173042436 | AV150: 1.097773326 | AW150: 20.49987162 | AX150: 25 | AY150: 0 | BC150: Peanut Belt RPO | BD150: 100 | BI150: 01 | BJ150: 100 | BO150: =SUM(U150+V150+X150+Y150+AA150+AC150) -> 60 | BP150: 80 | BS150: 0 | BU150: =Q150+BT150*0.25 -> 9.1 | BV150: Exceeds cap of $15 million for Statewide & Regional Projects cascading to Division Needs | BW150: =O150+BS150*0.25 -> 12.4 | BX150: =BW150+P150 -> 12.4 | BY150: R-2205 & R-2506 beneficial to program together; Portion of R-2205 is incorporated in R-5311B, which Division Local Points are assigned. | BZ150: Bertie | CA150: 100 | CH150: 1 | CI150: A | CJ150: 01, , | CK150: Peanut Belt RPO, , | CL150: Bertie, , , | CM150: 16.0844024 | CN150: 16.0844024 | CO150: Two Lane Highway | CP150: Multi-Lane Highway | CQ150: 1 | CR150: 2 | CS150: Undivided | CT150: Divided | CU150: 49 | CV150: 50 | CW150: 8.812577103 | CX150: 91.1874229 | CY150: 3499.957207 | CZ150: 15539.17617 | DA150: 0.225234412 | DB150: 3191.52078 | DC150: 308.4364274 | DD150: 245144.6296 | DE150: 23691.38069 | DF150: 268836.0103 | DG150: 6131642 | DH150: 54.538307 | DI150: 43.54445253 | DJ150: 54.91507468 | DM150: 4 | DN150: 1.795546652e-05 | DO150: Yes | DP150: No | DQ150: 11 | DR150: 12 | DS150: No | DT150: 0 | DU150: 0 | DV150: 2 Lane Undivided | DW150: 4A - 4 Lane Divided (46' Depressed Median) with Paved Shoulders | DX150: None | DY150: Partial | DZ150: 1 | EA150: Yes | EB150: 25 | EC150: 61000000 | ED150: 35800000 | EE150: 2600000 | EF150: 99400000 | EH150: 99400000 | EI150: 99400000
A151: H090868 | B151: Gates | C151: Albemarle RPO | D151: Highway | E151: Regional Impact | G151: NC-32 | H151: Chowan County | I151: Virginia State Line | J151: Widen to Multi-Lanes from Chowan County to Virginia Border | K151: 1 - Widen Existing Roadway | L151: 164732000 | O151: 8.605101817 | P151: 3.6 | Q151: 5.736734545 | R151: 5.25 | S151: =Q151+#REF!+R151 ->  | U151: =IF(AT151<30,0,IF(AT151<50,5,IF(AT151<65,10,IF(AT151>66,15)))) -> 5 | V151: =IF(W151<499,15,IF(W151<999,10,IF(W151<1499,5,IF(W151>1500,0)))) -> 0 | W151: 3736.084845 | X151: =IF(DC151<500,0,IF(DC151<1000,5,IF(DC151>1000,10))) -> 0 | Y151: =IF(Z151="Yes",20,0) -> 20 | Z151: Yes | AA151: =IF(AB151="Yes",20,0) -> 20 | AB151: Yes | AC151: =IF(AD151="Yes",20,0) -> 20 | AD151: Yes | AE151: 5 | AF151: =IF(W151<999,20,IF(W151<1499,15,IF(W151<1999,10,IF(W151<3999,5,IF(W151>4000,0))))) -> 5 | AG151: 15 | AH151: 10 | AI151: No | AJ151: =IF(AK151="Minimal",15,0) -> 15 | AK151: Minimal | AL151: 10 | AM151: Yes | AN151: 0 | AO151: No | AP151: =IF(AQ151="Yes",10,0) -> 0 | AQ151: No | AR151: 11.33113819 | AS151: 0 | AT151: 46.03620725 | AU151: 1.189993657 | AV151: N/A | AW151: 43.95918318 | AX151: 0 | AY151: 0 | BC151: Albemarle RPO | BD151: 100 | BI151: 01 | BJ151: 100 | BO151: =SUM(U151+V151+X151+Y151+AA151+AC151) -> 65 | BP151: 60 | BS151: 0 | BU151: 5.736734545 | BV151: Exceeds cap of $15 million for Statewide & Regional Projects cascading to Division Needs | BW151: =O151+BS151*0.25 -> 8.605101817 | BX151: =BW151+P151 -> 12.20510182 | BY151: Under Threshold of SPOT Score of "10" | BZ151: Gates | CA151: 100 | CH151: 1 | CI151: A | CJ151: 01, , | CK151: Albemarle RPO, , | CL151: Gates, , , | CM151: 16.61934853 | CN151: 16.61934853 | CO151: Two Lane Highway | CP151: Multi-Lane Highway | CQ151: 1 | CR151: 2 | CS151: Undivided | CT151: Divided | CU151: 55 | CV151: 55 | CW151: 8.970721972 | CX151: 91.02927803 | CY151: 2653.061059 | CZ151: 15500.00001 | DA151: 0.1711652295 | DB151: 2415.062328 | DC151: 237.9987314 | DD151: 0 | DE151: 0 | DF151: 0 | DG151: 0 | DH151: 52.03892858 | DI151: 41.03088808 | DJ151: 45.05261734 | DO151: No | DP151: No | DQ151: 12 | DR151: 12 | DS151: No | DT151: 0 | DU151: 0 | DV151: 2 Lane Undivided | DW151: 4A - 4 Lane Divided (46' Depressed Median) with Paved Shoulders | DX151: None | DY151: Partial | DZ151: 1 | EA151: Yes | EB151: 38 | EC151: 106020000 | ED151: 52421000 | EE151: 6291000 | EF151: 164732000 | EH151: 164732000 | EI151: 164732000
A152: H141880 | B152: Pasquotank | C152: Albemarle RPO | D152: Highway | E152: Statewide Mobility | G152: US-17-BYP-Elizabeth City Bypass | H152: SR 1100 / 1140 (Okisko Road) | I152: US 17/158 north of Elizabeth City (North Road Street) | J152: Upgrade freeway to interstate standards | K152: 17 - Upgrade Freeway to Interstate Standards | L152: 16554000 | M152: 7.440143754 | O152: 5.158611876 | P152: 6.3 | Q152: 3.439074584 | R152: 9 | S152: =Q152+#REF!+R152 ->  | U152: =IF(AT152<30,0,IF(AT152<50,5,IF(AT152<65,10,IF(AT152>66,15)))) -> 0 | V152: =IF(W152<499,15,IF(W152<999,10,IF(W152<1499,5,IF(W152>1500,0)))) -> 15 | W152: 146.4574239 | X152: =IF(DC152<500,0,IF(DC152<1000,5,IF(DC152>1000,10))) -> 10 | Y152: =IF(Z152="Yes",20,0) -> 20 | Z152: Yes | AA152: =IF(AB152="Yes",20,0) -> 20 | AB152: Yes | AC152: =IF(AD152="Yes",20,0) -> 20 | AD152: Yes | AE152: 0 | AF152: =IF(W152<999,20,IF(W152<1499,15,IF(W152<1999,10,IF(W152<3999,5,IF(W152>4000,0))))) -> 20 | AG152: 15 | AH152: =IF(AI152="Yes",10,0) -> 0 | AI152: No | AJ152: =IF(AK152="Minimal",15,0) -> 15 | AK152: Minimal | AL152: 10 | AM152: Yes | AN152: 0 | AO152: No | AP152: 0 | AQ152: No | AR152: 13.96803021 | AS152: 0 | AT152: 20.42271563 | AU152: 5.585323909 | AV152: 0.9039834727 | AW152: 13.55374751 | AX152: 0 | AY152: 0 | BC152: Albemarle RPO | BD152: 100 | BI152: 01 | BJ152: 100 | BO152: =SUM(U152+V152+X152+Y152+AA152+AC152) -> 85 | BP152: 60 | BS152: 0 | BU152: 3.439074584 | BV152: Delay Prioritization pending outcome of Future Interstate Designation; Exceeds cap of $15 million for Statewide & Regional Projects cascading to Division Needs | BW152: =O152+BS152*0.25 -> 5.158611876 | BX152: =BW152+P152 -> 11.45861188 | BY152: Delay Division Local Input Scoring pending outcome of Future Interstate Designation/Under Threshold of SPOT Score of "10" | BZ152: Pasquotank | CA152: 100 | CH152: 1 | CI152: A | CJ152: 01, , | CK152: Albemarle RPO, , | CL152: Pasquotank, , , | CM152: 9.97557267 | CN152: 9.97557267 | CO152: Freeway | CP152: Freeway | CQ152: 2 | CR152: 2 | CS152: Divided | CT152: Divided | CU152: 68.72365998 | CV152: 68.72365998 | CW152: 9.858813171 | CX152: 90.14118683 | CY152: 11330.62127 | CZ152: 72048.85591 | DA152: 0.1572630283 | DB152: 10213.55649 | DC152: 1117.064782 | DD152: 0 | DE152: 0 | DF152: 0 | DG152: 0 | DH152: 23.95659736 | DI152: 8.33491162 | DJ152: 28.98276534 | DM152: 3.732892225 | DN152: 1.434677723e-05 | DO152: No | DP152: No | DQ152: 12 | DR152: 12 | DS152: No | DT152: 4 | DU152: 4 | DV152: 4 Lane with Median - Full Control | DX152: Full | DY152: Full | DZ152: 2 | EA152: No | EB152: 23 | EC152: 16554000 | ED152: 0 | EE152: 0 | EF152: 16554000 | EH152: 16554000 | EI152: 16554000
A153: H090201 | B153: Bertie | C153: Peanut Belt RPO | D153: Highway | E153: Regional Impact | F153: R-2900 | G153: NC-11 | H153: NC 903 in Martin County | I153: US 13 Bypass North of Ahoskie in Hertford County | J153: Widen to Multi-Lanes | K153: 1 - Widen Existing Roadway | L153: 264678000 | O153: 9.682855694 | Q153: 6.45276395 | S153: =Q153+#REF!+R153 ->  | U153: =IF(AT153<30,0,IF(AT153<50,5,IF(AT153<65,10,IF(AT153>66,15)))) -> 5 | V153: =IF(W153<499,15,IF(W153<999,10,IF(W153<1499,5,IF(W153>1500,0)))) -> 0 | W153: 1767.56166 | X153: =IF(DC153<500,0,IF(DC153<1000,5,IF(DC153>1000,10))) -> 5 | Y153: =IF(Z153="Yes",20,0) -> 20 | Z153: Yes | AA153: =IF(AB153="Yes",20,0) -> 20 | AB153: Yes | AC153: =IF(AD153="Yes",10,0) -> 10 | AD153: Yes | AE153: 5 | AF153: =IF(BL151<999,20,IF(BL151<1499,15,IF(BL151<1999,10,IF(BL151<3999,5,IF(BL151>4000,0))))) -> 0 | AG153: 15 | AH153: =IF(AI153="Yes",10,0) -> 10 | AI153: Yes | AJ153: 15 | AK153: Minimal | AL153: 10 | AM153: Yes | AN153: 0 | AO153: No | AP153: 0 | AQ153: No | AR153: 22.00415828 | AS153: 0.07419538458 | AT153: 42.44928583 | AU153: 4.998494389 | AV153: N/A | AW153: 19.45888699 | AX153: 0 | AY153: 0 | BC153: Peanut Belt RPO | BD153: 91.83 | BE153: Mid-East RPO | BF153: 8.17 | BI153: 01 | BJ153: 100 | BO153: =SUM(U153+V153+X153+Y153+AA153+AC153) -> 60 | BP153: 55 | BS153: 0 | BU153: 6.45276395 | BV153: Exceeds cap of $15 million for Statewide & Regional Projects cascading to Division Needs | BW153: =O153+BS153*0.25 -> 9.682855694 | BX153: =BW153+P153 -> 9.682855694 | BY153: Under Threshold of SPOT Score of "10" | BZ153: Bertie | CA153: 60.05 | CB153: Hertford | CC153: 31.78 | CD153: Martin | CE153: 8.17 | CH153: 1 | CI153: A | CJ153: 01, , | CK153: Peanut Belt RPO, Mid-East RPO, | CL153: Bertie, Hertford, Martin, | CM153: 29.05937731 | CN153: 29.05937731 | CO153: Two Lane Highway | CP153: Multi-Lane Highway | CQ153: 1 | CR153: 2 | CS153: Undivided | CT153: Divided | CU153: 54 | CV153: 55 | CW153: 19.40046936 | CX153: 80.59953064 | CY153: 5152.96233 | CZ153: 15503.09146 | DA153: 0.3323828891 | DB153: 4153.263452 | DC153: 999.6988777 | DD153: 665630.5288 | DE153: 160218.6089 | DF153: 825849.1377 | DG153: 19637886 | DH153: 52.98572887 | DI153: 37.52107439 | DJ153: 36.8537903 | DO153: No | DP153: No | DQ153: 12 | DR153: 12 | DS153: No | DT153: 2 | DU153: 2 | DV153: 2 Lane Undivided | DW153: 4A - 4 Lane Divided (46' Depressed Median) with Paved Shoulders | DX153: Limited | DY153: Partial | DZ153: 1 | EA153: Yes | EB153: 22 | EC153: 224808000 | ED153: 35598000 | EE153: 4272000 | EF153: 264678000 | EH153: 264678000 | EI153: 264678000
A154: H141224 | B154: Currituck | C154: Albemarle RPO | D154: Highway | E154: Division Needs | G154: Ponderosa Drive | H154: US 17 | I154: NC 168 | J154: Upgrade Ponderosa Drive to provide direct connection between US 17 and NC 168 to alleviate existing traffic | K154: 6 - Widen Existing Roadway and Construct Part on New Location | L154: 46069000 | Q154: 11.1 | R154: 7.5 | S154: =Q154+#REF!+R154 ->  | U154: N/A | W154: 1967.339809 | Z154: Yes | AE154: 5 | AF154: =IF(W154<999,20,IF(W154<1499,15,IF(W154<1999,10,IF(W154<3999,5,IF(W154>4000,0))))) -> 10 | AG154: 15 | AH154: 0 | AI154: No | AJ154: =IF(AK154="Minimal",15,0) -> 15 | AK154: Minimal | AL154: 10 | AM154: Yes | AN154: 0 | AO154: No | AP154: 0 | AQ154: No | AR154: 9.756074899 | AS154: 1.300259415 | AT154: 49.96606352 | AU154: 0 | AV154: N/A | AW154: N/A | AX154: 50 | AY154: 0 | BC154: Albemarle RPO | BD154: 100 | BI154: 01 | BJ154: 100 | BP154: 55 | BU154: 11.1 | BV154: Exceeds cap of $15 million for Statewide & Regional Projects cascading to Division Needs | BZ154: Currituck | CA154: 63.5 | CB154: Camden | CC154: 36.5 | CH154: 1 | CI154: A | CJ154: 01, , | CK154: Albemarle RPO, , | CL154: Currituck, Camden, , | CM154: 17.9 | CN154: 10.22309253 | CO154: Two Lane Highway | CP154: Two Lane Highway | CQ154: 1 | CR154: 1 | CS154: Undivided | CT154: Undivided | CU154: 53.15329294 | CV154: 55 | CW154: 0 | CX154: 100 | CY154: 2290.588699 | CZ154: 15547.26454 | DA154: 0.147330657 | DB154: 2290.588699 | DC154: 0 | DD154: 2722802.327 | DE154: 0 | DF154: 2722802.327 | DG154: 59901651 | DH154: 78.45751043 | DI154: 43.69600304 | DJ154: 27.75966841 | DO154: No | DP154: No | DQ154: 10 | DR154: 12 | DS154: No | DT154: 0 | DU154: 0 | DV154: New Roadway | DW154: 2A - 2 Lane Undivided with Paved Shoulders, 55 mph | DX154: None | DY154: None | DZ154: 1 | EA154: No | EB154: 34 | EC154: 44934000 | ED154: 1013000 | EE154: 122000 | EF154: 46069000 | EH154: 46069000 | EI154: 46069000
A155: H090505 | B155: Chowan | C155: Albemarle RPO | D155: Highway | E155: Division Needs | F155: U-5001 | G155: - New Route - Western Connector (Luke Street) | H155: Albania Stree | I155: Virginia Street | J155: Albania Street to Virginia Street. Construct Multi-Lanes, Some New Location. | K155: 5 - Construct Roadway on New Location | L155: 9681000 | Q155: 3.338996526 | R155: 4.5 | S155: =Q155+#REF!+R155 ->  | U155: N/A | W155: 1484.201406 | Z155: Yes | AE155: 0 | AF155: =IF(W155<999,20,IF(W155<1499,15,IF(W155<1999,10,IF(W155<3999,5,IF(W155>4000,0))))) -> 15 | AG155: 15 | AH155: =IF(AI155="Yes",10,0) -> 0 | AI155: No | AJ155: =IF(AK155="Minimal",15,0) -> 15 | AK155: Minimal | AL155: 10 | AM155: Yes | AN155: 0 | AO155: No | AP155: 0 | AQ155: No | AR155: 21.67283715 | AS155: 1.444831629 | AT155: 10.27229647 | AU155: 1.019521772 | AV155: N/A | AW155: N/A | AX155: 0 | AY155: 0 | BC155: Albemarle RPO | BD155: 100 | BI155: 01 | BJ155: 100 | BP155: 55 | BU155: 3.338996526 | BV155: Minimal Local Support | BZ155: Chowan | CA155: 100 | CH155: 1 | CI155: A | CJ155: 01, , | CK155: Albemarle RPO, , | CL155: Chowan, , , | CM155: 1.5 | CN155: 1.11961556 | CO155: Arterial | CP155: Arterial | CQ155: 1 | CR155: 2 | CS155: Undivided | CT155: Divided | CU155: 38 | CV155: 35 | CW155: 3.5 | CX155: 96.5 | CY155: 5825.838696 | CZ155: 18071.61905 | DA155: 0.3223750279 | DB155: 5621.934342 | DC155: 203.9043544 | DD155: 604716.8721 | DE155: 21932.73629 | DF155: 626649.6083 | DG155: 13987415 | DH155: 7.82582917 | DI155: 15.16831308 | DJ155: 7.82582917 | DO155: No | DP155: No | DQ155: 12 | DR155: 12 | DS155: Yes | DT155: 0 | DU155: 2 | DV155: New Roadway | DW155: 4C - 4 Lane Divided (23' Raised Median) with Curb & Gutter, Wide Outside Lanes, and Sidewalks | DX155: None | DY155: Partial | DZ155: 1 | EA155: No | EB155: 24 | EC155: 5928000 | ED155: 3351000 | EE155: 402000 | EF155: 9681000 | EH155: 9681000 | EI155: 9681000
A156: H141741 | B156: Bertie | C156: Peanut Belt RPO | D156: Highway | E156: Regional Impact | G156: NC-45 | H156: Hertford County Line | I156: Washington County Line | J156: Currently a 2- lane major thoroughfare with high truck percentage, this project recommends road be widened to 24 feet with paved shoulders and turn lanes where necessary through Bertie County, with safety and mobility the primary purpose. | K156: 1 - Widen Existing Roadway | L156: 130375000 | O156: 9.07 | Q156: 6.88 | S156: =Q156+#REF!+R156 ->  | U156: =IF(AT156<30,0,IF(AT156<50,5,IF(AT156<65,10,IF(AT156>66,15)))) -> 5 | V156: =IF(W156<499,15,IF(W156<999,10,IF(W156<1499,5,IF(W156>1500,0)))) -> 0 | W156: 2103.549187 | X156: =IF(DC156<500,0,IF(DC156<1000,5,IF(DC156>1000,10))) -> 5 | Y156: =IF(Z156="Yes",20,0) -> 20 | Z156: Yes | AA156: =IF(AB156="Yes",20,0) -> 20 | AB156: Yes | AC156: =IF(AD156="Yes",10,0) -> 10 | AD156: Yes | AE156: 5 | AF156: =IF(BL154<999,20,IF(BL154<1499,15,IF(BL154<1999,10,IF(BL154<3999,5,IF(BL154>4000,0))))) -> 0 | AG156: 15 | AH156: =IF(AI156="Yes",10,0) -> 10 | AI156: Yes | AJ156: 15 | AK156: Minimal | AL156: 10 | AM156: Yes | AN156: 0 | AO156: No | AP156: 0 | AQ156: No | AR156: 10.66617998 | AS156: 0.01616120422 | AT156: 33.13386262 | AU156: 2.68454297 | AV156: N/A | AW156: 16.49736842 | AX156: 25 | AY156: 0 | BC156: Peanut Belt RPO | BD156: 100 | BE156: Albemarle RPO | BI156: 01 | BJ156: 100 | BO156: =SUM(U156+V156+X156+Y156+AA156+AC156) -> 60 | BP156: 55 | BS156: 0 | BU156: 6.88 | BV156: Exceeds cap of $15 million for Statewide & Regional Projects cascading to Division Needs | BW156: =O156+BS156*0.25 -> 9.07 | BX156: =BW156+P156 -> 9.07 | BY156: Under Threshold of SPOT Score of "10" | BZ156: Bertie | CA156: 100 | CB156: Washington | CH156: 1 | CI156: A | CJ156: 01, , | CK156: Peanut Belt RPO, Albemarle RPO, | CL156: Bertie, Washington, , | CM156: 24.81755731 | CN156: 24.81755731 | CO156: Two Lane Highway | CP156: Two Lane Highway | CQ156: 1 | CR156: 1 | CS156: Undivided | CT156: TWLTL | CU156: 55 | CV156: 55 | CW156: 21.49897423 | CX156: 78.50102577 | CY156: 2497.368425 | CZ156: 15500 | DA156: 0.1611205435 | DB156: 1960.459831 | DC156: 536.9085939 | DD156: 68999.96887 | DE156: 18896.93208 | DF156: 87896.90095 | DG156: 2107017 | DH156: 34.60651158 | DI156: 28.18474584 | DJ156: 36.62027159 | DO156: No | DP156: No | DQ156: 11 | DR156: 12 | DS156: No | DT156: 0 | DU156: 0 | DV156: 2 Lane Undivided | DW156: 3A - 2 Lane with Two Way Left Turn Lane, and Paved Shoulders | DX156: None | DY156: None | DZ156: 1 | EA156: No | EB156: 27 | EC156: 108729000 | ED156: 19327000 | EE156: 2319000 | EF156: 130375000 | EH156: 130375000 | EI156: 130375000
A157: H141684 | B157: Northampton | C157: Peanut Belt RPO | D157: Highway | E157: Regional Impact | G157: NC-305 | H157: Seaboard Town Limits | I157: Hertford County Line | J157: Currently a 2-lane major thoroughfare from Seaboard to Hertford County, NC 305 is recommended to be upgrade from its existing facility to 24 feet w/ paved shoulders. This would provides improved mobility between Jackson and Rich Square, while tying in with bike lane recommendations. | K157: 16 - Modernize Roadway | L157: 340000 | O157: 8.93 | Q157: 6.78 | S157: =Q157+#REF!+R157 ->  | U157: 5 | V157: 15 | W157: 6.456714137 | X157: 0 | Y157: 20 | Z157: Yes | AA157: 20 | AB157: Yes | AC157: =IF(AD157="Yes",10,0) -> 10 | AD157: Yes | AE157: 5 | AF157: =IF(BL155<999,20,IF(BL155<1499,15,IF(BL155<1999,10,IF(BL155<3999,5,IF(BL155>4000,0))))) -> 0 | AG157: 15 | AH157: =IF(AI157="Yes",10,0) -> 10 | AI157: Yes | AJ157: 15 | AK157: Minimal | AL157: 10 | AM157: Yes | AN157: 0 | AO157: No | AP157: 0 | AQ157: No | AR157: 9.102658026 | AS157: 0 | AT157: 33.73871917 | AU157: 1.248512835 | AV157: N/A | AW157: 12.13739034 | AX157: 25 | AY157: 0 | BC157: Peanut Belt RPO | BD157: 100 | BI157: 01 | BJ157: 100 | BO157: 70 | BP157: 55 | BS157: 0 | BT157: 100 | BU157: 31.78 | BW157: 8.93 | BX157: 8.93 | BY157: Under Threshold of SPOT Score of "10" | BZ157: Northampton | CA157: 100 | CH157: 1 | CI157: A | CJ157: 01, , | CK157: Peanut Belt RPO, , | CL157: Northampton, , , | CM157: 24.63675566 | CN157: 24.63675566 | CO157: Two Lane Highway | CP157: Two Lane Highway | CQ157: 1 | CR157: 1 | CS157: Undivided | CT157: Undivided | CU157: 51.70366252 | CV157: 51.70366252 | CW157: 11.68259081 | CX157: 88.31740919 | CY157: 2137.390337 | CZ157: 15548.9883 | DA157: 0.1374616982 | DB157: 1887.68777 | DC157: 249.702567 | DD157: 0 | DE157: 0 | DF157: 0 | DG157: 0 | DH157: 34.66276226 | DI157: 27.89657881 | DJ157: 38.66693908 | DO157: No | DP157: No | DQ157: 11 | DR157: 12 | DS157: No | DT157: 0 | DU157: 0 | DV157: 2 Lane Undivided | DW157: 3A - 2 Lane with Two Way Left Turn Lane, and Paved Shoulders | DX157: None | DY157: None | DZ157: 1 | EA157: No | EB157: 25 | EC157: 340000 | ED157: 0 | EE157: 0 | EF157: 340000 | EH157: 340000 | EI157: 340000
A158: H129070-AA | B158: Tyrrell | C158: Albemarle RPO | D158: Highway | E158: Statewide Mobility | F158: R-2545AA | G158: US-64 | H158: East of Columbia | I158: West of SR 1229 (Old US 64) at Alligator River | J158: Widen to Multi-Lanes. | K158: 1 - Widen Existing Roadway | L158: 20780000 | M158: 5.365998811 | O158: 2.407189191 | P158: 6.3 | Q158: 1.604020821 | R158: 9 | S158: =Q158+#REF!+R158 ->  | U158: 0 | V158: 5 | W158: 1402.78862 | X158: 0 | Y158: 20 | Z158: Yes | AA158: 20 | AB158: Yes | AC158: =IF(AD158="Yes",20,0) -> 20 | AD158: Yes | AE158: 0 | AF158: =IF(W158<999,20,IF(W158<1499,15,IF(W158<1999,10,IF(W158<3999,5,IF(W158>4000,0))))) -> 15 | AG158: 15 | AH158: 10 | AI158: No | AJ158: =IF(AK158="Minimal",15,0) -> 15 | AK158: Minimal | AL158: 10 | AM158: Yes | AN158: 0 | AO158: No | AP158: 0 | AQ158: No | AR158: 16.01704902 | AS158: 0.02315919153 | AT158: 0 | AU158: 1.856357295 | AV158: 1.826648881 | AW158: 31.25064622 | AX158: 0 | AY158: 0 | BC158: Albemarle RPO | BD158: 100 | BI158: 01 | BJ158: 100 | BO158: 65 | BP158: 65 | BS158: 0 | BU158: 1.604020821 | BV158: Exceeds cap of $15 million for Statewide & Regional Projects cascading to Division Needs | BW158: 2.407189191 | BX158: 8.707189191 | BY158: All Phases of US 64 should be programmed together; not beneficial to do just one phase; Under Threshold of SPOT Score of "10" | BZ158: Tyrrell | CA158: 100 | CH158: 1 | CI158: A | CJ158: 01, , | CK158: Albemarle RPO, , | CL158: Tyrrell, , , | CM158: 3.95 | CN158: 3.95 | CO158: Two Lane Highway | CP158: Multi-Lane Highway | CQ158: 1 | CR158: 2 | CS158: Undivided | CT158: Divided | CU158: 55 | CV158: 55 | CW158: 9.900003572 | CX158: 90.09999643 | CY158: 3750.215405 | CZ158: 15500 | DA158: 0.241949381 | DB158: 3378.943946 | DC158: 371.2714591 | DD158: 18928.22963 | DE158: 2079.79521 | DF158: 21008.02484 | DG158: 481248 | DH158: 0 | DI158: 0 | DJ158: 0 | DM158: 7 | DN158: 2.953297761e-05 | DO158: No | DP158: No | DQ158: 12 | DR158: 12 | DS158: No | DT158: 0 | DU158: 0 | DV158: 2 Lane Undivided | DW158: 4A - 4 Lane Divided (46' Depressed Median) with Paved Shoulders | DX158: None | DY158: Partial | DZ158: 1 | EA158: Yes | EB158: 30 | EC158: 17800000 | ED158: 1730000 | EE158: 1250000 | EF158: 20780000 | EH158: 20780000 | EI158: 20780000
A159: H129070-AB | B159: Tyrrell | C159: Albemarle RPO | D159: Highway | E159: Statewide Mobility | F159: R-2545AB | G159: US-64 | H159: West of SR 1229 (Old US 64) at Alligator River | I159: West of Alligator River | J159: Widen to Multi-Lanes. | K159: 1 - Widen Existing Roadway | L159: 44850000 | M159: 5.202767876 | O159: 2.407100042 | P159: 6.3 | Q159: 1.603976246 | R159: 9 | S159: =Q159+#REF!+R159 ->  | U159: 0 | V159: 5 | W159: 1430.318203 | X159: 0 | Y159: 20 | Z159: Yes | AA159: 20 | AB159: Yes | AC159: =IF(AD159="Yes",20,0) -> 20 | AD159: Yes | AE159: 0 | AF159: 15 | AG159: 15 | AH159: 10 | AI159: No | AJ159: =IF(AK159="Minimal",15,0) -> 15 | AK159: Minimal | AL159: 10 | AM159: Yes | AN159: 0 | AO159: No | AP159: 0 | AQ159: No | AR159: 16.01704902 | AS159: 0.02271344482 | AT159: 0 | AU159: 1.856357295 | AV159: 0.1956767736 | AW159: 31.25064622 | AX159: 0 | AY159: 0 | BC159: Albemarle RPO | BD159: 100 | BI159: 01 | BJ159: 100 | BO159: 65 | BP159: 65 | BS159: 0 | BU159: 1.603976246 | BV159: Exceeds cap of $15 million for Statewide & Regional Projects cascading to Division Needs | BW159: 2.407100042 | BX159: 8.707100042 | BY159: All Phases of US 64 should be programmed together; not beneficial to do just one phase; Under Threshold of SPOT Score of "10" | BZ159: Tyrrell | CA159: 100 | CH159: 1 | CI159: A | CJ159: 01, , | CK159: Albemarle RPO, , | CL159: Tyrrell, , , | CM159: 8.36129542 | CN159: 8.36129542 | CO159: Two Lane Highway | CP159: Multi-Lane Highway | CQ159: 1 | CR159: 2 | CS159: Undivided | CT159: Divided | CU159: 55 | CV159: 55 | CW159: 9.900003572 | CX159: 90.09999643 | CY159: 3750.215405 | CZ159: 15500 | DA159: 0.241949381 | DB159: 3378.943946 | DC159: 371.2714591 | DD159: 40066.96702 | DE159: 4402.476497 | DF159: 44469.44352 | DG159: 1018698 | DH159: 0 | DI159: 0 | DJ159: 0 | DM159: 1 | DN159: 2.913535473e-06 | DO159: No | DP159: No | DQ159: 12 | DR159: 12 | DS159: No | DT159: 0 | DU159: 0 | DV159: 2 Lane Undivided | DW159: 4A - 4 Lane Divided (46' Depressed Median) with Paved Shoulders | DX159: None | DY159: Partial | DZ159: 1 | EA159: Yes | EB159: 30 | EC159: 41500000 | ED159: 1300000 | EE159: 2050000 | EF159: 44850000 | EH159: 44850000 | EI159: 44850000
A160: H090149-C | B160: Northampton | C160: Peanut Belt RPO | D160: Highway | E160: Statewide Mobility | F160: R-2584C | G160: US-158 | H160: East of SR 1365 | I160: Murfreesboro Bypass | J160: Widen to Multi-Lanes, Part on New Location. | K160: 1 - Widen Existing Roadway | L160: 15500000 | M160: 9.368198144 | O160: 8.442194303 | Q160: 5.627067316 | S160: =Q160+#REF!+R160 ->  | U160: 5 | V160: 5 | W160: 1024.981099 | X160: 0 | Y160: 20 | Z160: Yes | AA160: 20 | AB160: Yes | AC160: =IF(AD160="Yes",10,0) -> 10 | AD160: Yes | AE160: 5 | AF160: 15 | AG160: 15 | AH160: =IF(AI160="Yes",10,0) -> 10 | AI160: Yes | AJ160: 15 | AK160: Minimal | AL160: =IF(AM160="Yes",10,0) -> 10 | AM160: Yes | AN160: 0 | AO160: No | AP160: 0 | AQ160: No | AR160: 16.47128263 | AS160: 0.03186658065 | AT160: 39.76752395 | AU160: 2.168715031 | AV160: 0.06757979615 | AW160: 23.56970759 | AX160: 0 | AY160: 0 | BC160: Peanut Belt RPO | BD160: 100 | BI160: 01 | BJ160: 100 | BO160: 60 | BP160: 70 | BS160: 0 | BU160: 5.627067316 | BV160: Exceeds cap of $15 million for Statewide & Regional Projects cascading to Division Needs | BW160: 8.442194303 | BX160: 8.442194303 | BY160: Under Threshold of SPOT Score of "10" | BZ160: Northampton | CA160: 100 | CH160: 1 | CI160: A | CJ160: 01, , | CK160: Peanut Belt RPO, , | CL160: Northampton, , , | CM160: 3.92116135 | CN160: 3.92116135 | CO160: Two Lane Highway | CP160: Multi-Lane Highway | CQ160: 1 | CR160: 2 | CS160: Undivided | CT160: Divided | CU160: 55 | CV160: 55 | CW160: 11.24686176 | CX160: 88.75313824 | CY160: 3856.569196 | CZ160: 15500 | DA160: 0.2488109159 | DB160: 3422.82619 | DC160: 433.7430062 | DD160: 19034.0617 | DE160: 2412.010042 | DF160: 21446.07174 | DG160: 493932 | DH160: 45.61882753 | DI160: 32.73666917 | DJ160: 40.9590066 | DM160: 0 | DN160: 1.351595923e-06 | DO160: No | DP160: No | DQ160: 12 | DR160: 12 | DS160: No | DT160: 2 | DU160: 0 | DV160: 2 Lane Undivided | DW160: 4A - 4 Lane Divided (46' Depressed Median) with Paved Shoulders | DX160: None | DY160: Partial | DZ160: 1 | EA160: Yes | EB160: 26 | EC160: 10800000 | ED160: 4700000 | EE160: 0 | EF160: 15500000 | EH160: 15500000 | EI160: 15500000
A161: H090149-B | B161: Northampton | C161: Peanut Belt RPO | D161: Highway | E161: Statewide Mobility | F161: R-2584B | G161: US-158 | H161: East of SR 1500 | I161: East of SR 1365 | J161: Widen to Multi-Lanes, Part on New Location. | K161: 6 - Widen Existing Roadway and Construct Part on New Location | L161: 54800000 | M161: 7.930555896 | O161: 8.22 | Q161: 6.31 | S161: =Q161+#REF!+R161 ->  | U161: 0 | V161: 0 | W161: 3336.376316 | X161: 5 | Y161: 20 | Z161: Yes | AA161: 20 | AB161: Yes | AC161: =IF(AD161="Yes",10,0) -> 10 | AD161: Yes | AE161: 0 | AF161: 5 | AG161: 15 | AH161: 10 | AI161: Yes | AJ161: 15 | AK161: Minimal | AL161: 10 | AM161: Yes | AN161: 0 | AO161: No | AP161: 0 | AQ161: No | AR161: 17.8257983 | AS161: 0.05799131387 | AT161: 20.2622971 | AU161: 2.695946515 | AV161: 0 | AW161: 24.61286303 | AX161: 0 | AY161: 25 | BC161: Peanut Belt RPO | BD161: 100 | BI161: 01 | BJ161: 100 | BO161: 55 | BP161: 55 | BS161: 0 | BU161: 6.31 | BV161: Exceeds cap of $15 million for Statewide & Regional Projects cascading to Division Needs | BW161: 8.22 | BX161: 8.22 | BY161: Under Threshold of SPOT Score of "10" | BZ161: Northampton | CA161: 100 | CH161: 1 | CI161: A | CJ161: 01, , | CK161: Peanut Belt RPO, , | CL161: Northampton, , , | CM161: 3.5 | CN161: 3.90672736 | CO161: Two Lane Highway | CP161: Multi-Lane Highway | CQ161: 1 | CR161: 2 | CS161: Undivided | CT161: Divided | CU161: 47 | CV161: 55 | CW161: 12.82474808 | CX161: 87.17525192 | CY161: 4204.287677 | CZ161: 15625.36919 | DA161: 0.2690680537 | DB161: 3665.098374 | DC161: 539.189303 | DD161: 119535.7299 | DE161: 17585.44528 | DF161: 137121.1752 | DG161: 3177924 | DH161: 28.27787548 | DI161: 8.9871338 | DJ161: 23.52796132 | DM161: 0 | DN161: 0 | DO161: No | DP161: No | DQ161: 12 | DR161: 12 | DS161: No | DT161: 1 | DU161: 2 | DV161: New Roadway | DW161: 4A - 4 Lane Divided (46' Depressed Median) with Paved Shoulders | DX161: None | DY161: Partial | DZ161: 1 | EA161: Yes | EB161: 26 | EC161: 47600000 | ED161: 7200000 | EE161: 0 | EF161: 54800000 | EH161: 54800000 | EI161: 54800000
A162: B141344 | B162: Tyrrell | C162: Albemarle RPO | D162: Bike & Ped | E162: Division Needs | G162: Fonsoe Street | H162: US 64/Scuppernong Drive | I162: Main Street | J162: Construct a pedestrian sidewalk on one side of Fonsoe Street to connect US 64/Scuppernong Drive to Main Street | K162: 5. Construct Sidewalk | L162: 100000 | Q162: 18.81957006 | R162: 9.75 | S162: =Q162+#REF!+R162 ->  | U162: N/A | W162: 20040.48583 | Z162: Yes | AE162: 0 | AF162: 0 | AG162: 15 | AH162: 10 | AI162: Yes | AJ162: =IF(AK162="Minimal",15,0) -> 15 | AK162: Minimal | AL162: 10 | AM162: Yes | AN162: 0 | AO162: No | AP162: 0 | AQ162: No | AT162: 22.5 | BC162: Albemarle RPO | BP162: =SUM(AE162+AF162+AG162+AH162+AJ162+AL162+AN162) -> 50 | BZ162: Tyrrell County | CN162: 0.25 | CY162: 494 | EC162: 85000 | ED162: 0 | EF162: 100000 | EG162: 0 | EH162: 2475000
A163: B141340 | B163: Tyrrell | C163: Albemarle RPO | D163: Bike & Ped | E163: Division Needs | G163: Main Street | H163: Broad Street | I163: Road Street | J163: Construct 305 feet of pedestrian sidewalk on the north side of Main Street in front of Columbia Middle School. | K163: 5. Construct Sidewalk | L163: 100000 | Q163: 17.71796514 | R163: 9.75 | S163: =Q163+#REF!+R163 ->  | U163: N/A | W163: 6121.944019 | Z163: Yes | AE163: 0 | AF163: 0 | AG163: 15 | AH163: 10 | AI163: Yes | AJ163: 15 | AK163: Minimal | AL163: 10 | AM163: Yes | AN163: 0 | AO163: No | AP163: 0 | AQ163: No | AT163: 12.5 | BC163: Albemarle RPO | BP163: 50 | BZ163: Tyrrell County | CN163: 0.17 | CY163: 538 | EC163: 80000 | ED163: 0 | EF163: 100000 | EG163: 0 | EH163: 559913
A164: B141755 | B164: Camden | C164: Albemarle RPO | D164: Bike & Ped | E164: Division Needs | G164: Main St. | H164: US 17 | I164: SR 1243-Mullen Drive | J164: Widen existing pavement | K164: 2. Construct multi-use trail / greenway / sidepath or on-road bike lane on local roadway | L164: 345000 | Q164: 13.99722963 | R164: 8.25 | S164: =Q164+#REF!+R164 ->  | U164: N/A | W164: 76968.81607 | Z164: Yes | AE164: 0 | AF164: 0 | AG164: 15 | AH164: 10 | AI164: Yes | AJ164: 15 | AK164: Minimal | AL164: 10 | AM164: Yes | AN164: 0 | AO164: No | AP164: 0 | AQ164: No | AT164: 25 | BC164: Albemarle RPO | BP164: 50 | BZ164: Camden County | CN164: 1.056 | CY164: =129*0.1 -> 12.9 | EC164: 300000 | ED164: 0 | EF164: 345000 | EG164: 0 | EH164: 1048500
A165: B141780 | B165: Dare | C165: Albemarle RPO | D165: Bike & Ped | E165: Division Needs | G165: Colington Road Path | H165: .3 miles west Baum St | I165: Bridge | J165: Construct Multi use path | K165: 2. Construct multi-use trail / greenway / sidepath or on-road bike lane on local roadway | L165: 410000 | Q165: 13.32144143 | R165: 9.75 | S165: =Q165+#REF!+R165 ->  | U165: N/A | W165: 14204.54545 | Z165: Yes | AE165: 0 | AF165: 0 | AG165: 15 | AH165: 10 | AI165: Yes | AJ165: 15 | AK165: Minimal | AL165: 10 | AM165: Yes | AN165: 0 | AO165: No | AP165: 0 | AQ165: No | AT165: 12.5 | BC165: Albemarle RPO | BP165: 50 | BZ165: Dare County | CN165: 0.32 | CY165: =902*0.1 -> 90.2 | EC165: 310000 | ED165: 0 | EF165: 410000 | EG165: 0 | EH165: 410000
A166: B141940 | B166: Currituck | C166: Albemarle RPO | D166: Bike & Ped | E166: Division Needs | G166: Currituck Multi-Use | H166: Ocean Sands(K) | I166: Seabird Way | J166: Construct Multi-use path | K166: 2. Construct multi-use trail / greenway / sidepath or on-road bike lane on local roadway | L166: 460000 | Q166: 13.10250952 | R166: 13.5 | S166: =Q166+#REF!+R166 ->  | U166: N/A | W166: 22616.64782 | Z166: Yes | AE166: 0 | AF166: 0 | AG166: 15 | AH166: 10 | AI166: Yes | AJ166: 15 | AK166: Minimal | AL166: 10 | AM166: Yes | AN166: 0 | AO166: No | AP166: 0 | AQ166: No | AT166: 25 | BC166: Albemarle RPO | BP166: 50 | BZ166: Currituck County | CN166: 4.73 | CY166: =43*0.1 -> 4.3 | EC166: 400000 | ED166: 0 | EF166: 460000 | EG166: 0 | EH166: 460000
A167: B141963 | B167: Currituck | C167: Albemarle RPO | D167: Bike & Ped | E167: Division Needs | G167: Corolla multi-use path | H167: Ocean Sands Section A | I167: Yaupon Lane/Old Stoney Road | J167: Oceans Sands section A (.1 mile south of Ocean Way) to Yaupon Lane/Old stoney Road | K167: 2. Construct multi-use trail / greenway / sidepath or on-road bike lane on local roadway | L167: 400000 | Q167: 12.85220009 | R167: 13.5 | S167: =Q167+#REF!+R167 ->  | U167: N/A | W167: 126984.127 | Z167: Yes | AE167: 0 | AF167: 0 | AG167: 15 | AH167: 10 | AI167: Yes | AJ167: 15 | AK167: Minimal | AL167: 10 | AM167: Yes | AN167: 0 | AO167: No | AP167: 0 | AQ167: No | AT167: 25 | BC167: Albemarle RPO | BP167: 50 | BZ167: Currituck County | CN167: 0.7 | CY167: =45*0.1 -> 4.5 | EC167: 380000 | ED167: 0 | EF167: 400000 | EG167: 0 | EH167: 400000
A168: B141961 | B168: Currituck | C168: Albemarle RPO | D168: Bike & Ped | E168: Division Needs | G168: Corolla multi-use path | H168: Ocean Sands section c | I168: Ocean Sands section A | J168: Ocean Sands Section C, .5 miles south of Sandhill Ln. to .1 miles south of Ocean Way. | K168: 2. Construct multi-use trail / greenway / sidepath or on-road bike lane on local roadway | L168: 420000 | Q168: 12.73396082 | R168: 13.5 | S168: =Q168+#REF!+R168 ->  | U168: N/A | W168: 190217.3913 | Z168: Yes | AE168: 0 | AF168: 0 | AG168: 15 | AH168: 10 | AI168: Yes | AJ168: 15 | AK168: Minimal | AL168: 10 | AM168: Yes | AN168: 0 | AO168: No | AP168: 0 | AQ168: No | AT168: 25 | BC168: Albemarle RPO | BP168: 50 | BZ168: Currituck County | CN168: 0.46 | CY168: =48*0.1 -> 4.8 | EC168: 400000 | ED168: 380000 | EF168: 800000 | EG168: 0 | EH168: 420000
A169: B141774 | B169: Dare | C169: Albemarle RPO | D169: Bike & Ped | E169: Division Needs | G169: NC 12 Duck | H169: Cook Drive | I169: Ships Watch Drive | J169: Construct Sidewalk and extend share use path | K169: 5. Construct Sidewalk | L169: 290800 | Q169: 12.66931942 | R169: 13.5 | S169: =Q169+#REF!+R169 ->  | U169: N/A | W169: 7133.045526 | Z169: Yes | AE169: 0 | AF169: 0 | AG169: 15 | AH169: 10 | AI169: Yes | AJ169: 15 | AK169: Minimal | AL169: 10 | AM169: Yes | AN169: 0 | AO169: No | AP169: 0 | AQ169: No | AT169: 25 | BC169: Albemarle RPO | BP169: 50 | BZ169: Dare County | CN169: 2.08 | CY169: =196*0.1 -> 19.6 | EC169: 370000 | ED169: 0 | EF169: 426000 | EG169: 135200 | EH169: 290800
A170: B141362 | B170: Dare | C170: Albemarle RPO | D170: Bike & Ped | E170: Division Needs | G170: US 158 | H170: Gulfstream Road | I170: Gull Street | J170: Construct sidewalk from Gulfstream Road to Gull Street | K170: 2. Construct multi-use trail / greenway / sidepath or on-road bike lane on local roadway | L170: 415000 | Q170: 11.79924735 | R170: 9.75 | S170: =Q170+#REF!+R170 ->  | U170: N/A | W170: 312132.3529 | Z170: Yes | AE170: 0 | AF170: 0 | AG170: 15 | AH170: 10 | AI170: Yes | AJ170: 15 | AK170: Minimal | AL170: 10 | AM170: Yes | AN170: 0 | AO170: No | AP170: 0 | AQ170: No | AT170: 25 | BC170: Albemarle RPO | BP170: 50 | BZ170: Dare County | CN170: 0.48 | CY170: =170*0.1 -> 17 | EC170: 400000 | ED170: 0 | EF170: 415000 | EG170: 0 | EH170: 2547000
A171: B141791 | B171: Camden | C171: Albemarle RPO | D171: Bike & Ped | E171: Division Needs | G171: SR 1215 | H171: US 17 | I171: US 17 | J171: Construct Sidewalk on roads south side of US 17 | K171: 5. Construct Sidewalk | L171: 370000 | Q171: 11.62296047 | R171: 8.25 | S171: =Q171+#REF!+R171 ->  | U171: N/A | W171: 14192.5585 | Z171: Yes | AE171: 0 | AF171: 0 | AG171: 15 | AH171: 10 | AI171: Yes | AJ171: 15 | AK171: Minimal | AL171: 10 | AM171: Yes | AN171: 0 | AO171: No | AP171: 0 | AQ171: No | AT171: 5 | BC171: Albemarle RPO | BP171: 50 | BZ171: Camden County | CN171: 0.79 | CY171: =330*0.1 -> 33 | EC171: 320000 | ED171: 0 | EF171: 370000 | EG171: 0 | EH171: 370000
A172: B141762 | B172: Dare | C172: Albemarle RPO | D172: Bike & Ped | E172: Division Needs | G172: Nags Head Multi use Path | H172: Gull Street | I172: Grouse St. | J172: Construct Multi use Path | K172: 2. Construct multi-use trail / greenway / sidepath or on-road bike lane on local roadway | L172: 437000 | Q172: 11.36887919 | R172: 9.75 | S172: =Q172+#REF!+R172 ->  | U172: N/A | W172: 340460.5263 | Z172: Yes | AE172: 0 | AF172: 0 | AG172: 15 | AH172: 10 | AI172: Yes | AJ172: 15 | AK172: Minimal | AL172: 10 | AM172: Yes | AN172: 0 | AO172: No | AP172: 0 | AQ172: No | AT172: 25 | BC172: Albemarle RPO | BP172: 50 | BZ172: Dare County | CN172: 0.32 | CY172: =190*0.1 -> 19 | EC172: 380000 | ED172: 0 | EF172: 437000 | EG172: 0 | EH172: 2070000
A173: B141776 | B173: Dare | C173: Albemarle RPO | D173: Bike & Ped | E173: Division Needs | G173: Colington Road | H173: SR 1452 | I173: .3 miles west | J173: Construct Multi use path | K173: 2. Construct multi-use trail / greenway / sidepath or on-road bike lane on local roadway | L173: 400000 | Q173: 10.89978057 | R173: 9.75 | S173: =Q173+#REF!+R173 ->  | U173: N/A | W173: 16479.21559 | Z173: Yes | AE173: 0 | AF173: 0 | AG173: 15 | AH173: 10 | AI173: Yes | AJ173: 15 | AK173: Minimal | AL173: 10 | AM173: Yes | AN173: 0 | AO173: No | AP173: 0 | AQ173: No | AT173: 12.5 | BC173: Albemarle RPO | BP173: 50 | BZ173: Dare County | CN173: 0.27 | CY173: =899*0.1 -> 89.9 | EC173: 300000 | ED173: 0 | EF173: 400000 | EG173: 0 | EH173: 400000
A174: B141954 | B174: Dare | C174: Albemarle RPO | D174: Bike & Ped | E174: Division Needs | G174: NC 12-Hatteras-II | H174: SR 1237 | I174: .8 miles south | J174: Construct curb & gutter /Sidewalk | K174: 5. Construct Sidewalk | L174: 370000 | Q174: 10.80472295 | R174: 9.75 | S174: =Q174+#REF!+R174 ->  | U174: N/A | W174: 11725.18697 | Z174: Yes | AE174: 0 | AF174: 0 | AG174: 15 | AH174: 10 | AI174: Yes | AJ174: 15 | AK174: Minimal | AL174: 10 | AM174: Yes | AN174: 0 | AO174: No | AP174: 0 | AQ174: No | AT174: 5 | BC174: Albemarle RPO | BP174: 50 | BZ174: Dare County | CN174: 0.49 | CY174: =644*0.1 -> 64.4 | EC174: 320000 | ED174: 145000 | EF174: 515000 | EG174: 0 | EH174: 370000
A175: B141947 | B175: Dare | C175: Albemarle RPO | D175: Bike & Ped | E175: Division Needs | G175: NC 12-Hatteras | H175: Bridge | I175: SR 1237 | J175: Construct curb & gutter and sidewalk | K175: 5. Construct Sidewalk | L175: 406000 | Q175: 10.50233479 | R175: 9.75 | S175: =Q175+#REF!+R175 ->  | U175: N/A | W175: 8369.408369 | Z175: Yes | AE175: 0 | AF175: 0 | AG175: 15 | AH175: 10 | AI175: Yes | AJ175: 15 | AK175: Minimal | AL175: 10 | AM175: Yes | AN175: 0 | AO175: No | AP175: 0 | AQ175: No | AT175: 5 | BC175: Albemarle RPO | BP175: 50 | BZ175: Dare County | CN175: 0.77 | CY175: =630*0.1 -> 63 | EC175: 356000 | ED175: 162000 | EF175: 568000 | EG175: 0 | EH175: 406000
A176: B141860 | B176: Dare | C176: Albemarle RPO | D176: Bike & Ped | E176: Division Needs | G176: Twiford Street | H176: Twiford Street | I176: The Woods Road | J176: Connect existing The Woods Road and Twiford Street multi-use paths | K176: 2. Construct multi-use trail / greenway / sidepath or on-road bike lane on local roadway | L176: 162000 | Q176: 10.15362731 | R176: 7.5 | S176: =Q176+#REF!+R176 ->  | U176: N/A | W176: 35495.17967 | Z176: Yes | AE176: 0 | AF176: 0 | AG176: 15 | AH176: 10 | AI176: Yes | AJ176: 15 | AK176: Minimal | AL176: 10 | AM176: Yes | AN176: 0 | AO176: No | AP176: 0 | AQ176: No | AT176: 12.5 | BC176: Albemarle RPO | BP176: 50 | BZ176: Dare County | CN176: 0.07 | CY176: =652*0.1 -> 65.2 | EC176: 152000 | ED176: 0 | EF176: 162000 | EG176: 0 | EH176: 162000
A177: B141955 | B177: Chowan | C177: Albemarle RPO | D177: Bike & Ped | E177: Division Needs | G177: Edenton Multi-use path | H177: Twiddy Avenue | I177: Chowan River fising pier | J177: Connect path where existing sidewalk stops near Twiddy Ave. and extend towards Pembroke to the west side of town, connecting residential subdivisions and over the US 17 bypass overpass, terminating at the new Chowan River fishing pier. (Phase 2) | K177: 2. Construct multi-use trail / greenway / sidepath or on-road bike lane on local roadway | L177: 400000 | Q177: 5.414176978 | R177: 3.75 | S177: =Q177+#REF!+R177 ->  | U177: N/A | W177: =(EH177/CY177)/CN177 -> 38986.35478 | Z177: Yes | AE177: =IF(AT177<30,0,IF(AT177<50,5,IF(AT177<65,10,IF(AT177<79,15,IF(AT177>80,20))))) -> 0 | AF177: 0 | AG177: =IF(Z177="Yes",15,0) -> 15 | AH177: 10 | AI177: Yes | AJ177: 15 | AK177: Minimal | AL177: 10 | AM177: Yes | AN177: 0 | AO177: No | AP177: 0 | AQ177: No | AT177: 12.5 | BC177: Albemarle RPO | BP177: 50 | BZ177: Chowan County | CN177: 0.15 | CY177: =684*0.1 -> 68.4 | EC177: 380000 | ED177: 0 | EF177: 400000 | EG177: 0 | EH177: 400000
A178: H141662 | B178: Northampton | C178: Peanut Belt RPO | D178: Highway | E178: Regional Impact | G178: NC-35 | H178: Hertford County Line | I178: Virginia State Line | J178: Currently 2-lane major thoroughfare from the Hertford County line to the Virginia State Line, NC 35 in Northampton County is a major truck route with high truck percentage. It is recommended to upgrade the existing facility to 24 feet w/ paved shoulders and turn lanes at all major intersections; while also modifying curves in some sections. This will improve overall connectivity in Severn, Conway, Woodland. | K178: 1 - Widen Existing Roadway | L178: 69277000 | O178: 8.16 | Q178: 6.27 | S178: =Q178+#REF!+R178 ->  | U178: =IF(AT178<30,0,IF(AT178<50,5,IF(AT178<65,10,IF(AT178>66,15)))) -> 5 | V178: =IF(W178<499,15,IF(W178<999,10,IF(W178<1499,5,IF(W178>1500,0)))) -> 0 | W178: 1957.443714 | X178: =IF(DC178<500,0,IF(DC178<1000,5,IF(DC178>1000,10))) -> 0 | Y178: =IF(Z178="Yes",20,0) -> 20 | Z178: Yes | AA178: =IF(AB178="Yes",20,0) -> 20 | AB178: Yes | AC178: =IF(AD178="Yes",10,0) -> 10 | AD178: Yes | AE178: 5 | AF178: =IF(BL176<999,20,IF(BL176<1499,15,IF(BL176<1999,10,IF(BL176<3999,5,IF(BL176>4000,0))))) -> 20 | AG178: 15 | AH178: 10 | AI178: Yes | AJ178: 15 | AK178: Minimal | AL178: 10 | AM178: Yes | AN178: 0 | AO178: No | AP178: 0 | AQ178: No | AR178: 7.373362782 | AS178: 0.1273319861 | AT178: 30.19760828 | AU178: 1.109849297 | AV178: N/A | AW178: 13.73209967 | AX178: 25 | AY178: 0 | BC178: Peanut Belt RPO | BD178: 100 | BI178: 01 | BJ178: 100 | BO178: =SUM(U178+V178+X178+Y178+AA178+AC178) -> 55 | BP178: =SUM(AE178+AF178+AG178+AH178+AJ178+AL178+AN178+AP178) -> 75 | BS178: 0 | BU178: =Q178+BT178*0.25 -> 6.27 | BV178: Exceeds cap of $15 million for Statewide & Regional Projects cascading to Division Needs | BW178: =O178+BS178*0.25 -> 8.16 | BX178: =BW178+P178 -> 8.16 | BY178: Under Threshold of SPOT Score of "10" | BZ178: Northampton | CA178: 100 | CH178: 1 | CI178: A | CJ178: 01, , | CK178: Peanut Belt RPO, , | CL178: Northampton, , , | CM178: 20.43275423 | CN178: 20.43275423 | CO178: Two Lane Highway | CP178: Two Lane Highway | CQ178: 1 | CR178: 1 | CS178: Undivided | CT178: TWLTL | CU178: 51.12305791 | CV178: 55 | CW178: 12.81507431 | CX178: 87.18492569 | CY178: 1732.099668 | CZ178: 15556.56367 | DA178: 0.1113420486 | DB178: 1510.129808 | DC178: 221.9698595 | DD178: 331852.8832 | DE178: 48778.14969 | DF178: 380631.0329 | DG178: 8821178 | DH178: 28.49485407 | DI178: 27.02653977 | DJ178: 35.0804912 | DO178: No | DP178: No | DQ178: 10 | DR178: 11 | DS178: No | DT178: 0 | DU178: 0 | DV178: 2 Lane Undivided | DW178: 3A - 2 Lane with Two Way Left Turn Lane, and Paved Shoulders | DX178: None | DY178: None | DZ178: 1 | EA178: No | EB178: 26 | EC178: 60103000 | ED178: 8191000 | EE178: 983000 | EF178: 69277000 | EH178: 69277000 | EI178: 69277000
A179: H129112-B | B179: Northampton | C179: Peanut Belt RPO | D179: Highway | E179: Statewide Mobility | F179: R-2582B | G179: US-158 , NC-46 | H179: SR 1312 (St. John Church Road) | I179: SR 1333 (Lynch Road) East of Jackson | J179: Widen to Multi-Lanes with Bypass of Jackson, Part on New Location. | K179: 1 - Widen Existing Roadway | L179: 66800000 | M179: 8.507503487 | O179: 6.68431603 | Q179: 4.455879358 | S179: =Q179+#REF!+R179 ->  | U179: =IF(AT179<30,0,IF(AT179<50,5,IF(AT179<65,10,IF(AT179>66,15)))) -> 0 | V179: =IF(W179<499,15,IF(W179<999,10,IF(W179<1499,5,IF(W179>1500,0)))) -> 0 | W179: 3315.547552 | X179: =IF(DC179<500,0,IF(DC179<1000,5,IF(DC179>1000,10))) -> 5 | Y179: =IF(Z179="Yes",20,0) -> 20 | Z179: Yes | AA179: =IF(AB179="Yes",20,0) -> 20 | AB179: Yes | AC179: =IF(AD179="Yes",10,0) -> 10 | AD179: Yes | AE179: 0 | AF179: =IF(W179<999,20,IF(W179<1499,15,IF(W179<1999,10,IF(W179<3999,5,IF(W179>4000,0))))) -> 5 | AG179: 15 | AH179: 10 | AI179: Yes | AJ179: 15 | AK179: Minimal | AL179: 10 | AM179: Yes | AN179: 0 | AO179: No | AP179: 0 | AQ179: No | AR179: 17.44758361 | AS179: 0.009939865269 | AT179: 27.1012701 | AU179: 2.758202005 | AV179: 0.08479033578 | AW179: 16.25547822 | AX179: 0 | AY179: 0 | BC179: Peanut Belt RPO | BD179: 100 | BI179: 01 | BJ179: 100 | BO179: =SUM(U179+V179+X179+Y179+AA179+AC179) -> 55 | BP179: 55 | BS179: 0 | BU179: 4.455879358 | BV179: Exceeds cap of $15 million for Statewide & Regional Projects cascading to Division Needs | BW179: =O179+BS179*0.25 -> 6.68431603 | BX179: =BW179+P179 -> 6.68431603 | BY179: Under Threshold of SPOT Score of "10" | BZ179: Northampton | CA179: 100 | CH179: 1 | CI179: A | CJ179: 01, , | CK179: Peanut Belt RPO, , | CL179: Northampton, , , | CM179: 4.93187651 | CN179: 4.93187651 | CO179: Two Lane Highway | CP179: Multi-Lane Highway | CQ179: 1 | CR179: 2 | CS179: Undivided | CT179: Divided | CU179: 55 | CV179: 55 | CW179: 13.50352204 | CX179: 86.49647796 | CY179: 4085.159407 | CZ179: 15500.00043 | DA179: 0.2635586641 | DB179: 3533.519006 | DC179: 551.640401 | DD179: 24714.48349 | DE179: 3858.337131 | DF179: 28572.82062 | DG179: 663983 | DH179: 37.27248283 | DI179: 20.23030965 | DJ179: 23.80914902 | DM179: 0 | DN179: 1.695806716e-06 | DO179: No | DP179: No | DQ179: 12 | DR179: 12 | DS179: No | DT179: 2 | DU179: 2 | DV179: 2 Lane Undivided | DW179: 4A - 4 Lane Divided (46' Depressed Median) with Paved Shoulders | DX179: None | DY179: Partial | DZ179: 1 | EA179: Yes | EB179: 22 | EC179: 61400000 | ED179: 5400000 | EE179: 0 | EF179: 66800000 | EH179: 66800000 | EI179: 66800000
A180: H090149-A | B180: Northampton | C180: Peanut Belt RPO | D180: Highway | E180: Statewide Mobility | F180: R-2584A | G180: US-158 | H180: SR 1333 (Mt. Caramel Road-Severn Road) East of Jackson | I180: East of SR 1500 | J180: Widen to Multi-Lanes, Part on New Location. | K180: 1 - Widen Existing Roadway | L180: 35400000 | M180: 6.766591786 | O180: 6.19536665 | Q180: 4.130244433 | S180: =Q180+#REF!+R180 ->  | U180: =IF(AT180<30,0,IF(AT180<50,5,IF(AT180<65,10,IF(AT180>66,15)))) -> 0 | V180: =IF(W180<499,15,IF(W180<999,10,IF(W180<1499,5,IF(W180>1500,0)))) -> 5 | W180: 1494.048622 | X180: =IF(DC180<500,0,IF(DC180<1000,5,IF(DC180>1000,10))) -> 0 | Y180: =IF(Z180="Yes",20,0) -> 20 | Z180: Yes | AA180: =IF(AB180="Yes",20,0) -> 20 | AB180: Yes | AC180: =IF(AD180="Yes",10,0) -> 10 | AD180: Yes | AE180: 0 | AF180: 15 | AG180: 15 | AH180: 10 | AI180: Yes | AJ180: 15 | AK180: Minimal | AL180: 10 | AM180: Yes | AN180: 0 | AO180: No | AP180: 0 | AQ180: No | AR180: 11.37550415 | AS180: 0 | AT180: 29.92694018 | AU180: 1.806232616 | AV180: 0 | AW180: 19.99034667 | AX180: 0 | AY180: 0 | BC180: Peanut Belt RPO | BD180: 100 | BI180: 01 | BJ180: 100 | BO180: =SUM(U180+V180+X180+Y180+AA180+AC180) -> 55 | BP180: 65 | BS180: 0 | BU180: 4.130244433 | BV180: Exceeds cap of $15 million for Statewide & Regional Projects cascading to Division Needs | BW180: =O180+BS180*0.25 -> 6.19536665 | BX180: =BW180+P180 -> 6.19536665 | BY180: Under Threshold of SPOT Score of "10" | BZ180: Northampton | CA180: 100 | CH180: 1 | CI180: A | CJ180: 01, , | CK180: Peanut Belt RPO, , | CL180: Northampton, , , | CM180: 8.89598749 | CN180: 8.89598749 | CO180: Two Lane Highway | CP180: Multi-Lane Highway | CQ180: 1 | CR180: 2 | CS180: Undivided | CT180: Divided | CU180: 55 | CV180: 55 | CW180: 13.56311077 | CX180: 86.43688923 | CY180: 2663.448889 | CZ180: 15500.00021 | DA180: 0.1718354099 | DB180: 2302.202366 | DC180: 361.2465232 | DD180: 0 | DE180: 0 | DF180: 0 | DG180: 0 | DH180: 31.48899704 | DI180: 30.54223758 | DJ180: 27.75856491 | DM180: 0 | DN180: 0 | DO180: No | DP180: No | DQ180: 12 | DR180: 12 | DS180: No | DT180: 2 | DU180: 0 | DV180: 2 Lane Undivided | DW180: 4A - 4 Lane Divided (46' Depressed Median) with Paved Shoulders | DX180: None | DY180: Partial | DZ180: 1 | EA180: Yes | EB180: 26 | EC180: 31300000 | ED180: 4100000 | EE180: 0 | EF180: 35400000 | EH180: 35400000 | EI180: 35400000
A181: H141650 | B181: Northampton | C181: Peanut Belt RPO | D181: Highway | E181: Regional Impact | G181: US-258 | H181: Halifax County Line | I181: Rich Square Town Limits | J181: Currently a 2-lane major thoroughfare, it is recommended to widen to 24 feet w/ paved shoulders where necessary from Halifax County line to Rich Square town limits. Provides continuity with Halifax County CTP recommendations, which were based on recommendations in the Edgecombe County CTP. | K181: 16 - Modernize Roadway | L181: 701000 | O181: 6.00184402 | Q181: 4.001229347 | S181: =Q181+#REF!+R181 ->  | U181: =IF(AT181<30,0,IF(AT181<50,5,IF(AT181<65,10,IF(AT181>66,15)))) -> 0 | V181: =IF(W181<499,15,IF(W181<999,10,IF(W181<1499,5,IF(W181>1500,0)))) -> 15 | W181: 45.60456506 | X181: =IF(DC181<500,0,IF(DC181<1000,5,IF(DC181>1000,10))) -> 0 | Y181: =IF(Z181="Yes",20,0) -> 20 | Z181: Yes | AA181: =IF(AB181="Yes",20,0) -> 20 | AB181: Yes | AC181: =IF(AD181="Yes",10,0) -> 10 | AD181: Yes | AE181: 0 | AF181: 20 | AG181: 15 | AH181: =IF(AI181="Yes",10,0) -> 10 | AI181: Yes | AJ181: 15 | AK181: Minimal | AL181: 10 | AM181: Yes | AN181: 0 | AO181: No | AP181: 0 | AQ181: No | AR181: 11.15347627 | AS181: 0 | AT181: 28.8588172 | AU181: 1.999890922 | AV181: N/A | AW181: 12.6114652 | AX181: 0 | AY181: 0 | BC181: Peanut Belt RPO | BD181: 100 | BI181: 01 | BJ181: 100 | BK181: 04 | BO181: =SUM(U181+V181+X181+Y181+AA181+AC181) -> 65 | BP181: 70 | BS181: 0 | BT181: 100 | BU181: 29.00122935 | BW181: =O181+BS181*0.25 -> 6.00184402 | BX181: =BW181+P181 -> 6.00184402 | BY181: Under Threshold of SPOT Score of "10" | BZ181: Northampton | CA181: 100 | CB181: Halifax | CH181: 1 | CI181: A | CJ181: 01, 04, | CK181: Peanut Belt RPO, , | CL181: Northampton, Halifax, , | CM181: 5.88607046 | CN181: 5.88607046 | CO181: Two Lane Highway | CP181: Two Lane Highway | CQ181: 1 | CR181: 1 | CS181: Undivided | CT181: Undivided | CU181: 55.00004009 | CV181: 55.00004009 | CW181: 15.31623642 | CX181: 84.68376358 | CY181: 2611.465203 | CZ181: 15500.0113 | DA181: 0.1684815032 | DB181: 2211.487018 | DC181: 399.9781845 | DD181: 0 | DE181: 0 | DF181: 0 | DG181: 0 | DH181: 29.79668107 | DI181: 26.99174796 | DJ181: 29.79668107 | DO181: No | DP181: No | DQ181: 12 | DR181: 12 | DS181: No | DT181: 4 | DU181: 0 | DV181: 2 Lane Undivided | DW181: 3A - 2 Lane with Two Way Left Turn Lane, and Paved Shoulders | DX181: None | DY181: None | DZ181: 1 | EA181: No | EB181: 25 | EC181: 701000 | ED181: 0 | EE181: 0 | EF181: 701000 | EH181: 701000 | EI181: 701000
A182: H141220 | B182: Perquimans | C182: Albemarle RPO | D182: Highway | E182: Division Needs | G182: SR-1200 | H182: NC 37 | I182: SR 1213 | J182: Widen and repave Perry's Bridge Road | K182: 16 - Modernize Roadway | L182: 1487000 | Q182: 7.89 | R182: 4.5 | S182: =Q182+#REF!+R182 ->  | U182: N/A | W182: 9466.392131 | Z182: Yes | AE182: 0 | AF182: 0 | AG182: 15 | AH182: 10 | AI182: No | AJ182: =IF(AK182="Minimal",15,0) -> 15 | AK182: Minimal | AL182: 10 | AM182: Yes | AN182: 0 | AO182: No | AP182: 0 | AQ182: No | AR182: 0.3843870968 | AS182: 0 | AT182: 3.537550336 | AU182: 0 | AV182: N/A | AW182: N/A | AX182: 75 | AY182: 0 | BC182: Albemarle RPO | BD182: 100 | BI182: 01 | BJ182: 100 | BP182: 50 | BU182: 7.89 | BV182: Project Not Competitive | BZ182: Perquimans | CA182: 100 | CH182: 1 | CI182: A | CJ182: 01, , | CK182: Albemarle RPO, , | CL182: Perquimans, , , | CM182: 1.74535578 | CN182: 1.74535578 | CO182: Two Lane Highway | CP182: Two Lane Highway | CQ182: 1 | CR182: 1 | CS182: Undivided | CT182: Undivided | CU182: 55 | CV182: 55 | CW182: 0 | CX182: 100 | CY182: 90 | CZ182: 15500 | DA182: 0.005806451613 | DB182: 90 | DC182: 0 | DD182: 0 | DE182: 0 | DF182: 0 | DG182: 0 | DH182: 7.05114159 | DI182: 0 | DJ182: 3.56257079 | DO182: No | DP182: No | DQ182: 9 | DR182: 12 | DS182: No | DT182: 0 | DU182: 0 | DV182: 2 Lane Undivided | DW182: 3A - 2 Lane with Two Way Left Turn Lane, and Paved Shoulders | DX182: None | DY182: None | DZ182: 2 | EA182: No | EB182: 30 | EC182: 1487000 | ED182: 0 | EE182: 0 | EF182: 1487000 | EH182: 1487000 | EI182: 1487000
A183: H090305 | B183: Washington | C183: Albemarle RPO | D183: Highway | E183: Division Needs | F183: R-4909 | G183: - New Route | H183: SR 1126 (Newland Road) | I183: SR 1125 (Millpond Road) | J183: Construct Two Lane Facility on New Location. | K183: 5 - Construct Roadway on New Location | L183: 3830000 | Q183: 1.754391855 | R183: 6 | S183: =Q183+#REF!+R183 ->  | U183: N/A | W183: 5466.922176 | Z183: Yes | AE183: 0 | AF183: 0 | AG183: 15 | AH183: 10 | AI183: No | AJ183: =IF(AK183="Minimal",15,0) -> 15 | AK183: Minimal | AL183: 10 | AM183: Yes | AN183: 0 | AO183: No | AP183: =IF(AQ183="Yes",10,0) -> 0 | AQ183: No | AR183: 2.661746009 | AS183: 1.30046423 | AT183: 13.58170831 | AU183: 0 | AV183: N/A | AW183: N/A | AX183: 0 | AY183: 0 | BC183: Albemarle RPO | BD183: 100 | BI183: 01 | BJ183: 100 | BP183: 50 | BU183: 1.754391855 | BV183: Project Not Competitive | BZ183: Washington | CA183: 100 | CH183: 1 | CI183: A | CJ183: 01, , | CK183: Albemarle RPO, , | CL183: Washington, , , | CM183: 3.2 | CN183: 1.11833022 | CO183: Two Lane Highway | CP183: Two Lane Highway | CQ183: 1 | CR183: 1 | CS183: Undivided | CT183: Undivided | CU183: 48 | CV183: 55 | CW183: 0 | CX183: 100 | CY183: 626.4491462 | CZ183: 15588.69995 | DA183: 0.04018610585 | DB183: 626.4491462 | DC183: 0 | DD183: 226398.998 | DE183: 0 | DF183: 226398.998 | DG183: 4980778 | DH183: 11.35602182 | DI183: 15.8078866 | DJ183: 13.58529144 | DO183: No | DP183: No | DQ183: 11 | DR183: 11 | DS183: No | DT183: 0 | DU183: 0 | DV183: New Roadway | DW183: 2A - 2 Lane Undivided with Paved Shoulders, 55 mph | DX183: None | DY183: None | DZ183: 1 | EA183: No | EB183: 32 | EC183: 3762000 | ED183: 61000 | EE183: 7000 | EF183: 3830000 | EH183: 3830000 | EI183: 3830000
A184: H141739 | B184: Bertie | C184: Peanut Belt RPO | D184: Highway | E184: Statewide Mobility | G184: US-17 | H184: US 17A East of Windsor | I184: South end of Chowan River Bridge | J184: Upgrade roadway to Interstate | K184: 2 - Upgrade Arterial to Freeway/Expressway | L184: 120801000 | M184: 5.007900964 | O184: 4.04 | Q184: 3.52 | S184: =Q184+#REF!+R184 ->  | U184: =IF(AT184<30,0,IF(AT184<50,5,IF(AT184<65,10,IF(AT184>66,15)))) -> 0 | V184: =IF(W184<499,15,IF(W184<999,10,IF(W184<1499,5,IF(W184>1500,0)))) -> 0 | W184: 1916.404636 | X184: =IF(DC184<500,0,IF(DC184<1000,5,IF(DC184>1000,10))) -> 10 | Y184: =IF(Z184="Yes",20,0) -> 20 | Z184: Yes | AA184: =IF(AB184="Yes",20,0) -> 20 | AB184: Yes | AC184: =IF(AD184="Yes",10,0) -> 10 | AD184: Yes | AE184: 0 | AF184: 10 | AG184: 15 | AH184: 0 | AI184: Yes | AJ184: 15 | AK184: Minimal | AL184: 10 | AM184: Yes | AN184: 0 | AO184: No | AP184: 0 | AQ184: No | AR184: 9.796239941 | AS184: 0.3725101779 | AT184: 0 | AU184: 6.604760911 | AV184: 6.363237457 | AW184: 42.36411775 | AX184: 0 | AY184: 25 | BC184: Peanut Belt RPO | BD184: 100 | BI184: 01 | BJ184: 100 | BO184: =SUM(U184+V184+X184+Y184+AA184+AC184) -> 60 | BP184: 50 | BS184: 0 | BU184: 3.52 | BV184: Exceeds cap of $15 million for Statewide & Regional Projects cascading to Division Needs | BW184: =O184+BS184*0.25 -> 4.04 | BX184: =BW184+P184 -> 4.04 | BY184: Under Threshold of SPOT Score of "10" | BZ184: Bertie | CA184: 100 | CH184: 1 | CI184: A | CJ184: 01, , | CK184: Peanut Belt RPO, , | CL184: Bertie, , , | CM184: 7.7616469 | CN184: 7.7616469 | CO184: Multi-Lane Highway | CP184: Freeway | CQ184: 2 | CR184: 2 | CS184: Divided | CT184: Divided | CU184: 55.00029198 | CV184: 70 | CW184: 16.2651346 | CX184: 83.7348654 | CY184: 8121.372583 | CZ184: 74420.48835 | DA184: 0.1091281818 | DB184: 6800.420401 | DC184: 1320.952182 | DD184: 1603998.714 | DE184: 311569.7967 | DF184: 1915568.511 | DG184: 44999602 | DH184: 0 | DI184: 0 | DJ184: 0 | DM184: 29.77651795 | DN184: 9.74882312e-05 | DO184: No | DP184: No | DQ184: 12 | DR184: 12 | DS184: No | DT184: 3 | DU184: 4 | DV184: 4 Lane with Median - Partial Control | DW184: 4A - 4 Lane Divided (46' Depressed Median) with Paved Shoulders | DX184: None | DY184: Full | DZ184: 1 | EA184: Yes | EB184: 29 | EC184: 94540000 | ED184: 23447000 | EE184: 2814000 | EF184: 120801000 | EH184: 120801000 | EI184: 120801000
A185: H141863 | B185: Bertie | C185: Peanut Belt RPO | D185: Highway | E185: Statewide Mobility | G185: US-17-BYP-Windsor Bypass | H185: US 13 North at Windsor | I185: US 17A East of Windsor | J185: Upgrade freeway to interstate standards | K185: 17 - Upgrade Freeway to Interstate Standards | L185: 18115000 | M185: 5.28052232 | O185: 13.48 | Q185: 12.32 | S185: =Q185+#REF!+R185 ->  | U185: =IF(AT185<30,0,IF(AT185<50,5,IF(AT185<65,10,IF(AT185>66,15)))) -> 0 | V185: =IF(W185<499,15,IF(W185<999,10,IF(W185<1499,5,IF(W185>1500,0)))) -> 15 | W185: 377.5845548 | X185: =IF(DC185<500,0,IF(DC185<1000,5,IF(DC185>1000,10))) -> 10 | Y185: =IF(Z185="Yes",20,0) -> 20 | Z185: Yes | AA185: =IF(AB185="Yes",20,0) -> 20 | AB185: Yes | AC185: =IF(AD185="Yes",10,0) -> 10 | AD185: Yes | AE185: 0 | AF185: 20 | AG185: 15 | AH185: =IF(AI185="Yes",10,0) -> 10 | AI185: Yes | AJ185: 15 | AK185: Minimal | AL185: 10 | AM185: Yes | AN185: 0 | AO185: No | AP185: 0 | AQ185: No | AR185: 8.978954008 | AS185: 0 | AT185: 14.22595594 | AU185: 5.804332576 | AV185: 0.03374007846 | AW185: 17.2454881 | AX185: 0 | AY185: 100 | BC185: Peanut Belt RPO | BD185: 100 | BI185: 01 | BJ185: 100 | BO185: =SUM(U185+V185+X185+Y185+AA185+AC185) -> 75 | BP185: 70 | BS185: 0 | BU185: 12.32 | BV185: Delay Prioritization pending outcome of Future Interstate Designation; Exceeds cap of $15 million for Statewide & Regional Projects cascading to Division Needs | BW185: 0 | BX185: =BW185+P185 -> 0 | BY185: Delay Division Local Input Scoring pending outcome of Future Interstate Designation | BZ185: Bertie | CA185: 100 | CH185: 1 | CI185: A | CJ185: 01, , | CK185: Peanut Belt RPO, , | CL185: Bertie, , , | CM185: 6.62150132 | CN185: 6.62150132 | CO185: Freeway | CP185: Freeway | CQ185: 2 | CR185: 2 | CS185: Divided | CT185: Divided | CU185: 69.86803158 | CV185: 69.86803158 | CW185: 16.02192288 | CX185: 83.97807712 | CY185: 7245.488098 | CZ185: 71492.60519 | DA185: 0.1013459795 | DB185: 6084.621583 | DC185: 1160.866515 | DD185: 0 | DE185: 0 | DF185: 0 | DG185: 0 | DH185: 15.05631716 | DI185: 7.53506316 | DJ185: 20.09075572 | DM185: 0.157110719 | DN185: 5.176908502e-07 | DO185: No | DP185: No | DQ185: 12 | DR185: 12 | DS185: No | DT185: 0 | DU185: 4 | DV185: 4 Lane with Median - Full Control | DX185: Full | DY185: Full | DZ185: 1 | EA185: No | EB185: 25 | EC185: 18115000 | ED185: 0 | EE185: 0 | EF185: 18115000 | EH185: 18115000 | EI185: 18115000
AG186: =IF(Z186="Yes",15,0) -> 0

Sheet Regional Impact-Transit
J4: Projects in blue are fully funded for construction and not eligible for local input point assignment | L4: *Projects over $200M may be subject to the corridor cap | EH4: *Projects over $200M may be subject to the corridor cap
A6: DRAFT | G6: Division One Regional Impact Point Assignment-Transit | BT6: DRAFT
U7: Regional Criteria | AE7: Division Needs
A8: SPOT ID | B8: County | C8: RPO | D8: MODE | E8: Project Category | F8: TIP | G8: Route | H8: From / Cross Street | I8: To | J8: Description | K8: Specific Improvement Type | L8: Cost to NCDOT | M8: Statewide Mobility Quantiative Score (Out of 100) | O8: Regional Impact Quantiative Score (Out of 70) | P8: Regional Impact RPO Score (Out of 15) | Q8: Division Needs Quantiative Score (Out of 50) | R8: Division Needs RPO Score (Out of 25) | S8: Total Division Needs (Out of 100) | U8: Safety Score (15pts) | V8: Cost Effectiveness Score (15pts) | W8: Cost Effectiveness | X8: Freight Volume Score (10pts) | Y8: Transportation Plan Consistency Score (20pts) | Z8: Transportation Plan Consistency (Yes/No) | AA8: Corridor Continuity Score (20pts) | AB8: Corridor Continuity (Yes/No) | AC8: Public Support Score (20pts) | AD8: Public Support | AE8: Safety Score (20pts) | AF8: Cost Effectiveness (20pts) | AG8: Transportation Plan Consistency (15pts) | AH8: Multimodal Accomodations (10pts) | AI8: Multimodal (Yes/No) | AJ8: Project Feasibility (15pts) | AK8: Project Feasibility (Significant/Minimal) | AL8: Public Support (10pts) | AM8: Public Support (Yes/No) | AN8: Airport Safety (5pts) | AO8: Airport Safety (Yes/No) | AP8: Transit Expansion (5pts) | AQ8: Transit (Yes/No) | AR8: Congestion | AS8: [Travel Time] Benefit/Cost | AT8: Safety | AU8: Multimodal + [Freight & Military] | AV8: Economic Competitiveness | AW8: Accessibility / Connectivity | AX8: Lane Width | AY8: [Paved] Shoulder Width | BC8: MPO/RPO | BD8: First MPO/RPO % | BE8: Second MPO/RPO | BF8: Second MPO/RPO % | BG8: Third MPO/RPO | BH8: Third MPO/RPO % | BI8: First Division | BJ8: First Division % | BK8: Second Division | BL8: Second Division % | BM8: Third Division | BN8: Third Division % | BO8: Divisin Methodology Preliminary Ranking | BP8: Division Methodology Preliminary Ranking | BQ8: Preliminary Ranking | BR8: Preliminary Ranking | BS8: Division Engineer Local Points REGIONAL | BT8: Division Engineer Local Points DIVISION NEEDS | BU8: SPOT + Division Points | BV8: Comments | BW8: SPOT + Division Points | BX8: SPOT + Division + RPO (Out of 100) | BY8: Comments | BZ8: County | CA8: First County % | CB8: Second County | CC8: Second County % | CD8: Third County | CE8: Third County % | CF8: Fourth County | CG8: Fourth County % | CH8: Highest Division | CI8: Funding Region | CJ8: All Divisions | CK8: All MPOs/RPOs | CL8: All Counties | CM8: Existing Length (Miles) | CN8: Project Length (Miles) | CO8: Existing Facility Type | CP8: Project Facility Type | CQ8: Existing Lanes Per Direction | CR8: Project Lanes Per Direction | CS8: Existing Median Type | CT8: Project Median Type | CU8: Existing Speed Limit | CV8: Project Speed Limit | CW8: Truck % | CX8: Auto % | CY8: Existing Volume | CZ8: Existing Capacity | DA8: Existing Volume / Capacity Ratio | DB8: Auto Volume | DC8: Truck Volume | DD8: Travel Time Savings Over 30 Years Autos (Hrs) | DE8: Travel Time Savings Over 30 Years Trucks (Hrs) | DF8: Travel Time Savings Over 30 Years Total (Hrs) | DG8: Travel Time Savings Over 30 Years Total ($) | DH8: Crash Density Points Segment | DI8: Crash Severity Points Segment | DJ8: Critical Crash Rate Points Segment | DK8: Crash Frequency Points Intersection | DL8: Severity Index Points Intersection | DM8: Long Term Employment | DN8: Percent Change In Value Added | DO8: Non-Interstate STRAHNet Route | DP8: Direct Connection to Transportation Terminal | DQ8: Existing Lane Width | DR8: DOT Design Standard Lane Width | DS8: Existing Roadway Has Curb & Gutter | DT8: Existing Paved Shoulder Width | DU8: DOT Design Paved Shoulder Width | DV8: Existing Cross Section | DW8: Project Cross Section | DX8: Existing Access Control | DY8: Project Access Control | DZ8: County Tier | EA8: Upgrade Roadway Eligible | EB8: Census Average Commute Time | EC8: Construction Cost | ED8: Right-Of-Way Cost | EE8: Utilities Cost | EF8: Actual Project Cost | EG8: Other Funds | EH8: Cost to NCDOT | EI8: Cost Used in Benefit/Cost Analysis | EJ8: Other Funds Source
A9: T130121 | B9: Dare | C9: Albemarle RPO | D9: Transit | E9: Division Needs | J9: Expansion Vehicle-Due to expected increased demand for public transportation within the community we would like to have a 13-passenger LTV as part of our fleet in FY 2018. For the period FY2011-FY2014, we have seen an approximate increase of 15% each year for demand, riders, and trips. This trend is expected to continue as the elderly population in the region increases. | L9: 6655 | Q9: 4.03 | R9: 9.75 | S9: =Q9+#REF!+R9 ->  | U9: =IF(AT9<30,0,IF(AT9<50,5,IF(AT9<65,10,IF(AT9>66,15)))) -> 5 | V9: 0 | W9: =(EH9/CY9)/CN9 -> 1.499948599e-06 | X9: 0 | Z9: Yes | AA9: =IF(AB9="Yes",10,0) -> 0 | AB9: No | AC9: =IF(AD9="Yes",10,0) -> 0 | AD9: No | AE9: =IF(AT9<30,0,IF(AT9<50,5,IF(AT9<65,10,IF(AT9<79,15,IF(AT9>80,20))))) -> 5 | AF9: =IF(W9<999,20,IF(W9<1499,15,IF(W9<1999,10,IF(W9<3999,5,IF(W9>4000,0))))) -> 20 | AG9: =IF(Z9="Yes",15,0) -> 15 | AH9: =IF(AI9="Yes",10,0) -> 10 | AI9: Yes | AJ9: =IF(AK9="Minimal",15,0) -> 15 | AK9: Minimal | AL9: =IF(AM9="Yes",10,0) -> 10 | AM9: Yes | AN9: =IF(AO9="Yes",5,0) -> 0 | AO9: No | AP9: =IF(AQ9="Yes",5,0) -> 5 | AQ9: Yes | AT9: 31.2 | BC9: Albemarle RPO | BP9: =SUM(AE9+AF9+AG9+AH9+AJ9+AL9+AN9+AP9) -> 80 | BT9: 100 | BU9: =Q9+BT9*0.25 -> 29.03 | BZ9: Dare | CN9: 248868 | CY9: 17828 | EF9: 66550 | EH9: 6655 | EJ9: Fed:$53,240 Local:$6,655
A10: T130109 | B10: Martin | C10: Mid-East RPO | D10: Transit | E10: Division Needs | J10: Expansion Vehicle-Martin County Transit provides curb to curb public transportation service in a demand-response system. Many of the riders are elderly and/or disabled that depend on Martin County Transit as his/her's only means of transportation to services and resources. Martin County Transit works closely with Social Services to provide transportation for these vulnerable adults. | L10: 6010 | Q10: 3.19 | S10: =Q10+#REF!+R10 ->  | U10: 5 | V10: 0 | W10: 0 | X10: 0 | Z10: Yes | AA10: =IF(AB10="Yes",10,0) -> 0 | AB10: No | AC10: =IF(AD10="Yes",10,0) -> 0 | AD10: No | AE10: 5 | AF10: 20 | AG10: 15 | AH10: 10 | AI10: Yes | AJ10: 15 | AK10: Minimal | AL10: 10 | AM10: Yes | AN10: 0 | AO10: No | AP10: 5 | AQ10: Yes | AT10: 31.2 | BC10: Mid-East RPO | BP10: 80 | BZ10: Martin | CN10: 33392 | CY10: 2280 | EF10: 60100 | EH10: 6010 | EJ10: Fed:$48,080 Local:$6,010
A11: T130017 | B11: Pasquotank | C11: Albemarle RPO | D11: Transit | E11: Regional Impact | J11: Expansion Vehicle-ARHS-ICPTA’s covers a little over 1000 square miles across five counties. Our agency wants to purchase an expansion vehicle to meet client demand. | L11: 8205 | O11: 5.35 | P11: 3.15 | Q11: 5.01 | R11: 9.75 | S11: =Q11+#REF!+R11 ->  | U11: 5 | V11: =IF(W11<499,15,IF(W11<999,10,IF(W11<1499,5,IF(W11>1500,0)))) -> 15 | W11: =(EH11/CY11)/CN11 -> 2.033795104e-05 | X11: 0 | Y11: =IF(Z11="Yes",20,0) -> 20 | Z11: Yes | AA11: =IF(AB11="Yes",20,0) -> 0 | AB11: No | AC11: =IF(AD11="Yes",20,0) -> 20 | AD11: Yes | AE11: 5 | AF11: 20 | AG11: 15 | AH11: 10 | AI11: Yes | AJ11: 15 | AK11: Minimal | AL11: 10 | AM11: Yes | AN11: 0 | AO11: No | AP11: 5 | AQ11: Yes | AT11: 31.2 | BC11: Albemarle RPO | BO11: =SUM(U11+V11+X11+Y11+AA11+AC11) -> 60 | BP11: 80 | BS11: 100 | BW11: =O11+BS11*0.25 -> 30.35 | BX11: =BW11+P11 -> 33.5 | BZ11: Pasquotank | CN11: 870586 | CY11: 98611 | EF11: 82050 | EH11: 1746000 | EJ11: Fed:$65,640 Local:$8,205
A12: T130018 | B12: Pasquotank | C12: Albemarle RPO | D12: Transit | E12: Regional Impact | J12: Expansion Vehicle-ARHS-ICPTA’s covers a little over 1000 square miles across five counties. Our agency wants to purchase an expansion vehicle to meet client demand. | L12: 8205 | O12: 4.8 | P12: 3.15 | Q12: 4.46 | R12: 9.75 | S12: =Q12+#REF!+R12 ->  | U12: 5 | V12: 15 | W12: 9.557439191e-08 | X12: 0 | Y12: 20 | Z12: Yes | AA12: 0 | AB12: No | AC12: 20 | AD12: Yes | AE12: 5 | AF12: 20 | AG12: 15 | AH12: 10 | AI12: Yes | AJ12: 15 | AK12: Minimal | AL12: 10 | AM12: Yes | AN12: 0 | AO12: No | AP12: 5 | AQ12: Yes | AT12: 31.2 | BC12: Albemarle RPO | BO12: 60 | BP12: 80 | BS12: 0 | BW12: 4.8 | BX12: =BW12+P12 -> 7.95 | BZ12: Pasquotank | CN12: 870586 | CY12: 98611 | EF12: 82050 | EH12: 8205 | EJ12: Fed:$65,640 Local:$8,205
A13: T130019 | B13: Pasquotank | C13: Albemarle RPO | D13: Transit | E13: Regional Impact | J13: Expansion Vehicle-ARHS-ICPTA’s covers a little over 1000 square miles across five counties. Our agency wants to purchase an expansion vehicle to meet client demand. | L13: 8205 | O13: 4.8 | P13: 3.15 | Q13: 4.46 | R13: 9.75 | S13: =Q13+#REF!+R13 ->  | U13: 5 | V13: 15 | W13: 9.557439191e-08 | X13: 0 | Y13: 20 | Z13: Yes | AA13: 0 | AB13: No | AC13: 20 | AD13: Yes | AE13: 5 | AF13: 20 | AG13: 15 | AH13: 10 | AI13: Yes | AJ13: 15 | AK13: Minimal | AL13: 10 | AM13: Yes | AN13: 0 | AO13: No | AP13: 5 | AQ13: Yes | AT13: 31.2 | AY13: Fed:$65,640 Local:$8,205 | BC13: Albemarle RPO | BO13: 60 | BP13: 80 | BS13: 0 | BW13: 4.8 | BX13: 7.95 | BZ13: Pasquotank | CN13: 870586 | CY13: 98611 | EF13: 82050 | EH13: 8205 | EJ13: Fed:$65,640 Local:$8,205
A14: T130020 | B14: Pasquotank | C14: Albemarle RPO | D14: Transit | E14: Regional Impact | J14: Expansion Vehicle-ARHS-ICPTA’s covers a little over 1000 square miles across five counties. Our agency wants to purchase an expansion vehicle to meet client demand. | L14: 8205 | O14: 4.8 | P14: 3.15 | Q14: 4.46 | R14: 9.75 | S14: =Q14+#REF!+R14 ->  | U14: 5 | V14: 15 | W14: 9.557439191e-08 | X14: 0 | Y14: 20 | Z14: Yes | AA14: 0 | AB14: No | AC14: 20 | AD14: Yes | AE14: 5 | AF14: 20 | AG14: 15 | AH14: 10 | AI14: Yes | AJ14: 15 | AK14: Minimal | AL14: 10 | AM14: Yes | AN14: 0 | AO14: No | AP14: 5 | AQ14: Yes | AT14: 31.2 | AY14: Fed:$65,640 Local:$8,205 | BC14: Albemarle RPO | BO14: 60 | BP14: 80 | BS14: 0 | BW14: 4.8 | BX14: 7.95 | BZ14: Pasquotank | CN14: 870586 | CY14: 98611 | EF14: 82050 | EH14: 8205 | EJ14: Fed:$65,640 Local:$8,205
A15: T130021 | B15: Pasquotank | C15: Albemarle RPO | D15: Transit | E15: Regional Impact | J15: Expansion Vehicle-ARHS-ICPTA’s covers a little over 1000 square miles across five counties. Our agency wants to purchase an expansion vehicle to meet client demand. | L15: 8205 | O15: 4.8 | P15: 3.15 | Q15: 4.46 | R15: 9.75 | S15: =Q15+#REF!+R15 ->  | U15: 5 | V15: 15 | W15: 9.557439191e-08 | X15: 0 | Y15: 20 | Z15: Yes | AA15: 0 | AB15: No | AC15: 20 | AD15: Yes | AE15: 5 | AF15: 20 | AG15: 15 | AH15: 10 | AI15: Yes | AJ15: 15 | AK15: Minimal | AL15: 10 | AM15: Yes | AN15: 0 | AO15: No | AP15: 5 | AQ15: Yes | AT15: 31.2 | AY15: Fed:$65,640 Local:$8,205 | BC15: Albemarle RPO | BO15: 60 | BP15: 80 | BS15: 0 | BW15: 4.8 | BX15: 7.95 | BZ15: Pasquotank | CN15: 870586 | CY15: 98611 | EF15: 82050 | EH15: 8205 | EJ15: Fed:$65,640 Local:$8,205
A16: T130072 | B16: Bertie | C16: Peanut Belt RPO | D16: Transit | E16: Regional Impact | J16: Expansion Vehicle-Purpose of expanding routes for employment, education, and/or medical purposes. Etc. | L16: 6783 | O16: 2.97 | P16: 0 | Q16: 2.85 | S16: =Q16+#REF!+R16 ->  | U16: 5 | V16: 15 | W16: 1.195601038e-07 | X16: 0 | Y16: 20 | Z16: Yes | AA16: 0 | AB16: No | AC16: 20 | AD16: Yes | AE16: 5 | AF16: 20 | AG16: 15 | AH16: 10 | AI16: Yes | AJ16: 15 | AK16: Minimal | AL16: 10 | AM16: Yes | AN16: 0 | AO16: No | AP16: 5 | AQ16: Yes | AT16: 31.2 | BC16: Peanut Belt RPO | BO16: 60 | BP16: 80 | BS16: 0 | BW16: 2.97 | BX16: 2.97 | BZ16: Bertie | CN16: 1238603 | CY16: 45804 | EF16: 67830 | EH16: 6783 | EJ16: Fed:$54,264 Local:$6,783
A17: H090230 | B17: Dare | C17: Albemarle RPO | D17: Highway | E17: Statewide Mobility | F17: R-3419 | G17: US-158 | H17: US 64-NC 12 | I17: Eastern End of Currituck Sound Bridge | J17: Add Additional Lanes. | K17: 1 - Widen Existing Roadway | L17: 85428000 | M17: 33.82659557 | O17: 22.42 | P17: 6.3 | Q17: 15.67 | R17: 6.75 | S17: =Q17+#REF!+R17 ->  | U17: =IF(AT17<30,0,IF(AT17<50,5,IF(AT17<65,10,IF(AT17>66,15)))) -> 15 | V17: =IF(W17<499,15,IF(W17<999,10,IF(W17<1499,5,IF(W17>1500,0)))) -> 15 | W17: =(EH17/CY17)/CN17 -> 183.5913006 | X17: =IF(DC17<500,0,IF(DC17<1000,5,IF(DC17>1000,10))) -> 10 | Y17: =IF(Z17="Yes",20,0) -> 20 | Z17: Yes | AA17: =IF(AB17="Yes",20,0) -> 20 | AB17: Yes | AC17: =IF(AD17="Yes",20,0) -> 20 | AD17: Yes | AE17: =IF(AT17<30,0,IF(AT17<50,5,IF(AT17<65,10,IF(AT17<79,15,IF(AT17>80,20))))) -> 15 | AF17: =IF(BL15<999,20,IF(BL15<1499,15,IF(BL15<1999,10,IF(BL15<3999,5,IF(BL15>4000,0))))) -> 20 | AG17: =IF(Z17="Yes",15,0) -> 15 | AH17: 10 | AI17: No | AJ17: =IF(AK17="Minimal",15,0) -> 15 | AK17: Minimal | AL17: =IF(AM17="Yes",10,0) -> 10 | AM17: Yes | AN17: =IF(AO17="Yes",10,0) -> 0 | AO17: No | AP17: =IF(AQ17="Yes",10,0) -> 0 | AQ17: No | AR17: 61.66320611 | AS17: 3.198423854 | AT17: 66.84883402 | AU17: 12.296077 | AV17: 52.24007775 | AW17: 17.92998658 | AX17: 0 | AY17: 25 | BC17: Albemarle RPO | BD17: 100 | BI17: 01 | BJ17: 100 | BO17: =SUM(U17+V17+X17+Y17+AA17+AC17) -> 100 | BP17: =SUM(AE17+AF17+AG17+AH17+AJ17+AL17+AN17+AP17) -> 85 | BS17: 100 | BU17: =Q17+BT17*0.25 -> 15.67 | BV17: Exceeds cap of $15 million for Statewide & Regional Projects cascading to Division Needs | BW17: 47.42 | BZ17: Dare | CA17: 100 | CH17: 1 | CI17: A | CJ17: 01, , | CK17: Albemarle RPO, , | CL17: Dare, , , | CM17: 17.3012275 | CN17: 17.3012275 | CO17: Arterial | CP17: Arterial | CQ17: 2 | CR17: 3 | CS17: TWLTL | CT17: Divided | CU17: 50 | CV17: 45 | CW17: 9.143771111 | CX17: 90.85622889 | CY17: 26894.97987 | CZ17: 31700.06882 | DA17: 0.848420236 | DB17: 24435.76447 | DC17: 2459.2154 | DD17: 10869853.54 | DE17: 1093942.088 | DF17: 11963795.63 | DG17: 273234953 | DH17: 66.84588328 | DI17: 76.03663042 | DJ17: 57.68404502 | DM17: 200 | DN17: 0.0008448015549 | DO17: No | DP17: No | DQ17: 12 | DR17: 12 | DS17: No | DT17: 3 | DU17: 4 | DV17: 4 Lane with TWLTL (Five Lane) | DW17: 6E - 6 Lane Divided (23' Raised Median) with Curb & Gutter, Wide Outside Lanes, and Sidewalks | DX17: None | DY17: Partial | DZ17: 2 | EA17: No | EB17: 18 | EC17: 56202000 | ED17: 26095000 | EE17: 3131000 | EF17: 85428000 | EH17: 85428000 | EI17: 85428000
A18: H129043 | B18: Dare | C18: Albemarle RPO | D18: Highway | E18: Division Needs | F18: R-5014 | G18: SR-1217 Collington Road | H18: US 158 | I18: Dead End | J18: Operational-Safety Improvements | K18: 16 - Modernize Roadway | L18: 4850000 | Q18: 23.32 | R18: 9 | S18: =Q18+#REF!+R18 ->  | U18: N/A | W18: 57.99149135 | Z18: Yes | AE18: 15 | AF18: =IF(BL16<999,20,IF(BL16<1499,15,IF(BL16<1999,10,IF(BL16<3999,5,IF(BL16>4000,0))))) -> 20 | AG18: 15 | AH18: 10 | AI18: No | AJ18: =IF(AK18="Minimal",15,0) -> 15 | AK18: Minimal | AL18: 10 | AM18: Yes | AN18: =IF(AO18="Yes",10,0) -> 0 | AO18: No | AP18: =IF(AQ18="Yes",10,0) -> 0 | AQ18: No | AR18: 41.97468354 | AS18: 0 | AT18: 66.21829771 | AU18: 0 | AV18: N/A | AW18: N/A | AX18: 25 | AY18: 100 | BC18: Albemarle RPO | BD18: 100 | BI18: 01 | BJ18: 100 | BP18: =SUM(AE18+AF18+AG18+AH18+AJ18+AL18+AN18+AP18) -> 85 | BT18: 100 | BU18: =Q18+BT18*0.25 -> 48.32 | BZ18: Dare | CA18: 100 | CH18: 1 | CI18: A | CJ18: 01, , | CK18: Albemarle RPO, , | CL18: Dare, , , | CM18: 4.34546507 | CN18: 4.34546507 | CO18: Arterial | CP18: Arterial | CQ18: 1 | CR18: 1 | CS18: Undivided | CT18: Undivided | CU18: 33 | CV18: 33 | CW18: 0 | CX18: 100 | CY18: 10000 | CZ18: 15800 | DA18: 0.6329113924 | DB18: 10000 | DC18: 0 | DD18: 0 | DE18: 0 | DF18: 0 | DG18: 0 | DH18: 95.97508743 | DI18: 64.44747503 | DJ18: 38.25219814 | DO18: No | DP18: No | DQ18: 11 | DR18: 12 | DS18: No | DT18: 0 | DU18: 4 | DV18: 2 Lane Undivided | DX18: None | DY18: None | DZ18: 2 | EA18: No | EB18: 25 | EC18: 4350000 | ED18: 500000 | EE18: 0 | EF18: 4850000 | EH18: 2520000 | EI18: 4850000
A19: H141222 | B19: Perquimans | C19: Albemarle RPO | D19: Highway | E19: Division Needs | G19: SR-1301 | H19: SR 1302 | I19: SR 1303 | J19: Widen and repave New Hope Road (Phase 2) | K19: 16 - Modernize Roadway | L19: 1114000 | Q19: 14.9 | R19: 5.25 | S19: =Q19+#REF!+R19 ->  | U19: N/A | W19: 469.5467426 | Z19: Yes | AE19: 15 | AF19: =IF(W19<999,20,IF(W19<1499,15,IF(W19<1999,10,IF(W19<3999,5,IF(W19>4000,0))))) -> 20 | AG19: 15 | AH19: 10 | AI19: No | AJ19: =IF(AK19="Minimal",15,0) -> 15 | AK19: Minimal | AL19: 10 | AM19: Yes | AN19: =IF(AO19="Yes",10,0) -> 0 | AO19: No | AP19: =IF(AQ19="Yes",10,0) -> 0 | AQ19: No | AR19: 4.698064516 | AS19: 0 | AT19: 69.32520767 | AU19: 0 | AV19: N/A | AW19: N/A | AX19: 75 | AY19: 0 | BC19: Albemarle RPO | BD19: 100 | BI19: 01 | BJ19: 100 | BP19: =SUM(AE19+AF19+AG19+AH19+AJ19+AL19+AN19+AP19) -> 85 | BT19: 100 | BU19: =Q19+BT19*0.25 -> 39.9 | BZ19: Perquimans | CA19: 100 | CH19: 1 | CI19: A | CJ19: 01, , | CK19: Albemarle RPO, , | CL19: Perquimans, , , | CM19: 1.3068696 | CN19: 1.3068696 | CO19: Two Lane Highway | CP19: Two Lane Highway | CQ19: 1 | CR19: 1 | CS19: Undivided | CT19: Undivided | CU19: 55 | CV19: 55 | CW19: 0 | CX19: 100 | CY19: 1100 | CZ19: 15500 | DA19: 0.07096774194 | DB19: 1100 | DC19: 0 | DD19: 0 | DE19: 0 | DF19: 0 | DG19: 0 | DH19: 75.59407717 | DI19: 94.34797491 | DJ19: 38.05437057 | DO19: No | DP19: No | DQ19: 9 | DR19: 12 | DS19: No | DT19: 0 | DU19: 0 | DV19: 2 Lane Undivided | DW19: 3A - 2 Lane with Two Way Left Turn Lane, and Paved Shoulders | DX19: None | DY19: None | DZ19: 2 | EA19: No | EB19: 30 | EC19: 1114000 | ED19: 0 | EE19: 0 | EF19: 1114000 | EH19: 675000 | EI19: 1114000
A20: H090289 | B20: Martin | C20: Mid-East RPO | D20: Highway | E20: Division Needs | F20: R-4705 | G20: SR-1142 | H20: NC 903 | I20: SR 1182 | J20: NC 903 to SR 1182. Upgrade Facility. | K20: 16 - Modernize Roadway | L20: 11200000 | Q20: 10.09 | S20: =Q20+#REF!+R20 ->  | U20: N/A | W20: 298.9624374 | Z20: Yes | AE20: 10 | AF20: 20 | AG20: 15 | AH20: =IF(AI20="Yes",10,0) -> 10 | AI20: Yes | AJ20: 15 | AK20: Minimal | AL20: 10 | AM20: Yes | AN20: =IF(AO20="Yes",10,0) -> 0 | AO20: No | AP20: =IF(AQ20="Yes",10,0) -> 0 | AQ20: No | AR20: 16.67266682 | AS20: 0 | AT20: 59.26886197 | AU20: 0.7807385132 | AV20: N/A | AW20: N/A | AX20: 25 | AY20: 0 | BC20: Mid-East RPO | BD20: 100 | BI20: 01 | BJ20: 100 | BP20: =SUM(AE20+AF20+AG20+AH20+AJ20+AL20+AN20+AP20) -> 80 | BT20: 100 | BU20: =Q20+BT20*0.25 -> 35.09 | BZ20: Martin | CA20: 100 | CH20: 1 | CI20: A | CJ20: 01, , | CK20: Mid-East RPO, , | CL20: Martin, , , | CM20: 9.59671543 | CN20: 9.59671543 | CO20: Two Lane Highway | CP20: Two Lane Highway | CQ20: 1 | CR20: 1 | CS20: Undivided | CT20: Undivided | CU20: 55 | CV20: 55 | CW20: 3.99997078 | CX20: 96.00002922 | CY20: 3903.721083 | CZ20: 15500 | DA20: 0.2518529731 | DB20: 3747.57338 | DC20: 156.1477026 | DD20: 0 | DE20: 0 | DF20: 0 | DG20: 0 | DH20: 87.04048717 | DI20: 47.05679026 | DJ20: 43.72709093 | DO20: No | DP20: No | DQ20: 11 | DR20: 12 | DS20: No | DT20: 0 | DU20: 0 | DV20: 2 Lane Undivided | DX20: None | DY20: None | DZ20: 1 | EA20: No | EB20: 21 | EC20: 7200000 | ED20: 4000000 | EE20: 0 | EF20: 11200000 | EH20: 11200000 | EI20: 11200000
A21: F130003 | B21: Dare | C21: Albemarle RPO | D21: Ferry | E21: Division Needs | G21: Hatteras - South Dock (NC 12) | J21: Replacement Vessel – River Class Ferry (Baum-H) | L21: 12000000 | Q21: 36.7 | R21: 6.75 | S21: =Q21+#REF!+R21 ->  | W21: 89.22395905 | Z21: Yes | AE21: 5 | AF21: 20 | AG21: 15 | AH21: 10 | AI21: Yes | AJ21: =IF(AK21="Minimal",15,0) -> 15 | AK21: Minimal | AL21: 10 | AM21: Yes | AN21: =IF(AO21="Yes",5,0) -> 0 | AO21: No | AP21: =IF(AQ21="Yes",5,0) -> 0 | AQ21: No | AT21: 47 | BC21: Albemarle RPO | BP21: =SUM(AE21+AF21+AG21+AH21++AJ21+AL21+AN21+AP21) -> 75 | BT21: 100 | BU21: =Q21+BT21*0.25 -> 61.7 | BZ21: Dare | CN21: =5*2 -> 10 | CY21: 21687 | EF21: 12000000 | EH21: 19350000
A22: T130063 | B22: Hyde | C22: Albemarle RPO | D22: Transit | E22: Division Needs | J22: Facilities-Bus Shelter-This funding request is for 2 shelters and 20 benches to support the Ocracoke Park and Ride Project. | L22: 7600 | Q22: 31.19 | R22: 12 | S22: =Q22+#REF!+R22 ->  | U22: 0 | V22: 0 | W22: 2.852415996e-07 | X22: 0 | Z22: Yes | AA22: =IF(AB22="Yes",10,0) -> 0 | AB22: No | AC22: =IF(AD22="Yes",10,0) -> 0 | AD22: No | AE22: 0 | AF22: 20 | AG22: 15 | AH22: 10 | AI22: Yes | AJ22: 15 | AK22: Minimal | AL22: 10 | AM22: Yes | AN22: 0 | AO22: No | AP22: =IF(AQ22="Yes",5,0) -> 5 | AQ22: Yes | AT22: 0 | BC22: Albemarle RPO | BP22: =SUM(AE22+AF22+AG22+AH22+AJ22+AL22+AN22+AP22) -> 75 | BZ22: Hyde | CN22: 175290 | CY22: 152000 | EF22: 76000 | EH22: 7600 | EJ22: Fed:$60,800 Local:$7,600
A23: F130007 | B23: Dare | C23: Albemarle RPO | D23: Ferry | E23: Division Needs | G23: Hatteras-South Dock | J23: Replacement Vessel-River Class Ferry( Chico) | L23: 12000000 | Q23: 29.6 | R23: 7.5 | S23: =Q23+#REF!+R23 ->  | W23: 4.668695532 | Z23: Yes | AE23: 5 | AF23: 20 | AG23: 15 | AH23: 10 | AI23: Yes | AJ23: 15 | AK23: Minimal | AL23: 10 | AM23: Yes | AN23: 0 | AO23: No | AP23: =IF(AQ23="Yes",5,0) -> 0 | AQ23: No | AT23: 47 | BC23: Albemarle RPO | BP23: =SUM(AE23+AF23+AG23+AH23++AJ23+AL23+AN23+AP23) -> 75 | CN23: =5*2 -> 10 | CY23: 21687 | EF23: 12000000 | EH23: 1012500
A24: F130008 | B24: Dare | C24: Albemarle RPO | D24: Ferry | E24: Division Needs | G24: Hatteras-South Dock | J24: Replacement Vessel-River Class Ferry (Frisco) | L24: 12000000 | Q24: 28.3 | R24: 7.5 | S24: =Q24+#REF!+R24 ->  | W24: 1.867478213 | Z24: Yes | AE24: 5 | AF24: 20 | AG24: 15 | AH24: 10 | AI24: Yes | AJ24: 15 | AK24: Minimal | AL24: 10 | AM24: Yes | AN24: 0 | AO24: No | AP24: =IF(AQ24="Yes",5,0) -> 0 | AQ24: No | AT24: 47 | BC24: Albemarle RPO | BP24: =SUM(AE24+AF24+AG24+AH24++AJ24+AL24+AN24+AP24) -> 75 | CN24: =5*2 -> 10 | CY24: 21687 | EF24: 12000000 | EH24: 405000
A25: A130412 | B25: Hertford | C25: Peanut Belt RPO | D25: Aviation | E25: Division Needs | G25: Tri-County | J25: Design | L25: 1602288 | Q25: 25.95 | S25: =Q25+#REF!+R25 ->  | U25: N/A | W25: 52522.83939 | Z25: Yes | AA25: =IF(AB25="Yes",10,0) -> 0 | AC25: =IF(AD25="Yes",10,0) -> 0 | AE25: 0 | AF25: =IF(BL23<999,20,IF(BL23<1499,15,IF(BL23<1999,10,IF(BL23<3999,5,IF(BL23>4000,0))))) -> 20 | AG25: 15 | AH25: 10 | AI25: Yes | AJ25: 15 | AK25: Minimal | AL25: 10 | AM25: Yes | AN25: 5 | AO25: Yes | AP25: =IF(AQ25="Yes",10,0) -> 0 | AQ25: No | BC25: Peanut Belt RPO | BP25: =SUM(AE25+AF25+AG25+AH25+AJ25+AL25+AN25+AP25) -> 75 | BZ25: Hertford | CN25: 0.85 | CY25: 35.89 | EF25: 1780320 | EH25: 1602288
A26: F130011 | B26: Hyde | C26: Albemarle RPO | D26: Ferry | E26: Division Needs | G26: Swan Quarter-Ocracoke | J26: Replacement Vessel-Sound Class Ferry (Pamlico) | L26: 16000000 | Q26: 14.4 | R26: 7.5 | S26: =Q26+#REF!+R26 ->  | W26: 185.5717931 | Z26: Yes | AE26: 5 | AF26: =IF(W26<999,20,IF(W26<1499,15,IF(W26<1999,10,IF(W26<3999,5,IF(W26>4000,0))))) -> 20 | AG26: 15 | AH26: 10 | AI26: Yes | AJ26: 15 | AK26: Minimal | AL26: 10 | AM26: Yes | AN26: 0 | AO26: No | AP26: =IF(AQ26="Yes",5,0) -> 0 | AQ26: No | AT26: 34 | BC26: Albemarle RPO | BP26: =SUM(AE26+AF26+AG26+AH26++AJ26+AL26+AN26+AP26) -> 75 | BZ26: Hyde | CN26: =30*2 -> 60 | CY26: 1437 | EF26: 16000000 | EH26: 16000000
A27: B141355 | B27: Perquimans | C27: Albemarle RPO | D27: Bike & Ped | E27: Division Needs | G27: Harvey Point Road | H27: US-17 | I27: N. Commerce Drive | J27: Construct 5' wide multi-use path along eastern side of Harvey Point Road | K27: 2. Construct multi-use trail / greenway / sidepath or on-road bike lane on local roadway | L27: 400000 | Q27: 13.46302137 | R27: 9.75 | S27: =Q27+#REF!+R27 ->  | U27: N/A | W27: 1441.311853 | Z27: Yes | AE27: 10 | AF27: 15 | AG27: 15 | AH27: 10 | AI27: Yes | AJ27: 15 | AK27: Minimal | AL27: 10 | AM27: Yes | AN27: =IF(AO27="Yes",10,0) -> 0 | AO27: No | AP27: =IF(AQ27="Yes",10,0) -> 0 | AQ27: No | AT27: 50 | BC27: Albemarle RPO | BP27: =SUM(AE27+AF27+AG27+AH27+AJ27+AL27+AN27) -> 75 | BZ27: Perquimans County | CN27: 0.66 | CY27: 158 | EC27: 380000 | ED27: 0 | EF27: 400000 | EG27: 0 | EH27: 150300
A28: F130012 | B28: Currituck | C28: Albemarle RPO | D28: Ferry | E28: Division Needs | G28: Currituck - Knotts Island | J28: Replacement Vessel-River Class Ferry (Hunt) | L28: 12000000 | Q28: 12.3 | R28: 7.5 | S28: =Q28+#REF!+R28 ->  | W28: 660.429279 | Z28: Yes | AE28: 5 | AF28: 20 | AG28: 15 | AH28: 10 | AI28: Yes | AJ28: 15 | AK28: Minimal | AL28: 10 | AM28: Yes | AN28: =IF(AO28="Yes",5,0) -> 0 | AO28: No | AP28: =IF(AQ28="Yes",5,0) -> 0 | AQ28: No | AT28: 46 | BC28: Albemarle RPO | BP28: =SUM(AE28+AF28+AG28+AH28++AJ28+AL28+AN28+AP28) -> 75 | CN28: =5*2 -> 10 | CY28: 1817 | EF28: 12000000 | EH28: 12000000
A29: T130067 | B29: Hyde | C29: Albemarle RPO | D29: Transit | E29: Division Needs | J29: Expansion Vehicle-This funding request is for 6 LTV and 3 Trams to support the Ocracoke Park and Ride Project. | L29: 85500 | Q29: 11.36 | R29: 12 | S29: =Q29+#REF!+R29 ->  | U29: =IF(AT29<30,0,IF(AT29<50,5,IF(AT29<65,10,IF(AT29>66,15)))) -> 0 | V29: 0 | W29: 3.208967996e-06 | X29: 0 | Z29: Yes | AA29: =IF(AB29="Yes",10,0) -> 0 | AB29: No | AC29: =IF(AD29="Yes",10,0) -> 0 | AD29: No | AE29: 0 | AF29: 20 | AG29: 15 | AH29: 10 | AI29: Yes | AJ29: 15 | AK29: Minimal | AL29: 10 | AM29: Yes | AN29: =IF(AO29="Yes",5,0) -> 0 | AO29: No | AP29: =IF(AQ29="Yes",5,0) -> 5 | AQ29: Yes | AT29: 20.6 | BC29: Albemarle RPO | BP29: =SUM(AE29+AF29+AG29+AH29+AJ29+AL29+AN29+AP29) -> 75 | BZ29: Hyde | CN29: 175290 | CY29: 152000 | EF29: 855000 | EH29: 85500 | EJ29: Fed:$684,000 Local:$85,500
A30: F130013 | B30: Hyde | C30: Albemarle RPO | D30: Ferry | E30: Division Needs | G30: Cedar Island-Ocracoke | J30: Replacement Vessel-Sound Class Ferry (Silver Lake) | L30: 16000000 | Q30: 16.3 | R30: 7.5 | S30: =Q30+#REF!+R30 ->  | W30: 263.209844 | Z30: Yes | AE30: 5 | AF30: 20 | AG30: 15 | AH30: 10 | AI30: Yes | AJ30: 15 | AK30: Minimal | AL30: 10 | AM30: Yes | AN30: =IF(AO30="Yes",5,0) -> 0 | AO30: No | AP30: =IF(AQ30="Yes",5,0) -> 0 | AQ30: No | AT30: 38.5 | BC30: Albemarle RPO | BP30: =SUM(AE30+AF30+AG30+AH30++AJ30+AL30+AN30+AP30) -> 75 | CN30: =13*2 -> 26 | CY30: 2338 | EF30: 16000000 | EH30: 16000000
A31: F130014 | B31: Hyde | C31: Albemarle RPO | D31: Ferry | E31: Division Needs | G31: Cedar Island-Ocracoke | J31: Replacement Vessel-Sound Class Ferry (Carteret) | L31: 16000000 | Q31: 15.3 | R31: 7.5 | S31: =Q31+#REF!+R31 ->  | W31: 263.209844 | Z31: Yes | AE31: 5 | AF31: 20 | AG31: 15 | AH31: 10 | AI31: Yes | AJ31: 15 | AK31: Minimal | AL31: 10 | AM31: Yes | AN31: =IF(AO31="Yes",5,0) -> 0 | AO31: No | AP31: =IF(AQ31="Yes",5,0) -> 0 | AQ31: No | AT31: 38.5 | BC31: Albemarle RPO | BP31: =SUM(AE31+AF31+AG31+AH31++AJ31+AL31+AN31+AP31) -> 75 | BZ31: Currituck | CN31: =13*2 -> 26 | CY31: 2338 | EF31: 16000000 | EH31: 16000000
A32: A130413 | B32: Hertford | C32: Peanut Belt RPO | D32: Aviation | E32: Division Needs | G32: Tri-County | J32: Corporate & T-hanger Taxiways | L32: 230400 | Q32: 7.47 | S32: =Q32+#REF!+R32 ->  | U32: N/A | W32: 7552.488814 | Z32: Yes | AA32: =IF(AB32="Yes",10,0) -> 0 | AC32: =IF(AD32="Yes",10,0) -> 0 | AE32: 0 | AF32: =IF(BL30<999,20,IF(BL30<1499,15,IF(BL30<1999,10,IF(BL30<3999,5,IF(BL30>4000,0))))) -> 20 | AG32: 15 | AH32: 10 | AI32: Yes | AJ32: 15 | AK32: Minimal | AL32: 10 | AM32: Yes | AN32: =IF(AO32="Yes",5,0) -> 5 | AO32: Yes | AP32: =IF(AQ32="Yes",10,0) -> 0 | AQ32: No | BC32: Peanut Belt RPO | BP32: =SUM(AE32+AF32+AG32+AH32+AJ32+AL32+AN32+AP32) -> 75 | BZ32: Hertford | CN32: 0.85 | CY32: 35.89 | EF32: 256000 | EH32: 230400
A33: H129676-A | B33: Hertford | C33: Peanut Belt RPO | D33: Highway | E33: Statewide Mobility | F33: R-5311A | G33: NC-11 | H33: SR 1213 (Old NC 11 Road) | J33: Upgrade At-Grade Intersecton to Interchange. | K33: 7 - Upgrade At-grade Intersection to Interchange or Grade Separation | L33: 9460000 | M33: 15.19466803 | O33: 13.57447154 | Q33: 8.941022694 | S33: =Q33+#REF!+R33 ->  | U33: =IF(AT33<30,0,IF(AT33<50,5,IF(AT33<65,10,IF(AT33>66,15)))) -> 15 | V33: =IF(W33<499,15,IF(W33<999,10,IF(W33<1499,5,IF(W33>1500,0)))) -> 10 | W33: 566.4616421 | X33: =IF(DC33<500,0,IF(DC33<1000,5,IF(DC33>1000,10))) -> 10 | Y33: =IF(Z33="Yes",20,0) -> 20 | Z33: Yes | AA33: =IF(AB33="Yes",20,0) -> 20 | AB33: Yes | AC33: =IF(AD33="Yes",20,0) -> 20 | AD33: Yes | AE33: 15 | AF33: =IF(BL31<999,20,IF(BL31<1499,15,IF(BL31<1999,10,IF(BL31<3999,5,IF(BL31>4000,0))))) -> 20 | AG33: 15 | AH33: 10 | AI33: Yes | AJ33: 15 | AK33: Minimal | AL33: 10 | AM33: Yes | AN33: =IF(AO33="Yes",10,0) -> 0 | AO33: No | AP33: 0 | AQ33: No | AR33: 19.50147704 | AS33: 3.258749894 | AT33: 66.65 | AU33: 6.246989464 | AV33: 4.522020597 | AW33: 25.05023985 | AX33: 0 | AY33: 0 | BC33: Peanut Belt RPO | BD33: 100 | BI33: 01 | BJ33: 100 | BO33: =SUM(U33+V33+X33+Y33+AA33+AC33) -> 95 | BP33: =SUM(AE33+AF33+AG33+AH33+AJ33+AL33+AN33+AP33) -> 85 | BS33: 100 | BT33: 100 | BU33: =Q33+BT33*0.25 -> 33.94102269 | BW33: =O33+BS33*0.25 -> 38.57447154 | BZ33: Hertford | CA33: 100 | CH33: 1 | CI33: A | CJ33: 01, , | CK33: Peanut Belt RPO, , | CL33: Hertford, , , | CM33: 2 | CN33: 2 | CO33: Two Lane Highway | CP33: Multi-Lane Highway | CQ33: 1 | CR33: 1 | CS33: Undivided | CT33: Divided | CU33: 49.99989223 | CV33: 55 | CW33: 14.96270575 | CX33: 85.03729425 | CY33: 8350.07995 | CZ33: 31000 | DA33: 0.2693574177 | DB33: 7100.682057 | DC33: 1249.397893 | DD33: 1121641.911 | DE33: 197358.0888 | DF33: 1319000 | DG33: 30827774 | DK33: 33.3 | DL33: 100 | DM33: 21 | DN33: 6.944041194e-05 | DO33: No | DP33: No | DQ33: 12 | DR33: 12 | DS33: No | DT33: 2 | DU33: 2 | DV33: 2 Lane Undivided | DX33: None | DY33: Full | DZ33: 1 | EA33: Yes | EB33: 19.56521906 | EC33: 8900000 | ED33: 500000 | EE33: 60000 | EF33: 9460000 | EH33: 9460000 | EI33: 9460000
A34: H111228 | B34: Camden | C34: Albemarle RPO | D34: Highway | E34: Division Needs | G34: SR-1227 | H34: NC 168 | I34: NC 343 in Camden County | J34: Widen to 24 Feet with Paved Shoulders and Turn Lanes Where Necessary from the Camden County Line to the Location of the Proposed NC 168 Bypass. | K34: 16 - Modernize Roadway | L34: 12540000 | Q34: 10.43 | R34: 9.75 | S34: =Q34+#REF!+R34 ->  | U34: N/A | W34: 7.985846839 | Z34: Yes | AE34: 5 | AF34: =IF(W34<999,20,IF(W34<1499,15,IF(W34<1999,10,IF(W34<3999,5,IF(W34>4000,0))))) -> 20 | AG34: 15 | AH34: 10 | AI34: No | AJ34: =IF(AK34="Minimal",15,0) -> 15 | AK34: Minimal | AL34: 10 | AM34: Yes | AN34: =IF(AO34="Yes",10,0) -> 0 | AO34: No | AP34: 0 | AQ34: No | AR34: 9.399806739 | AS34: 0 | AT34: 44.93631759 | AU34: 0 | AV34: N/A | AW34: N/A | AX34: 50 | AY34: 0 | BC34: Albemarle RPO | BD34: 100 | BI34: 01 | BJ34: 100 | BP34: =SUM(AE34+AF34+AG34+AH34+AJ34+AL34+AN34+AP34) -> 75 | BT34: 100 | BU34: =Q34+BT34*0.25 -> 35.43 | BZ34: Camden | CA34: 55.7 | CB34: Currituck | CC34: 44.3 | CH34: 1 | CI34: A | CJ34: 01, , | CK34: Albemarle RPO, , | CL34: Camden, Currituck, , | CM34: 11.00427744 | CN34: 11.00427744 | CO34: Two Lane Highway | CP34: Two Lane Highway | CQ34: 1 | CR34: 1 | CS34: Undivided | CT34: Undivided | CU34: 54 | CV34: 54 | CW34: 0 | CX34: 100 | CY34: 2201.904411 | CZ34: 15508.10743 | DA34: 0.1419840829 | DB34: 2201.904411 | DC34: 0 | DD34: 0 | DE34: 0 | DF34: 0 | DG34: 0 | DH34: 69.44397248 | DI34: 39.26778525 | DJ34: 26.11067729 | DO34: No | DP34: No | DQ34: 10 | DR34: 12 | DS34: No | DT34: 0 | DU34: 0 | DV34: 2 Lane Undivided | DX34: None | DY34: None | DZ34: 1 | EA34: No | EB34: 34 | EC34: 12540000 | ED34: 0 | EE34: 0 | EF34: 12540000 | EH34: 193500 | EI34: 12540000
A35: H111225 | B35: Currituck | C35: Albemarle RPO | D35: Highway | E35: Statewide Mobility | G35: US-158 | H35: Proposed Mid Currituck Bridge | I35: Dare County Line | J35: Upgrade the Existing 5-Lane Boulevard to a 4-Lane Divided Boulevard fromtheproposed Mid-Currituck Bridge to the Dare County Line. | K35: 11 - Access Management | L35: 130843000 | M35: 11.16234915 | O35: 12.45 | P35: 6.3 | Q35: 9.13 | R35: 9 | S35: =Q35+#REF!+R35 ->  | U35: =IF(AT35<30,0,IF(AT35<50,5,IF(AT35<65,10,IF(AT35>66,15)))) -> 5 | V35: =IF(W35<499,15,IF(W35<999,10,IF(W35<1499,5,IF(W35>1500,0)))) -> 15 | W35: 484.1280272 | X35: =IF(DC35<500,0,IF(DC35<1000,5,IF(DC35>1000,10))) -> 10 | Y35: =IF(Z35="Yes",20,0) -> 20 | Z35: Yes | AA35: =IF(AB35="Yes",20,0) -> 20 | AB35: Yes | AC35: =IF(AD35="Yes",20,0) -> 20 | AD35: Yes | AE35: 5 | AF35: 20 | AG35: 15 | AH35: =IF(AI35="Yes",10,0) -> 0 | AI35: No | AJ35: 15 | AK35: Minimal | AL35: 10 | AM35: Yes | AN35: =IF(AO35="Yes",10,0) -> 0 | AO35: No | AP35: 0 | AQ35: No | AR35: 16.86901992 | AS35: 0 | AT35: 49.44605465 | AU35: 5.78518856 | AV35: 0 | AW35: 19.31171855 | AX35: 0 | AY35: 25 | BC35: Albemarle RPO | BD35: 100 | BI35: 01 | BJ35: 100 | BO35: =SUM(U35+V35+X35+Y35+AA35+AC35) -> 90 | BP35: =SUM(AE35+AF35+AG35+AH35+AJ35+AL35+AN35+AP35) -> 65 | BS35: 100 | BU35: =Q35+BT35*0.25 -> 9.13 | BV35: Exceeds cap of $15 million for Statewide & Regional Projects cascading to Division Needs | BW35: =O35+BS35*0.25 -> 37.45 | BZ35: Currituck | CA35: 100 | CH35: 1 | CI35: A | CJ35: 01, , | CK35: Albemarle RPO, , | CL35: Currituck, , , | CM35: 19.34947418 | CN35: 19.34947418 | CO35: Multi-Lane Highway | CP35: Multi-Lane Highway | CQ35: 2 | CR35: 2 | CS35: TWLTL | CT35: Divided | CU35: 55 | CV35: 55 | CW35: 8.283739142 | CX35: 91.71626086 | CY35: 13967.57783 | CZ35: 74282.5299 | DA35: 0.1880331465 | DB35: 12810.54012 | DC35: 1157.037712 | DD35: 0 | DE35: 0 | DF35: 0 | DG35: 0 | DH35: 46.77518175 | DI35: 60.6893937 | DJ35: 40.88842381 | DM35: 0 | DN35: 0 | DO35: No | DP35: No | DQ35: 12 | DR35: 12 | DS35: No | DT35: 3 | DU35: 4 | DV35: 4 Lane with TWLTL (Five Lane) | DW35: 4E - 4 Lane Divided (17'-6"' Raised Median) with Paved Shoulders and Sidewalks | DX35: None | DY35: None | DZ35: 2 | EA35: No | EB35: 25 | EC35: 125286000 | ED35: 4962000 | EE35: 595000 | EF35: 130843000 | EH35: 130843000 | EI35: 130843000
A36: B141365 | B36: Dare | C36: Albemarle RPO | D36: Bike & Ped | E36: Division Needs | G36: Us 158 sidewalk | H36: Bennett Street | I36: Worthington Lane | J36: Construct 6000' of sidewalk on west side of US 158 | K36: 5. Construct Sidewalk | L36: 282000 | Q36: 15.29568045 | R36: 9.75 | S36: =Q36+#REF!+R36 ->  | U36: N/A | W36: 3163.95561 | Z36: Yes | AE36: 15 | AF36: 5 | AG36: 15 | AH36: 10 | AI36: Yes | AJ36: 15 | AK36: Minimal | AL36: 10 | AM36: Yes | AN36: =IF(AO36="Yes",10,0) -> 0 | AO36: No | AP36: 0 | AQ36: No | AT36: 65 | BC36: Albemarle RPO | BP36: =SUM(AE36+AF36+AG36+AH36+AJ36+AL36+AN36) -> 70 | BZ36: Dare County | CN36: 1.56 | CY36: =1012*0.1 -> 101.2 | EC36: 272000 | ED36: 0 | EF36: 282000 | EG36: 0 | EH36: 499500
A37: A130011 | B37: Pasquotank | C37: Albemarle RPO | D37: Aviation | E37: Division Needs | G37: Elizabeth City Coast Guard Air Station/Regional | J37: Hangers and Economic Development | L37: 150300 | Q37: 5.76 | R37: 13.5 | S37: =Q37+#REF!+R37 ->  | U37: N/A | W37: 1061.061513 | Z37: Yes | AA37: =IF(AB37="Yes",10,0) -> 0 | AC37: =IF(AD37="Yes",10,0) -> 0 | AE37: 0 | AF37: 15 | AG37: 15 | AH37: 10 | AI37: Yes | AJ37: 15 | AK37: Minimal | AL37: 10 | AM37: Yes | AN37: =IF(AO37="Yes",5,0) -> 5 | AO37: Yes | AP37: 0 | AQ37: No | BC37: Albemarle RPO | BP37: =SUM(AE37+AF37+AG37+AH37+AJ37+AL37+AN37+AP37) -> 70 | BZ37: Pasquotank | CN37: 0.86 | CY37: 164.71 | EF37: 167000 | EH37: 150300
A38: H141869 | B38: Chowan | C38: Albemarle RPO | D38: Highway | E38: Statewide Mobility | G38: US-17-BYP-Edenton Bypass | H38: South end of Chowan River Bridge | I38: US 17 Business (North) in Edenton (Broad Street) | J38: Upgrade freeway to interstate standards | K38: 17 - Upgrade Freeway to Interstate Standards | L38: 39943000 | M38: 8.748476042 | O38: 13.19957813 | P38: 4.95 | Q38: 10.46638542 | R38: 7.5 | S38: =Q38+#REF!+R38 ->  | U38: =IF(AT38<30,0,IF(AT38<50,5,IF(AT38<65,10,IF(AT38>66,15)))) -> 5 | V38: =IF(W38<499,15,IF(W38<999,10,IF(W38<1499,5,IF(W38>1500,0)))) -> 10 | W38: 527.4814841 | X38: =IF(DC38<500,0,IF(DC38<1000,5,IF(DC38>1000,10))) -> 10 | Y38: =IF(Z38="Yes",20,0) -> 20 | Z38: Yes | AA38: =IF(AB38="Yes",20,0) -> 20 | AB38: Yes | AC38: =IF(AD38="Yes",20,0) -> 20 | AD38: Yes | AE38: 5 | AF38: 20 | AG38: 15 | AH38: 0 | AI38: No | AJ38: 15 | AK38: Minimal | AL38: 10 | AM38: Yes | AN38: =IF(AO38="Yes",10,0) -> 0 | AO38: No | AP38: 0 | AQ38: No | AR38: 10.14337207 | AS38: 0 | AT38: 44.52048215 | AU38: 5.874292941 | AV38: 0.7855761892 | AW38: 18.24194062 | AX38: 25 | AY38: 25 | BC38: Albemarle RPO | BD38: 90.31 | BE38: Peanut Belt RPO | BF38: 9.69 | BI38: 01 | BJ38: 100 | BO38: =SUM(U38+V38+X38+Y38+AA38+AC38) -> 85 | BP38: 65 | BS38: 0 | BU38: =Q38+BT38*0.25 -> 10.46638542 | BV38: Delay Prioritization pending outcome of Future Interstate Designation; Exceeds cap of $15 million for Statewide & Regional Projects cascading to Division Needs | BW38: =O38+BS38*0.25 -> 13.19957813 | BY38: Delay Prioritization pending outcome of Future Interstate Designation | BZ38: Chowan | CA38: 90.31 | CB38: Bertie | CC38: 9.69 | CH38: 1 | CI38: A | CJ38: 01, , | CK38: Albemarle RPO, Peanut Belt RPO, | CL38: Chowan, Bertie, , | CM38: 9.18764021 | CN38: 9.18764021 | CO38: Freeway | CP38: Freeway | CQ38: 2 | CR38: 2 | CS38: Divided | CT38: Divided | CU38: 58.65785795 | CV38: 58.65785795 | CW38: 14.25463544 | CX38: 85.74536456 | CY38: 8241.940617 | CZ38: 72228.0751 | DA38: 0.1141099303 | DB38: 7067.082029 | DC38: 1174.858588 | DD38: 0 | DE38: 0 | DF38: 0 | DG38: 0 | DH38: 49.23914745 | DI38: 33.66004321 | DJ38: 50.67561326 | DM38: 3.52977296 | DN38: 1.218175082e-05 | DO38: No | DP38: No | DQ38: 11 | DR38: 12 | DS38: No | DT38: 3 | DU38: 4 | DV38: 4 Lane with Median - Full Control | DX38: Full | DY38: Full | DZ38: 1 | EA38: No | EB38: 25 | EC38: 39943000 | ED38: 0 | EE38: 0 | EF38: 39943000 | EH38: 39943000 | EI38: 39943000
A39: H141931 | B39: Camden | C39: Albemarle RPO | D39: Highway | E39: Statewide Mobility | G39: US-17 | H39: US 17/158 north of Elizabeth City (North Road Street) | I39: Virginia State LIne | J39: Upgrade roadway to Interstate | K39: 2 - Upgrade Arterial to Freeway/Expressway | L39: 66692000 | M39: 11.44481756 | O39: 9.1 | P39: 4.95 | Q39: 6.84 | R39: 7.5 | S39: =Q39+#REF!+R39 ->  | U39: =IF(AT39<30,0,IF(AT39<50,5,IF(AT39<65,10,IF(AT39>66,15)))) -> 0 | V39: =IF(W39<499,15,IF(W39<999,10,IF(W39<1499,5,IF(W39>1500,0)))) -> 15 | W39: 380.9465735 | X39: =IF(DC39<500,0,IF(DC39<1000,5,IF(DC39>1000,10))) -> 10 | Y39: =IF(Z39="Yes",20,0) -> 20 | Z39: Yes | AA39: =IF(AB39="Yes",20,0) -> 20 | AB39: Yes | AC39: =IF(AD39="Yes",20,0) -> 20 | AD39: Yes | AE39: 0 | AF39: 20 | AG39: 15 | AH39: 0 | AI39: No | AJ39: 15 | AK39: Minimal | AL39: 10 | AM39: Yes | AN39: 0 | AO39: No | AP39: 0 | AQ39: No | AR39: 16.05865444 | AS39: 1.824639312 | AT39: 25.53604913 | AU39: 6.398055144 | AV39: 22.46613496 | AW39: 64.34057064 | AX39: 0 | AY39: 25 | BC39: Albemarle RPO | BD39: 100 | BI39: 01 | BJ39: 100 | BO39: =SUM(U39+V39+X39+Y39+AA39+AC39) -> 85 | BP39: 60 | BS39: 0 | BU39: 6.84 | BV39: Delay Prioritization pending outcome of Future Interstate Designation; Exceeds cap of $15 million for Statewide & Regional Projects cascading to Division Needs | BW39: =O39+BS39*0.25 -> 9.1 | BY39: Delay Prioritization pending outcome of Future Interstate Designation/Under Threshold of SPOT Score of "10" | BZ39: Camden | CA39: 73.67 | CB39: Pasquotank | CC39: 26.33 | CH39: 1 | CI39: A | CJ39: 01, , | CK39: Albemarle RPO, , | CL39: Camden, Pasquotank, , | CM39: 13.01933756 | CN39: 13.01933756 | CO39: Multi-Lane Highway | CP39: Freeway | CQ39: 2 | CR39: 2 | CS39: Divided | CT39: Divided | CU39: 55 | CV39: 70 | CW39: 9.516060446 | CX39: 90.48393955 | CY39: 13446.85688 | CZ39: 75544.76446 | DA39: 0.1779985281 | DB39: 12167.24585 | DC39: 1279.611029 | DD39: 4814002.407 | DE39: 506281.4254 | DF39: 5320283.832 | DG39: 121688845 | DH39: 16.54598577 | DI39: 37.38404383 | DJ39: 22.68577938 | DM39: 86.35841473 | DN39: 0.0003629642845 | DO39: No | DP39: No | DQ39: 12 | DR39: 12 | DS39: No | DT39: 3 | DU39: 4 | DV39: 4 Lane with Median - Limited Control | DW39: 4A - 4 Lane Divided (46' Depressed Median) with Paved Shoulders | DX39: Limited | DY39: Limited | DZ39: 1 | EA39: Yes | EB39: 32 | EC39: 54160000 | ED39: 11189000 | EE39: 1343000 | EF39: 66692000 | EH39: 66692000 | EI39: 66692000
A40: H090400 | B40: Pasquotank | C40: Albemarle RPO | D40: Highway | E40: Division Needs | F40: U-3420 | G40: SR-1309 New Route - Main Street Extension | H40: Proposed US 17 Bypass | I40: US 17 | J40: Proposed US 17 Bypass to US 17 Bypass (Hughes Boulevard). Upgrade Roadway, Some New Location with interchange at the Proposed US 17 Bypass. | K40: 6 - Widen Existing Roadway and Construct Part on New Location | L40: 37604000 | Q40: 7.492621801 | R40: 9.75 | S40: =Q40+#REF!+R40 ->  | U40: N/A | W40: 570.5904249 | Z40: Yes | AE40: 10 | AF40: 20 | AG40: 15 | AH40: 0 | AI40: No | AJ40: 15 | AK40: Minimal | AL40: 10 | AM40: Yes | AN40: 0 | AO40: No | AP40: 0 | AQ40: No | AR40: 21.23955153 | AS40: 0 | AT40: 53.68666648 | AU40: 2.212577648 | AV40: N/A | AW40: N/A | AX40: 0 | AY40: 0 | BC40: Albemarle RPO | BD40: 100 | BI40: 01 | BJ40: 100 | BP40: 70 | BU40: 7.492621801 | BV40: Exceeds cap of $15 million for Statewide & Regional Projects cascading to Division Needs | BZ40: Pasquotank | CA40: 100 | CH40: 1 | CI40: A | CJ40: 01, , | CK40: Albemarle RPO, , | CL40: Pasquotank, , , | CM40: 8.1 | CN40: 4.49653625 | CO40: Multi-Lane Highway | CP40: Arterial | CQ40: 2 | CR40: 2 | CS40: Divided | CT40: Divided | CU40: 53 | CV40: 45 | CW40: 3.019235928 | CX40: 96.98076407 | CY40: 14656.54027 | CZ40: 57189.0557 | DA40: 0.256282257 | DB40: 14214.02474 | DC40: 442.5155297 | DD40: 0 | DE40: 0 | DF40: 0 | DG40: 0 | DH40: 45.39256322 | DI40: 70.29098062 | DJ40: 45.39256322 | DO40: No | DP40: No | DQ40: 12 | DR40: 12 | DS40: No | DT40: 4 | DU40: 4 | DV40: New Roadway | DW40: 4B - 4 Lane Divided (23' Raised Median) with Paved Shoulders and Sidewalks | DX40: None | DY40: Partial | DZ40: 2 | EA40: No | EB40: 23 | EC40: 32490000 | ED40: 4566000 | EE40: 548000 | EF40: 37604000 | EH40: 37604000 | EI40: 37604000
A41: H141880 | B41: Pasquotank | C41: Albemarle RPO | D41: Highway | E41: Statewide Mobility | G41: US-17-BYP-Elizabeth City Bypass | H41: SR 1100 / 1140 (Okisko Road) | I41: US 17/158 north of Elizabeth City (North Road Street) | J41: Upgrade freeway to interstate standards | K41: 17 - Upgrade Freeway to Interstate Standards | L41: 16554000 | M41: 7.440143754 | O41: 5.158611876 | P41: 6.3 | Q41: 3.439074584 | R41: 9 | S41: =Q41+#REF!+R41 ->  | U41: =IF(AT41<30,0,IF(AT41<50,5,IF(AT41<65,10,IF(AT41>66,15)))) -> 0 | V41: =IF(W41<499,15,IF(W41<999,10,IF(W41<1499,5,IF(W41>1500,0)))) -> 15 | W41: 146.4574239 | X41: =IF(DC41<500,0,IF(DC41<1000,5,IF(DC41>1000,10))) -> 10 | Y41: =IF(Z41="Yes",20,0) -> 20 | Z41: Yes | AA41: =IF(AB41="Yes",20,0) -> 20 | AB41: Yes | AC41: =IF(AD41="Yes",20,0) -> 20 | AD41: Yes | AE41: 0 | AF41: 20 | AG41: 15 | AH41: 0 | AI41: No | AJ41: 15 | AK41: Minimal | AL41: 10 | AM41: Yes | AN41: 0 | AO41: No | AP41: 0 | AQ41: No | AR41: 13.96803021 | AS41: 0 | AT41: 20.42271563 | AU41: 5.585323909 | AV41: 0.9039834727 | AW41: 13.55374751 | AX41: 0 | AY41: 0 | BC41: Albemarle RPO | BD41: 100 | BI41: 01 | BJ41: 100 | BO41: =SUM(U41+V41+X41+Y41+AA41+AC41) -> 85 | BP41: 60 | BS41: 0 | BU41: 3.439074584 | BV41: Delay Prioritization pending outcome of Future Interstate Designation; Exceeds cap of $15 million for Statewide & Regional Projects cascading to Division Needs | BW41: =O41+BS41*0.25 -> 5.158611876 | BY41: Delay Prioritization pending outcome of Future Interstate Designation/Under Threshold of SPOT Score of "10" | BZ41: Pasquotank | CA41: 100 | CH41: 1 | CI41: A | CJ41: 01, , | CK41: Albemarle RPO, , | CL41: Pasquotank, , , | CM41: 9.97557267 | CN41: 9.97557267 | CO41: Freeway | CP41: Freeway | CQ41: 2 | CR41: 2 | CS41: Divided | CT41: Divided | CU41: 68.72365998 | CV41: 68.72365998 | CW41: 9.858813171 | CX41: 90.14118683 | CY41: 11330.62127 | CZ41: 72048.85591 | DA41: 0.1572630283 | DB41: 10213.55649 | DC41: 1117.064782 | DD41: 0 | DE41: 0 | DF41: 0 | DG41: 0 | DH41: 23.95659736 | DI41: 8.33491162 | DJ41: 28.98276534 | DM41: 3.732892225 | DN41: 1.434677723e-05 | DO41: No | DP41: No | DQ41: 12 | DR41: 12 | DS41: No | DT41: 4 | DU41: 4 | DV41: 4 Lane with Median - Full Control | DX41: Full | DY41: Full | DZ41: 2 | EA41: No | EB41: 23 | EC41: 16554000 | ED41: 0 | EE41: 0 | EF41: 16554000 | EH41: 16554000 | EI41: 16554000
A42: H111227 | B42: Currituck | C42: Albemarle RPO | D42: Highway | E42: Statewide Mobility | G42: NC-168 | H42: Virginia Line | I42: US 158 | J42: Upgrade the Existing 5-Lane Major Thoroughfare to a 4-Lane Divided Boulevardfrom the Virginia Line to US 158 | K42: 11 - Access Management | L42: 122633000 | M42: 9.259530085 | O42: 10.46 | P42: 6.3 | Q42: 7.81 | R42: 9 | S42: =Q42+#REF!+R42 ->  | U42: =IF(AT42<30,0,IF(AT42<50,5,IF(AT42<65,10,IF(AT42>66,15)))) -> 5 | V42: =IF(W42<499,15,IF(W42<999,10,IF(W42<1499,5,IF(W42>1500,0)))) -> 10 | W42: 512.6215297 | X42: =IF(DC42<500,0,IF(DC42<1000,5,IF(DC42>1000,10))) -> 5 | Y42: =IF(Z42="Yes",20,0) -> 20 | Z42: Yes | AA42: =IF(AB42="Yes",20,0) -> 20 | AB42: Yes | AC42: =IF(AD42="Yes",20,0) -> 20 | AD42: Yes | AE42: 5 | AF42: 20 | AG42: 15 | AH42: 0 | AI42: No | AJ42: 15 | AK42: Minimal | AL42: 10 | AM42: Yes | AN42: 0 | AO42: No | AP42: 0 | AQ42: No | AR42: 15.5646293 | AS42: 0 | AT42: 37.49420247 | AU42: 4.203605242 | AV42: 0 | AW42: 36.70770635 | AX42: 0 | AY42: 25 | BC42: Albemarle RPO | BD42: 100 | BI42: 01 | BJ42: 100 | BO42: =SUM(U42+V42+X42+Y42+AA42+AC42) -> 80 | BP42: 65 | BS42: 100 | BU42: 7.81 | BV42: Exceeds cap of $15 million for Statewide & Regional Projects cascading to Division Needs | BW42: =O42+BS42*0.25 -> 35.46 | BZ42: Currituck | CA42: 100 | CH42: 1 | CI42: A | CJ42: 01, , | CK42: Albemarle RPO, , | CL42: Currituck, , , | CM42: 18.31536071 | CN42: 18.31536071 | CO42: Multi-Lane Highway | CP42: Multi-Lane Highway | CQ42: 2 | CR42: 2 | CS42: TWLTL | CT42: Divided | CU42: 55 | CV42: 55 | CW42: 6.436605418 | CX42: 93.56339458 | CY42: 13061.55953 | CZ42: 75792.37487 | DA42: 0.1723334247 | DB42: 12220.83848 | DC42: 840.7210483 | DD42: 0 | DE42: 0 | DF42: 0 | DG42: 0 | DH42: 39.91537916 | DI42: 42.33952295 | DJ42: 30.2389547 | DM42: 0 | DN42: 0 | DO42: No | DP42: No | DQ42: 12 | DR42: 12 | DS42: No | DT42: 3 | DU42: 4 | DV42: 4 Lane with TWLTL (Five Lane) | DW42: 4E - 4 Lane Divided (17'-6"' Raised Median) with Paved Shoulders and Sidewalks | DX42: None | DY42: None | DZ42: 2 | EA42: No | EB42: 34 | EC42: 120156000 | ED42: 2212000 | EE42: 265000 | EF42: 122633000 | EH42: 122633000 | EI42: 122633000
A43: H141929 | B43: Perquimans | C43: Albemarle RPO | D43: Highway | E43: Statewide Mobility | G43: US-17 | H43: US 17 Business (North) in Edenton (Broad Street) | I43: SR 1100 / 1140 (Okisko Road) | J43: Upgrade roadway to Interstate | K43: 2 - Upgrade Arterial to Freeway/Expressway | L43: 362296000 | M43: 12.2315914 | O43: 9.98 | P43: 4.95 | Q43: 7.47 | R43: 7.5 | S43: =Q43+#REF!+R43 ->  | U43: =IF(AT43<30,0,IF(AT43<50,5,IF(AT43<65,10,IF(AT43>66,15)))) -> 5 | V43: =IF(W43<499,15,IF(W43<999,10,IF(W43<1499,5,IF(W43>1500,0)))) -> 5 | W43: 1471.217406 | X43: =IF(DC43<500,0,IF(DC43<1000,5,IF(DC43>1000,10))) -> 10 | Y43: =IF(Z43="Yes",20,0) -> 20 | Z43: Yes | AA43: =IF(AB43="Yes",20,0) -> 20 | AB43: Yes | AC43: =IF(AD43="Yes",20,0) -> 20 | AD43: Yes | AE43: 5 | AF43: 15 | AG43: 15 | AH43: 0 | AI43: No | AJ43: 15 | AK43: Minimal | AL43: 10 | AM43: Yes | AN43: 0 | AO43: No | AP43: 0 | AQ43: No | AR43: 15.31018413 | AS43: 0.4626025184 | AT43: 33.90939469 | AU43: 6.372212582 | AV43: 28.34373418 | AW43: 50.15549361 | AX43: 0 | AY43: 25 | BC43: Albemarle RPO | BD43: 100 | BI43: 01 | BJ43: 100 | BO43: =SUM(U43+V43+X43+Y43+AA43+AC43) -> 80 | BP43: 60 | BS43: 0 | BU43: 7.47 | BV43: Delay Prioritization pending outcome of Future Interstate Designation; Exceeds cap of $15 million for Statewide & Regional Projects cascading to Division Needs | BW43: =O43+BS43*0.25 -> 9.98 | BY43: Delay Prioritization pending outcome of Future Interstate Designation/Under Threshold of SPOT Score of "10" | BZ43: Perquimans | CA43: 89.76 | CB43: Chowan | CC43: 8.6 | CD43: Pasquotank | CE43: 1.63 | CH43: 1 | CI43: A | CJ43: 01, , | CK43: Albemarle RPO, , | CL43: Perquimans, Chowan, Pasquotank, | CM43: 19.22626177 | CN43: 19.22626177 | CO43: Multi-Lane Highway | CP43: Freeway | CQ43: 2 | CR43: 2 | CS43: Divided | CT43: Divided | CU43: 55.26721677 | CV43: 70 | CW43: 9.950122274 | CX43: 90.04987773 | CY43: 12808.3101 | CZ43: 75440.18465 | DA43: 0.1697810015 | DB43: 11533.86759 | DC43: 1274.442516 | DD43: 6586938.059 | DE43: 727828.1854 | DF43: 7314766.245 | DG43: 167599042 | DH43: 27.89512178 | DI43: 40.9431569 | DJ43: 32.90007922 | DM43: 116.7909975 | DN43: 0.0004500836861 | DO43: No | DP43: No | DQ43: 12 | DR43: 12 | DS43: No | DT43: 3 | DU43: 4 | DV43: 4 Lane with Median - Partial Control | DW43: 4A - 4 Lane Divided (46' Depressed Median) with Paved Shoulders | DX43: None | DY43: None | DZ43: 2 | EA43: Yes | EB43: 28 | EC43: 248047000 | ED43: 102008000 | EE43: 12241000 | EF43: 362296000 | EH43: 362296000 | EI43: 362296000
A44: H129208 | B44: Northampton | C44: Peanut Belt RPO | D44: Highway | E44: Statewide Mobility | G44: I-95 | H44: Halifax/Northampton County Line | I44: Virginia State Line | J44: Widen Roadway to 6 Lanes. | K44: 1 - Widen Existing Roadway | L44: 301845000 | M44: 28.41615029 | O44: 16.18064221 | Q44: 10.78388143 | S44: =Q44+#REF!+R44 ->  | U44: =IF(AT44<30,0,IF(AT44<50,5,IF(AT44<65,10,IF(AT44>66,15)))) -> 10 | V44: =IF(W44<499,15,IF(W44<999,10,IF(W44<1499,5,IF(W44>1500,0)))) -> 5 | W44: 1106.394656 | X44: =IF(DC44<500,0,IF(DC44<1000,5,IF(DC44>1000,10))) -> 10 | Y44: =IF(Z44="Yes",20,0) -> 20 | Z44: Yes | AA44: =IF(AB44="Yes",20,0) -> 20 | AB44: Yes | AC44: =IF(AD44="Yes",10,0) -> 10 | AD44: Yes | AE44: 10 | AF44: =IF(BL42<999,20,IF(BL42<1499,15,IF(BL42<1999,10,IF(BL42<3999,5,IF(BL42>4000,0))))) -> 0 | AG44: 15 | AH44: 0 | AI44: Yes | AJ44: 15 | AK44: Minimal | AL44: 10 | AM44: Yes | AN44: 0 | AO44: No | AP44: 0 | AQ44: No | AR44: 47.90087775 | AS44: 0.09640135831 | AT44: 59.84153519 | AU44: 38.25935209 | AV44: 3.809426184 | AW44: 40.36255669 | AX44: 0 | AY44: 0 | BC44: Peanut Belt RPO | BD44: 100 | BI44: 01 | BJ44: 100 | BM44: 04 | BO44: =SUM(U44+V44+X44+Y44+AA44+AC44) -> 75 | BP44: 50 | BS44: 0 | BU44: 10.78388143 | BV44: Exceeds cap of $15 million for Statewide & Regional Projects cascading to Division Needs | BW44: =O44+BS44*0.25 -> 16.18064221 | BZ44: Northampton | CA44: 100 | CD44: Halifax | CH44: 1 | CI44: A | CJ44: 01, , 04 | CK44: Peanut Belt RPO, , | CL44: Northampton, , Halifax, | CM44: 7.50273324 | CN44: 7.50273324 | CO44: Freeway | CP44: Freeway | CQ44: 2 | CR44: 3 | CS44: Divided | CT44: Divided | CU44: 70 | CV44: 70 | CW44: 21.04326845 | CX44: 78.95673155 | CY44: 36362.55669 | CZ44: 65408.40871 | DA44: 0.5559309179 | DB44: 28710.68627 | DC44: 7651.870419 | DD44: 960106.993 | DE44: 255884.3153 | DF44: 1215991.308 | DG44: 29098268 | DH44: 57.64005343 | DI44: 53.20047093 | DJ44: 68.70203548 | DM44: 19 | DN44: 5.718852368e-05 | DO44: No | DP44: No | DQ44: 12 | DR44: 12 | DS44: No | DT44: 11 | DU44: 10 | DV44: 4 Lane with Median - Full Control | DW44: 6A - 6 Lane Divided (46' Depressed Median) with Paved Shoulders | DX44: Full | DY44: Full | DZ44: 1 | EA44: No | EB44: 22 | EC44: 300960000 | ED44: 790000 | EE44: 95000 | EF44: 301845000 | EH44: 301845000 | EI44: 301845000
A45: H141218 | B45: Perquimans | C45: Albemarle RPO | D45: Highway | E45: Division Needs | G45: SR-1329 | H45: SR 1331 | I45: SR 1300 | J45: Widen and repave Woodville Road Phase 2 | K45: 16 - Modernize Roadway | L45: 734000 | Q45: 8.27 | R45: 5.25 | S45: =Q45+#REF!+R45 ->  | U45: N/A | W45: 548.0186344 | Z45: Yes | AE45: 0 | AF45: =IF(W45<999,20,IF(W45<1499,15,IF(W45<1999,10,IF(W45<3999,5,IF(W45>4000,0))))) -> 20 | AG45: 15 | AH45: 10 | AI45: No | AJ45: =IF(AK45="Minimal",15,0) -> 15 | AK45: Minimal | AL45: 10 | AM45: Yes | AN45: 0 | AO45: No | AP45: 0 | AQ45: No | AR45: 7.687741935 | AS45: 0 | AT45: 0 | AU45: 0 | AV45: N/A | AW45: N/A | AX45: 75 | AY45: 0 | BC45: Albemarle RPO | BD45: 100 | BI45: 01 | BJ45: 100 | BP45: 70 | BT45: 100 | BU45: 33.27 | BZ45: Perquimans | CA45: 100 | CH45: 1 | CI45: A | CJ45: 01, , | CK45: Albemarle RPO, , | CL45: Perquimans, , , | CM45: 0.74409473 | CN45: 0.74409473 | CO45: Two Lane Highway | CP45: Two Lane Highway | CQ45: 1 | CR45: 1 | CS45: Undivided | CT45: Undivided | CU45: 55 | CV45: 55 | CW45: 0 | CX45: 100 | CY45: 1800 | CZ45: 15500 | DA45: 0.1161290323 | DB45: 1800 | DC45: 0 | DD45: 0 | DE45: 0 | DF45: 0 | DG45: 0 | DH45: 0 | DI45: 0 | DJ45: 0 | DO45: No | DP45: No | DQ45: 9 | DR45: 12 | DS45: No | DT45: 0 | DU45: 0 | DV45: 2 Lane Undivided | DW45: 3A - 2 Lane with Two Way Left Turn Lane, and Paved Shoulders | DX45: None | DY45: None | DZ45: 2 | EA45: No | EB45: 30 | EC45: 734000 | ED45: 0 | EE45: 0 | EF45: 734000 | EH45: 734000 | EI45: 734000
A46: H141863 | B46: Bertie | C46: Peanut Belt RPO | D46: Highway | E46: Statewide Mobility | G46: US-17-BYP-Windsor Bypass | H46: US 13 North at Windsor | I46: US 17A East of Windsor | J46: Upgrade freeway to interstate standards | K46: 17 - Upgrade Freeway to Interstate Standards | L46: 18115000 | M46: 5.28052232 | O46: 13.48 | Q46: 12.32 | S46: =Q46+#REF!+R46 ->  | U46: =IF(AT46<30,0,IF(AT46<50,5,IF(AT46<65,10,IF(AT46>66,15)))) -> 0 | V46: =IF(W46<499,15,IF(W46<999,10,IF(W46<1499,5,IF(W46>1500,0)))) -> 15 | W46: 377.5845548 | X46: =IF(DC46<500,0,IF(DC46<1000,5,IF(DC46>1000,10))) -> 10 | Y46: =IF(Z46="Yes",20,0) -> 20 | Z46: Yes | AA46: =IF(AB46="Yes",20,0) -> 20 | AB46: Yes | AC46: =IF(AD46="Yes",10,0) -> 10 | AD46: Yes | AE46: 0 | AF46: 20 | AG46: 15 | AH46: =IF(AI46="Yes",10,0) -> 10 | AI46: Yes | AJ46: 15 | AK46: Minimal | AL46: 10 | AM46: Yes | AN46: 0 | AO46: No | AP46: 0 | AQ46: No | AR46: 8.978954008 | AS46: 0 | AT46: 14.22595594 | AU46: 5.804332576 | AV46: 0.03374007846 | AW46: 17.2454881 | AX46: 0 | AY46: 100 | BC46: Peanut Belt RPO | BD46: 100 | BI46: 01 | BJ46: 100 | BO46: =SUM(U46+V46+X46+Y46+AA46+AC46) -> 75 | BP46: 70 | BU46: 12.32 | BV46: Delay Prioritization pending outcome of Future Interstate Designation; Exceeds cap of $15 million for Statewide & Regional Projects cascading to Division Needs | BW46: =O46+BS46*0.25 -> 13.48 | BZ46: Bertie | CA46: 100 | CH46: 1 | CI46: A | CJ46: 01, , | CK46: Peanut Belt RPO, , | CL46: Bertie, , , | CM46: 6.62150132 | CN46: 6.62150132 | CO46: Freeway | CP46: Freeway | CQ46: 2 | CR46: 2 | CS46: Divided | CT46: Divided | CU46: 69.86803158 | CV46: 69.86803158 | CW46: 16.02192288 | CX46: 83.97807712 | CY46: 7245.488098 | CZ46: 71492.60519 | DA46: 0.1013459795 | DB46: 6084.621583 | DC46: 1160.866515 | DD46: 0 | DE46: 0 | DF46: 0 | DG46: 0 | DH46: 15.05631716 | DI46: 7.53506316 | DJ46: 20.09075572 | DM46: 0.157110719 | DN46: 5.176908502e-07 | DO46: No | DP46: No | DQ46: 12 | DR46: 12 | DS46: No | DT46: 0 | DU46: 4 | DV46: 4 Lane with Median - Full Control | DX46: Full | DY46: Full | DZ46: 1 | EA46: No | EB46: 25 | EC46: 18115000 | ED46: 0 | EE46: 0 | EF46: 18115000 | EH46: 18115000 | EI46: 18115000
A47: F130002 | B47: Hyde | C47: Albemarle RPO | D47: Ferry | E47: Division Needs | G47: Statewide: Support Vessel | J47: Replacement Vessel-Tug (Dare) | L47: 1725000 | Q47: 25.9 | R47: 6 | S47: =Q47+#REF!+R47 ->  | W47: 0.4157119961 | Z47: Yes | AE47: 5 | AF47: 20 | AG47: 15 | AH47: 0 | AI47: No | AJ47: =IF(AK47="Minimal",15,0) -> 15 | AK47: Minimal | AL47: 10 | AM47: Yes | AN47: =IF(AO47="Yes",5,0) -> 0 | AO47: No | AP47: =IF(AQ47="Yes",5,0) -> 0 | AQ47: No | AT47: 39.43 | BC47: Albemarle RPO | BP47: =SUM(AE47+AF47+AG47+AH47++AJ47+AL47+AN47+AP47) -> 65 | BZ47: Hyde | CN47: =9.5*2 -> 19 | CY47: 60391 | EF47: 1725000 | EH47: 477000
A48: F130004 | C48: Albemarle RPO | D48: Ferry | E48: Division Needs | G48: Statewide: Support Vessel | J48: Replacement Vessel-Tug (Buxton Jr.) | L48: 1725000 | Q48: 23.4 | R48: 6 | S48: =Q48+#REF!+R48 ->  | W48: 0.2007967378 | Z48: Yes | AE48: 5 | AF48: 20 | AG48: 15 | AH48: 0 | AI48: No | AJ48: 15 | AK48: Minimal | AL48: 10 | AM48: Yes | AN48: =IF(AO48="Yes",5,0) -> 0 | AO48: No | AP48: =IF(AQ48="Yes",5,0) -> 0 | AQ48: No | AT48: 39.43 | BC48: Albemarle RPO | BP48: =SUM(AE48+AF48+AG48+AH48++AJ48+AL48+AN48+AP48) -> 65 | CN48: =9.5*2 -> 19 | CY48: 60391 | EF48: 1725000 | EH48: 230400
A49: F130001 | B49: Hyde | C49: Albemarle RPO | D49: Ferry | E49: Division Needs | G49: Statewide: Support Vessel | J49: Replacement Vessel-Tug(Albemarle) | L49: 5000000 | Q49: 19.3 | R49: 6 | S49: =Q49+#REF!+R49 ->  | W49: =(EH49/CY49)/CN49 -> 1.003983689 | Z49: Yes | AE49: =IF(AT49<30,0,IF(AT49<50,5,IF(AT49<65,10,IF(AT49<79,15,IF(AT49>80,20))))) -> 5 | AF49: 20 | AG49: =IF(Z49="Yes",15,0) -> 15 | AH49: 0 | AI49: No | AJ49: 15 | AK49: Minimal | AL49: =IF(AM49="Yes",10,0) -> 10 | AM49: Yes | AN49: =IF(AO49="Yes",5,0) -> 0 | AO49: No | AP49: =IF(AQ49="Yes",5,0) -> 0 | AQ49: No | AT49: 39.43 | BC49: Albemarle RPO | BP49: =SUM(AE49+AF49+AG49+AH49++AJ49+AL49+AN49+AP49) -> 65 | BZ49: Hyde | CN49: =9.5*2 -> 19 | CY49: 60391 | EF49: 5000000 | EH49: 1152000
A50: B141476 | B50: Dare | C50: Albemarle RPO | D50: Bike & Ped | E50: Division Needs | G50: Kill Devil Hills Multi Use Path | H50: Ocean Acres | I50: Atlantic | J50: Construct Multi-Use Path | K50: 2. Construct multi-use trail / greenway / sidepath or on-road bike lane on local roadway | L50: 356500 | Q50: 18.50454824 | R50: 9.75 | S50: =Q50+#REF!+R50 ->  | U50: N/A | W50: 7756.71017 | Z50: Yes | AE50: 15 | AF50: 0 | AG50: 15 | AH50: 10 | AI50: Yes | AJ50: 15 | AK50: Minimal | AL50: 10 | AM50: Yes | AN50: =IF(AO50="Yes",10,0) -> 0 | AO50: No | AP50: =IF(AQ50="Yes",10,0) -> 0 | AQ50: No | AT50: 75 | BC50: Albemarle RPO | BP50: =SUM(AE50+AF50+AG50+AH50+AJ50+AL50+AN50) -> 65 | BZ50: Dare County | CN50: 0.31 | CY50: =786*0.1 -> 78.6 | EC50: 310000 | ED50: 0 | EF50: 356500 | EG50: 0 | EH50: 189000
A51: F130005 | C51: Albemarle RPO | D51: Ferry | E51: Division Needs | G51: Statewide: Support Vessel | J51: Replacement Vessel-Barge (NC-2 Fuel Barge) | L51: 200000 | Q51: 18.2 | R51: 3 | S51: =Q51+#REF!+R51 ->  | W51: 0.2860961332 | Z51: Yes | AE51: 5 | AF51: 20 | AG51: 15 | AH51: 0 | AI51: No | AJ51: 15 | AK51: Minimal | AL51: 10 | AM51: Yes | AN51: =IF(AO51="Yes",5,0) -> 0 | AO51: No | AP51: =IF(AQ51="Yes",5,0) -> 0 | AQ51: No | AT51: 39.43 | BC51: Albemarle RPO | BP51: =SUM(AE51+AF51+AG51+AH51++AJ51+AL51+AN51+AP51) -> 65 | CN51: =9.5*2 -> 19 | CY51: 60391 | EF51: 200000 | EH51: 328275
A52: B141349 | B52: Dare | C52: Albemarle RPO | D52: Bike & Ped | E52: Division Needs | G52: NC 12 | H52: Gull Street | I52: Jennettes Pier | J52: Construct sidewalk on west side of NC 12 from Gull Street south to Jennets Pier | K52: 5. Construct Sidewalk | L52: 100000 | Q52: 15.6425 | R52: 6.75 | S52: =Q52+#REF!+R52 ->  | U52: N/A | W52: 1461.038961 | Z52: Yes | AE52: 0 | AF52: 15 | AG52: 15 | AH52: 10 | AI52: Yes | AJ52: 15 | AK52: Minimal | AL52: 10 | AM52: Yes | AN52: =IF(AO52="Yes",10,0) -> 0 | AO52: No | AP52: =IF(AQ52="Yes",10,0) -> 0 | AQ52: No | AT52: 12.5 | BC52: Albemarle RPO | BP52: =SUM(AE52+AF52+AG52+AH52+AJ52+AL52+AN52) -> 65 | BZ52: Dare County | CN52: 0.3 | CY52: 308 | EC52: 90000 | ED52: 0 | EF52: 100000 | EG52: 0 | EH52: 135000
A53: F130009 | B53: Hyde | C53: Albemarle RPO | D53: Ferry | E53: Division Needs | G53: Statewide: Support Vessel | J53: Replacement Vessel-Barge (NC-1 Pipeline Barge) | L53: 185000 | Q53: 13.7 | R53: 3 | S53: =Q53+#REF!+R53 ->  | W53: 1.725596965 | Z53: Yes | AE53: 5 | AF53: 20 | AG53: 15 | AH53: 0 | AI53: No | AJ53: 15 | AK53: Minimal | AL53: 10 | AM53: Yes | AN53: =IF(AO53="Yes",5,0) -> 0 | AO53: No | AP53: =IF(AQ53="Yes",5,0) -> 0 | AQ53: No | AT53: 39.43 | BC53: Albemarle RPO | BP53: =SUM(AE53+AF53+AG53+AH53++AJ53+AL53+AN53+AP53) -> 65 | BZ53: Hyde | CN53: =9.5*2 -> 19 | CY53: 60391 | EF53: 185000 | EH53: 1980000
A54: F130010 | B54: Hyde | C54: Albemarle RPO | D54: Ferry | E54: Division Needs | G54: Statewide: Support Vessel | J54: Replacement Vessel-Barge (NC-3 Equipment Barge) | L54: 185000 | Q54: 13.7 | R54: 3 | S54: =Q54+#REF!+R54 ->  | W54: 0.5804280701 | Z54: Yes | AE54: 5 | AF54: 20 | AG54: 15 | AH54: 0 | AI54: No | AJ54: 15 | AK54: Minimal | AL54: 10 | AM54: Yes | AN54: =IF(AO54="Yes",5,0) -> 0 | AO54: No | AP54: =IF(AQ54="Yes",5,0) -> 0 | AQ54: No | AT54: 39.43 | BC54: Albemarle RPO | BP54: =SUM(AE54+AF54+AG54+AH54++AJ54+AL54+AN54+AP54) -> 65 | BZ54: Hyde | CN54: =9.5*2 -> 19 | CY54: 60391 | EF54: 185000 | EH54: 666000
A55: H090285 | B55: Perquimans | C55: Albemarle RPO | D55: Highway | E55: Statewide Mobility | F55: R-4458 | G55: US-17 | H55: SR 1300 (New Hope Road) | J55: Convert at-Grade intersection to An interchange | K55: 7 - Upgrade At-grade Intersection to Interchange or Grade Separation | L55: 12906000 | M55: 11.90833589 | O55: 12.64 | P55: 4.95 | Q55: 9.24 | R55: 7.5 | S55: =Q55+#REF!+R55 ->  | U55: =IF(AT55<30,0,IF(AT55<50,5,IF(AT55<65,10,IF(AT55>66,15)))) -> 10 | V55: =IF(W55<499,15,IF(W55<999,10,IF(W55<1499,5,IF(W55>1500,0)))) -> 15 | W55: 407.6876046 | X55: =IF(DC55<500,0,IF(DC55<1000,5,IF(DC55>1000,10))) -> 10 | Y55: =IF(Z55="Yes",20,0) -> 20 | Z55: Yes | AA55: =IF(AB55="Yes",20,0) -> 20 | AB55: Yes | AC55: =IF(AD55="Yes",20,0) -> 0 | AD55: no | AE55: 10 | AF55: =IF(BL53<999,20,IF(BL53<1499,15,IF(BL53<1999,10,IF(BL53<3999,5,IF(BL53>4000,0))))) -> 20 | AG55: 15 | AH55: 0 | AI55: No | AJ55: 15 | AK55: Minimal | AL55: 10 | AM55: Yes | AN55: =IF(AO55="Yes",10,0) -> 0 | AO55: No | AP55: =IF(AQ55="Yes",10,0) -> 0 | AQ55: No | AR55: 16.72725633 | AS55: 0.6740467999 | AT55: 50 | AU55: 7.704919603 | AV55: 1.469610328 | AW55: 63.4087888 | AX55: 0 | AY55: 25 | BC55: Albemarle RPO | BD55: 100 | BI55: 01 | BJ55: 100 | BO55: =SUM(U55+V55+X55+Y55+AA55+AC55) -> 75 | BP55: =SUM(AE55+AF55+AG55+AH55+AJ55+AL55+AN55+AP55) -> 70 | BU55: =Q55+BT55*0.25 -> 9.24 | BV55: Delay Prioritization pending outcome of Future Interstate Designation; Need to coordinate this project with SPOT ID#H141929 | BW55: =O55+BS55*0.25 -> 12.64 | BY55: County Does not support project | BZ55: Perquimans | CA55: 100 | CH55: 1 | CI55: A | CJ55: 01, , | CK55: Albemarle RPO, , | CL55: Perquimans, , , | CM55: 2 | CN55: 2 | CO55: Multi-Lane Highway | CP55: Freeway | CQ55: 2 | CR55: 2 | CS55: Divided | CT55: Divided | CU55: 55 | CV55: 55 | CW55: 9.735627512 | CX55: 90.26437249 | CY55: 15828.2958 | CZ55: 91352.77137 | DA55: 0.1732656335 | DB55: 14287.31188 | DC55: 1540.983921 | DD55: 343004.6155 | DE55: 36995.38455 | DF55: 380000 | DG55: 8699248 | DK55: 0 | DL55: 100 | DM55: 6 | DN55: 2.339220656e-05 | DO55: no | DP55: No | DQ55: 12 | DR55: 12 | DS55: No | DT55: 3 | DU55: 4 | DV55: 2 Lane Undivided | DX55: None | DY55: Full | DZ55: 2 | EA55: Yes | EB55: 30.6 | EC55: 10716000 | ED55: 2190000 | EE55: 0 | EF55: 12906000 | EH55: 12906000 | EI55: 12906000
A56: H090099-B | B56: Gates | C56: Albemarle RPO | D56: Highway | E56: Statewide Mobility | F56: R-2507B | G56: US-13 | H56: US 158 Bypass in Tarheel | I56: SR 1202 (Eure Road/Gates School Road) | J56: Widen to Multi-Lanes. | K56: 1 - Widen Existing Roadway | L56: 26200000 | M56: 11.66271653 | O56: 12.49 | P56: 3.6 | Q56: 9.16 | R56: 5.25 | S56: =Q56+#REF!+R56 ->  | U56: =IF(AT56<30,0,IF(AT56<50,5,IF(AT56<65,10,IF(AT56>66,15)))) -> 10 | V56: =IF(W56<499,15,IF(W56<999,10,IF(W56<1499,5,IF(W56>1500,0)))) -> 0 | W56: 1700.812772 | X56: =IF(DC56<500,0,IF(DC56<1000,5,IF(DC56>1000,10))) -> 5 | Y56: =IF(Z56="Yes",20,0) -> 20 | Z56: Yes | AA56: =IF(AB56="Yes",20,0) -> 20 | AB56: Yes | AC56: =IF(AD56="Yes",20,0) -> 20 | AD56: Yes | AE56: 10 | AF56: =IF(W56<999,20,IF(W56<1499,15,IF(W56<1999,10,IF(W56<3999,5,IF(W56>4000,0))))) -> 10 | AG56: 15 | AH56: 10 | AI56: No | AJ56: 15 | AK56: Minimal | AL56: 10 | AM56: Yes | AN56: =IF(AO56="Yes",10,0) -> 0 | AO56: No | AP56: 0 | AQ56: No | AR56: 15.80258065 | AS56: 0.01966675573 | AT56: 50.766884 | AU56: 9.16774188 | AV56: 0.05805529549 | AW56: 45.1 | AX56: 25 | AY56: 0 | BC56: Albemarle RPO | BD56: 100 | BI56: 01 | BJ56: 100 | BO56: =SUM(U56+V56+X56+Y56+AA56+AC56) -> 75 | BP56: 70 | BS56: 100 | BU56: =Q56+BT56*0.25 -> 9.16 | BV56: Exceeds cap of $15 million for Statewide & Regional Projects cascading to Division Needs | BW56: =O56+BS56*0.25 -> 37.49 | BZ56: Gates | CA56: 100 | CH56: 1 | CI56: A | CJ56: 01, , | CK56: Albemarle RPO, , | CL56: Gates, , , | CM56: 4.16335131 | CN56: 4.16335131 | CO56: Two Lane Highway | CP56: Multi-Lane Highway | CQ56: 1 | CR56: 2 | CS56: Undivided | CT56: Divided | CU56: 55 | CV56: 55 | CW56: 17.297297 | CX56: 82.702703 | CY56: 3700 | CZ56: 15500 | DA56: 0.2387096774 | DB56: 3060.000011 | DC56: 639.999989 | DD56: 18067.4308 | DE56: 3778.808979 | DF56: 21846.23978 | DG56: 515269 | DH56: 59.82194323 | DI56: 36.67115474 | DJ56: 55.82278562 | DM56: 0 | DN56: 1.16110591e-06 | DO56: Yes | DP56: No | DQ56: 11 | DR56: 12 | DS56: No | DT56: 2 | DU56: 0 | DV56: 2 Lane Undivided | DW56: 4A - 4 Lane Divided (46' Depressed Median) with Paved Shoulders | DX56: None | DY56: Partial | DZ56: 1 | EA56: Yes | EB56: 37 | EC56: 23200000 | ED56: 1800000 | EE56: 1200000 | EF56: 26200000 | EH56: 26200000 | EI56: 26200000
A57: H090099-C | B57: Gates | C57: Albemarle RPO | D57: Highway | E57: Statewide Mobility | F57: R-2507C | G57: US-13 | H57: SR 1202 (Eure Road/Gates School Road) | I57: Virginia State Line | J57: Widen to Multi-Lanes. | K57: 1 - Widen Existing Roadway | L57: 31000000 | M57: 12.46752281 | O57: 10.9777764 | P57: 3.15 | Q57: 7.317870804 | R57: 5.25 | S57: =Q57+#REF!+R57 ->  | U57: =IF(AT57<30,0,IF(AT57<50,5,IF(AT57<65,10,IF(AT57>66,15)))) -> 10 | V57: =IF(W57<499,15,IF(W57<999,10,IF(W57<1499,5,IF(W57>1500,0)))) -> 0 | W57: 1720.138102 | X57: =IF(DC57<500,0,IF(DC57<1000,5,IF(DC57>1000,10))) -> 5 | Y57: =IF(Z57="Yes",20,0) -> 20 | Z57: Yes | AA57: =IF(AB57="Yes",20,0) -> 20 | AB57: Yes | AC57: =IF(AD57="Yes",20,0) -> 20 | AD57: Yes | AE57: 10 | AF57: =IF(W57<999,20,IF(W57<1499,15,IF(W57<1999,10,IF(W57<3999,5,IF(W57>4000,0))))) -> 10 | AG57: 15 | AH57: 10 | AI57: No | AJ57: 15 | AK57: Minimal | AL57: 10 | AM57: Yes | AN57: =IF(AO57="Yes",10,0) -> 0 | AO57: No | AP57: 0 | AQ57: No | AR57: 16.32787773 | AS57: 0.01940380645 | AT57: 56.8314265 | AU57: 9.366327976 | AV57: 0.06930105611 | AW57: 45.46897756 | AX57: 0 | AY57: 0 | BC57: Albemarle RPO | BD57: 100 | BI57: 01 | BJ57: 100 | BO57: =SUM(U57+V57+X57+Y57+AA57+AC57) -> 75 | BP57: 70 | BS57: 100 | BU57: =Q57+BT57*0.25 -> 7.317870804 | BV57: Exceeds cap of $15 million for Statewide & Regional Projects cascading to Division Needs | BW57: =O57+BS57*0.25 -> 35.9777764 | BZ57: Gates | CA57: 100 | CH57: 1 | CI57: A | CJ57: 01, , | CK57: Albemarle RPO, , | CL57: Gates, , , | CM57: 4.71405809 | CN57: 4.71405809 | CO57: Two Lane Highway | CP57: Multi-Lane Highway | CQ57: 1 | CR57: 2 | CS57: Undivided | CT57: Divided | CU57: 55 | CV57: 55 | CW57: 16.74191615 | CX57: 83.25808385 | CY57: 3822.992519 | CZ57: 15500 | DA57: 0.2466446786 | DB57: 3182.950317 | DC57: 640.042202 | DD57: 21279.26891 | DE57: 4278.932679 | DF57: 25558.20159 | DG57: 601518 | DH57: 71.45279455 | DI57: 31.79863036 | DJ57: 67.25990573 | DM57: 0 | DN57: 1.386021122e-06 | DO57: Yes | DP57: No | DQ57: 12 | DR57: 12 | DS57: No | DT57: 0 | DU57: 0 | DV57: 2 Lane Undivided | DW57: 4A - 4 Lane Divided (46' Depressed Median) with Paved Shoulders | DX57: None | DY57: Partial | DZ57: 1 | EA57: Yes | EB57: 37 | EC57: 23800000 | ED57: 6000000 | EE57: 1200000 | EF57: 31000000 | EH57: 31000000 | EI57: 31000000
A58: A130008 | B58: Pasquotank | C58: Albemarle RPO | D58: Aviation | E58: Division Needs | G58: Elizabeth City Coast Guard Air Station/Regional | J58: Land Acquisition-Apron Construction | L58: 1800000 | Q58: 8.59 | R58: 13.5 | S58: =Q58+#REF!+R58 ->  | U58: N/A | W58: 1588.415439 | Z58: Yes | AA58: =IF(AB58="Yes",10,0) -> 0 | AC58: =IF(AD58="Yes",10,0) -> 0 | AE58: 0 | AF58: =IF(W58<999,20,IF(W58<1499,15,IF(W58<1999,10,IF(W58<3999,5,IF(W58>4000,0))))) -> 10 | AG58: 15 | AH58: =IF(AI58="Yes",10,0) -> 10 | AI58: Yes | AJ58: 15 | AK58: Minimal | AL58: 10 | AM58: Yes | AN58: =IF(AO58="Yes",5,0) -> 5 | AO58: Yes | AP58: 0 | AQ58: No | BC58: Albemarle RPO | BP58: 65 | BZ58: Pasquotank | CN58: 0.86 | CY58: 164.71 | EF58: 2000000 | EH58: 225000
A59: A130007 | B59: Pasquotank | C59: Albemarle RPO | D59: Aviation | E59: Division Needs | G59: Elizabeth City Coast Guard Air Station/Regional | J59: Permitting/mitigation/preliminary | L59: 247500 | Q59: 7.89 | R59: 13.5 | S59: =Q59+#REF!+R59 ->  | U59: N/A | W59: 1747.256983 | Z59: Yes | AA59: =IF(AB59="Yes",10,0) -> 0 | AC59: =IF(AD59="Yes",10,0) -> 0 | AE59: 0 | AF59: =IF(W59<999,20,IF(W59<1499,15,IF(W59<1999,10,IF(W59<3999,5,IF(W59>4000,0))))) -> 10 | AG59: 15 | AH59: =IF(AI59="Yes",10,0) -> 10 | AI59: Yes | AJ59: 15 | AK59: Minimal | AL59: 10 | AM59: Yes | AN59: =IF(AO59="Yes",5,0) -> 5 | AO59: Yes | AP59: 0 | AQ59: No | BC59: Albemarle RPO | BP59: 65 | BZ59: Pasquotank | CN59: 0.86 | CY59: 164.71 | EF59: 275000 | EH59: 247500
A60: A130036 | B60: Currituck | C60: Albemarle RPO | D60: Aviation | E60: Division Needs | G60: Currituck County Regional | J60: Acquire Equipment Shelter | L60: 135000 | Q60: 5.56 | R60: 15 | S60: =Q60+#REF!+R60 ->  | U60: N/A | W60: 1895.279491 | Z60: Yes | AA60: =IF(AB60="Yes",10,0) -> 0 | AC60: =IF(AD60="Yes",10,0) -> 0 | AE60: 0 | AF60: =IF(W60<999,20,IF(W60<1499,15,IF(W60<1999,10,IF(W60<3999,5,IF(W60>4000,0))))) -> 10 | AG60: 15 | AH60: =IF(AI60="Yes",10,0) -> 10 | AI60: Yes | AJ60: 15 | AK60: Minimal | AL60: 10 | AM60: Yes | AN60: =IF(AO60="Yes",5,0) -> 5 | AO60: Yes | AP60: 0 | AQ60: No | BC60: Albemarle RPO | BP60: 65 | BZ60: Currituck | CN60: 1.04 | CY60: 68.49 | EF60: 150000 | EH60: 135000
A61: H141724 | B61: Bertie | C61: Peanut Belt RPO | D61: Highway | E61: Statewide Mobility | G61: US-17 , US-13 | H61: US 64 at Williamston | I61: US 13 North at Windsor | J61: Upgrade roadway to Interstate | K61: 2 - Upgrade Arterial to Freeway/Expressway | L61: 296415000 | M61: 13.9631772 | O61: 18.19 | Q61: 14.61 | S61: =Q61+#REF!+R61 ->  | U61: =IF(AT61<30,0,IF(AT61<50,5,IF(AT61<65,10,IF(AT61>66,15)))) -> 10 | V61: =IF(W61<499,15,IF(W61<999,10,IF(W61<1499,5,IF(W61>1500,0)))) -> 0 | W61: 1821.199535 | X61: =IF(DC61<500,0,IF(DC61<1000,5,IF(DC61>1000,10))) -> 10 | Y61: =IF(Z61="Yes",20,0) -> 20 | Z61: Yes | AA61: =IF(AB61="Yes",20,0) -> 20 | AB61: Yes | AC61: =IF(AD61="Yes",10,0) -> 10 | AD61: Yes | AE61: 10 | AF61: =IF(BL59<999,20,IF(BL59<1499,15,IF(BL59<1999,10,IF(BL59<3999,5,IF(BL59>4000,0))))) -> 20 | AG61: 15 | AH61: =IF(AI61="Yes",10,0) -> 10 | AI61: Yes | AJ61: 15 | AK61: Minimal | AL61: 10 | AM61: Yes | AN61: =IF(AO61="Yes",10,0) -> 0 | AO61: No | AP61: 0 | AQ61: No | AR61: 13.83216704 | AS61: 0.3940360306 | AT61: 56.90349398 | AU61: 10.7706272 | AV61: 18.50841444 | AW61: 35.75543081 | AX61: 0 | AY61: 75 | BC61: Peanut Belt RPO | BD61: 89.61 | BE61: Mid-East RPO | BF61: 10.39 | BI61: 01 | BJ61: 100 | BO61: =SUM(U61+V61+X61+Y61+AA61+AC61) -> 70 | BP61: 80 | BU61: =Q61+BT61*0.25 -> 14.61 | BV61: Delay Prioritization pending outcome of Future Interstate Designation; Exceeds cap of $15 million for Statewide & Regional Projects cascading to Division Needs | BW61: =O61+BS61*0.25 -> 18.19 | BZ61: Bertie | CA61: 89.61 | CB61: Martin | CC61: 10.39 | CH61: 1 | CI61: A | CJ61: 01, , | CK61: Peanut Belt RPO, Mid-East RPO, | CL61: Bertie, Martin, , | CM61: 14.46506022 | CN61: 14.46506022 | CO61: Multi-Lane Highway | CP61: Freeway | CQ61: 2 | CR61: 2 | CS61: Divided | CT61: Divided | CU61: 54.75029964 | CV61: 70 | CW61: 12.23363319 | CX61: 87.76636681 | CY61: 11251.81027 | CZ61: 72347.71957 | DA61: 0.1555240488 | DB61: 9875.305074 | DC61: 1376.505196 | DD61: 4433453.314 | DE61: 617972.9617 | DF61: 5051426.276 | DG61: 116798190 | DH61: 56.16796598 | DI61: 51.05968743 | DJ61: 63.49990129 | DM61: 79.84063395 | DN61: 0.0002903276549 | DO61: Yes | DP61: No | DQ61: 12 | DR61: 12 | DS61: No | DT61: 1 | DU61: 4 | DV61: 4 Lane with Median - Partial Control | DW61: 4A - 4 Lane Divided (46' Depressed Median) with Paved Shoulders | DX61: None | DY61: Full | DZ61: 1 | EA61: Yes | EB61: 21 | EC61: 226794000 | ED61: 62162000 | EE61: 7459000 | EF61: 296415000 | EH61: 296415000 | EI61: 296415000
A62: H129515 | B62: Currituck | C62: Albemarle RPO | D62: Highway | E62: Statewide Mobility | F62: R-2576 | G62: - New Location Mid-Currituck Bridge | H62: Coinjock | I62: Corolla | J62: Construct New Bridge Over Currituck Sound | K62: 5 - Construct Roadway on New Location | L62: 173304000 | M62: 23.34283056 | O62: 15.72662928 | P62: 6.3 | Q62: 11.85356329 | R62: 9 | S62: =Q62+#REF!+R62 ->  | U62: 5 | V62: 0 | W62: 2285.853929 | X62: 5 | Y62: 20 | Z62: Yes | AA62: 20 | AB62: Yes | AC62: =IF(AD62="Yes",20,0) -> 20 | AD62: Yes | AE62: 5 | AF62: =IF(BL60<999,20,IF(BL60<1499,15,IF(BL60<1999,10,IF(BL60<3999,5,IF(BL60>4000,0))))) -> 20 | AG62: 15 | AH62: =IF(AI62="Yes",10,0) -> 0 | AI62: No | AJ62: =IF(AK62="Minimal",15,0) -> 15 | AK62: Minimal | AL62: 10 | AM62: Yes | AN62: 0 | AO62: No | AP62: 0 | AQ62: No | AR62: 18.7937954 | AS62: 8.925687041 | AT62: 40.81615043 | AU62: 4.726853947 | AV62: 100 | AW62: 15.36023521 | AX62: 25 | AY62: 25 | BC62: Albemarle RPO | BD62: 100 | BI62: 01 | BJ62: 100 | BO62: 70 | BP62: 65 | BU62: 11.85356329 | BV62: Exceeds cap of $15 million for Statewide & Regional Projects cascading to Division Needs | BW62: 15.72662928 | BZ62: Currituck | CA62: 100 | CH62: 1 | CI62: A | CJ62: 01, , | CK62: Albemarle RPO, , | CL62: Currituck, , , | CM62: 43.4 | CN62: 6.8671599 | CO62: Multi-Lane Highway | CP62: Two Lane Highway | CQ62: 2 | CR62: 1 | CS62: Undivided | CT62: Undivided | CU62: 48 | CV62: 55 | CW62: 8.562867561 | CX62: 91.43713244 | CY62: 11040.35281 | CZ62: 46072.96545 | DA62: 0.2396275712 | DB62: 10094.98202 | DC62: 945.3707894 | DD62: 62075426.13 | DE62: 5813214.376 | DF62: 67888640.51 | DG62: 1546857267 | DH62: 39.09304416 | DI62: 53.5934293 | DJ62: 29.7742239 | DM62: 2016 | DN62: 0.005738917278 | DO62: No | DP62: No | DQ62: 11 | DR62: 12 | DS62: No | DT62: 3 | DU62: 4 | DV62: New Roadway | DW62: 2A - 2 Lane Undivided with Paved Shoulders, 55 mph | DX62: None | DY62: None | DZ62: 2 | EA62: No | EB62: 24 | EC62: 383281000 | ED62: 25592000 | EE62: 1947000 | EF62: 410820000 | EG62: 237516000 | EH62: 173304000 | EI62: 173304000 | EJ62: Toll Revenue less Roadway Maintenance and Financing
A63: H090139 | B63: Currituck | C63: Albemarle RPO | D63: Highway | E63: Statewide Mobility | F63: R-2574 | G63: US-158 | H63: East of NC 34 at Belcross in Camden County | I63: NC 168 in Currituck County | J63: Widen to Multi-Lanes. | K63: 1 - Widen Existing Roadway | L63: 124500000 | M63: 12.91780651 | O63: 15.32 | P63: 5.85 | Q63: 11.88 | R63: 9 | S63: =Q63+#REF!+R63 ->  | U63: 5 | V63: 0 | W63: 1995.990821 | X63: 5 | Y63: 20 | Z63: Yes | AA63: 20 | AB63: Yes | AC63: =IF(AD63="Yes",20,0) -> 20 | AD63: Yes | AE63: 5 | AF63: =IF(BL61<999,20,IF(BL61<1499,15,IF(BL61<1999,10,IF(BL61<3999,5,IF(BL61>4000,0))))) -> 0 | AG63: 15 | AH63: 10 | AI63: No | AJ63: =IF(AK63="Minimal",15,0) -> 15 | AK63: Minimal | AL63: 10 | AM63: Yes | AN63: 0 | AO63: No | AP63: 0 | AQ63: No | AR63: 25.89919279 | AS63: 0.04931162249 | AT63: 42.81774225 | AU63: 3.751324639 | AV63: 1.012160306 | AW63: 40.17555194 | AX63: 0 | AY63: 50 | BC63: Albemarle RPO | BD63: 100 | BI63: 01 | BJ63: 100 | BO63: 70 | BP63: 55 | BS63: 100 | BU63: 11.88 | BV63: Exceeds cap of $15 million for Statewide & Regional Projects cascading to Division Needs | BW63: 40.32 | BZ63: Currituck | CA63: 81.82 | CB63: Camden | CC63: 18.18 | CH63: 1 | CI63: A | CJ63: 01, , | CK63: Albemarle RPO, , | CL63: Currituck, Camden, , | CM63: 10.2830142 | CN63: 10.2830142 | CO63: Two Lane Highway | CP63: Multi-Lane Highway | CQ63: 1 | CR63: 2 | CS63: Undivided | CT63: Divided | CU63: 55 | CV63: 55 | CW63: 12.36870607 | CX63: 87.63129393 | CY63: 6065.831976 | CZ63: 15505.13736 | DA63: 0.3912143334 | DB63: 5315.567048 | DC63: 750.2649278 | DD63: 232553.6734 | DE63: 32823.75396 | DF63: 265377.4274 | DG63: 6139297 | DH63: 47.38744748 | DI63: 46.64002148 | DJ63: 34.43860439 | DM63: 4 | DN63: 1.624320611e-05 | DO63: No | DP63: No | DQ63: 12 | DR63: 12 | DS63: No | DT63: 0 | DU63: 2 | DV63: 2 Lane Undivided | DW63: 4A - 4 Lane Divided (46' Depressed Median) with Paved Shoulders | DX63: None | DY63: Partial | DZ63: 2 | EA63: Yes | EB63: 32 | EC63: 82500000 | ED63: 40600000 | EE63: 1400000 | EF63: 124500000 | EH63: 124500000 | EI63: 124500000
A64: H141680 | B64: Northampton | C64: Peanut Belt RPO | D64: Highway | E64: Regional Impact | G64: NC-46 | H64: Virginia State Line | I64: NC 48 in Gaston | J64: Currently a 2-lane major thoroughfare from the Virginia State Line to NC 48 (TIP#U-2419), this project recommends to upgrade the existing facility to 24 feet w/ paved shoulders; while modifying sharp horizontal curves. This would provide safer maneuvering in a 12-foot lane; while tying in bike lane recommendations. | K64: 16 - Modernize Roadway | L64: 8587000 | O64: 12.09 | Q64: 8.89 | S64: =Q64+#REF!+R64 ->  | U64: 5 | V64: 15 | W64: 226.1703616 | X64: 0 | Y64: 20 | Z64: Yes | AA64: 20 | AB64: Yes | AC64: =IF(AD64="Yes",10,0) -> 10 | AD64: Yes | AE64: 5 | AF64: =IF(BL62<999,20,IF(BL62<1499,15,IF(BL62<1999,10,IF(BL62<3999,5,IF(BL62>4000,0))))) -> 0 | AG64: 15 | AH64: =IF(AI64="Yes",10,0) -> 10 | AI64: Yes | AJ64: 15 | AK64: Minimal | AL64: 10 | AM64: Yes | AN64: 0 | AO64: No | AP64: 0 | AQ64: No | AR64: 15.58293049 | AS64: 0 | AT64: 48.35922895 | AU64: 1.108343946 | AV64: N/A | AW64: 17.64857134 | AX64: 25 | AY64: 0 | BC64: Peanut Belt RPO | BD64: 100 | BI64: 01 | BJ64: 100 | BO64: 70 | BP64: 55 | BS64: 100 | BT64: 100 | BU64: 33.89 | BW64: 37.09 | BZ64: Northampton | CA64: 100 | CH64: 1 | CI64: A | CJ64: 01, , | CK64: Peanut Belt RPO, , | CL64: Northampton, , , | CM64: 10.4059786 | CN64: 10.4059786 | CO64: Two Lane Highway | CP64: Two Lane Highway | CQ64: 1 | CR64: 1 | CS64: Undivided | CT64: Undivided | CU64: 55 | CV64: 55 | CW64: 6.075495549 | CX64: 93.92450445 | CY64: 3648.571337 | CZ64: 15500 | DA64: 0.2353916992 | DB64: 3426.902548 | DC64: 221.6687892 | DD64: 0 | DE64: 0 | DF64: 0 | DG64: 0 | DH64: 52.5547593 | DI64: 46.36386067 | DJ64: 46.1735761 | DO64: No | DP64: No | DQ64: 11 | DR64: 12 | DS64: No | DT64: 2 | DU64: 0 | DV64: 2 Lane Undivided | DW64: 3A - 2 Lane with Two Way Left Turn Lane, and Paved Shoulders | DX64: None | DY64: None | DZ64: 1 | EA64: No | EB64: 27 | EC64: 8587000 | ED64: 0 | EE64: 0 | EF64: 8587000 | EH64: 8587000 | EI64: 8587000
